Workbook

Sheet INDEX
B2: Pinch Analysis Spreadsheet
C6: TABLE OF CONTENTS:
C8: INPUT | D8: Input Data | E8: Input problem data, i.e. stream temperatures, stream names, stream properties and dTmin criteria.
C9: PT | D9: Problem Table & Cascade | E9: Problem table, heat cascade, pinch identification, problem type, min utility requirements.
C10: CC | D10: Composite Curves | E10: Composite curve plot.
C11: SCC | D11: Shifted Composite Curves | E11: Shifted composite curve plot.
C12: GCC | D12: Grand Composite Curve | E12: Grand composite plot.
C13: GRID | D13: Grid Diagram | E13: Schematic showing hot and cold shfted streams and the pinch location.
C14: AS | D14: Actual Streams | E14: Schematic showing actual streams.
C15: AT | D15: Actual Intervals Table | E15: Calculation table for actual composite curves.
C16: SS | D16: Shifted Streams | E16: Schematic showing shifted streams.
C17: ST | D17: Shifted Intervals Table | E17: Calculation table for shifted composite curves.
C18: DTMIN | D18: Varying dTmin global | E18: Pinch analysis over a range of dTmin values.
C20: A1 | D20: Set-up and conversions | E20: Configuration page listing conversion factors.
C21: A2 | D21: Plot tables | E21: Tabulation of plot values.

Sheet INPUT
A1: Input Data
B4: 1. Select Input Method from the Dropdown list: | F4: Heat Capacity Flowrate
B6: 2. Input Global dTmin & select input temperature units: | F6: 10 | G6: °C
B8: 3. Select appropriate units for the input data from the drop down lists below (E15/F15). | I8: Requires Input -
I9: Optional Input -
B10: 4. Input data: Stream Name, Temperatures & Heat/Flow Data (max 50 streams). | I10: Calculation cell -
B12: 5. Select desired output unit set: | F12: SI-based (kW/K)
A14: Stream Name | B14: Supply Temperature | C14: Target Temperature | D14: dT Min Contrib | E14: =IF(F4='A1'!B4,'A1'!B12,IF(F4='A1'!B5,'A1'!D12,IF(F4='A1'!B6,'A1'!F12,IF(F4='A1'!B7,'A1'!F12,"SELECT INPUT (See 1. Above)")))) -> Heat Capacity Flowrate | F14: =IF(F4='A1'!B6,'A1'!H12,IF(F4='A1'!B7,'A1'!J12,"")) ->  | G14: Heat Flow | H14: Stream Type | I14: Supply Shift | J14: Target Shift | K14: =IF(AND(K16:K66=""),"","CHECK INPUT WARNING") -> 
B15: =G6 -> °C | C15: =G6 -> °C | D15: =G6 -> °C | E15: kW/K | G15: ='A1'!I29 -> kW | I15: ='A1'!K29 -> °C | J15: ='A1'!L29 -> °C
A16: 1 | B16: 200 | C16: 50 | D16: 10 | E16: 3 | G16: ='A1'!I30 -> 450 | H16: =IF('A1'!J30="","",'A1'!J30) -> HOT | I16: =IF('A1'!K30="","",'A1'!K30) -> 190 | J16: =IF('A1'!L30="","",'A1'!L30) -> 40 | K16: =IF(AND(A16:F16=""),"",IF('A1'!AD30="",IF('A1'!AE30="",IF('A1'!AF30="",IF('A1'!AG30="",IF('A1'!AH30="",IF('A1'!AI30="","",'A1'!AI30),'A1'!AH30),'A1'!AG30),'A1'!AF30),'A1'!AE30),'A1'!AD30)) -> 
A17: 2 | B17: 240 | C17: 100 | D17: 10 | E17: 1.5 | G17: ='A1'!I31 -> 210 | H17: =IF('A1'!J31="","",'A1'!J31) -> HOT | I17: =IF('A1'!K31="","",'A1'!K31) -> 230 | J17: =IF('A1'!L31="","",'A1'!L31) -> 90 | K17: =IF(AND(A17:F17=""),"",IF('A1'!AD31="",IF('A1'!AE31="",IF('A1'!AF31="",IF('A1'!AG31="",IF('A1'!AH31="",IF('A1'!AI31="","",'A1'!AI31),'A1'!AH31),'A1'!AG31),'A1'!AF31),'A1'!AE31),'A1'!AD31)) -> 
A18: 3 | B18: 120 | C18: 119 | D18: 10 | E18: 300 | G18: ='A1'!I32 -> 300 | H18: =IF('A1'!J32="","",'A1'!J32) -> HOT | I18: =IF('A1'!K32="","",'A1'!K32) -> 110 | J18: =IF('A1'!L32="","",'A1'!L32) -> 109 | K18: =IF(AND(A18:F18=""),"",IF('A1'!AD32="",IF('A1'!AE32="",IF('A1'!AF32="",IF('A1'!AG32="",IF('A1'!AH32="",IF('A1'!AI32="","",'A1'!AI32),'A1'!AH32),'A1'!AG32),'A1'!AF32),'A1'!AE32),'A1'!AD32)) -> 
A19: 4 | B19: 30 | C19: 200 | D19: 10 | E19: 4 | G19: ='A1'!I33 -> 680 | H19: =IF('A1'!J33="","",'A1'!J33) -> COLD | I19: =IF('A1'!K33="","",'A1'!K33) -> 40 | J19: =IF('A1'!L33="","",'A1'!L33) -> 210 | K19: =IF(AND(A19:F19=""),"",IF('A1'!AD33="",IF('A1'!AE33="",IF('A1'!AF33="",IF('A1'!AG33="",IF('A1'!AH33="",IF('A1'!AI33="","",'A1'!AI33),'A1'!AH33),'A1'!AG33),'A1'!AF33),'A1'!AE33),'A1'!AD33)) -> 
A20: 5 | B20: 50 | C20: 250 | D20: 10 | E20: 2 | G20: ='A1'!I34 -> 400 | H20: =IF('A1'!J34="","",'A1'!J34) -> COLD | I20: =IF('A1'!K34="","",'A1'!K34) -> 60 | J20: =IF('A1'!L34="","",'A1'!L34) -> 260 | K20: =IF(AND(A20:F20=""),"",IF('A1'!AD34="",IF('A1'!AE34="",IF('A1'!AF34="",IF('A1'!AG34="",IF('A1'!AH34="",IF('A1'!AI34="","",'A1'!AI34),'A1'!AH34),'A1'!AG34),'A1'!AF34),'A1'!AE34),'A1'!AD34)) -> 
G21: ='A1'!I35 ->  | H21: =IF('A1'!J35="","",'A1'!J35) ->  | I21: =IF('A1'!K35="","",'A1'!K35) ->  | J21: =IF('A1'!L35="","",'A1'!L35) ->  | K21: =IF(AND(A21:F21=""),"",IF('A1'!AD35="",IF('A1'!AE35="",IF('A1'!AF35="",IF('A1'!AG35="",IF('A1'!AH35="",IF('A1'!AI35="","",'A1'!AI35),'A1'!AH35),'A1'!AG35),'A1'!AF35),'A1'!AE35),'A1'!AD35)) -> 
G22: ='A1'!I36 ->  | H22: =IF('A1'!J36="","",'A1'!J36) ->  | I22: =IF('A1'!K36="","",'A1'!K36) ->  | J22: =IF('A1'!L36="","",'A1'!L36) ->  | K22: =IF(AND(A22:F22=""),"",IF('A1'!AD36="",IF('A1'!AE36="",IF('A1'!AF36="",IF('A1'!AG36="",IF('A1'!AH36="",IF('A1'!AI36="","",'A1'!AI36),'A1'!AH36),'A1'!AG36),'A1'!AF36),'A1'!AE36),'A1'!AD36)) -> 
G23: ='A1'!I37 ->  | H23: =IF('A1'!J37="","",'A1'!J37) ->  | I23: =IF('A1'!K37="","",'A1'!K37) ->  | J23: =IF('A1'!L37="","",'A1'!L37) ->  | K23: =IF(AND(A23:F23=""),"",IF('A1'!AD37="",IF('A1'!AE37="",IF('A1'!AF37="",IF('A1'!AG37="",IF('A1'!AH37="",IF('A1'!AI37="","",'A1'!AI37),'A1'!AH37),'A1'!AG37),'A1'!AF37),'A1'!AE37),'A1'!AD37)) -> 
G24: ='A1'!I38 ->  | H24: =IF('A1'!J38="","",'A1'!J38) ->  | I24: =IF('A1'!K38="","",'A1'!K38) ->  | J24: =IF('A1'!L38="","",'A1'!L38) ->  | K24: =IF(AND(A24:F24=""),"",IF('A1'!AD38="",IF('A1'!AE38="",IF('A1'!AF38="",IF('A1'!AG38="",IF('A1'!AH38="",IF('A1'!AI38="","",'A1'!AI38),'A1'!AH38),'A1'!AG38),'A1'!AF38),'A1'!AE38),'A1'!AD38)) -> 
G25: ='A1'!I39 ->  | H25: =IF('A1'!J39="","",'A1'!J39) ->  | I25: =IF('A1'!K39="","",'A1'!K39) ->  | J25: =IF('A1'!L39="","",'A1'!L39) ->  | K25: =IF(AND(A25:F25=""),"",IF('A1'!AD39="",IF('A1'!AE39="",IF('A1'!AF39="",IF('A1'!AG39="",IF('A1'!AH39="",IF('A1'!AI39="","",'A1'!AI39),'A1'!AH39),'A1'!AG39),'A1'!AF39),'A1'!AE39),'A1'!AD39)) -> 
G26: ='A1'!I40 ->  | H26: =IF('A1'!J40="","",'A1'!J40) ->  | I26: =IF('A1'!K40="","",'A1'!K40) ->  | J26: =IF('A1'!L40="","",'A1'!L40) ->  | K26: =IF(AND(A26:F26=""),"",IF('A1'!AD40="",IF('A1'!AE40="",IF('A1'!AF40="",IF('A1'!AG40="",IF('A1'!AH40="",IF('A1'!AI40="","",'A1'!AI40),'A1'!AH40),'A1'!AG40),'A1'!AF40),'A1'!AE40),'A1'!AD40)) -> 
G27: ='A1'!I41 ->  | H27: =IF('A1'!J41="","",'A1'!J41) ->  | I27: =IF('A1'!K41="","",'A1'!K41) ->  | J27: =IF('A1'!L41="","",'A1'!L41) ->  | K27: =IF(AND(A27:F27=""),"",IF('A1'!AD41="",IF('A1'!AE41="",IF('A1'!AF41="",IF('A1'!AG41="",IF('A1'!AH41="",IF('A1'!AI41="","",'A1'!AI41),'A1'!AH41),'A1'!AG41),'A1'!AF41),'A1'!AE41),'A1'!AD41)) -> 
G28: ='A1'!I42 ->  | H28: =IF('A1'!J42="","",'A1'!J42) ->  | I28: =IF('A1'!K42="","",'A1'!K42) ->  | J28: =IF('A1'!L42="","",'A1'!L42) ->  | K28: =IF(AND(A28:F28=""),"",IF('A1'!AD42="",IF('A1'!AE42="",IF('A1'!AF42="",IF('A1'!AG42="",IF('A1'!AH42="",IF('A1'!AI42="","",'A1'!AI42),'A1'!AH42),'A1'!AG42),'A1'!AF42),'A1'!AE42),'A1'!AD42)) -> 
G29: ='A1'!I43 ->  | H29: =IF('A1'!J43="","",'A1'!J43) ->  | I29: =IF('A1'!K43="","",'A1'!K43) ->  | J29: =IF('A1'!L43="","",'A1'!L43) ->  | K29: =IF(AND(A29:F29=""),"",IF('A1'!AD43="",IF('A1'!AE43="",IF('A1'!AF43="",IF('A1'!AG43="",IF('A1'!AH43="",IF('A1'!AI43="","",'A1'!AI43),'A1'!AH43),'A1'!AG43),'A1'!AF43),'A1'!AE43),'A1'!AD43)) -> 
G30: ='A1'!I44 ->  | H30: =IF('A1'!J44="","",'A1'!J44) ->  | I30: =IF('A1'!K44="","",'A1'!K44) ->  | J30: =IF('A1'!L44="","",'A1'!L44) ->  | K30: =IF(AND(A30:F30=""),"",IF('A1'!AD44="",IF('A1'!AE44="",IF('A1'!AF44="",IF('A1'!AG44="",IF('A1'!AH44="",IF('A1'!AI44="","",'A1'!AI44),'A1'!AH44),'A1'!AG44),'A1'!AF44),'A1'!AE44),'A1'!AD44)) -> 
G31: ='A1'!I45 ->  | H31: =IF('A1'!J45="","",'A1'!J45) ->  | I31: =IF('A1'!K45="","",'A1'!K45) ->  | J31: =IF('A1'!L45="","",'A1'!L45) ->  | K31: =IF(AND(A31:F31=""),"",IF('A1'!AD45="",IF('A1'!AE45="",IF('A1'!AF45="",IF('A1'!AG45="",IF('A1'!AH45="",IF('A1'!AI45="","",'A1'!AI45),'A1'!AH45),'A1'!AG45),'A1'!AF45),'A1'!AE45),'A1'!AD45)) -> 
G32: ='A1'!I46 ->  | H32: =IF('A1'!J46="","",'A1'!J46) ->  | I32: =IF('A1'!K46="","",'A1'!K46) ->  | J32: =IF('A1'!L46="","",'A1'!L46) ->  | K32: =IF(AND(A32:F32=""),"",IF('A1'!AD46="",IF('A1'!AE46="",IF('A1'!AF46="",IF('A1'!AG46="",IF('A1'!AH46="",IF('A1'!AI46="","",'A1'!AI46),'A1'!AH46),'A1'!AG46),'A1'!AF46),'A1'!AE46),'A1'!AD46)) -> 
G33: ='A1'!I47 ->  | H33: =IF('A1'!J47="","",'A1'!J47) ->  | I33: =IF('A1'!K47="","",'A1'!K47) ->  | J33: =IF('A1'!L47="","",'A1'!L47) ->  | K33: =IF(AND(A33:F33=""),"",IF('A1'!AD47="",IF('A1'!AE47="",IF('A1'!AF47="",IF('A1'!AG47="",IF('A1'!AH47="",IF('A1'!AI47="","",'A1'!AI47),'A1'!AH47),'A1'!AG47),'A1'!AF47),'A1'!AE47),'A1'!AD47)) -> 
G34: ='A1'!I48 ->  | H34: =IF('A1'!J48="","",'A1'!J48) ->  | I34: =IF('A1'!K48="","",'A1'!K48) ->  | J34: =IF('A1'!L48="","",'A1'!L48) ->  | K34: =IF(AND(A34:F34=""),"",IF('A1'!AD48="",IF('A1'!AE48="",IF('A1'!AF48="",IF('A1'!AG48="",IF('A1'!AH48="",IF('A1'!AI48="","",'A1'!AI48),'A1'!AH48),'A1'!AG48),'A1'!AF48),'A1'!AE48),'A1'!AD48)) -> 
G35: ='A1'!I49 ->  | H35: =IF('A1'!J49="","",'A1'!J49) ->  | I35: =IF('A1'!K49="","",'A1'!K49) ->  | J35: =IF('A1'!L49="","",'A1'!L49) ->  | K35: =IF(AND(A35:F35=""),"",IF('A1'!AD49="",IF('A1'!AE49="",IF('A1'!AF49="",IF('A1'!AG49="",IF('A1'!AH49="",IF('A1'!AI49="","",'A1'!AI49),'A1'!AH49),'A1'!AG49),'A1'!AF49),'A1'!AE49),'A1'!AD49)) -> 
G36: ='A1'!I50 ->  | H36: =IF('A1'!J50="","",'A1'!J50) ->  | I36: =IF('A1'!K50="","",'A1'!K50) ->  | J36: =IF('A1'!L50="","",'A1'!L50) ->  | K36: =IF(AND(A36:F36=""),"",IF('A1'!AD50="",IF('A1'!AE50="",IF('A1'!AF50="",IF('A1'!AG50="",IF('A1'!AH50="",IF('A1'!AI50="","",'A1'!AI50),'A1'!AH50),'A1'!AG50),'A1'!AF50),'A1'!AE50),'A1'!AD50)) -> 
G37: ='A1'!I51 ->  | H37: =IF('A1'!J51="","",'A1'!J51) ->  | I37: =IF('A1'!K51="","",'A1'!K51) ->  | J37: =IF('A1'!L51="","",'A1'!L51) ->  | K37: =IF(AND(A37:F37=""),"",IF('A1'!AD51="",IF('A1'!AE51="",IF('A1'!AF51="",IF('A1'!AG51="",IF('A1'!AH51="",IF('A1'!AI51="","",'A1'!AI51),'A1'!AH51),'A1'!AG51),'A1'!AF51),'A1'!AE51),'A1'!AD51)) -> 
G38: ='A1'!I52 ->  | H38: =IF('A1'!J52="","",'A1'!J52) ->  | I38: =IF('A1'!K52="","",'A1'!K52) ->  | J38: =IF('A1'!L52="","",'A1'!L52) ->  | K38: =IF(AND(A38:F38=""),"",IF('A1'!AD52="",IF('A1'!AE52="",IF('A1'!AF52="",IF('A1'!AG52="",IF('A1'!AH52="",IF('A1'!AI52="","",'A1'!AI52),'A1'!AH52),'A1'!AG52),'A1'!AF52),'A1'!AE52),'A1'!AD52)) -> 
G39: ='A1'!I53 ->  | H39: =IF('A1'!J53="","",'A1'!J53) ->  | I39: =IF('A1'!K53="","",'A1'!K53) ->  | J39: =IF('A1'!L53="","",'A1'!L53) ->  | K39: =IF(AND(A39:F39=""),"",IF('A1'!AD53="",IF('A1'!AE53="",IF('A1'!AF53="",IF('A1'!AG53="",IF('A1'!AH53="",IF('A1'!AI53="","",'A1'!AI53),'A1'!AH53),'A1'!AG53),'A1'!AF53),'A1'!AE53),'A1'!AD53)) -> 
G40: ='A1'!I54 ->  | H40: =IF('A1'!J54="","",'A1'!J54) ->  | I40: =IF('A1'!K54="","",'A1'!K54) ->  | J40: =IF('A1'!L54="","",'A1'!L54) ->  | K40: =IF(AND(A40:F40=""),"",IF('A1'!AD54="",IF('A1'!AE54="",IF('A1'!AF54="",IF('A1'!AG54="",IF('A1'!AH54="",IF('A1'!AI54="","",'A1'!AI54),'A1'!AH54),'A1'!AG54),'A1'!AF54),'A1'!AE54),'A1'!AD54)) -> 
G41: ='A1'!I55 ->  | H41: =IF('A1'!J55="","",'A1'!J55) ->  | I41: =IF('A1'!K55="","",'A1'!K55) ->  | J41: =IF('A1'!L55="","",'A1'!L55) ->  | K41: =IF(AND(A41:F41=""),"",IF('A1'!AD55="",IF('A1'!AE55="",IF('A1'!AF55="",IF('A1'!AG55="",IF('A1'!AH55="",IF('A1'!AI55="","",'A1'!AI55),'A1'!AH55),'A1'!AG55),'A1'!AF55),'A1'!AE55),'A1'!AD55)) -> 
G42: ='A1'!I56 ->  | H42: =IF('A1'!J56="","",'A1'!J56) ->  | I42: =IF('A1'!K56="","",'A1'!K56) ->  | J42: =IF('A1'!L56="","",'A1'!L56) ->  | K42: =IF(AND(A42:F42=""),"",IF('A1'!AD56="",IF('A1'!AE56="",IF('A1'!AF56="",IF('A1'!AG56="",IF('A1'!AH56="",IF('A1'!AI56="","",'A1'!AI56),'A1'!AH56),'A1'!AG56),'A1'!AF56),'A1'!AE56),'A1'!AD56)) -> 
G43: ='A1'!I57 ->  | H43: =IF('A1'!J57="","",'A1'!J57) ->  | I43: =IF('A1'!K57="","",'A1'!K57) ->  | J43: =IF('A1'!L57="","",'A1'!L57) ->  | K43: =IF(AND(A43:F43=""),"",IF('A1'!AD57="",IF('A1'!AE57="",IF('A1'!AF57="",IF('A1'!AG57="",IF('A1'!AH57="",IF('A1'!AI57="","",'A1'!AI57),'A1'!AH57),'A1'!AG57),'A1'!AF57),'A1'!AE57),'A1'!AD57)) -> 
G44: ='A1'!I58 ->  | H44: =IF('A1'!J58="","",'A1'!J58) ->  | I44: =IF('A1'!K58="","",'A1'!K58) ->  | J44: =IF('A1'!L58="","",'A1'!L58) ->  | K44: =IF(AND(A44:F44=""),"",IF('A1'!AD58="",IF('A1'!AE58="",IF('A1'!AF58="",IF('A1'!AG58="",IF('A1'!AH58="",IF('A1'!AI58="","",'A1'!AI58),'A1'!AH58),'A1'!AG58),'A1'!AF58),'A1'!AE58),'A1'!AD58)) -> 
G45: ='A1'!I59 ->  | H45: =IF('A1'!J59="","",'A1'!J59) ->  | I45: =IF('A1'!K59="","",'A1'!K59) ->  | J45: =IF('A1'!L59="","",'A1'!L59) ->  | K45: =IF(AND(A45:F45=""),"",IF('A1'!AD59="",IF('A1'!AE59="",IF('A1'!AF59="",IF('A1'!AG59="",IF('A1'!AH59="",IF('A1'!AI59="","",'A1'!AI59),'A1'!AH59),'A1'!AG59),'A1'!AF59),'A1'!AE59),'A1'!AD59)) -> 
G46: ='A1'!I60 ->  | H46: =IF('A1'!J60="","",'A1'!J60) ->  | I46: =IF('A1'!K60="","",'A1'!K60) ->  | J46: =IF('A1'!L60="","",'A1'!L60) ->  | K46: =IF(AND(A46:F46=""),"",IF('A1'!AD60="",IF('A1'!AE60="",IF('A1'!AF60="",IF('A1'!AG60="",IF('A1'!AH60="",IF('A1'!AI60="","",'A1'!AI60),'A1'!AH60),'A1'!AG60),'A1'!AF60),'A1'!AE60),'A1'!AD60)) -> 
G47: ='A1'!I61 ->  | H47: =IF('A1'!J61="","",'A1'!J61) ->  | I47: =IF('A1'!K61="","",'A1'!K61) ->  | J47: =IF('A1'!L61="","",'A1'!L61) ->  | K47: =IF(AND(A47:F47=""),"",IF('A1'!AD61="",IF('A1'!AE61="",IF('A1'!AF61="",IF('A1'!AG61="",IF('A1'!AH61="",IF('A1'!AI61="","",'A1'!AI61),'A1'!AH61),'A1'!AG61),'A1'!AF61),'A1'!AE61),'A1'!AD61)) -> 
G48: ='A1'!I62 ->  | H48: =IF('A1'!J62="","",'A1'!J62) ->  | I48: =IF('A1'!K62="","",'A1'!K62) ->  | J48: =IF('A1'!L62="","",'A1'!L62) ->  | K48: =IF(AND(A48:F48=""),"",IF('A1'!AD62="",IF('A1'!AE62="",IF('A1'!AF62="",IF('A1'!AG62="",IF('A1'!AH62="",IF('A1'!AI62="","",'A1'!AI62),'A1'!AH62),'A1'!AG62),'A1'!AF62),'A1'!AE62),'A1'!AD62)) -> 
G49: ='A1'!I63 ->  | H49: =IF('A1'!J63="","",'A1'!J63) ->  | I49: =IF('A1'!K63="","",'A1'!K63) ->  | J49: =IF('A1'!L63="","",'A1'!L63) ->  | K49: =IF(AND(A49:F49=""),"",IF('A1'!AD63="",IF('A1'!AE63="",IF('A1'!AF63="",IF('A1'!AG63="",IF('A1'!AH63="",IF('A1'!AI63="","",'A1'!AI63),'A1'!AH63),'A1'!AG63),'A1'!AF63),'A1'!AE63),'A1'!AD63)) -> 
G50: ='A1'!I64 ->  | H50: =IF('A1'!J64="","",'A1'!J64) ->  | I50: =IF('A1'!K64="","",'A1'!K64) ->  | J50: =IF('A1'!L64="","",'A1'!L64) ->  | K50: =IF(AND(A50:F50=""),"",IF('A1'!AD64="",IF('A1'!AE64="",IF('A1'!AF64="",IF('A1'!AG64="",IF('A1'!AH64="",IF('A1'!AI64="","",'A1'!AI64),'A1'!AH64),'A1'!AG64),'A1'!AF64),'A1'!AE64),'A1'!AD64)) -> 
G51: ='A1'!I65 ->  | H51: =IF('A1'!J65="","",'A1'!J65) ->  | I51: =IF('A1'!K65="","",'A1'!K65) ->  | J51: =IF('A1'!L65="","",'A1'!L65) ->  | K51: =IF(AND(A51:F51=""),"",IF('A1'!AD65="",IF('A1'!AE65="",IF('A1'!AF65="",IF('A1'!AG65="",IF('A1'!AH65="",IF('A1'!AI65="","",'A1'!AI65),'A1'!AH65),'A1'!AG65),'A1'!AF65),'A1'!AE65),'A1'!AD65)) -> 
G52: ='A1'!I66 ->  | H52: =IF('A1'!J66="","",'A1'!J66) ->  | I52: =IF('A1'!K66="","",'A1'!K66) ->  | J52: =IF('A1'!L66="","",'A1'!L66) ->  | K52: =IF(AND(A52:F52=""),"",IF('A1'!AD66="",IF('A1'!AE66="",IF('A1'!AF66="",IF('A1'!AG66="",IF('A1'!AH66="",IF('A1'!AI66="","",'A1'!AI66),'A1'!AH66),'A1'!AG66),'A1'!AF66),'A1'!AE66),'A1'!AD66)) -> 
G53: ='A1'!I67 ->  | H53: =IF('A1'!J67="","",'A1'!J67) ->  | I53: =IF('A1'!K67="","",'A1'!K67) ->  | J53: =IF('A1'!L67="","",'A1'!L67) ->  | K53: =IF(AND(A53:F53=""),"",IF('A1'!AD67="",IF('A1'!AE67="",IF('A1'!AF67="",IF('A1'!AG67="",IF('A1'!AH67="",IF('A1'!AI67="","",'A1'!AI67),'A1'!AH67),'A1'!AG67),'A1'!AF67),'A1'!AE67),'A1'!AD67)) -> 
G54: ='A1'!I68 ->  | H54: =IF('A1'!J68="","",'A1'!J68) ->  | I54: =IF('A1'!K68="","",'A1'!K68) ->  | J54: =IF('A1'!L68="","",'A1'!L68) ->  | K54: =IF(AND(A54:F54=""),"",IF('A1'!AD68="",IF('A1'!AE68="",IF('A1'!AF68="",IF('A1'!AG68="",IF('A1'!AH68="",IF('A1'!AI68="","",'A1'!AI68),'A1'!AH68),'A1'!AG68),'A1'!AF68),'A1'!AE68),'A1'!AD68)) -> 
G55: ='A1'!I69 ->  | H55: =IF('A1'!J69="","",'A1'!J69) ->  | I55: =IF('A1'!K69="","",'A1'!K69) ->  | J55: =IF('A1'!L69="","",'A1'!L69) ->  | K55: =IF(AND(A55:F55=""),"",IF('A1'!AD69="",IF('A1'!AE69="",IF('A1'!AF69="",IF('A1'!AG69="",IF('A1'!AH69="",IF('A1'!AI69="","",'A1'!AI69),'A1'!AH69),'A1'!AG69),'A1'!AF69),'A1'!AE69),'A1'!AD69)) -> 
G56: ='A1'!I70 ->  | H56: =IF('A1'!J70="","",'A1'!J70) ->  | I56: =IF('A1'!K70="","",'A1'!K70) ->  | J56: =IF('A1'!L70="","",'A1'!L70) ->  | K56: =IF(AND(A56:F56=""),"",IF('A1'!AD70="",IF('A1'!AE70="",IF('A1'!AF70="",IF('A1'!AG70="",IF('A1'!AH70="",IF('A1'!AI70="","",'A1'!AI70),'A1'!AH70),'A1'!AG70),'A1'!AF70),'A1'!AE70),'A1'!AD70)) -> 
G57: ='A1'!I71 ->  | H57: =IF('A1'!J71="","",'A1'!J71) ->  | I57: =IF('A1'!K71="","",'A1'!K71) ->  | J57: =IF('A1'!L71="","",'A1'!L71) ->  | K57: =IF(AND(A57:F57=""),"",IF('A1'!AD71="",IF('A1'!AE71="",IF('A1'!AF71="",IF('A1'!AG71="",IF('A1'!AH71="",IF('A1'!AI71="","",'A1'!AI71),'A1'!AH71),'A1'!AG71),'A1'!AF71),'A1'!AE71),'A1'!AD71)) -> 
G58: ='A1'!I72 ->  | H58: =IF('A1'!J72="","",'A1'!J72) ->  | I58: =IF('A1'!K72="","",'A1'!K72) ->  | J58: =IF('A1'!L72="","",'A1'!L72) ->  | K58: =IF(AND(A58:F58=""),"",IF('A1'!AD72="",IF('A1'!AE72="",IF('A1'!AF72="",IF('A1'!AG72="",IF('A1'!AH72="",IF('A1'!AI72="","",'A1'!AI72),'A1'!AH72),'A1'!AG72),'A1'!AF72),'A1'!AE72),'A1'!AD72)) -> 
G59: ='A1'!I73 ->  | H59: =IF('A1'!J73="","",'A1'!J73) ->  | I59: =IF('A1'!K73="","",'A1'!K73) ->  | J59: =IF('A1'!L73="","",'A1'!L73) ->  | K59: =IF(AND(A59:F59=""),"",IF('A1'!AD73="",IF('A1'!AE73="",IF('A1'!AF73="",IF('A1'!AG73="",IF('A1'!AH73="",IF('A1'!AI73="","",'A1'!AI73),'A1'!AH73),'A1'!AG73),'A1'!AF73),'A1'!AE73),'A1'!AD73)) -> 
G60: ='A1'!I74 ->  | H60: =IF('A1'!J74="","",'A1'!J74) ->  | I60: =IF('A1'!K74="","",'A1'!K74) ->  | J60: =IF('A1'!L74="","",'A1'!L74) ->  | K60: =IF(AND(A60:F60=""),"",IF('A1'!AD74="",IF('A1'!AE74="",IF('A1'!AF74="",IF('A1'!AG74="",IF('A1'!AH74="",IF('A1'!AI74="","",'A1'!AI74),'A1'!AH74),'A1'!AG74),'A1'!AF74),'A1'!AE74),'A1'!AD74)) -> 
G61: ='A1'!I75 ->  | H61: =IF('A1'!J75="","",'A1'!J75) ->  | I61: =IF('A1'!K75="","",'A1'!K75) ->  | J61: =IF('A1'!L75="","",'A1'!L75) ->  | K61: =IF(AND(A61:F61=""),"",IF('A1'!AD75="",IF('A1'!AE75="",IF('A1'!AF75="",IF('A1'!AG75="",IF('A1'!AH75="",IF('A1'!AI75="","",'A1'!AI75),'A1'!AH75),'A1'!AG75),'A1'!AF75),'A1'!AE75),'A1'!AD75)) -> 
G62: ='A1'!I76 ->  | H62: =IF('A1'!J76="","",'A1'!J76) ->  | I62: =IF('A1'!K76="","",'A1'!K76) ->  | J62: =IF('A1'!L76="","",'A1'!L76) ->  | K62: =IF(AND(A62:F62=""),"",IF('A1'!AD76="",IF('A1'!AE76="",IF('A1'!AF76="",IF('A1'!AG76="",IF('A1'!AH76="",IF('A1'!AI76="","",'A1'!AI76),'A1'!AH76),'A1'!AG76),'A1'!AF76),'A1'!AE76),'A1'!AD76)) -> 
G63: ='A1'!I77 ->  | H63: =IF('A1'!J77="","",'A1'!J77) ->  | I63: =IF('A1'!K77="","",'A1'!K77) ->  | J63: =IF('A1'!L77="","",'A1'!L77) ->  | K63: =IF(AND(A63:F63=""),"",IF('A1'!AD77="",IF('A1'!AE77="",IF('A1'!AF77="",IF('A1'!AG77="",IF('A1'!AH77="",IF('A1'!AI77="","",'A1'!AI77),'A1'!AH77),'A1'!AG77),'A1'!AF77),'A1'!AE77),'A1'!AD77)) -> 
G64: ='A1'!I78 ->  | H64: =IF('A1'!J78="","",'A1'!J78) ->  | I64: =IF('A1'!K78="","",'A1'!K78) ->  | J64: =IF('A1'!L78="","",'A1'!L78) ->  | K64: =IF(AND(A64:F64=""),"",IF('A1'!AD78="",IF('A1'!AE78="",IF('A1'!AF78="",IF('A1'!AG78="",IF('A1'!AH78="",IF('A1'!AI78="","",'A1'!AI78),'A1'!AH78),'A1'!AG78),'A1'!AF78),'A1'!AE78),'A1'!AD78)) -> 
G65: ='A1'!I79 ->  | H65: =IF('A1'!J79="","",'A1'!J79) ->  | I65: =IF('A1'!K79="","",'A1'!K79) ->  | J65: =IF('A1'!L79="","",'A1'!L79) ->  | K65: =IF(AND(A65:F65=""),"",IF('A1'!AD79="",IF('A1'!AE79="",IF('A1'!AF79="",IF('A1'!AG79="",IF('A1'!AH79="",IF('A1'!AI79="","",'A1'!AI79),'A1'!AH79),'A1'!AG79),'A1'!AF79),'A1'!AE79),'A1'!AD79)) -> 

Sheet PT
A1: Problem Table & Cascade
A3: Shift Temperature | B3: Interval | C3: T(i+1)-Ti | D3: mCpnet | E3: dH | I3: Infeasible Cascade | L3: Feasible Cascade
A4: ='A1'!T3 -> °C | C4: ='A1'!T3 -> °C | D4: ='A1'!T4 -> kW/K | E4: ='A1'!T5 -> kW | O4: Hot Pinch | P4: =INPUT!F6/2+INDEX($A$5:$M$105,MATCH("PINCH",$H$5:$H$105,0),1) -> 115 | Q4: ='A1'!T3 -> °C
A5: =IF(B6="","",(LARGE('A1'!$K$30:$L$79,B6))) -> 260 | H5: =IF(J5:J203="","",IF(MIN(J5:J203)=J5:J203,"PINCH","")) ->  | I5: =IF(A5="","","▼") -> ▼ | J5: =IF(A5="","",0) -> 0 | L5: ▼ | M5: =ABS(INDEX($A$5:$M$85,MATCH("PINCH",$H$5:$H$85,0),10)) -> 280 | O5: Cold Pinch | P5: =-INPUT!F6/2+INDEX($A$5:$M$105,MATCH("PINCH",$H$5:$H$105,0),1) -> 105 | Q5: ='A1'!T3 -> °C
A6: =IF(B7="","",(LARGE('A1'!$K$30:$L$79,B7))) ->  | B6: =IF((SUM(IF(FREQUENCY('A1'!$K$30:$L$79,'A1'!$K$30:$L$79)>0,1)))>1,1,"") -> 1 | C6: =IF((B6:B202)="","",(A5:A201)-(A7:A203)) -> 30 | D6: =IF(C6="","",SUM(IF('A1'!J$30:J$79="HOT",IF('A1'!K$30:K$79>=A5,IF('A1'!L$30:L$79<=A7,1*'A1'!H$30:H$79,0),0),0),IF('A1'!J$30:J$79="COLD",IF('A1'!K$30:K$79<=A7,IF('A1'!L$30:L$79>=A5,-1*'A1'!H$30:H$79,0),0),0))) -> -2 | E6: =IF(D6="","",D6*C6) -> -60 | F6: =IF(E6="","",IF(E6<1,"demand","surplus")) -> demand | I6: =E6 -> -60 | J6: =IF(A6="","",J$5+SUM(I5:I$6)) ->  | L6: =E6 -> -60 | M6: =IF(A6="","",IF(L6="▼",((M$5)+(SUM(L5:L$6))),(-(M$5+SUM(L5:L$6))))) -> 
A7: =IF(B6="","",(LARGE('A1'!$K$30:$L$79,(1+SUM(COUNTIF('A1'!$K$30:$L$79,A$5:A6))-(B6*COUNTIF('A1'!$K$30:$L$79,A$6)))))) -> 230 | B7: =IF(B5="","",IF((SUM(IF(FREQUENCY('A1'!$K$30:$L$79,'A1'!$K$30:$L$79)>0,1)))>(B5+1),(B5+1),"")) ->  | D7: =IF(C7="","",SUM(IF('A1'!J$30:J$79="HOT",IF('A1'!K$30:K$79>=A6,IF('A1'!L$30:L$79<=A8,1*'A1'!H$30:H$79,0),0),0),IF('A1'!J$30:J$79="COLD",IF('A1'!K$30:K$79<=A8,IF('A1'!L$30:L$79>=A6,-1*'A1'!H$30:H$79,0),0),0))) ->  | F7: =IF(E7="","",IF(E7<1,"demand","surplus")) ->  | I7: =IF(A7="","","▼") -> ▼ | J7: =IF(A7="","",J$5+SUM(I6:I$6)) -> -60 | L7: =IF(L6="","",IF((M$5+SUM(L$6:L6))>=0,"▼","▲")) -> ▼ | M7: =IF(A7="","",IF(L7="▼",((M$5)+(SUM(L6:L$6))),(-(M$5+SUM(L6:L$6))))) -> 220 | O7: Min Hot Utility | P7: =M5 -> 280 | Q7: ='A1'!T5 -> kW
A8: =IF(B7="","",(LARGE('A1'!$K$30:$L$79,(1+SUM(COUNTIF('A1'!$K$30:$L$79,A$5:A7))-(B7*COUNTIF('A1'!$K$30:$L$79,A$6)))))) ->  | B8: =IF(B6="","",IF((SUM(IF(FREQUENCY('A1'!$K$30:$L$79,'A1'!$K$30:$L$79)>0,1)))>(B6+1),(B6+1),"")) -> 2 | C8: 20 | D8: =IF(C8="","",SUM(IF('A1'!J$30:J$79="HOT",IF('A1'!K$30:K$79>=A7,IF('A1'!L$30:L$79<=A9,1*'A1'!H$30:H$79,0),0),0),IF('A1'!J$30:J$79="COLD",IF('A1'!K$30:K$79<=A9,IF('A1'!L$30:L$79>=A7,-1*'A1'!H$30:H$79,0),0),0))) -> -0.5 | E8: -10 | F8: demand | I8: =E8 -> -10 | J8: =IF(A8="","",J$5+SUM(I$6:I7)) ->  | L8: =E8 -> -10 | M8: =IF(A8="","",IF(L8="▼",((M$5)+(SUM(L$6:L7))),(-(M$5+SUM(L$6:L7))))) ->  | O8: Min Cold Utility | P8: =((M$5)+(SUM(L$6:L105))) -> 160 | Q8: ='A1'!T5 -> kW
A9: =IF(B8="","",(LARGE('A1'!$K$30:$L$79,(1+SUM(COUNTIF('A1'!$K$30:$L$79,A$5:A8))-(B8*COUNTIF('A1'!$K$30:$L$79,A$6)))))) -> 210 | B9: =IF(B7="","",IF((SUM(IF(FREQUENCY('A1'!$K$30:$L$79,'A1'!$K$30:$L$79)>0,1)))>(B7+1),(B7+1),"")) ->  | D9: =IF(C9="","",SUM(IF('A1'!J$30:J$79="HOT",IF('A1'!K$30:K$79>=A8,IF('A1'!L$30:L$79<=A10,1*'A1'!H$30:H$79,0),0),0),IF('A1'!J$30:J$79="COLD",IF('A1'!K$30:K$79<=A10,IF('A1'!L$30:L$79>=A8,-1*'A1'!H$30:H$79,0),0),0))) ->  | I9: =IF(A9="","","▼") -> ▼ | J9: =IF(A9="","",J$5+SUM(I$6:I8)) -> -70 | L9: =IF(L8="","",IF((M$5+SUM(L$6:L8))>=0,"▼","▲")) -> ▼ | M9: =IF(A9="","",IF(L9="▼",((M$5)+(SUM(L$6:L8))),(-(M$5+SUM(L$6:L8))))) -> 210
A10: =IF(B9="","",(LARGE('A1'!$K$30:$L$79,(1+SUM(COUNTIF('A1'!$K$30:$L$79,A$5:A9))-(B9*COUNTIF('A1'!$K$30:$L$79,A$6)))))) ->  | B10: =IF(B8="","",IF((SUM(IF(FREQUENCY('A1'!$K$30:$L$79,'A1'!$K$30:$L$79)>0,1)))>(B8+1),(B8+1),"")) -> 3 | C10: 20 | D10: =IF(C10="","",SUM(IF('A1'!J$30:J$79="HOT",IF('A1'!K$30:K$79>=A9,IF('A1'!L$30:L$79<=A11,1*'A1'!H$30:H$79,0),0),0),IF('A1'!J$30:J$79="COLD",IF('A1'!K$30:K$79<=A11,IF('A1'!L$30:L$79>=A9,-1*'A1'!H$30:H$79,0),0),0))) -> -4.5 | E10: -90 | F10: demand | I10: =E10 -> -90 | J10: =IF(A10="","",J$5+SUM(I$6:I9)) ->  | L10: =E10 -> -90 | M10: =IF(A10="","",IF(L10="▼",((M$5)+(SUM(L$6:L9))),(-(M$5+SUM(L$6:L9))))) ->  | O10: =IF(COUNTIF(H5:H105,"PINCH")=1,"SINGLE PINCH PROBLEM",IF(COUNTIF(H5:H105,"PINCH")>1,IF(OR(INDEX($A$5:$M$105,MATCH("PINCH",$H$5:$H$105,0)+2,8)="PINCH",INDEX($A$5:$M$105,MATCH("PINCH",$H$5:$H$105,0)-2,8)="PINCH"),"PINCH REGION PROBLEM","MULTIPLE PINCH PROBLEM"),"")) -> SINGLE PINCH PROBLEM
A11: =IF(B10="","",(LARGE('A1'!$K$30:$L$79,(1+SUM(COUNTIF('A1'!$K$30:$L$79,A$5:A10))-(B10*COUNTIF('A1'!$K$30:$L$79,A$6)))))) -> 190 | B11: =IF(B9="","",IF((SUM(IF(FREQUENCY('A1'!$K$30:$L$79,'A1'!$K$30:$L$79)>0,1)))>(B9+1),(B9+1),"")) ->  | D11: =IF(C11="","",SUM(IF('A1'!J$30:J$79="HOT",IF('A1'!K$30:K$79>=A10,IF('A1'!L$30:L$79<=A12,1*'A1'!H$30:H$79,0),0),0),IF('A1'!J$30:J$79="COLD",IF('A1'!K$30:K$79<=A12,IF('A1'!L$30:L$79>=A10,-1*'A1'!H$30:H$79,0),0),0))) ->  | I11: =IF(A11="","","▼") -> ▼ | J11: =IF(A11="","",J$5+SUM(I$6:I10)) -> -160 | L11: =IF(L10="","",IF((M$5+SUM(L$6:L10))>=0,"▼","▲")) -> ▼ | M11: =IF(A11="","",IF(L11="▼",((M$5)+(SUM(L$6:L10))),(-(M$5+SUM(L$6:L10))))) -> 120 | W11: =IF(AND(U10="p",U12="p"),1,0) -> 0
A12: =IF(B11="","",(LARGE('A1'!$K$30:$L$79,(1+SUM(COUNTIF('A1'!$K$30:$L$79,A$5:A11))-(B11*COUNTIF('A1'!$K$30:$L$79,A$6)))))) ->  | B12: =IF(B10="","",IF((SUM(IF(FREQUENCY('A1'!$K$30:$L$79,'A1'!$K$30:$L$79)>0,1)))>(B10+1),(B10+1),"")) -> 4 | C12: 80 | D12: =IF(C12="","",SUM(IF('A1'!J$30:J$79="HOT",IF('A1'!K$30:K$79>=A11,IF('A1'!L$30:L$79<=A13,1*'A1'!H$30:H$79,0),0),0),IF('A1'!J$30:J$79="COLD",IF('A1'!K$30:K$79<=A13,IF('A1'!L$30:L$79>=A11,-1*'A1'!H$30:H$79,0),0),0))) -> -1.5 | E12: -120 | F12: demand | I12: =E12 -> -120 | J12: =IF(A12="","",J$5+SUM(I$6:I11)) ->  | L12: =E12 -> -120 | M12: =IF(A12="","",IF(L12="▼",((M$5)+(SUM(L$6:L11))),(-(M$5+SUM(L$6:L11))))) ->  | O12: =IF(OR(P7<=0,P8<=0),"THRESHOLD PROBLEM","") -> 
A13: =IF(B12="","",(LARGE('A1'!$K$30:$L$79,(1+SUM(COUNTIF('A1'!$K$30:$L$79,A$5:A12))-(B12*COUNTIF('A1'!$K$30:$L$79,A$6)))))) -> 110 | B13: =IF(B11="","",IF((SUM(IF(FREQUENCY('A1'!$K$30:$L$79,'A1'!$K$30:$L$79)>0,1)))>(B11+1),(B11+1),"")) ->  | D13: =IF(C13="","",SUM(IF('A1'!J$30:J$79="HOT",IF('A1'!K$30:K$79>=A12,IF('A1'!L$30:L$79<=A14,1*'A1'!H$30:H$79,0),0),0),IF('A1'!J$30:J$79="COLD",IF('A1'!K$30:K$79<=A14,IF('A1'!L$30:L$79>=A12,-1*'A1'!H$30:H$79,0),0),0))) ->  | H13: PINCH | I13: =IF(A13="","","▼") -> ▼ | J13: =IF(A13="","",J$5+SUM(I$6:I12)) -> -280 | L13: =IF(L12="","",IF((M$5+SUM(L$6:L12))>=0,"▼","▲")) -> ▼ | M13: =IF(A13="","",IF(L13="▼",((M$5)+(SUM(L$6:L12))),(-(M$5+SUM(L$6:L12))))) -> 0
A14: =IF(B13="","",(LARGE('A1'!$K$30:$L$79,(1+SUM(COUNTIF('A1'!$K$30:$L$79,A$5:A13))-(B13*COUNTIF('A1'!$K$30:$L$79,A$6)))))) ->  | B14: =IF(B12="","",IF((SUM(IF(FREQUENCY('A1'!$K$30:$L$79,'A1'!$K$30:$L$79)>0,1)))>(B12+1),(B12+1),"")) -> 5 | C14: 1 | D14: =IF(C14="","",SUM(IF('A1'!J$30:J$79="HOT",IF('A1'!K$30:K$79>=A13,IF('A1'!L$30:L$79<=A15,1*'A1'!H$30:H$79,0),0),0),IF('A1'!J$30:J$79="COLD",IF('A1'!K$30:K$79<=A15,IF('A1'!L$30:L$79>=A13,-1*'A1'!H$30:H$79,0),0),0))) -> 298.5 | E14: 298.5 | F14: surplus | I14: =E14 -> 298.5 | J14: =IF(A14="","",J$5+SUM(I$6:I13)) ->  | L14: =E14 -> 298.5 | M14: =IF(A14="","",IF(L14="▼",((M$5)+(SUM(L$6:L13))),(-(M$5+SUM(L$6:L13))))) -> 
A15: =IF(B14="","",(LARGE('A1'!$K$30:$L$79,(1+SUM(COUNTIF('A1'!$K$30:$L$79,A$5:A14))-(B14*COUNTIF('A1'!$K$30:$L$79,A$6)))))) -> 109 | B15: =IF(B13="","",IF((SUM(IF(FREQUENCY('A1'!$K$30:$L$79,'A1'!$K$30:$L$79)>0,1)))>(B13+1),(B13+1),"")) ->  | D15: =IF(C15="","",SUM(IF('A1'!J$30:J$79="HOT",IF('A1'!K$30:K$79>=A14,IF('A1'!L$30:L$79<=A16,1*'A1'!H$30:H$79,0),0),0),IF('A1'!J$30:J$79="COLD",IF('A1'!K$30:K$79<=A16,IF('A1'!L$30:L$79>=A14,-1*'A1'!H$30:H$79,0),0),0))) ->  | E15: =IF(D15="","",D15*C15) ->  | I15: =IF(A15="","","▼") -> ▼ | J15: =IF(A15="","",J$5+SUM(I$6:I14)) -> 18.5 | L15: =IF(L14="","",IF((M$5+SUM(L$6:L14))>=0,"▼","▲")) -> ▼ | M15: =IF(A15="","",IF(L15="▼",((M$5)+(SUM(L$6:L14))),(-(M$5+SUM(L$6:L14))))) -> 298.5
A16: =IF(B15="","",(LARGE('A1'!$K$30:$L$79,(1+SUM(COUNTIF('A1'!$K$30:$L$79,A$5:A15))-(B15*COUNTIF('A1'!$K$30:$L$79,A$6)))))) ->  | B16: =IF(B14="","",IF((SUM(IF(FREQUENCY('A1'!$K$30:$L$79,'A1'!$K$30:$L$79)>0,1)))>(B14+1),(B14+1),"")) -> 6 | C16: 19 | D16: =IF(C16="","",SUM(IF('A1'!J$30:J$79="HOT",IF('A1'!K$30:K$79>=A15,IF('A1'!L$30:L$79<=A17,1*'A1'!H$30:H$79,0),0),0),IF('A1'!J$30:J$79="COLD",IF('A1'!K$30:K$79<=A17,IF('A1'!L$30:L$79>=A15,-1*'A1'!H$30:H$79,0),0),0))) -> -1.5 | E16: -28.5 | F16: demand | I16: =E16 -> -28.5 | J16: =IF(A16="","",J$5+SUM(I$6:I15)) ->  | L16: =E16 -> -28.5 | M16: =IF(A16="","",IF(L16="▼",((M$5)+(SUM(L$6:L15))),(-(M$5+SUM(L$6:L15))))) -> 
A17: =IF(B16="","",(LARGE('A1'!$K$30:$L$79,(1+SUM(COUNTIF('A1'!$K$30:$L$79,A$5:A16))-(B16*COUNTIF('A1'!$K$30:$L$79,A$6)))))) -> 90 | B17: =IF(B15="","",IF((SUM(IF(FREQUENCY('A1'!$K$30:$L$79,'A1'!$K$30:$L$79)>0,1)))>(B15+1),(B15+1),"")) ->  | D17: =IF(C17="","",SUM(IF('A1'!J$30:J$79="HOT",IF('A1'!K$30:K$79>=A16,IF('A1'!L$30:L$79<=A18,1*'A1'!H$30:H$79,0),0),0),IF('A1'!J$30:J$79="COLD",IF('A1'!K$30:K$79<=A18,IF('A1'!L$30:L$79>=A16,-1*'A1'!H$30:H$79,0),0),0))) ->  | I17: =IF(A17="","","▼") -> ▼ | J17: =IF(A17="","",J$5+SUM(I$6:I16)) -> -10 | L17: =IF(L16="","",IF((M$5+SUM(L$6:L16))>=0,"▼","▲")) -> ▼ | M17: =IF(A17="","",IF(L17="▼",((M$5)+(SUM(L$6:L16))),(-(M$5+SUM(L$6:L16))))) -> 270
A18: =IF(B17="","",(LARGE('A1'!$K$30:$L$79,(1+SUM(COUNTIF('A1'!$K$30:$L$79,A$5:A17))-(B17*COUNTIF('A1'!$K$30:$L$79,A$6)))))) ->  | B18: =IF(B16="","",IF((SUM(IF(FREQUENCY('A1'!$K$30:$L$79,'A1'!$K$30:$L$79)>0,1)))>(B16+1),(B16+1),"")) -> 7 | C18: 30 | D18: =IF(C18="","",SUM(IF('A1'!J$30:J$79="HOT",IF('A1'!K$30:K$79>=A17,IF('A1'!L$30:L$79<=A19,1*'A1'!H$30:H$79,0),0),0),IF('A1'!J$30:J$79="COLD",IF('A1'!K$30:K$79<=A19,IF('A1'!L$30:L$79>=A17,-1*'A1'!H$30:H$79,0),0),0))) -> -3 | E18: -90 | F18: demand | I18: =E18 -> -90 | J18: =IF(A18="","",J$5+SUM(I$6:I17)) ->  | L18: =E18 -> -90 | M18: =IF(A18="","",IF(L18="▼",((M$5)+(SUM(L$6:L17))),(-(M$5+SUM(L$6:L17))))) -> 
A19: =IF(B18="","",(LARGE('A1'!$K$30:$L$79,(1+SUM(COUNTIF('A1'!$K$30:$L$79,A$5:A18))-(B18*COUNTIF('A1'!$K$30:$L$79,A$6)))))) -> 60 | B19: =IF(B17="","",IF((SUM(IF(FREQUENCY('A1'!$K$30:$L$79,'A1'!$K$30:$L$79)>0,1)))>(B17+1),(B17+1),"")) ->  | D19: =IF(C19="","",SUM(IF('A1'!J$30:J$79="HOT",IF('A1'!K$30:K$79>=A18,IF('A1'!L$30:L$79<=A20,1*'A1'!H$30:H$79,0),0),0),IF('A1'!J$30:J$79="COLD",IF('A1'!K$30:K$79<=A20,IF('A1'!L$30:L$79>=A18,-1*'A1'!H$30:H$79,0),0),0))) ->  | I19: =IF(A19="","","▼") -> ▼ | J19: =IF(A19="","",J$5+SUM(I$6:I18)) -> -100 | L19: =IF(L18="","",IF((M$5+SUM(L$6:L18))>=0,"▼","▲")) -> ▼ | M19: =IF(A19="","",IF(L19="▼",((M$5)+(SUM(L$6:L18))),(-(M$5+SUM(L$6:L18))))) -> 180
A20: =IF(B19="","",(LARGE('A1'!$K$30:$L$79,(1+SUM(COUNTIF('A1'!$K$30:$L$79,A$5:A19))-(B19*COUNTIF('A1'!$K$30:$L$79,A$6)))))) ->  | B20: =IF(B18="","",IF((SUM(IF(FREQUENCY('A1'!$K$30:$L$79,'A1'!$K$30:$L$79)>0,1)))>(B18+1),(B18+1),"")) -> 8 | C20: 20 | D20: =IF(C20="","",SUM(IF('A1'!J$30:J$79="HOT",IF('A1'!K$30:K$79>=A19,IF('A1'!L$30:L$79<=A21,1*'A1'!H$30:H$79,0),0),0),IF('A1'!J$30:J$79="COLD",IF('A1'!K$30:K$79<=A21,IF('A1'!L$30:L$79>=A19,-1*'A1'!H$30:H$79,0),0),0))) -> -1 | E20: -20 | F20: demand | I20: =E20 -> -20 | J20: =IF(A20="","",J$5+SUM(I$6:I19)) ->  | L20: =E20 -> -20 | M20: =IF(A20="","",IF(L20="▼",((M$5)+(SUM(L$6:L19))),(-(M$5+SUM(L$6:L19))))) -> 
A21: =IF(B20="","",(LARGE('A1'!$K$30:$L$79,(1+SUM(COUNTIF('A1'!$K$30:$L$79,A$5:A20))-(B20*COUNTIF('A1'!$K$30:$L$79,A$6)))))) -> 40 | B21: =IF(B19="","",IF((SUM(IF(FREQUENCY('A1'!$K$30:$L$79,'A1'!$K$30:$L$79)>0,1)))>(B19+1),(B19+1),"")) ->  | D21: =IF(C21="","",SUM(IF('A1'!J$30:J$79="HOT",IF('A1'!K$30:K$79>=A20,IF('A1'!L$30:L$79<=A22,1*'A1'!H$30:H$79,0),0),0),IF('A1'!J$30:J$79="COLD",IF('A1'!K$30:K$79<=A22,IF('A1'!L$30:L$79>=A20,-1*'A1'!H$30:H$79,0),0),0))) ->  | I21: =IF(A21="","","▼") -> ▼ | J21: =IF(A21="","",J$5+SUM(I$6:I20)) -> -120 | L21: =IF(L20="","",IF((M$5+SUM(L$6:L20))>=0,"▼","▲")) -> ▼ | M21: =IF(A21="","",IF(L21="▼",((M$5)+(SUM(L$6:L20))),(-(M$5+SUM(L$6:L20))))) -> 160
A22: =IF(B21="","",(LARGE('A1'!$K$30:$L$79,(1+SUM(COUNTIF('A1'!$K$30:$L$79,A$5:A21))-(B21*COUNTIF('A1'!$K$30:$L$79,A$6)))))) ->  | B22: =IF(B20="","",IF((SUM(IF(FREQUENCY('A1'!$K$30:$L$79,'A1'!$K$30:$L$79)>0,1)))>(B20+1),(B20+1),"")) ->  | D22: =IF(C22="","",SUM(IF('A1'!J$30:J$79="HOT",IF('A1'!K$30:K$79>=A21,IF('A1'!L$30:L$79<=A23,1*'A1'!H$30:H$79,0),0),0),IF('A1'!J$30:J$79="COLD",IF('A1'!K$30:K$79<=A23,IF('A1'!L$30:L$79>=A21,-1*'A1'!H$30:H$79,0),0),0))) ->  | I22: =E22 ->  | J22: =IF(A22="","",J$5+SUM(I$6:I21)) ->  | L22: =E22 ->  | M22: =IF(A22="","",IF(L22="▼",((M$5)+(SUM(L$6:L21))),(-(M$5+SUM(L$6:L21))))) -> 
A23: =IF(B22="","",(LARGE('A1'!$K$30:$L$79,(1+SUM(COUNTIF('A1'!$K$30:$L$79,A$5:A22))-(B22*COUNTIF('A1'!$K$30:$L$79,A$6)))))) ->  | B23: =IF(B21="","",IF((SUM(IF(FREQUENCY('A1'!$K$30:$L$79,'A1'!$K$30:$L$79)>0,1)))>(B21+1),(B21+1),"")) ->  | D23: =IF(C23="","",SUM(IF('A1'!J$30:J$79="HOT",IF('A1'!K$30:K$79>=A22,IF('A1'!L$30:L$79<=A24,1*'A1'!H$30:H$79,0),0),0),IF('A1'!J$30:J$79="COLD",IF('A1'!K$30:K$79<=A24,IF('A1'!L$30:L$79>=A22,-1*'A1'!H$30:H$79,0),0),0))) ->  | I23: =IF(A23="","","▼") ->  | J23: =IF(A23="","",J$5+SUM(I$6:I22)) ->  | L23: =IF(L22="","",IF((M$5+SUM(L$6:L22))>=0,"▼","▲")) ->  | M23: =IF(A23="","",IF(L23="▼",((M$5)+(SUM(L$6:L22))),(-(M$5+SUM(L$6:L22))))) -> 
A24: =IF(B23="","",(LARGE('A1'!$K$30:$L$79,(1+SUM(COUNTIF('A1'!$K$30:$L$79,A$5:A23))-(B23*COUNTIF('A1'!$K$30:$L$79,A$6)))))) ->  | B24: =IF(B22="","",IF((SUM(IF(FREQUENCY('A1'!$K$30:$L$79,'A1'!$K$30:$L$79)>0,1)))>(B22+1),(B22+1),"")) ->  | D24: =IF(C24="","",SUM(IF('A1'!J$30:J$79="HOT",IF('A1'!K$30:K$79>=A23,IF('A1'!L$30:L$79<=A25,1*'A1'!H$30:H$79,0),0),0),IF('A1'!J$30:J$79="COLD",IF('A1'!K$30:K$79<=A25,IF('A1'!L$30:L$79>=A23,-1*'A1'!H$30:H$79,0),0),0))) ->  | I24: =E24 ->  | J24: =IF(A24="","",J$5+SUM(I$6:I23)) ->  | L24: =E24 ->  | M24: =IF(A24="","",IF(L24="▼",((M$5)+(SUM(L$6:L23))),(-(M$5+SUM(L$6:L23))))) -> 
A25: =IF(B24="","",(LARGE('A1'!$K$30:$L$79,(1+SUM(COUNTIF('A1'!$K$30:$L$79,A$5:A24))-(B24*COUNTIF('A1'!$K$30:$L$79,A$6)))))) ->  | B25: =IF(B23="","",IF((SUM(IF(FREQUENCY('A1'!$K$30:$L$79,'A1'!$K$30:$L$79)>0,1)))>(B23+1),(B23+1),"")) ->  | D25: =IF(C25="","",SUM(IF('A1'!J$30:J$79="HOT",IF('A1'!K$30:K$79>=A24,IF('A1'!L$30:L$79<=A26,1*'A1'!H$30:H$79,0),0),0),IF('A1'!J$30:J$79="COLD",IF('A1'!K$30:K$79<=A26,IF('A1'!L$30:L$79>=A24,-1*'A1'!H$30:H$79,0),0),0))) ->  | I25: =IF(A25="","","▼") ->  | J25: =IF(A25="","",J$5+SUM(I$6:I24)) ->  | L25: =IF(L24="","",IF((M$5+SUM(L$6:L24))>=0,"▼","▲")) ->  | M25: =IF(A25="","",IF(L25="▼",((M$5)+(SUM(L$6:L24))),(-(M$5+SUM(L$6:L24))))) -> 
A26: =IF(B25="","",(LARGE('A1'!$K$30:$L$79,(1+SUM(COUNTIF('A1'!$K$30:$L$79,A$5:A25))-(B25*COUNTIF('A1'!$K$30:$L$79,A$6)))))) ->  | B26: =IF(B24="","",IF((SUM(IF(FREQUENCY('A1'!$K$30:$L$79,'A1'!$K$30:$L$79)>0,1)))>(B24+1),(B24+1),"")) ->  | D26: =IF(C26="","",SUM(IF('A1'!J$30:J$79="HOT",IF('A1'!K$30:K$79>=A25,IF('A1'!L$30:L$79<=A27,1*'A1'!H$30:H$79,0),0),0),IF('A1'!J$30:J$79="COLD",IF('A1'!K$30:K$79<=A27,IF('A1'!L$30:L$79>=A25,-1*'A1'!H$30:H$79,0),0),0))) ->  | I26: =E26 ->  | J26: =IF(A26="","",J$5+SUM(I$6:I25)) ->  | L26: =E26 ->  | M26: =IF(A26="","",IF(L26="▼",((M$5)+(SUM(L$6:L25))),(-(M$5+SUM(L$6:L25))))) -> 
A27: =IF(B26="","",(LARGE('A1'!$K$30:$L$79,(1+SUM(COUNTIF('A1'!$K$30:$L$79,A$5:A26))-(B26*COUNTIF('A1'!$K$30:$L$79,A$6)))))) ->  | B27: =IF(B25="","",IF((SUM(IF(FREQUENCY('A1'!$K$30:$L$79,'A1'!$K$30:$L$79)>0,1)))>(B25+1),(B25+1),"")) ->  | D27: =IF(C27="","",SUM(IF('A1'!J$30:J$79="HOT",IF('A1'!K$30:K$79>=A26,IF('A1'!L$30:L$79<=A28,1*'A1'!H$30:H$79,0),0),0),IF('A1'!J$30:J$79="COLD",IF('A1'!K$30:K$79<=A28,IF('A1'!L$30:L$79>=A26,-1*'A1'!H$30:H$79,0),0),0))) ->  | I27: =IF(A27="","","▼") ->  | J27: =IF(A27="","",J$5+SUM(I$6:I26)) ->  | L27: =IF(L26="","",IF((M$5+SUM(L$6:L26))>=0,"▼","▲")) ->  | M27: =IF(A27="","",IF(L27="▼",((M$5)+(SUM(L$6:L26))),(-(M$5+SUM(L$6:L26))))) -> 
A28: =IF(B27="","",(LARGE('A1'!$K$30:$L$79,(1+SUM(COUNTIF('A1'!$K$30:$L$79,A$5:A27))-(B27*COUNTIF('A1'!$K$30:$L$79,A$6)))))) ->  | B28: =IF(B26="","",IF((SUM(IF(FREQUENCY('A1'!$K$30:$L$79,'A1'!$K$30:$L$79)>0,1)))>(B26+1),(B26+1),"")) ->  | D28: =IF(C28="","",SUM(IF('A1'!J$30:J$79="HOT",IF('A1'!K$30:K$79>=A27,IF('A1'!L$30:L$79<=A29,1*'A1'!H$30:H$79,0),0),0),IF('A1'!J$30:J$79="COLD",IF('A1'!K$30:K$79<=A29,IF('A1'!L$30:L$79>=A27,-1*'A1'!H$30:H$79,0),0),0))) ->  | I28: =E28 ->  | J28: =IF(A28="","",J$5+SUM(I$6:I27)) ->  | L28: =E28 ->  | M28: =IF(A28="","",IF(L28="▼",((M$5)+(SUM(L$6:L27))),(-(M$5+SUM(L$6:L27))))) -> 
A29: =IF(B28="","",(LARGE('A1'!$K$30:$L$79,(1+SUM(COUNTIF('A1'!$K$30:$L$79,A$5:A28))-(B28*COUNTIF('A1'!$K$30:$L$79,A$6)))))) ->  | B29: =IF(B27="","",IF((SUM(IF(FREQUENCY('A1'!$K$30:$L$79,'A1'!$K$30:$L$79)>0,1)))>(B27+1),(B27+1),"")) ->  | D29: =IF(C29="","",SUM(IF('A1'!J$30:J$79="HOT",IF('A1'!K$30:K$79>=A28,IF('A1'!L$30:L$79<=A30,1*'A1'!H$30:H$79,0),0),0),IF('A1'!J$30:J$79="COLD",IF('A1'!K$30:K$79<=A30,IF('A1'!L$30:L$79>=A28,-1*'A1'!H$30:H$79,0),0),0))) ->  | I29: =IF(A29="","","▼") ->  | J29: =IF(A29="","",J$5+SUM(I$6:I28)) ->  | L29: =IF(L28="","",IF((M$5+SUM(L$6:L28))>=0,"▼","▲")) ->  | M29: =IF(A29="","",IF(L29="▼",((M$5)+(SUM(L$6:L28))),(-(M$5+SUM(L$6:L28))))) -> 
A30: =IF(B29="","",(LARGE('A1'!$K$30:$L$79,(1+SUM(COUNTIF('A1'!$K$30:$L$79,A$5:A29))-(B29*COUNTIF('A1'!$K$30:$L$79,A$6)))))) ->  | B30: =IF(B28="","",IF((SUM(IF(FREQUENCY('A1'!$K$30:$L$79,'A1'!$K$30:$L$79)>0,1)))>(B28+1),(B28+1),"")) ->  | D30: =IF(C30="","",SUM(IF('A1'!J$30:J$79="HOT",IF('A1'!K$30:K$79>=A29,IF('A1'!L$30:L$79<=A31,1*'A1'!H$30:H$79,0),0),0),IF('A1'!J$30:J$79="COLD",IF('A1'!K$30:K$79<=A31,IF('A1'!L$30:L$79>=A29,-1*'A1'!H$30:H$79,0),0),0))) ->  | I30: =E30 ->  | J30: =IF(A30="","",J$5+SUM(I$6:I29)) ->  | L30: =E30 ->  | M30: =IF(A30="","",IF(L30="▼",((M$5)+(SUM(L$6:L29))),(-(M$5+SUM(L$6:L29))))) -> 
A31: =IF(B30="","",(LARGE('A1'!$K$30:$L$79,(1+SUM(COUNTIF('A1'!$K$30:$L$79,A$5:A30))-(B30*COUNTIF('A1'!$K$30:$L$79,A$6)))))) ->  | B31: =IF(B29="","",IF((SUM(IF(FREQUENCY('A1'!$K$30:$L$79,'A1'!$K$30:$L$79)>0,1)))>(B29+1),(B29+1),"")) ->  | D31: =IF(C31="","",SUM(IF('A1'!J$30:J$79="HOT",IF('A1'!K$30:K$79>=A30,IF('A1'!L$30:L$79<=A32,1*'A1'!H$30:H$79,0),0),0),IF('A1'!J$30:J$79="COLD",IF('A1'!K$30:K$79<=A32,IF('A1'!L$30:L$79>=A30,-1*'A1'!H$30:H$79,0),0),0))) ->  | I31: =IF(A31="","","▼") ->  | J31: =IF(A31="","",J$5+SUM(I$6:I30)) ->  | L31: =IF(L30="","",IF((M$5+SUM(L$6:L30))>=0,"▼","▲")) ->  | M31: =IF(A31="","",IF(L31="▼",((M$5)+(SUM(L$6:L30))),(-(M$5+SUM(L$6:L30))))) -> 
A32: =IF(B31="","",(LARGE('A1'!$K$30:$L$79,(1+SUM(COUNTIF('A1'!$K$30:$L$79,A$5:A31))-(B31*COUNTIF('A1'!$K$30:$L$79,A$6)))))) ->  | B32: =IF(B30="","",IF((SUM(IF(FREQUENCY('A1'!$K$30:$L$79,'A1'!$K$30:$L$79)>0,1)))>(B30+1),(B30+1),"")) ->  | D32: =IF(C32="","",SUM(IF('A1'!J$30:J$79="HOT",IF('A1'!K$30:K$79>=A31,IF('A1'!L$30:L$79<=A33,1*'A1'!H$30:H$79,0),0),0),IF('A1'!J$30:J$79="COLD",IF('A1'!K$30:K$79<=A33,IF('A1'!L$30:L$79>=A31,-1*'A1'!H$30:H$79,0),0),0))) ->  | I32: =E32 ->  | J32: =IF(A32="","",J$5+SUM(I$6:I31)) ->  | L32: =E32 ->  | M32: =IF(A32="","",IF(L32="▼",((M$5)+(SUM(L$6:L31))),(-(M$5+SUM(L$6:L31))))) -> 
A33: =IF(B32="","",(LARGE('A1'!$K$30:$L$79,(1+SUM(COUNTIF('A1'!$K$30:$L$79,A$5:A32))-(B32*COUNTIF('A1'!$K$30:$L$79,A$6)))))) ->  | B33: =IF(B31="","",IF((SUM(IF(FREQUENCY('A1'!$K$30:$L$79,'A1'!$K$30:$L$79)>0,1)))>(B31+1),(B31+1),"")) ->  | D33: =IF(C33="","",SUM(IF('A1'!J$30:J$79="HOT",IF('A1'!K$30:K$79>=A32,IF('A1'!L$30:L$79<=A34,1*'A1'!H$30:H$79,0),0),0),IF('A1'!J$30:J$79="COLD",IF('A1'!K$30:K$79<=A34,IF('A1'!L$30:L$79>=A32,-1*'A1'!H$30:H$79,0),0),0))) ->  | I33: =IF(A33="","","▼") ->  | J33: =IF(A33="","",J$5+SUM(I$6:I32)) ->  | L33: =IF(L32="","",IF((M$5+SUM(L$6:L32))>=0,"▼","▲")) ->  | M33: =IF(A33="","",IF(L33="▼",((M$5)+(SUM(L$6:L32))),(-(M$5+SUM(L$6:L32))))) -> 
A34: =IF(B33="","",(LARGE('A1'!$K$30:$L$79,(1+SUM(COUNTIF('A1'!$K$30:$L$79,A$5:A33))-(B33*COUNTIF('A1'!$K$30:$L$79,A$6)))))) ->  | B34: =IF(B32="","",IF((SUM(IF(FREQUENCY('A1'!$K$30:$L$79,'A1'!$K$30:$L$79)>0,1)))>(B32+1),(B32+1),"")) ->  | D34: =IF(C34="","",SUM(IF('A1'!J$30:J$79="HOT",IF('A1'!K$30:K$79>=A33,IF('A1'!L$30:L$79<=A35,1*'A1'!H$30:H$79,0),0),0),IF('A1'!J$30:J$79="COLD",IF('A1'!K$30:K$79<=A35,IF('A1'!L$30:L$79>=A33,-1*'A1'!H$30:H$79,0),0),0))) ->  | I34: =E34 ->  | J34: =IF(A34="","",J$5+SUM(I$6:I33)) ->  | L34: =E34 ->  | M34: =IF(A34="","",IF(L34="▼",((M$5)+(SUM(L$6:L33))),(-(M$5+SUM(L$6:L33))))) -> 
A35: =IF(B34="","",(LARGE('A1'!$K$30:$L$79,(1+SUM(COUNTIF('A1'!$K$30:$L$79,A$5:A34))-(B34*COUNTIF('A1'!$K$30:$L$79,A$6)))))) ->  | B35: =IF(B33="","",IF((SUM(IF(FREQUENCY('A1'!$K$30:$L$79,'A1'!$K$30:$L$79)>0,1)))>(B33+1),(B33+1),"")) ->  | D35: =IF(C35="","",SUM(IF('A1'!J$30:J$79="HOT",IF('A1'!K$30:K$79>=A34,IF('A1'!L$30:L$79<=A36,1*'A1'!H$30:H$79,0),0),0),IF('A1'!J$30:J$79="COLD",IF('A1'!K$30:K$79<=A36,IF('A1'!L$30:L$79>=A34,-1*'A1'!H$30:H$79,0),0),0))) ->  | I35: =IF(A35="","","▼") ->  | J35: =IF(A35="","",J$5+SUM(I$6:I34)) ->  | L35: =IF(L34="","",IF((M$5+SUM(L$6:L34))>=0,"▼","▲")) ->  | M35: =IF(A35="","",IF(L35="▼",((M$5)+(SUM(L$6:L34))),(-(M$5+SUM(L$6:L34))))) -> 
A36: =IF(B35="","",(LARGE('A1'!$K$30:$L$79,(1+SUM(COUNTIF('A1'!$K$30:$L$79,A$5:A35))-(B35*COUNTIF('A1'!$K$30:$L$79,A$6)))))) ->  | B36: =IF(B34="","",IF((SUM(IF(FREQUENCY('A1'!$K$30:$L$79,'A1'!$K$30:$L$79)>0,1)))>(B34+1),(B34+1),"")) ->  | D36: =IF(C36="","",SUM(IF('A1'!J$30:J$79="HOT",IF('A1'!K$30:K$79>=A35,IF('A1'!L$30:L$79<=A37,1*'A1'!H$30:H$79,0),0),0),IF('A1'!J$30:J$79="COLD",IF('A1'!K$30:K$79<=A37,IF('A1'!L$30:L$79>=A35,-1*'A1'!H$30:H$79,0),0),0))) ->  | I36: =E36 ->  | J36: =IF(A36="","",J$5+SUM(I$6:I35)) ->  | L36: =E36 ->  | M36: =IF(A36="","",IF(L36="▼",((M$5)+(SUM(L$6:L35))),(-(M$5+SUM(L$6:L35))))) -> 
A37: =IF(B36="","",(LARGE('A1'!$K$30:$L$79,(1+SUM(COUNTIF('A1'!$K$30:$L$79,A$5:A36))-(B36*COUNTIF('A1'!$K$30:$L$79,A$6)))))) ->  | B37: =IF(B35="","",IF((SUM(IF(FREQUENCY('A1'!$K$30:$L$79,'A1'!$K$30:$L$79)>0,1)))>(B35+1),(B35+1),"")) ->  | D37: =IF(C37="","",SUM(IF('A1'!J$30:J$79="HOT",IF('A1'!K$30:K$79>=A36,IF('A1'!L$30:L$79<=A38,1*'A1'!H$30:H$79,0),0),0),IF('A1'!J$30:J$79="COLD",IF('A1'!K$30:K$79<=A38,IF('A1'!L$30:L$79>=A36,-1*'A1'!H$30:H$79,0),0),0))) ->  | I37: =IF(A37="","","▼") ->  | J37: =IF(A37="","",J$5+SUM(I$6:I36)) ->  | L37: =IF(L36="","",IF((M$5+SUM(L$6:L36))>=0,"▼","▲")) ->  | M37: =IF(A37="","",IF(L37="▼",((M$5)+(SUM(L$6:L36))),(-(M$5+SUM(L$6:L36))))) -> 
A38: =IF(B37="","",(LARGE('A1'!$K$30:$L$79,(1+SUM(COUNTIF('A1'!$K$30:$L$79,A$5:A37))-(B37*COUNTIF('A1'!$K$30:$L$79,A$6)))))) ->  | B38: =IF(B36="","",IF((SUM(IF(FREQUENCY('A1'!$K$30:$L$79,'A1'!$K$30:$L$79)>0,1)))>(B36+1),(B36+1),"")) ->  | D38: =IF(C38="","",SUM(IF('A1'!J$30:J$79="HOT",IF('A1'!K$30:K$79>=A37,IF('A1'!L$30:L$79<=A39,1*'A1'!H$30:H$79,0),0),0),IF('A1'!J$30:J$79="COLD",IF('A1'!K$30:K$79<=A39,IF('A1'!L$30:L$79>=A37,-1*'A1'!H$30:H$79,0),0),0))) ->  | I38: =E38 ->  | J38: =IF(A38="","",J$5+SUM(I$6:I37)) ->  | L38: =E38 ->  | M38: =IF(A38="","",IF(L38="▼",((M$5)+(SUM(L$6:L37))),(-(M$5+SUM(L$6:L37))))) -> 
A39: =IF(B38="","",(LARGE('A1'!$K$30:$L$79,(1+SUM(COUNTIF('A1'!$K$30:$L$79,A$5:A38))-(B38*COUNTIF('A1'!$K$30:$L$79,A$6)))))) ->  | B39: =IF(B37="","",IF((SUM(IF(FREQUENCY('A1'!$K$30:$L$79,'A1'!$K$30:$L$79)>0,1)))>(B37+1),(B37+1),"")) ->  | D39: =IF(C39="","",SUM(IF('A1'!J$30:J$79="HOT",IF('A1'!K$30:K$79>=A38,IF('A1'!L$30:L$79<=A40,1*'A1'!H$30:H$79,0),0),0),IF('A1'!J$30:J$79="COLD",IF('A1'!K$30:K$79<=A40,IF('A1'!L$30:L$79>=A38,-1*'A1'!H$30:H$79,0),0),0))) ->  | I39: =IF(A39="","","▼") ->  | J39: =IF(A39="","",J$5+SUM(I$6:I38)) ->  | L39: =IF(L38="","",IF((M$5+SUM(L$6:L38))>=0,"▼","▲")) ->  | M39: =IF(A39="","",IF(L39="▼",((M$5)+(SUM(L$6:L38))),(-(M$5+SUM(L$6:L38))))) -> 
A40: =IF(B39="","",(LARGE('A1'!$K$30:$L$79,(1+SUM(COUNTIF('A1'!$K$30:$L$79,A$5:A39))-(B39*COUNTIF('A1'!$K$30:$L$79,A$6)))))) ->  | B40: =IF(B38="","",IF((SUM(IF(FREQUENCY('A1'!$K$30:$L$79,'A1'!$K$30:$L$79)>0,1)))>(B38+1),(B38+1),"")) ->  | D40: =IF(C40="","",SUM(IF('A1'!J$30:J$79="HOT",IF('A1'!K$30:K$79>=A39,IF('A1'!L$30:L$79<=A41,1*'A1'!H$30:H$79,0),0),0),IF('A1'!J$30:J$79="COLD",IF('A1'!K$30:K$79<=A41,IF('A1'!L$30:L$79>=A39,-1*'A1'!H$30:H$79,0),0),0))) ->  | I40: =E40 ->  | J40: =IF(A40="","",J$5+SUM(I$6:I39)) ->  | L40: =E40 ->  | M40: =IF(A40="","",IF(L40="▼",((M$5)+(SUM(L$6:L39))),(-(M$5+SUM(L$6:L39))))) -> 
A41: =IF(B40="","",(LARGE('A1'!$K$30:$L$79,(1+SUM(COUNTIF('A1'!$K$30:$L$79,A$5:A40))-(B40*COUNTIF('A1'!$K$30:$L$79,A$6)))))) ->  | B41: =IF(B39="","",IF((SUM(IF(FREQUENCY('A1'!$K$30:$L$79,'A1'!$K$30:$L$79)>0,1)))>(B39+1),(B39+1),"")) ->  | D41: =IF(C41="","",SUM(IF('A1'!J$30:J$79="HOT",IF('A1'!K$30:K$79>=A40,IF('A1'!L$30:L$79<=A42,1*'A1'!H$30:H$79,0),0),0),IF('A1'!J$30:J$79="COLD",IF('A1'!K$30:K$79<=A42,IF('A1'!L$30:L$79>=A40,-1*'A1'!H$30:H$79,0),0),0))) ->  | I41: =IF(A41="","","▼") ->  | J41: =IF(A41="","",J$5+SUM(I$6:I40)) ->  | L41: =IF(L40="","",IF((M$5+SUM(L$6:L40))>=0,"▼","▲")) ->  | M41: =IF(A41="","",IF(L41="▼",((M$5)+(SUM(L$6:L40))),(-(M$5+SUM(L$6:L40))))) -> 
A42: =IF(B41="","",(LARGE('A1'!$K$30:$L$79,(1+SUM(COUNTIF('A1'!$K$30:$L$79,A$5:A41))-(B41*COUNTIF('A1'!$K$30:$L$79,A$6)))))) ->  | B42: =IF(B40="","",IF((SUM(IF(FREQUENCY('A1'!$K$30:$L$79,'A1'!$K$30:$L$79)>0,1)))>(B40+1),(B40+1),"")) ->  | D42: =IF(C42="","",SUM(IF('A1'!J$30:J$79="HOT",IF('A1'!K$30:K$79>=A41,IF('A1'!L$30:L$79<=A43,1*'A1'!H$30:H$79,0),0),0),IF('A1'!J$30:J$79="COLD",IF('A1'!K$30:K$79<=A43,IF('A1'!L$30:L$79>=A41,-1*'A1'!H$30:H$79,0),0),0))) ->  | I42: =E42 ->  | J42: =IF(A42="","",J$5+SUM(I$6:I41)) ->  | L42: =E42 ->  | M42: =IF(A42="","",IF(L42="▼",((M$5)+(SUM(L$6:L41))),(-(M$5+SUM(L$6:L41))))) -> 
A43: =IF(B42="","",(LARGE('A1'!$K$30:$L$79,(1+SUM(COUNTIF('A1'!$K$30:$L$79,A$5:A42))-(B42*COUNTIF('A1'!$K$30:$L$79,A$6)))))) ->  | B43: =IF(B41="","",IF((SUM(IF(FREQUENCY('A1'!$K$30:$L$79,'A1'!$K$30:$L$79)>0,1)))>(B41+1),(B41+1),"")) ->  | D43: =IF(C43="","",SUM(IF('A1'!J$30:J$79="HOT",IF('A1'!K$30:K$79>=A42,IF('A1'!L$30:L$79<=A44,1*'A1'!H$30:H$79,0),0),0),IF('A1'!J$30:J$79="COLD",IF('A1'!K$30:K$79<=A44,IF('A1'!L$30:L$79>=A42,-1*'A1'!H$30:H$79,0),0),0))) ->  | I43: =IF(A43="","","▼") ->  | J43: =IF(A43="","",J$5+SUM(I$6:I42)) ->  | L43: =IF(L42="","",IF((M$5+SUM(L$6:L42))>=0,"▼","▲")) ->  | M43: =IF(A43="","",IF(L43="▼",((M$5)+(SUM(L$6:L42))),(-(M$5+SUM(L$6:L42))))) -> 
A44: =IF(B43="","",(LARGE('A1'!$K$30:$L$79,(1+SUM(COUNTIF('A1'!$K$30:$L$79,A$5:A43))-(B43*COUNTIF('A1'!$K$30:$L$79,A$6)))))) ->  | B44: =IF(B42="","",IF((SUM(IF(FREQUENCY('A1'!$K$30:$L$79,'A1'!$K$30:$L$79)>0,1)))>(B42+1),(B42+1),"")) ->  | D44: =IF(C44="","",SUM(IF('A1'!J$30:J$79="HOT",IF('A1'!K$30:K$79>=A43,IF('A1'!L$30:L$79<=A45,1*'A1'!H$30:H$79,0),0),0),IF('A1'!J$30:J$79="COLD",IF('A1'!K$30:K$79<=A45,IF('A1'!L$30:L$79>=A43,-1*'A1'!H$30:H$79,0),0),0))) ->  | I44: =E44 ->  | J44: =IF(A44="","",J$5+SUM(I$6:I43)) ->  | L44: =E44 ->  | M44: =IF(A44="","",IF(L44="▼",((M$5)+(SUM(L$6:L43))),(-(M$5+SUM(L$6:L43))))) -> 
A45: =IF(B44="","",(LARGE('A1'!$K$30:$L$79,(1+SUM(COUNTIF('A1'!$K$30:$L$79,A$5:A44))-(B44*COUNTIF('A1'!$K$30:$L$79,A$6)))))) ->  | B45: =IF(B43="","",IF((SUM(IF(FREQUENCY('A1'!$K$30:$L$79,'A1'!$K$30:$L$79)>0,1)))>(B43+1),(B43+1),"")) ->  | D45: =IF(C45="","",SUM(IF('A1'!J$30:J$79="HOT",IF('A1'!K$30:K$79>=A44,IF('A1'!L$30:L$79<=A46,1*'A1'!H$30:H$79,0),0),0),IF('A1'!J$30:J$79="COLD",IF('A1'!K$30:K$79<=A46,IF('A1'!L$30:L$79>=A44,-1*'A1'!H$30:H$79,0),0),0))) ->  | I45: =IF(A45="","","▼") ->  | J45: =IF(A45="","",J$5+SUM(I$6:I44)) ->  | L45: =IF(L44="","",IF((M$5+SUM(L$6:L44))>=0,"▼","▲")) ->  | M45: =IF(A45="","",IF(L45="▼",((M$5)+(SUM(L$6:L44))),(-(M$5+SUM(L$6:L44))))) -> 
A46: =IF(B45="","",(LARGE('A1'!$K$30:$L$79,(1+SUM(COUNTIF('A1'!$K$30:$L$79,A$5:A45))-(B45*COUNTIF('A1'!$K$30:$L$79,A$6)))))) ->  | B46: =IF(B44="","",IF((SUM(IF(FREQUENCY('A1'!$K$30:$L$79,'A1'!$K$30:$L$79)>0,1)))>(B44+1),(B44+1),"")) ->  | D46: =IF(C46="","",SUM(IF('A1'!J$30:J$79="HOT",IF('A1'!K$30:K$79>=A45,IF('A1'!L$30:L$79<=A47,1*'A1'!H$30:H$79,0),0),0),IF('A1'!J$30:J$79="COLD",IF('A1'!K$30:K$79<=A47,IF('A1'!L$30:L$79>=A45,-1*'A1'!H$30:H$79,0),0),0))) ->  | I46: =E46 ->  | J46: =IF(A46="","",J$5+SUM(I$6:I45)) ->  | L46: =E46 ->  | M46: =IF(A46="","",IF(L46="▼",((M$5)+(SUM(L$6:L45))),(-(M$5+SUM(L$6:L45))))) -> 
A47: =IF(B46="","",(LARGE('A1'!$K$30:$L$79,(1+SUM(COUNTIF('A1'!$K$30:$L$79,A$5:A46))-(B46*COUNTIF('A1'!$K$30:$L$79,A$6)))))) ->  | B47: =IF(B45="","",IF((SUM(IF(FREQUENCY('A1'!$K$30:$L$79,'A1'!$K$30:$L$79)>0,1)))>(B45+1),(B45+1),"")) ->  | D47: =IF(C47="","",SUM(IF('A1'!J$30:J$79="HOT",IF('A1'!K$30:K$79>=A46,IF('A1'!L$30:L$79<=A48,1*'A1'!H$30:H$79,0),0),0),IF('A1'!J$30:J$79="COLD",IF('A1'!K$30:K$79<=A48,IF('A1'!L$30:L$79>=A46,-1*'A1'!H$30:H$79,0),0),0))) ->  | I47: =IF(A47="","","▼") ->  | J47: =IF(A47="","",J$5+SUM(I$6:I46)) ->  | L47: =IF(L46="","",IF((M$5+SUM(L$6:L46))>=0,"▼","▲")) ->  | M47: =IF(A47="","",IF(L47="▼",((M$5)+(SUM(L$6:L46))),(-(M$5+SUM(L$6:L46))))) -> 
A48: =IF(B47="","",(LARGE('A1'!$K$30:$L$79,(1+SUM(COUNTIF('A1'!$K$30:$L$79,A$5:A47))-(B47*COUNTIF('A1'!$K$30:$L$79,A$6)))))) ->  | B48: =IF(B46="","",IF((SUM(IF(FREQUENCY('A1'!$K$30:$L$79,'A1'!$K$30:$L$79)>0,1)))>(B46+1),(B46+1),"")) ->  | D48: =IF(C48="","",SUM(IF('A1'!J$30:J$79="HOT",IF('A1'!K$30:K$79>=A47,IF('A1'!L$30:L$79<=A49,1*'A1'!H$30:H$79,0),0),0),IF('A1'!J$30:J$79="COLD",IF('A1'!K$30:K$79<=A49,IF('A1'!L$30:L$79>=A47,-1*'A1'!H$30:H$79,0),0),0))) ->  | I48: =E48 ->  | J48: =IF(A48="","",J$5+SUM(I$6:I47)) ->  | L48: =E48 ->  | M48: =IF(A48="","",IF(L48="▼",((M$5)+(SUM(L$6:L47))),(-(M$5+SUM(L$6:L47))))) -> 
A49: =IF(B48="","",(LARGE('A1'!$K$30:$L$79,(1+SUM(COUNTIF('A1'!$K$30:$L$79,A$5:A48))-(B48*COUNTIF('A1'!$K$30:$L$79,A$6)))))) ->  | B49: =IF(B47="","",IF((SUM(IF(FREQUENCY('A1'!$K$30:$L$79,'A1'!$K$30:$L$79)>0,1)))>(B47+1),(B47+1),"")) ->  | D49: =IF(C49="","",SUM(IF('A1'!J$30:J$79="HOT",IF('A1'!K$30:K$79>=A48,IF('A1'!L$30:L$79<=A50,1*'A1'!H$30:H$79,0),0),0),IF('A1'!J$30:J$79="COLD",IF('A1'!K$30:K$79<=A50,IF('A1'!L$30:L$79>=A48,-1*'A1'!H$30:H$79,0),0),0))) ->  | I49: =IF(A49="","","▼") ->  | J49: =IF(A49="","",J$5+SUM(I$6:I48)) ->  | L49: =IF(L48="","",IF((M$5+SUM(L$6:L48))>=0,"▼","▲")) ->  | M49: =IF(A49="","",IF(L49="▼",((M$5)+(SUM(L$6:L48))),(-(M$5+SUM(L$6:L48))))) -> 
A50: =IF(B49="","",(LARGE('A1'!$K$30:$L$79,(1+SUM(COUNTIF('A1'!$K$30:$L$79,A$5:A49))-(B49*COUNTIF('A1'!$K$30:$L$79,A$6)))))) ->  | B50: =IF(B48="","",IF((SUM(IF(FREQUENCY('A1'!$K$30:$L$79,'A1'!$K$30:$L$79)>0,1)))>(B48+1),(B48+1),"")) ->  | D50: =IF(C50="","",SUM(IF('A1'!J$30:J$79="HOT",IF('A1'!K$30:K$79>=A49,IF('A1'!L$30:L$79<=A51,1*'A1'!H$30:H$79,0),0),0),IF('A1'!J$30:J$79="COLD",IF('A1'!K$30:K$79<=A51,IF('A1'!L$30:L$79>=A49,-1*'A1'!H$30:H$79,0),0),0))) ->  | I50: =E50 ->  | J50: =IF(A50="","",J$5+SUM(I$6:I49)) ->  | L50: =E50 ->  | M50: =IF(A50="","",IF(L50="▼",((M$5)+(SUM(L$6:L49))),(-(M$5+SUM(L$6:L49))))) -> 
A51: =IF(B50="","",(LARGE('A1'!$K$30:$L$79,(1+SUM(COUNTIF('A1'!$K$30:$L$79,A$5:A50))-(B50*COUNTIF('A1'!$K$30:$L$79,A$6)))))) ->  | B51: =IF(B49="","",IF((SUM(IF(FREQUENCY('A1'!$K$30:$L$79,'A1'!$K$30:$L$79)>0,1)))>(B49+1),(B49+1),"")) ->  | D51: =IF(C51="","",SUM(IF('A1'!J$30:J$79="HOT",IF('A1'!K$30:K$79>=A50,IF('A1'!L$30:L$79<=A52,1*'A1'!H$30:H$79,0),0),0),IF('A1'!J$30:J$79="COLD",IF('A1'!K$30:K$79<=A52,IF('A1'!L$30:L$79>=A50,-1*'A1'!H$30:H$79,0),0),0))) ->  | I51: =IF(A51="","","▼") ->  | J51: =IF(A51="","",J$5+SUM(I$6:I50)) ->  | L51: =IF(L50="","",IF((M$5+SUM(L$6:L50))>=0,"▼","▲")) ->  | M51: =IF(A51="","",IF(L51="▼",((M$5)+(SUM(L$6:L50))),(-(M$5+SUM(L$6:L50))))) -> 
A52: =IF(B51="","",(LARGE('A1'!$K$30:$L$79,(1+SUM(COUNTIF('A1'!$K$30:$L$79,A$5:A51))-(B51*COUNTIF('A1'!$K$30:$L$79,A$6)))))) ->  | B52: =IF(B50="","",IF((SUM(IF(FREQUENCY('A1'!$K$30:$L$79,'A1'!$K$30:$L$79)>0,1)))>(B50+1),(B50+1),"")) ->  | D52: =IF(C52="","",SUM(IF('A1'!J$30:J$79="HOT",IF('A1'!K$30:K$79>=A51,IF('A1'!L$30:L$79<=A53,1*'A1'!H$30:H$79,0),0),0),IF('A1'!J$30:J$79="COLD",IF('A1'!K$30:K$79<=A53,IF('A1'!L$30:L$79>=A51,-1*'A1'!H$30:H$79,0),0),0))) ->  | I52: =E52 ->  | J52: =IF(A52="","",J$5+SUM(I$6:I51)) ->  | L52: =E52 ->  | M52: =IF(A52="","",IF(L52="▼",((M$5)+(SUM(L$6:L51))),(-(M$5+SUM(L$6:L51))))) -> 
A53: =IF(B52="","",(LARGE('A1'!$K$30:$L$79,(1+SUM(COUNTIF('A1'!$K$30:$L$79,A$5:A52))-(B52*COUNTIF('A1'!$K$30:$L$79,A$6)))))) ->  | B53: =IF(B51="","",IF((SUM(IF(FREQUENCY('A1'!$K$30:$L$79,'A1'!$K$30:$L$79)>0,1)))>(B51+1),(B51+1),"")) ->  | D53: =IF(C53="","",SUM(IF('A1'!J$30:J$79="HOT",IF('A1'!K$30:K$79>=A52,IF('A1'!L$30:L$79<=A54,1*'A1'!H$30:H$79,0),0),0),IF('A1'!J$30:J$79="COLD",IF('A1'!K$30:K$79<=A54,IF('A1'!L$30:L$79>=A52,-1*'A1'!H$30:H$79,0),0),0))) ->  | I53: =IF(A53="","","▼") ->  | J53: =IF(A53="","",J$5+SUM(I$6:I52)) ->  | L53: =IF(L52="","",IF((M$5+SUM(L$6:L52))>=0,"▼","▲")) ->  | M53: =IF(A53="","",IF(L53="▼",((M$5)+(SUM(L$6:L52))),(-(M$5+SUM(L$6:L52))))) -> 
A54: =IF(B53="","",(LARGE('A1'!$K$30:$L$79,(1+SUM(COUNTIF('A1'!$K$30:$L$79,A$5:A53))-(B53*COUNTIF('A1'!$K$30:$L$79,A$6)))))) ->  | B54: =IF(B52="","",IF((SUM(IF(FREQUENCY('A1'!$K$30:$L$79,'A1'!$K$30:$L$79)>0,1)))>(B52+1),(B52+1),"")) ->  | D54: =IF(C54="","",SUM(IF('A1'!J$30:J$79="HOT",IF('A1'!K$30:K$79>=A53,IF('A1'!L$30:L$79<=A55,1*'A1'!H$30:H$79,0),0),0),IF('A1'!J$30:J$79="COLD",IF('A1'!K$30:K$79<=A55,IF('A1'!L$30:L$79>=A53,-1*'A1'!H$30:H$79,0),0),0))) ->  | I54: =E54 ->  | J54: =IF(A54="","",J$5+SUM(I$6:I53)) ->  | L54: =E54 ->  | M54: =IF(A54="","",IF(L54="▼",((M$5)+(SUM(L$6:L53))),(-(M$5+SUM(L$6:L53))))) -> 
A55: =IF(B54="","",(LARGE('A1'!$K$30:$L$79,(1+SUM(COUNTIF('A1'!$K$30:$L$79,A$5:A54))-(B54*COUNTIF('A1'!$K$30:$L$79,A$6)))))) ->  | B55: =IF(B53="","",IF((SUM(IF(FREQUENCY('A1'!$K$30:$L$79,'A1'!$K$30:$L$79)>0,1)))>(B53+1),(B53+1),"")) ->  | D55: =IF(C55="","",SUM(IF('A1'!J$30:J$79="HOT",IF('A1'!K$30:K$79>=A54,IF('A1'!L$30:L$79<=A56,1*'A1'!H$30:H$79,0),0),0),IF('A1'!J$30:J$79="COLD",IF('A1'!K$30:K$79<=A56,IF('A1'!L$30:L$79>=A54,-1*'A1'!H$30:H$79,0),0),0))) ->  | I55: =IF(A55="","","▼") ->  | J55: =IF(A55="","",J$5+SUM(I$6:I54)) ->  | L55: =IF(L54="","",IF((M$5+SUM(L$6:L54))>=0,"▼","▲")) ->  | M55: =IF(A55="","",IF(L55="▼",((M$5)+(SUM(L$6:L54))),(-(M$5+SUM(L$6:L54))))) -> 
A56: =IF(B55="","",(LARGE('A1'!$K$30:$L$79,(1+SUM(COUNTIF('A1'!$K$30:$L$79,A$5:A55))-(B55*COUNTIF('A1'!$K$30:$L$79,A$6)))))) ->  | B56: =IF(B54="","",IF((SUM(IF(FREQUENCY('A1'!$K$30:$L$79,'A1'!$K$30:$L$79)>0,1)))>(B54+1),(B54+1),"")) ->  | D56: =IF(C56="","",SUM(IF('A1'!J$30:J$79="HOT",IF('A1'!K$30:K$79>=A55,IF('A1'!L$30:L$79<=A57,1*'A1'!H$30:H$79,0),0),0),IF('A1'!J$30:J$79="COLD",IF('A1'!K$30:K$79<=A57,IF('A1'!L$30:L$79>=A55,-1*'A1'!H$30:H$79,0),0),0))) ->  | I56: =E56 ->  | J56: =IF(A56="","",J$5+SUM(I$6:I55)) ->  | L56: =E56 ->  | M56: =IF(A56="","",IF(L56="▼",((M$5)+(SUM(L$6:L55))),(-(M$5+SUM(L$6:L55))))) -> 
A57: =IF(B56="","",(LARGE('A1'!$K$30:$L$79,(1+SUM(COUNTIF('A1'!$K$30:$L$79,A$5:A56))-(B56*COUNTIF('A1'!$K$30:$L$79,A$6)))))) ->  | B57: =IF(B55="","",IF((SUM(IF(FREQUENCY('A1'!$K$30:$L$79,'A1'!$K$30:$L$79)>0,1)))>(B55+1),(B55+1),"")) ->  | D57: =IF(C57="","",SUM(IF('A1'!J$30:J$79="HOT",IF('A1'!K$30:K$79>=A56,IF('A1'!L$30:L$79<=A58,1*'A1'!H$30:H$79,0),0),0),IF('A1'!J$30:J$79="COLD",IF('A1'!K$30:K$79<=A58,IF('A1'!L$30:L$79>=A56,-1*'A1'!H$30:H$79,0),0),0))) ->  | I57: =IF(A57="","","▼") ->  | J57: =IF(A57="","",J$5+SUM(I$6:I56)) ->  | L57: =IF(L56="","",IF((M$5+SUM(L$6:L56))>=0,"▼","▲")) ->  | M57: =IF(A57="","",IF(L57="▼",((M$5)+(SUM(L$6:L56))),(-(M$5+SUM(L$6:L56))))) -> 
A58: =IF(B57="","",(LARGE('A1'!$K$30:$L$79,(1+SUM(COUNTIF('A1'!$K$30:$L$79,A$5:A57))-(B57*COUNTIF('A1'!$K$30:$L$79,A$6)))))) ->  | B58: =IF(B56="","",IF((SUM(IF(FREQUENCY('A1'!$K$30:$L$79,'A1'!$K$30:$L$79)>0,1)))>(B56+1),(B56+1),"")) ->  | D58: =IF(C58="","",SUM(IF('A1'!J$30:J$79="HOT",IF('A1'!K$30:K$79>=A57,IF('A1'!L$30:L$79<=A59,1*'A1'!H$30:H$79,0),0),0),IF('A1'!J$30:J$79="COLD",IF('A1'!K$30:K$79<=A59,IF('A1'!L$30:L$79>=A57,-1*'A1'!H$30:H$79,0),0),0))) ->  | I58: =E58 ->  | J58: =IF(A58="","",J$5+SUM(I$6:I57)) ->  | L58: =E58 ->  | M58: =IF(A58="","",IF(L58="▼",((M$5)+(SUM(L$6:L57))),(-(M$5+SUM(L$6:L57))))) -> 
A59: =IF(B58="","",(LARGE('A1'!$K$30:$L$79,(1+SUM(COUNTIF('A1'!$K$30:$L$79,A$5:A58))-(B58*COUNTIF('A1'!$K$30:$L$79,A$6)))))) ->  | B59: =IF(B57="","",IF((SUM(IF(FREQUENCY('A1'!$K$30:$L$79,'A1'!$K$30:$L$79)>0,1)))>(B57+1),(B57+1),"")) ->  | D59: =IF(C59="","",SUM(IF('A1'!J$30:J$79="HOT",IF('A1'!K$30:K$79>=A58,IF('A1'!L$30:L$79<=A60,1*'A1'!H$30:H$79,0),0),0),IF('A1'!J$30:J$79="COLD",IF('A1'!K$30:K$79<=A60,IF('A1'!L$30:L$79>=A58,-1*'A1'!H$30:H$79,0),0),0))) ->  | I59: =IF(A59="","","▼") ->  | J59: =IF(A59="","",J$5+SUM(I$6:I58)) ->  | L59: =IF(L58="","",IF((M$5+SUM(L$6:L58))>=0,"▼","▲")) ->  | M59: =IF(A59="","",IF(L59="▼",((M$5)+(SUM(L$6:L58))),(-(M$5+SUM(L$6:L58))))) -> 
A60: =IF(B59="","",(LARGE('A1'!$K$30:$L$79,(1+SUM(COUNTIF('A1'!$K$30:$L$79,A$5:A59))-(B59*COUNTIF('A1'!$K$30:$L$79,A$6)))))) ->  | B60: =IF(B58="","",IF((SUM(IF(FREQUENCY('A1'!$K$30:$L$79,'A1'!$K$30:$L$79)>0,1)))>(B58+1),(B58+1),"")) ->  | D60: =IF(C60="","",SUM(IF('A1'!J$30:J$79="HOT",IF('A1'!K$30:K$79>=A59,IF('A1'!L$30:L$79<=A61,1*'A1'!H$30:H$79,0),0),0),IF('A1'!J$30:J$79="COLD",IF('A1'!K$30:K$79<=A61,IF('A1'!L$30:L$79>=A59,-1*'A1'!H$30:H$79,0),0),0))) ->  | I60: =E60 ->  | J60: =IF(A60="","",J$5+SUM(I$6:I59)) ->  | L60: =E60 ->  | M60: =IF(A60="","",IF(L60="▼",((M$5)+(SUM(L$6:L59))),(-(M$5+SUM(L$6:L59))))) -> 
A61: =IF(B60="","",(LARGE('A1'!$K$30:$L$79,(1+SUM(COUNTIF('A1'!$K$30:$L$79,A$5:A60))-(B60*COUNTIF('A1'!$K$30:$L$79,A$6)))))) ->  | B61: =IF(B59="","",IF((SUM(IF(FREQUENCY('A1'!$K$30:$L$79,'A1'!$K$30:$L$79)>0,1)))>(B59+1),(B59+1),"")) ->  | D61: =IF(C61="","",SUM(IF('A1'!J$30:J$79="HOT",IF('A1'!K$30:K$79>=A60,IF('A1'!L$30:L$79<=A62,1*'A1'!H$30:H$79,0),0),0),IF('A1'!J$30:J$79="COLD",IF('A1'!K$30:K$79<=A62,IF('A1'!L$30:L$79>=A60,-1*'A1'!H$30:H$79,0),0),0))) ->  | I61: =IF(A61="","","▼") ->  | J61: =IF(A61="","",J$5+SUM(I$6:I60)) ->  | L61: =IF(L60="","",IF((M$5+SUM(L$6:L60))>=0,"▼","▲")) ->  | M61: =IF(A61="","",IF(L61="▼",((M$5)+(SUM(L$6:L60))),(-(M$5+SUM(L$6:L60))))) -> 
A62: =IF(B61="","",(LARGE('A1'!$K$30:$L$79,(1+SUM(COUNTIF('A1'!$K$30:$L$79,A$5:A61))-(B61*COUNTIF('A1'!$K$30:$L$79,A$6)))))) ->  | B62: =IF(B60="","",IF((SUM(IF(FREQUENCY('A1'!$K$30:$L$79,'A1'!$K$30:$L$79)>0,1)))>(B60+1),(B60+1),"")) ->  | D62: =IF(C62="","",SUM(IF('A1'!J$30:J$79="HOT",IF('A1'!K$30:K$79>=A61,IF('A1'!L$30:L$79<=A63,1*'A1'!H$30:H$79,0),0),0),IF('A1'!J$30:J$79="COLD",IF('A1'!K$30:K$79<=A63,IF('A1'!L$30:L$79>=A61,-1*'A1'!H$30:H$79,0),0),0))) ->  | I62: =E62 ->  | J62: =IF(A62="","",J$5+SUM(I$6:I61)) ->  | L62: =E62 ->  | M62: =IF(A62="","",IF(L62="▼",((M$5)+(SUM(L$6:L61))),(-(M$5+SUM(L$6:L61))))) -> 
A63: =IF(B62="","",(LARGE('A1'!$K$30:$L$79,(1+SUM(COUNTIF('A1'!$K$30:$L$79,A$5:A62))-(B62*COUNTIF('A1'!$K$30:$L$79,A$6)))))) ->  | B63: =IF(B61="","",IF((SUM(IF(FREQUENCY('A1'!$K$30:$L$79,'A1'!$K$30:$L$79)>0,1)))>(B61+1),(B61+1),"")) ->  | D63: =IF(C63="","",SUM(IF('A1'!J$30:J$79="HOT",IF('A1'!K$30:K$79>=A62,IF('A1'!L$30:L$79<=A64,1*'A1'!H$30:H$79,0),0),0),IF('A1'!J$30:J$79="COLD",IF('A1'!K$30:K$79<=A64,IF('A1'!L$30:L$79>=A62,-1*'A1'!H$30:H$79,0),0),0))) ->  | I63: =IF(A63="","","▼") ->  | J63: =IF(A63="","",J$5+SUM(I$6:I62)) ->  | L63: =IF(L62="","",IF((M$5+SUM(L$6:L62))>=0,"▼","▲")) ->  | M63: =IF(A63="","",IF(L63="▼",((M$5)+(SUM(L$6:L62))),(-(M$5+SUM(L$6:L62))))) -> 
A64: =IF(B63="","",(LARGE('A1'!$K$30:$L$79,(1+SUM(COUNTIF('A1'!$K$30:$L$79,A$5:A63))-(B63*COUNTIF('A1'!$K$30:$L$79,A$6)))))) ->  | B64: =IF(B62="","",IF((SUM(IF(FREQUENCY('A1'!$K$30:$L$79,'A1'!$K$30:$L$79)>0,1)))>(B62+1),(B62+1),"")) ->  | D64: =IF(C64="","",SUM(IF('A1'!J$30:J$79="HOT",IF('A1'!K$30:K$79>=A63,IF('A1'!L$30:L$79<=A65,1*'A1'!H$30:H$79,0),0),0),IF('A1'!J$30:J$79="COLD",IF('A1'!K$30:K$79<=A65,IF('A1'!L$30:L$79>=A63,-1*'A1'!H$30:H$79,0),0),0))) ->  | I64: =E64 ->  | J64: =IF(A64="","",J$5+SUM(I$6:I63)) ->  | L64: =E64 ->  | M64: =IF(A64="","",IF(L64="▼",((M$5)+(SUM(L$6:L63))),(-(M$5+SUM(L$6:L63))))) -> 
A65: =IF(B64="","",(LARGE('A1'!$K$30:$L$79,(1+SUM(COUNTIF('A1'!$K$30:$L$79,A$5:A64))-(B64*COUNTIF('A1'!$K$30:$L$79,A$6)))))) ->  | B65: =IF(B63="","",IF((SUM(IF(FREQUENCY('A1'!$K$30:$L$79,'A1'!$K$30:$L$79)>0,1)))>(B63+1),(B63+1),"")) ->  | D65: =IF(C65="","",SUM(IF('A1'!J$30:J$79="HOT",IF('A1'!K$30:K$79>=A64,IF('A1'!L$30:L$79<=A66,1*'A1'!H$30:H$79,0),0),0),IF('A1'!J$30:J$79="COLD",IF('A1'!K$30:K$79<=A66,IF('A1'!L$30:L$79>=A64,-1*'A1'!H$30:H$79,0),0),0))) ->  | I65: =IF(A65="","","▼") ->  | J65: =IF(A65="","",J$5+SUM(I$6:I64)) ->  | L65: =IF(L64="","",IF((M$5+SUM(L$6:L64))>=0,"▼","▲")) ->  | M65: =IF(A65="","",IF(L65="▼",((M$5)+(SUM(L$6:L64))),(-(M$5+SUM(L$6:L64))))) -> 
A66: =IF(B65="","",(LARGE('A1'!$K$30:$L$79,(1+SUM(COUNTIF('A1'!$K$30:$L$79,A$5:A65))-(B65*COUNTIF('A1'!$K$30:$L$79,A$6)))))) ->  | B66: =IF(B64="","",IF((SUM(IF(FREQUENCY('A1'!$K$30:$L$79,'A1'!$K$30:$L$79)>0,1)))>(B64+1),(B64+1),"")) ->  | D66: =IF(C66="","",SUM(IF('A1'!J$30:J$79="HOT",IF('A1'!K$30:K$79>=A65,IF('A1'!L$30:L$79<=A67,1*'A1'!H$30:H$79,0),0),0),IF('A1'!J$30:J$79="COLD",IF('A1'!K$30:K$79<=A67,IF('A1'!L$30:L$79>=A65,-1*'A1'!H$30:H$79,0),0),0))) ->  | I66: =E66 ->  | J66: =IF(A66="","",J$5+SUM(I$6:I65)) ->  | L66: =E66 ->  | M66: =IF(A66="","",IF(L66="▼",((M$5)+(SUM(L$6:L65))),(-(M$5+SUM(L$6:L65))))) -> 
A67: =IF(B66="","",(LARGE('A1'!$K$30:$L$79,(1+SUM(COUNTIF('A1'!$K$30:$L$79,A$5:A66))-(B66*COUNTIF('A1'!$K$30:$L$79,A$6)))))) ->  | B67: =IF(B65="","",IF((SUM(IF(FREQUENCY('A1'!$K$30:$L$79,'A1'!$K$30:$L$79)>0,1)))>(B65+1),(B65+1),"")) ->  | D67: =IF(C67="","",SUM(IF('A1'!J$30:J$79="HOT",IF('A1'!K$30:K$79>=A66,IF('A1'!L$30:L$79<=A68,1*'A1'!H$30:H$79,0),0),0),IF('A1'!J$30:J$79="COLD",IF('A1'!K$30:K$79<=A68,IF('A1'!L$30:L$79>=A66,-1*'A1'!H$30:H$79,0),0),0))) ->  | I67: =IF(A67="","","▼") ->  | J67: =IF(A67="","",J$5+SUM(I$6:I66)) ->  | L67: =IF(L66="","",IF((M$5+SUM(L$6:L66))>=0,"▼","▲")) ->  | M67: =IF(A67="","",IF(L67="▼",((M$5)+(SUM(L$6:L66))),(-(M$5+SUM(L$6:L66))))) -> 
A68: =IF(B67="","",(LARGE('A1'!$K$30:$L$79,(1+SUM(COUNTIF('A1'!$K$30:$L$79,A$5:A67))-(B67*COUNTIF('A1'!$K$30:$L$79,A$6)))))) ->  | B68: =IF(B66="","",IF((SUM(IF(FREQUENCY('A1'!$K$30:$L$79,'A1'!$K$30:$L$79)>0,1)))>(B66+1),(B66+1),"")) ->  | D68: =IF(C68="","",SUM(IF('A1'!J$30:J$79="HOT",IF('A1'!K$30:K$79>=A67,IF('A1'!L$30:L$79<=A69,1*'A1'!H$30:H$79,0),0),0),IF('A1'!J$30:J$79="COLD",IF('A1'!K$30:K$79<=A69,IF('A1'!L$30:L$79>=A67,-1*'A1'!H$30:H$79,0),0),0))) ->  | I68: =E68 ->  | J68: =IF(A68="","",J$5+SUM(I$6:I67)) ->  | L68: =E68 ->  | M68: =IF(A68="","",IF(L68="▼",((M$5)+(SUM(L$6:L67))),(-(M$5+SUM(L$6:L67))))) -> 
A69: =IF(B68="","",(LARGE('A1'!$K$30:$L$79,(1+SUM(COUNTIF('A1'!$K$30:$L$79,A$5:A68))-(B68*COUNTIF('A1'!$K$30:$L$79,A$6)))))) ->  | B69: =IF(B67="","",IF((SUM(IF(FREQUENCY('A1'!$K$30:$L$79,'A1'!$K$30:$L$79)>0,1)))>(B67+1),(B67+1),"")) ->  | D69: =IF(C69="","",SUM(IF('A1'!J$30:J$79="HOT",IF('A1'!K$30:K$79>=A68,IF('A1'!L$30:L$79<=A70,1*'A1'!H$30:H$79,0),0),0),IF('A1'!J$30:J$79="COLD",IF('A1'!K$30:K$79<=A70,IF('A1'!L$30:L$79>=A68,-1*'A1'!H$30:H$79,0),0),0))) ->  | I69: =IF(A69="","","▼") ->  | J69: =IF(A69="","",J$5+SUM(I$6:I68)) ->  | L69: =IF(L68="","",IF((M$5+SUM(L$6:L68))>=0,"▼","▲")) ->  | M69: =IF(A69="","",IF(L69="▼",((M$5)+(SUM(L$6:L68))),(-(M$5+SUM(L$6:L68))))) -> 
A70: =IF(B69="","",(LARGE('A1'!$K$30:$L$79,(1+SUM(COUNTIF('A1'!$K$30:$L$79,A$5:A69))-(B69*COUNTIF('A1'!$K$30:$L$79,A$6)))))) ->  | B70: =IF(B68="","",IF((SUM(IF(FREQUENCY('A1'!$K$30:$L$79,'A1'!$K$30:$L$79)>0,1)))>(B68+1),(B68+1),"")) ->  | D70: =IF(C70="","",SUM(IF('A1'!J$30:J$79="HOT",IF('A1'!K$30:K$79>=A69,IF('A1'!L$30:L$79<=A71,1*'A1'!H$30:H$79,0),0),0),IF('A1'!J$30:J$79="COLD",IF('A1'!K$30:K$79<=A71,IF('A1'!L$30:L$79>=A69,-1*'A1'!H$30:H$79,0),0),0))) ->  | I70: =E70 ->  | J70: =IF(A70="","",J$5+SUM(I$6:I69)) ->  | L70: =E70 ->  | M70: =IF(A70="","",IF(L70="▼",((M$5)+(SUM(L$6:L69))),(-(M$5+SUM(L$6:L69))))) -> 
A71: =IF(B70="","",(LARGE('A1'!$K$30:$L$79,(1+SUM(COUNTIF('A1'!$K$30:$L$79,A$5:A70))-(B70*COUNTIF('A1'!$K$30:$L$79,A$6)))))) ->  | B71: =IF(B69="","",IF((SUM(IF(FREQUENCY('A1'!$K$30:$L$79,'A1'!$K$30:$L$79)>0,1)))>(B69+1),(B69+1),"")) ->  | D71: =IF(C71="","",SUM(IF('A1'!J$30:J$79="HOT",IF('A1'!K$30:K$79>=A70,IF('A1'!L$30:L$79<=A72,1*'A1'!H$30:H$79,0),0),0),IF('A1'!J$30:J$79="COLD",IF('A1'!K$30:K$79<=A72,IF('A1'!L$30:L$79>=A70,-1*'A1'!H$30:H$79,0),0),0))) ->  | F71: =IF(E71="","",IF(E71<1,"demand","surplus")) ->  | I71: =IF(A71="","","▼") ->  | J71: =IF(A71="","",J$5+SUM(I$6:I70)) ->  | L71: =IF(L70="","",IF((M$5+SUM(L$6:L70))>=0,"▼","▲")) ->  | M71: =IF(A71="","",IF(L71="▼",((M$5)+(SUM(L$6:L70))),(-(M$5+SUM(L$6:L70))))) -> 
A72: =IF(B71="","",(LARGE('A1'!$K$30:$L$79,(1+SUM(COUNTIF('A1'!$K$30:$L$79,A$5:A71))-(B71*COUNTIF('A1'!$K$30:$L$79,A$6)))))) ->  | B72: =IF(B70="","",IF((SUM(IF(FREQUENCY('A1'!$K$30:$L$79,'A1'!$K$30:$L$79)>0,1)))>(B70+1),(B70+1),"")) ->  | D72: =IF(C72="","",SUM(IF('A1'!J$30:J$79="HOT",IF('A1'!K$30:K$79>=A71,IF('A1'!L$30:L$79<=A73,1*'A1'!H$30:H$79,0),0),0),IF('A1'!J$30:J$79="COLD",IF('A1'!K$30:K$79<=A73,IF('A1'!L$30:L$79>=A71,-1*'A1'!H$30:H$79,0),0),0))) ->  | I72: =E72 ->  | J72: =IF(A72="","",J$5+SUM(I$6:I71)) ->  | L72: =E72 ->  | M72: =IF(A72="","",IF(L72="▼",((M$5)+(SUM(L$6:L71))),(-(M$5+SUM(L$6:L71))))) -> 
A73: =IF(B72="","",(LARGE('A1'!$K$30:$L$79,(1+SUM(COUNTIF('A1'!$K$30:$L$79,A$5:A72))-(B72*COUNTIF('A1'!$K$30:$L$79,A$6)))))) ->  | B73: =IF(B71="","",IF((SUM(IF(FREQUENCY('A1'!$K$30:$L$79,'A1'!$K$30:$L$79)>0,1)))>(B71+1),(B71+1),"")) ->  | D73: =IF(C73="","",SUM(IF('A1'!J$30:J$79="HOT",IF('A1'!K$30:K$79>=A72,IF('A1'!L$30:L$79<=A74,1*'A1'!H$30:H$79,0),0),0),IF('A1'!J$30:J$79="COLD",IF('A1'!K$30:K$79<=A74,IF('A1'!L$30:L$79>=A72,-1*'A1'!H$30:H$79,0),0),0))) ->  | I73: =IF(A73="","","▼") ->  | J73: =IF(A73="","",J$5+SUM(I$6:I72)) ->  | L73: =IF(L72="","",IF((M$5+SUM(L$6:L72))>=0,"▼","▲")) ->  | M73: =IF(A73="","",IF(L73="▼",((M$5)+(SUM(L$6:L72))),(-(M$5+SUM(L$6:L72))))) -> 
A74: =IF(B73="","",(LARGE('A1'!$K$30:$L$79,(1+SUM(COUNTIF('A1'!$K$30:$L$79,A$5:A73))-(B73*COUNTIF('A1'!$K$30:$L$79,A$6)))))) ->  | B74: =IF(B72="","",IF((SUM(IF(FREQUENCY('A1'!$K$30:$L$79,'A1'!$K$30:$L$79)>0,1)))>(B72+1),(B72+1),"")) ->  | D74: =IF(C74="","",SUM(IF('A1'!J$30:J$79="HOT",IF('A1'!K$30:K$79>=A73,IF('A1'!L$30:L$79<=A75,1*'A1'!H$30:H$79,0),0),0),IF('A1'!J$30:J$79="COLD",IF('A1'!K$30:K$79<=A75,IF('A1'!L$30:L$79>=A73,-1*'A1'!H$30:H$79,0),0),0))) ->  | I74: =E74 ->  | J74: =IF(A74="","",J$5+SUM(I$6:I73)) ->  | L74: =E74 ->  | M74: =IF(A74="","",IF(L74="▼",((M$5)+(SUM(L$6:L73))),(-(M$5+SUM(L$6:L73))))) -> 
A75: =IF(B74="","",(LARGE('A1'!$K$30:$L$79,(1+SUM(COUNTIF('A1'!$K$30:$L$79,A$5:A74))-(B74*COUNTIF('A1'!$K$30:$L$79,A$6)))))) ->  | B75: =IF(B73="","",IF((SUM(IF(FREQUENCY('A1'!$K$30:$L$79,'A1'!$K$30:$L$79)>0,1)))>(B73+1),(B73+1),"")) ->  | D75: =IF(C75="","",SUM(IF('A1'!J$30:J$79="HOT",IF('A1'!K$30:K$79>=A74,IF('A1'!L$30:L$79<=A76,1*'A1'!H$30:H$79,0),0),0),IF('A1'!J$30:J$79="COLD",IF('A1'!K$30:K$79<=A76,IF('A1'!L$30:L$79>=A74,-1*'A1'!H$30:H$79,0),0),0))) ->  | I75: =IF(A75="","","▼") ->  | J75: =IF(A75="","",J$5+SUM(I$6:I74)) ->  | L75: =IF(L74="","",IF((M$5+SUM(L$6:L74))>=0,"▼","▲")) ->  | M75: =IF(A75="","",IF(L75="▼",((M$5)+(SUM(L$6:L74))),(-(M$5+SUM(L$6:L74))))) -> 
A76: =IF(B75="","",(LARGE('A1'!$K$30:$L$79,(1+SUM(COUNTIF('A1'!$K$30:$L$79,A$5:A75))-(B75*COUNTIF('A1'!$K$30:$L$79,A$6)))))) ->  | B76: =IF(B74="","",IF((SUM(IF(FREQUENCY('A1'!$K$30:$L$79,'A1'!$K$30:$L$79)>0,1)))>(B74+1),(B74+1),"")) ->  | D76: =IF(C76="","",SUM(IF('A1'!J$30:J$79="HOT",IF('A1'!K$30:K$79>=A75,IF('A1'!L$30:L$79<=A77,1*'A1'!H$30:H$79,0),0),0),IF('A1'!J$30:J$79="COLD",IF('A1'!K$30:K$79<=A77,IF('A1'!L$30:L$79>=A75,-1*'A1'!H$30:H$79,0),0),0))) ->  | I76: =E76 ->  | J76: =IF(A76="","",J$5+SUM(I$6:I75)) ->  | L76: =E76 ->  | M76: =IF(A76="","",IF(L76="▼",((M$5)+(SUM(L$6:L75))),(-(M$5+SUM(L$6:L75))))) -> 
A77: =IF(B76="","",(LARGE('A1'!$K$30:$L$79,(1+SUM(COUNTIF('A1'!$K$30:$L$79,A$5:A76))-(B76*COUNTIF('A1'!$K$30:$L$79,A$6)))))) ->  | B77: =IF(B75="","",IF((SUM(IF(FREQUENCY('A1'!$K$30:$L$79,'A1'!$K$30:$L$79)>0,1)))>(B75+1),(B75+1),"")) ->  | D77: =IF(C77="","",SUM(IF('A1'!J$30:J$79="HOT",IF('A1'!K$30:K$79>=A76,IF('A1'!L$30:L$79<=A78,1*'A1'!H$30:H$79,0),0),0),IF('A1'!J$30:J$79="COLD",IF('A1'!K$30:K$79<=A78,IF('A1'!L$30:L$79>=A76,-1*'A1'!H$30:H$79,0),0),0))) ->  | I77: =IF(A77="","","▼") ->  | J77: =IF(A77="","",J$5+SUM(I$6:I76)) ->  | L77: =IF(L76="","",IF((M$5+SUM(L$6:L76))>=0,"▼","▲")) ->  | M77: =IF(A77="","",IF(L77="▼",((M$5)+(SUM(L$6:L76))),(-(M$5+SUM(L$6:L76))))) -> 
A78: =IF(B77="","",(LARGE('A1'!$K$30:$L$79,(1+SUM(COUNTIF('A1'!$K$30:$L$79,A$5:A77))-(B77*COUNTIF('A1'!$K$30:$L$79,A$6)))))) ->  | B78: =IF(B76="","",IF((SUM(IF(FREQUENCY('A1'!$K$30:$L$79,'A1'!$K$30:$L$79)>0,1)))>(B76+1),(B76+1),"")) ->  | D78: =IF(C78="","",SUM(IF('A1'!J$30:J$79="HOT",IF('A1'!K$30:K$79>=A77,IF('A1'!L$30:L$79<=A79,1*'A1'!H$30:H$79,0),0),0),IF('A1'!J$30:J$79="COLD",IF('A1'!K$30:K$79<=A79,IF('A1'!L$30:L$79>=A77,-1*'A1'!H$30:H$79,0),0),0))) ->  | I78: =E78 ->  | J78: =IF(A78="","",J$5+SUM(I$6:I77)) ->  | L78: =E78 ->  | M78: =IF(A78="","",IF(L78="▼",((M$5)+(SUM(L$6:L77))),(-(M$5+SUM(L$6:L77))))) -> 
A79: =IF(B78="","",(LARGE('A1'!$K$30:$L$79,(1+SUM(COUNTIF('A1'!$K$30:$L$79,A$5:A78))-(B78*COUNTIF('A1'!$K$30:$L$79,A$6)))))) ->  | B79: =IF(B77="","",IF((SUM(IF(FREQUENCY('A1'!$K$30:$L$79,'A1'!$K$30:$L$79)>0,1)))>(B77+1),(B77+1),"")) ->  | D79: =IF(C79="","",SUM(IF('A1'!J$30:J$79="HOT",IF('A1'!K$30:K$79>=A78,IF('A1'!L$30:L$79<=A80,1*'A1'!H$30:H$79,0),0),0),IF('A1'!J$30:J$79="COLD",IF('A1'!K$30:K$79<=A80,IF('A1'!L$30:L$79>=A78,-1*'A1'!H$30:H$79,0),0),0))) ->  | E79: =IF(D79="","",D79*C79) ->  | I79: =IF(A79="","","▼") ->  | J79: =IF(A79="","",J$5+SUM(I$6:I78)) ->  | L79: =IF(L78="","",IF((M$5+SUM(L$6:L78))>=0,"▼","▲")) ->  | M79: =IF(A79="","",IF(L79="▼",((M$5)+(SUM(L$6:L78))),(-(M$5+SUM(L$6:L78))))) -> 
A80: =IF(B79="","",(LARGE('A1'!$K$30:$L$79,(1+SUM(COUNTIF('A1'!$K$30:$L$79,A$5:A79))-(B79*COUNTIF('A1'!$K$30:$L$79,A$6)))))) ->  | B80: =IF(B78="","",IF((SUM(IF(FREQUENCY('A1'!$K$30:$L$79,'A1'!$K$30:$L$79)>0,1)))>(B78+1),(B78+1),"")) ->  | D80: =IF(C80="","",SUM(IF('A1'!J$30:J$79="HOT",IF('A1'!K$30:K$79>=A79,IF('A1'!L$30:L$79<=A81,1*'A1'!H$30:H$79,0),0),0),IF('A1'!J$30:J$79="COLD",IF('A1'!K$30:K$79<=A81,IF('A1'!L$30:L$79>=A79,-1*'A1'!H$30:H$79,0),0),0))) ->  | I80: =E80 ->  | J80: =IF(A80="","",J$5+SUM(I$6:I79)) ->  | L80: =E80 ->  | M80: =IF(A80="","",IF(L80="▼",((M$5)+(SUM(L$6:L79))),(-(M$5+SUM(L$6:L79))))) -> 
A81: =IF(B80="","",(LARGE('A1'!$K$30:$L$79,(1+SUM(COUNTIF('A1'!$K$30:$L$79,A$5:A80))-(B80*COUNTIF('A1'!$K$30:$L$79,A$6)))))) ->  | B81: =IF(B79="","",IF((SUM(IF(FREQUENCY('A1'!$K$30:$L$79,'A1'!$K$30:$L$79)>0,1)))>(B79+1),(B79+1),"")) ->  | D81: =IF(C81="","",SUM(IF('A1'!J$30:J$79="HOT",IF('A1'!K$30:K$79>=A80,IF('A1'!L$30:L$79<=A82,1*'A1'!H$30:H$79,0),0),0),IF('A1'!J$30:J$79="COLD",IF('A1'!K$30:K$79<=A82,IF('A1'!L$30:L$79>=A80,-1*'A1'!H$30:H$79,0),0),0))) ->  | I81: =IF(A81="","","▼") ->  | J81: =IF(A81="","",J$5+SUM(I$6:I80)) ->  | L81: =IF(L80="","",IF((M$5+SUM(L$6:L80))>=0,"▼","▲")) ->  | M81: =IF(A81="","",IF(L81="▼",((M$5)+(SUM(L$6:L80))),(-(M$5+SUM(L$6:L80))))) -> 
A82: =IF(B81="","",(LARGE('A1'!$K$30:$L$79,(1+SUM(COUNTIF('A1'!$K$30:$L$79,A$5:A81))-(B81*COUNTIF('A1'!$K$30:$L$79,A$6)))))) ->  | B82: =IF(B80="","",IF((SUM(IF(FREQUENCY('A1'!$K$30:$L$79,'A1'!$K$30:$L$79)>0,1)))>(B80+1),(B80+1),"")) ->  | D82: =IF(C82="","",SUM(IF('A1'!J$30:J$79="HOT",IF('A1'!K$30:K$79>=A81,IF('A1'!L$30:L$79<=A83,1*'A1'!H$30:H$79,0),0),0),IF('A1'!J$30:J$79="COLD",IF('A1'!K$30:K$79<=A83,IF('A1'!L$30:L$79>=A81,-1*'A1'!H$30:H$79,0),0),0))) ->  | I82: =E82 ->  | J82: =IF(A82="","",J$5+SUM(I$6:I81)) ->  | L82: =E82 ->  | M82: =IF(A82="","",IF(L82="▼",((M$5)+(SUM(L$6:L81))),(-(M$5+SUM(L$6:L81))))) -> 
A83: =IF(B82="","",(LARGE('A1'!$K$30:$L$79,(1+SUM(COUNTIF('A1'!$K$30:$L$79,A$5:A82))-(B82*COUNTIF('A1'!$K$30:$L$79,A$6)))))) ->  | B83: =IF(B81="","",IF((SUM(IF(FREQUENCY('A1'!$K$30:$L$79,'A1'!$K$30:$L$79)>0,1)))>(B81+1),(B81+1),"")) ->  | D83: =IF(C83="","",SUM(IF('A1'!J$30:J$79="HOT",IF('A1'!K$30:K$79>=A82,IF('A1'!L$30:L$79<=A84,1*'A1'!H$30:H$79,0),0),0),IF('A1'!J$30:J$79="COLD",IF('A1'!K$30:K$79<=A84,IF('A1'!L$30:L$79>=A82,-1*'A1'!H$30:H$79,0),0),0))) ->  | I83: =IF(A83="","","▼") ->  | J83: =IF(A83="","",J$5+SUM(I$6:I82)) ->  | L83: =IF(L82="","",IF((M$5+SUM(L$6:L82))>=0,"▼","▲")) ->  | M83: =IF(A83="","",IF(L83="▼",((M$5)+(SUM(L$6:L82))),(-(M$5+SUM(L$6:L82))))) -> 
A84: =IF(B83="","",(LARGE('A1'!$K$30:$L$79,(1+SUM(COUNTIF('A1'!$K$30:$L$79,A$5:A83))-(B83*COUNTIF('A1'!$K$30:$L$79,A$6)))))) ->  | B84: =IF(B82="","",IF((SUM(IF(FREQUENCY('A1'!$K$30:$L$79,'A1'!$K$30:$L$79)>0,1)))>(B82+1),(B82+1),"")) ->  | D84: =IF(C84="","",SUM(IF('A1'!J$30:J$79="HOT",IF('A1'!K$30:K$79>=A83,IF('A1'!L$30:L$79<=A85,1*'A1'!H$30:H$79,0),0),0),IF('A1'!J$30:J$79="COLD",IF('A1'!K$30:K$79<=A85,IF('A1'!L$30:L$79>=A83,-1*'A1'!H$30:H$79,0),0),0))) ->  | I84: =E84 ->  | J84: =IF(A84="","",J$5+SUM(I$6:I83)) ->  | L84: =E84 ->  | M84: =IF(A84="","",IF(L84="▼",((M$5)+(SUM(L$6:L83))),(-(M$5+SUM(L$6:L83))))) -> 
A85: =IF(B84="","",(LARGE('A1'!$K$30:$L$79,(1+SUM(COUNTIF('A1'!$K$30:$L$79,A$5:A84))-(B84*COUNTIF('A1'!$K$30:$L$79,A$6)))))) ->  | B85: =IF(B83="","",IF((SUM(IF(FREQUENCY('A1'!$K$30:$L$79,'A1'!$K$30:$L$79)>0,1)))>(B83+1),(B83+1),"")) ->  | D85: =IF(C85="","",SUM(IF('A1'!J$30:J$79="HOT",IF('A1'!K$30:K$79>=A84,IF('A1'!L$30:L$79<=A86,1*'A1'!H$30:H$79,0),0),0),IF('A1'!J$30:J$79="COLD",IF('A1'!K$30:K$79<=A86,IF('A1'!L$30:L$79>=A84,-1*'A1'!H$30:H$79,0),0),0))) ->  | I85: =IF(A85="","","▼") ->  | J85: =IF(A85="","",J$5+SUM(I$6:I84)) ->  | L85: =IF(L84="","",IF((M$5+SUM(L$6:L84))>=0,"▼","▲")) ->  | M85: =IF(A85="","",IF(L85="▼",((M$5)+(SUM(L$6:L84))),(-(M$5+SUM(L$6:L84))))) -> 
A86: =IF(B85="","",(LARGE('A1'!$K$30:$L$79,(1+SUM(COUNTIF('A1'!$K$30:$L$79,A$5:A85))-(B85*COUNTIF('A1'!$K$30:$L$79,A$6)))))) ->  | B86: =IF(B84="","",IF((SUM(IF(FREQUENCY('A1'!$K$30:$L$79,'A1'!$K$30:$L$79)>0,1)))>(B84+1),(B84+1),"")) ->  | D86: =IF(C86="","",SUM(IF('A1'!J$30:J$79="HOT",IF('A1'!K$30:K$79>=A85,IF('A1'!L$30:L$79<=A87,1*'A1'!H$30:H$79,0),0),0),IF('A1'!J$30:J$79="COLD",IF('A1'!K$30:K$79<=A87,IF('A1'!L$30:L$79>=A85,-1*'A1'!H$30:H$79,0),0),0))) ->  | I86: =E86 ->  | J86: =IF(A86="","",J$5+SUM(I$6:I85)) ->  | L86: =E86 ->  | M86: =IF(A86="","",IF(L86="▼",((M$5)+(SUM(L$6:L85))),(-(M$5+SUM(L$6:L85))))) -> 
A87: =IF(B86="","",(LARGE('A1'!$K$30:$L$79,(1+SUM(COUNTIF('A1'!$K$30:$L$79,A$5:A86))-(B86*COUNTIF('A1'!$K$30:$L$79,A$6)))))) ->  | B87: =IF(B85="","",IF((SUM(IF(FREQUENCY('A1'!$K$30:$L$79,'A1'!$K$30:$L$79)>0,1)))>(B85+1),(B85+1),"")) ->  | D87: =IF(C87="","",SUM(IF('A1'!J$30:J$79="HOT",IF('A1'!K$30:K$79>=A86,IF('A1'!L$30:L$79<=A88,1*'A1'!H$30:H$79,0),0),0),IF('A1'!J$30:J$79="COLD",IF('A1'!K$30:K$79<=A88,IF('A1'!L$30:L$79>=A86,-1*'A1'!H$30:H$79,0),0),0))) ->  | I87: =IF(A87="","","▼") ->  | J87: =IF(A87="","",J$5+SUM(I$6:I86)) ->  | L87: =IF(L86="","",IF((M$5+SUM(L$6:L86))>=0,"▼","▲")) ->  | M87: =IF(A87="","",IF(L87="▼",((M$5)+(SUM(L$6:L86))),(-(M$5+SUM(L$6:L86))))) -> 
A88: =IF(B87="","",(LARGE('A1'!$K$30:$L$79,(1+SUM(COUNTIF('A1'!$K$30:$L$79,A$5:A87))-(B87*COUNTIF('A1'!$K$30:$L$79,A$6)))))) ->  | B88: =IF(B86="","",IF((SUM(IF(FREQUENCY('A1'!$K$30:$L$79,'A1'!$K$30:$L$79)>0,1)))>(B86+1),(B86+1),"")) ->  | D88: =IF(C88="","",SUM(IF('A1'!J$30:J$79="HOT",IF('A1'!K$30:K$79>=A87,IF('A1'!L$30:L$79<=A89,1*'A1'!H$30:H$79,0),0),0),IF('A1'!J$30:J$79="COLD",IF('A1'!K$30:K$79<=A89,IF('A1'!L$30:L$79>=A87,-1*'A1'!H$30:H$79,0),0),0))) ->  | I88: =E88 ->  | J88: =IF(A88="","",J$5+SUM(I$6:I87)) ->  | L88: =E88 ->  | M88: =IF(A88="","",IF(L88="▼",((M$5)+(SUM(L$6:L87))),(-(M$5+SUM(L$6:L87))))) -> 
A89: =IF(B88="","",(LARGE('A1'!$K$30:$L$79,(1+SUM(COUNTIF('A1'!$K$30:$L$79,A$5:A88))-(B88*COUNTIF('A1'!$K$30:$L$79,A$6)))))) ->  | B89: =IF(B87="","",IF((SUM(IF(FREQUENCY('A1'!$K$30:$L$79,'A1'!$K$30:$L$79)>0,1)))>(B87+1),(B87+1),"")) ->  | D89: =IF(C89="","",SUM(IF('A1'!J$30:J$79="HOT",IF('A1'!K$30:K$79>=A88,IF('A1'!L$30:L$79<=A90,1*'A1'!H$30:H$79,0),0),0),IF('A1'!J$30:J$79="COLD",IF('A1'!K$30:K$79<=A90,IF('A1'!L$30:L$79>=A88,-1*'A1'!H$30:H$79,0),0),0))) ->  | I89: =IF(A89="","","▼") ->  | J89: =IF(A89="","",J$5+SUM(I$6:I88)) ->  | L89: =IF(L88="","",IF((M$5+SUM(L$6:L88))>=0,"▼","▲")) ->  | M89: =IF(A89="","",IF(L89="▼",((M$5)+(SUM(L$6:L88))),(-(M$5+SUM(L$6:L88))))) -> 
A90: =IF(B89="","",(LARGE('A1'!$K$30:$L$79,(1+SUM(COUNTIF('A1'!$K$30:$L$79,A$5:A89))-(B89*COUNTIF('A1'!$K$30:$L$79,A$6)))))) ->  | B90: =IF(B88="","",IF((SUM(IF(FREQUENCY('A1'!$K$30:$L$79,'A1'!$K$30:$L$79)>0,1)))>(B88+1),(B88+1),"")) ->  | D90: =IF(C90="","",SUM(IF('A1'!J$30:J$79="HOT",IF('A1'!K$30:K$79>=A89,IF('A1'!L$30:L$79<=A91,1*'A1'!H$30:H$79,0),0),0),IF('A1'!J$30:J$79="COLD",IF('A1'!K$30:K$79<=A91,IF('A1'!L$30:L$79>=A89,-1*'A1'!H$30:H$79,0),0),0))) ->  | I90: =E90 ->  | J90: =IF(A90="","",J$5+SUM(I$6:I89)) ->  | L90: =E90 ->  | M90: =IF(A90="","",IF(L90="▼",((M$5)+(SUM(L$6:L89))),(-(M$5+SUM(L$6:L89))))) -> 
A91: =IF(B90="","",(LARGE('A1'!$K$30:$L$79,(1+SUM(COUNTIF('A1'!$K$30:$L$79,A$5:A90))-(B90*COUNTIF('A1'!$K$30:$L$79,A$6)))))) ->  | B91: =IF(B89="","",IF((SUM(IF(FREQUENCY('A1'!$K$30:$L$79,'A1'!$K$30:$L$79)>0,1)))>(B89+1),(B89+1),"")) ->  | D91: =IF(C91="","",SUM(IF('A1'!J$30:J$79="HOT",IF('A1'!K$30:K$79>=A90,IF('A1'!L$30:L$79<=A92,1*'A1'!H$30:H$79,0),0),0),IF('A1'!J$30:J$79="COLD",IF('A1'!K$30:K$79<=A92,IF('A1'!L$30:L$79>=A90,-1*'A1'!H$30:H$79,0),0),0))) ->  | I91: =IF(A91="","","▼") ->  | J91: =IF(A91="","",J$5+SUM(I$6:I90)) ->  | L91: =IF(L90="","",IF((M$5+SUM(L$6:L90))>=0,"▼","▲")) ->  | M91: =IF(A91="","",IF(L91="▼",((M$5)+(SUM(L$6:L90))),(-(M$5+SUM(L$6:L90))))) -> 
A92: =IF(B91="","",(LARGE('A1'!$K$30:$L$79,(1+SUM(COUNTIF('A1'!$K$30:$L$79,A$5:A91))-(B91*COUNTIF('A1'!$K$30:$L$79,A$6)))))) ->  | B92: =IF(B90="","",IF((SUM(IF(FREQUENCY('A1'!$K$30:$L$79,'A1'!$K$30:$L$79)>0,1)))>(B90+1),(B90+1),"")) ->  | D92: =IF(C92="","",SUM(IF('A1'!J$30:J$79="HOT",IF('A1'!K$30:K$79>=A91,IF('A1'!L$30:L$79<=A93,1*'A1'!H$30:H$79,0),0),0),IF('A1'!J$30:J$79="COLD",IF('A1'!K$30:K$79<=A93,IF('A1'!L$30:L$79>=A91,-1*'A1'!H$30:H$79,0),0),0))) ->  | I92: =E92 ->  | J92: =IF(A92="","",J$5+SUM(I$6:I91)) ->  | L92: =E92 ->  | M92: =IF(A92="","",IF(L92="▼",((M$5)+(SUM(L$6:L91))),(-(M$5+SUM(L$6:L91))))) -> 
A93: =IF(B92="","",(LARGE('A1'!$K$30:$L$79,(1+SUM(COUNTIF('A1'!$K$30:$L$79,A$5:A92))-(B92*COUNTIF('A1'!$K$30:$L$79,A$6)))))) ->  | B93: =IF(B91="","",IF((SUM(IF(FREQUENCY('A1'!$K$30:$L$79,'A1'!$K$30:$L$79)>0,1)))>(B91+1),(B91+1),"")) ->  | D93: =IF(C93="","",SUM(IF('A1'!J$30:J$79="HOT",IF('A1'!K$30:K$79>=A92,IF('A1'!L$30:L$79<=A94,1*'A1'!H$30:H$79,0),0),0),IF('A1'!J$30:J$79="COLD",IF('A1'!K$30:K$79<=A94,IF('A1'!L$30:L$79>=A92,-1*'A1'!H$30:H$79,0),0),0))) ->  | I93: =IF(A93="","","▼") ->  | J93: =IF(A93="","",J$5+SUM(I$6:I92)) ->  | L93: =IF(L92="","",IF((M$5+SUM(L$6:L92))>=0,"▼","▲")) ->  | M93: =IF(A93="","",IF(L93="▼",((M$5)+(SUM(L$6:L92))),(-(M$5+SUM(L$6:L92))))) -> 
A94: =IF(B93="","",(LARGE('A1'!$K$30:$L$79,(1+SUM(COUNTIF('A1'!$K$30:$L$79,A$5:A93))-(B93*COUNTIF('A1'!$K$30:$L$79,A$6)))))) ->  | B94: =IF(B92="","",IF((SUM(IF(FREQUENCY('A1'!$K$30:$L$79,'A1'!$K$30:$L$79)>0,1)))>(B92+1),(B92+1),"")) ->  | D94: =IF(C94="","",SUM(IF('A1'!J$30:J$79="HOT",IF('A1'!K$30:K$79>=A93,IF('A1'!L$30:L$79<=A95,1*'A1'!H$30:H$79,0),0),0),IF('A1'!J$30:J$79="COLD",IF('A1'!K$30:K$79<=A95,IF('A1'!L$30:L$79>=A93,-1*'A1'!H$30:H$79,0),0),0))) ->  | I94: =E94 ->  | J94: =IF(A94="","",J$5+SUM(I$6:I93)) ->  | L94: =E94 ->  | M94: =IF(A94="","",IF(L94="▼",((M$5)+(SUM(L$6:L93))),(-(M$5+SUM(L$6:L93))))) -> 
A95: =IF(B94="","",(LARGE('A1'!$K$30:$L$79,(1+SUM(COUNTIF('A1'!$K$30:$L$79,A$5:A94))-(B94*COUNTIF('A1'!$K$30:$L$79,A$6)))))) ->  | B95: =IF(B93="","",IF((SUM(IF(FREQUENCY('A1'!$K$30:$L$79,'A1'!$K$30:$L$79)>0,1)))>(B93+1),(B93+1),"")) ->  | D95: =IF(C95="","",SUM(IF('A1'!J$30:J$79="HOT",IF('A1'!K$30:K$79>=A94,IF('A1'!L$30:L$79<=A96,1*'A1'!H$30:H$79,0),0),0),IF('A1'!J$30:J$79="COLD",IF('A1'!K$30:K$79<=A96,IF('A1'!L$30:L$79>=A94,-1*'A1'!H$30:H$79,0),0),0))) ->  | I95: =IF(A95="","","▼") ->  | J95: =IF(A95="","",J$5+SUM(I$6:I94)) ->  | L95: =IF(L94="","",IF((M$5+SUM(L$6:L94))>=0,"▼","▲")) ->  | M95: =IF(A95="","",IF(L95="▼",((M$5)+(SUM(L$6:L94))),(-(M$5+SUM(L$6:L94))))) -> 
A96: =IF(B95="","",(LARGE('A1'!$K$30:$L$79,(1+SUM(COUNTIF('A1'!$K$30:$L$79,A$5:A95))-(B95*COUNTIF('A1'!$K$30:$L$79,A$6)))))) ->  | B96: =IF(B94="","",IF((SUM(IF(FREQUENCY('A1'!$K$30:$L$79,'A1'!$K$30:$L$79)>0,1)))>(B94+1),(B94+1),"")) ->  | D96: =IF(C96="","",SUM(IF('A1'!J$30:J$79="HOT",IF('A1'!K$30:K$79>=A95,IF('A1'!L$30:L$79<=A97,1*'A1'!H$30:H$79,0),0),0),IF('A1'!J$30:J$79="COLD",IF('A1'!K$30:K$79<=A97,IF('A1'!L$30:L$79>=A95,-1*'A1'!H$30:H$79,0),0),0))) ->  | I96: =E96 ->  | J96: =IF(A96="","",J$5+SUM(I$6:I95)) ->  | L96: =E96 ->  | M96: =IF(A96="","",IF(L96="▼",((M$5)+(SUM(L$6:L95))),(-(M$5+SUM(L$6:L95))))) -> 
A97: =IF(B96="","",(LARGE('A1'!$K$30:$L$79,(1+SUM(COUNTIF('A1'!$K$30:$L$79,A$5:A96))-(B96*COUNTIF('A1'!$K$30:$L$79,A$6)))))) ->  | B97: =IF(B95="","",IF((SUM(IF(FREQUENCY('A1'!$K$30:$L$79,'A1'!$K$30:$L$79)>0,1)))>(B95+1),(B95+1),"")) ->  | D97: =IF(C97="","",SUM(IF('A1'!J$30:J$79="HOT",IF('A1'!K$30:K$79>=A96,IF('A1'!L$30:L$79<=A98,1*'A1'!H$30:H$79,0),0),0),IF('A1'!J$30:J$79="COLD",IF('A1'!K$30:K$79<=A98,IF('A1'!L$30:L$79>=A96,-1*'A1'!H$30:H$79,0),0),0))) ->  | I97: =IF(A97="","","▼") ->  | J97: =IF(A97="","",J$5+SUM(I$6:I96)) ->  | L97: =IF(L96="","",IF((M$5+SUM(L$6:L96))>=0,"▼","▲")) ->  | M97: =IF(A97="","",IF(L97="▼",((M$5)+(SUM(L$6:L96))),(-(M$5+SUM(L$6:L96))))) -> 
A98: =IF(B97="","",(LARGE('A1'!$K$30:$L$79,(1+SUM(COUNTIF('A1'!$K$30:$L$79,A$5:A97))-(B97*COUNTIF('A1'!$K$30:$L$79,A$6)))))) ->  | B98: =IF(B96="","",IF((SUM(IF(FREQUENCY('A1'!$K$30:$L$79,'A1'!$K$30:$L$79)>0,1)))>(B96+1),(B96+1),"")) ->  | D98: =IF(C98="","",SUM(IF('A1'!J$30:J$79="HOT",IF('A1'!K$30:K$79>=A97,IF('A1'!L$30:L$79<=A99,1*'A1'!H$30:H$79,0),0),0),IF('A1'!J$30:J$79="COLD",IF('A1'!K$30:K$79<=A99,IF('A1'!L$30:L$79>=A97,-1*'A1'!H$30:H$79,0),0),0))) ->  | I98: =E98 ->  | J98: =IF(A98="","",J$5+SUM(I$6:I97)) ->  | L98: =E98 ->  | M98: =IF(A98="","",IF(L98="▼",((M$5)+(SUM(L$6:L97))),(-(M$5+SUM(L$6:L97))))) -> 
A99: =IF(B98="","",(LARGE('A1'!$K$30:$L$79,(1+SUM(COUNTIF('A1'!$K$30:$L$79,A$5:A98))-(B98*COUNTIF('A1'!$K$30:$L$79,A$6)))))) ->  | B99: =IF(B97="","",IF((SUM(IF(FREQUENCY('A1'!$K$30:$L$79,'A1'!$K$30:$L$79)>0,1)))>(B97+1),(B97+1),"")) ->  | D99: =IF(C99="","",SUM(IF('A1'!J$30:J$79="HOT",IF('A1'!K$30:K$79>=A98,IF('A1'!L$30:L$79<=A100,1*'A1'!H$30:H$79,0),0),0),IF('A1'!J$30:J$79="COLD",IF('A1'!K$30:K$79<=A100,IF('A1'!L$30:L$79>=A98,-1*'A1'!H$30:H$79,0),0),0))) ->  | I99: =IF(A99="","","▼") ->  | J99: =IF(A99="","",J$5+SUM(I$6:I98)) ->  | L99: =IF(L98="","",IF((M$5+SUM(L$6:L98))>=0,"▼","▲")) ->  | M99: =IF(A99="","",IF(L99="▼",((M$5)+(SUM(L$6:L98))),(-(M$5+SUM(L$6:L98))))) -> 
A100: =IF(B99="","",(LARGE('A1'!$K$30:$L$79,(1+SUM(COUNTIF('A1'!$K$30:$L$79,A$5:A99))-(B99*COUNTIF('A1'!$K$30:$L$79,A$6)))))) ->  | B100: =IF(B98="","",IF((SUM(IF(FREQUENCY('A1'!$K$30:$L$79,'A1'!$K$30:$L$79)>0,1)))>(B98+1),(B98+1),"")) ->  | D100: =IF(C100="","",SUM(IF('A1'!J$30:J$79="HOT",IF('A1'!K$30:K$79>=A99,IF('A1'!L$30:L$79<=A101,1*'A1'!H$30:H$79,0),0),0),IF('A1'!J$30:J$79="COLD",IF('A1'!K$30:K$79<=A101,IF('A1'!L$30:L$79>=A99,-1*'A1'!H$30:H$79,0),0),0))) ->  | I100: =E100 ->  | J100: =IF(A100="","",J$5+SUM(I$6:I99)) ->  | L100: =E100 ->  | M100: =IF(A100="","",IF(L100="▼",((M$5)+(SUM(L$6:L99))),(-(M$5+SUM(L$6:L99))))) -> 
A101: =IF(B100="","",(LARGE('A1'!$K$30:$L$79,(1+SUM(COUNTIF('A1'!$K$30:$L$79,A$5:A100))-(B100*COUNTIF('A1'!$K$30:$L$79,A$6)))))) ->  | B101: =IF(B99="","",IF((SUM(IF(FREQUENCY('A1'!$K$30:$L$79,'A1'!$K$30:$L$79)>0,1)))>(B99+1),(B99+1),"")) ->  | D101: =IF(C101="","",SUM(IF('A1'!J$30:J$79="HOT",IF('A1'!K$30:K$79>=A100,IF('A1'!L$30:L$79<=A102,1*'A1'!H$30:H$79,0),0),0),IF('A1'!J$30:J$79="COLD",IF('A1'!K$30:K$79<=A102,IF('A1'!L$30:L$79>=A100,-1*'A1'!H$30:H$79,0),0),0))) ->  | I101: =IF(A101="","","▼") ->  | J101: =IF(A101="","",J$5+SUM(I$6:I100)) ->  | L101: =IF(L100="","",IF((M$5+SUM(L$6:L100))>=0,"▼","▲")) ->  | M101: =IF(A101="","",IF(L101="▼",((M$5)+(SUM(L$6:L100))),(-(M$5+SUM(L$6:L100))))) -> 
A102: =IF(B101="","",(LARGE('A1'!$K$30:$L$79,(1+SUM(COUNTIF('A1'!$K$30:$L$79,A$5:A101))-(B101*COUNTIF('A1'!$K$30:$L$79,A$6)))))) ->  | B102: =IF(B100="","",IF((SUM(IF(FREQUENCY('A1'!$K$30:$L$79,'A1'!$K$30:$L$79)>0,1)))>(B100+1),(B100+1),"")) ->  | D102: =IF(C102="","",SUM(IF('A1'!J$30:J$79="HOT",IF('A1'!K$30:K$79>=A101,IF('A1'!L$30:L$79<=A103,1*'A1'!H$30:H$79,0),0),0),IF('A1'!J$30:J$79="COLD",IF('A1'!K$30:K$79<=A103,IF('A1'!L$30:L$79>=A101,-1*'A1'!H$30:H$79,0),0),0))) ->  | I102: =E102 ->  | J102: =IF(A102="","",J$5+SUM(I$6:I101)) ->  | L102: =E102 ->  | M102: =IF(A102="","",IF(L102="▼",((M$5)+(SUM(L$6:L101))),(-(M$5+SUM(L$6:L101))))) -> 
A103: =IF(B102="","",(LARGE('A1'!$K$30:$L$79,(1+SUM(COUNTIF('A1'!$K$30:$L$79,A$5:A102))-(B102*COUNTIF('A1'!$K$30:$L$79,A$6)))))) ->  | B103: =IF(B101="","",IF((SUM(IF(FREQUENCY('A1'!$K$30:$L$79,'A1'!$K$30:$L$79)>0,1)))>(B101+1),(B101+1),"")) ->  | D103: =IF(C103="","",SUM(IF('A1'!J$30:J$79="HOT",IF('A1'!K$30:K$79>=A102,IF('A1'!L$30:L$79<=A104,1*'A1'!H$30:H$79,0),0),0),IF('A1'!J$30:J$79="COLD",IF('A1'!K$30:K$79<=A104,IF('A1'!L$30:L$79>=A102,-1*'A1'!H$30:H$79,0),0),0))) ->  | I103: =IF(A103="","","▼") ->  | J103: =IF(A103="","",J$5+SUM(I$6:I102)) ->  | L103: =IF(L102="","",IF((M$5+SUM(L$6:L102))>=0,"▼","▲")) ->  | M103: =IF(A103="","",IF(L103="▼",((M$5)+(SUM(L$6:L102))),(-(M$5+SUM(L$6:L102))))) -> 
A104: =IF(B103="","",(LARGE('A1'!$K$30:$L$79,(1+SUM(COUNTIF('A1'!$K$30:$L$79,A$5:A103))-(B103*COUNTIF('A1'!$K$30:$L$79,A$6)))))) ->  | B104: =IF(B102="","",IF((SUM(IF(FREQUENCY('A1'!$K$30:$L$79,'A1'!$K$30:$L$79)>0,1)))>(B102+1),(B102+1),"")) ->  | D104: =IF(C104="","",SUM(IF('A1'!J$30:J$79="HOT",IF('A1'!K$30:K$79>=A103,IF('A1'!L$30:L$79<=A105,1*'A1'!H$30:H$79,0),0),0),IF('A1'!J$30:J$79="COLD",IF('A1'!K$30:K$79<=A105,IF('A1'!L$30:L$79>=A103,-1*'A1'!H$30:H$79,0),0),0))) ->  | I104: =E104 ->  | J104: =IF(A104="","",J$5+SUM(I$6:I103)) ->  | L104: =E104 ->  | M104: =IF(A104="","",IF(L104="▼",((M$5)+(SUM(L$6:L103))),(-(M$5+SUM(L$6:L103))))) -> 
A105: =IF(B104="","",(LARGE('A1'!$K$30:$L$79,(1+SUM(COUNTIF('A1'!$K$30:$L$79,A$5:A104))-(B104*COUNTIF('A1'!$K$30:$L$79,A$6)))))) ->  | B105: =IF(B103="","",IF((SUM(IF(FREQUENCY('A1'!$K$30:$L$79,'A1'!$K$30:$L$79)>0,1)))>(B103+1),(B103+1),"")) ->  | D105: =IF(C105="","",SUM(IF('A1'!J$30:J$79="HOT",IF('A1'!K$30:K$79>=A104,IF('A1'!L$30:L$79<=A106,1*'A1'!H$30:H$79,0),0),0),IF('A1'!J$30:J$79="COLD",IF('A1'!K$30:K$79<=A106,IF('A1'!L$30:L$79>=A104,-1*'A1'!H$30:H$79,0),0),0))) ->  | I105: =IF(A105="","","▼") ->  | J105: =IF(A105="","",J$5+SUM(I$6:I104)) ->  | L105: =IF(L104="","",IF((M$5+SUM(L$6:L104))>=0,"▼","▲")) ->  | M105: =IF(A105="","",IF(L105="▼",((M$5)+(SUM(L$6:L104))),(-(M$5+SUM(L$6:L104))))) -> 
A106: =IF(B105="","",(LARGE('A1'!$K$30:$L$79,(1+SUM(COUNTIF('A1'!$K$30:$L$79,A$5:A105))-(B105*COUNTIF('A1'!$K$30:$L$79,A$6)))))) ->  | B106: =IF(B104="","",IF((SUM(IF(FREQUENCY('A1'!$K$30:$L$79,'A1'!$K$30:$L$79)>0,1)))>(B104+1),(B104+1),"")) ->  | D106: =IF(C106="","",SUM(IF('A1'!J$30:J$79="HOT",IF('A1'!K$30:K$79>=A105,IF('A1'!L$30:L$79<=A107,1*'A1'!H$30:H$79,0),0),0),IF('A1'!J$30:J$79="COLD",IF('A1'!K$30:K$79<=A107,IF('A1'!L$30:L$79>=A105,-1*'A1'!H$30:H$79,0),0),0))) ->  | I106: =E106 ->  | J106: =IF(A106="","",J$5+SUM(I$6:I105)) ->  | L106: =E106 ->  | M106: =IF(A106="","",IF(L106="▼",((M$5)+(SUM(L$6:L105))),(-(M$5+SUM(L$6:L105))))) -> 
A107: =IF(B106="","",(LARGE('A1'!$K$30:$L$79,(1+SUM(COUNTIF('A1'!$K$30:$L$79,A$5:A106))-(B106*COUNTIF('A1'!$K$30:$L$79,A$6)))))) ->  | B107: =IF(B105="","",IF((SUM(IF(FREQUENCY('A1'!$K$30:$L$79,'A1'!$K$30:$L$79)>0,1)))>(B105+1),(B105+1),"")) ->  | D107: =IF(C107="","",SUM(IF('A1'!J$30:J$79="HOT",IF('A1'!K$30:K$79>=A106,IF('A1'!L$30:L$79<=A108,1*'A1'!H$30:H$79,0),0),0),IF('A1'!J$30:J$79="COLD",IF('A1'!K$30:K$79<=A108,IF('A1'!L$30:L$79>=A106,-1*'A1'!H$30:H$79,0),0),0))) ->  | I107: =IF(A107="","","▼") ->  | J107: =IF(A107="","",J$5+SUM(I$6:I106)) ->  | L107: =IF(L106="","",IF((M$5+SUM(L$6:L106))>=0,"▼","▲")) ->  | M107: =IF(A107="","",IF(L107="▼",((M$5)+(SUM(L$6:L106))),(-(M$5+SUM(L$6:L106))))) -> 
A108: =IF(B107="","",(LARGE('A1'!$K$30:$L$79,(1+SUM(COUNTIF('A1'!$K$30:$L$79,A$5:A107))-(B107*COUNTIF('A1'!$K$30:$L$79,A$6)))))) ->  | B108: =IF(B106="","",IF((SUM(IF(FREQUENCY('A1'!$K$30:$L$79,'A1'!$K$30:$L$79)>0,1)))>(B106+1),(B106+1),"")) ->  | D108: =IF(C108="","",SUM(IF('A1'!J$30:J$79="HOT",IF('A1'!K$30:K$79>=A107,IF('A1'!L$30:L$79<=A109,1*'A1'!H$30:H$79,0),0),0),IF('A1'!J$30:J$79="COLD",IF('A1'!K$30:K$79<=A109,IF('A1'!L$30:L$79>=A107,-1*'A1'!H$30:H$79,0),0),0))) ->  | I108: =E108 ->  | J108: =IF(A108="","",J$5+SUM(I$6:I107)) ->  | L108: =E108 ->  | M108: =IF(A108="","",IF(L108="▼",((M$5)+(SUM(L$6:L107))),(-(M$5+SUM(L$6:L107))))) -> 
A109: =IF(B108="","",(LARGE('A1'!$K$30:$L$79,(1+SUM(COUNTIF('A1'!$K$30:$L$79,A$5:A108))-(B108*COUNTIF('A1'!$K$30:$L$79,A$6)))))) ->  | B109: =IF(B107="","",IF((SUM(IF(FREQUENCY('A1'!$K$30:$L$79,'A1'!$K$30:$L$79)>0,1)))>(B107+1),(B107+1),"")) ->  | D109: =IF(C109="","",SUM(IF('A1'!J$30:J$79="HOT",IF('A1'!K$30:K$79>=A108,IF('A1'!L$30:L$79<=A110,1*'A1'!H$30:H$79,0),0),0),IF('A1'!J$30:J$79="COLD",IF('A1'!K$30:K$79<=A110,IF('A1'!L$30:L$79>=A108,-1*'A1'!H$30:H$79,0),0),0))) ->  | I109: =IF(A109="","","▼") ->  | J109: =IF(A109="","",J$5+SUM(I$6:I108)) ->  | L109: =IF(L108="","",IF((M$5+SUM(L$6:L108))>=0,"▼","▲")) ->  | M109: =IF(A109="","",IF(L109="▼",((M$5)+(SUM(L$6:L108))),(-(M$5+SUM(L$6:L108))))) -> 
A110: =IF(B109="","",(LARGE('A1'!$K$30:$L$79,(1+SUM(COUNTIF('A1'!$K$30:$L$79,A$5:A109))-(B109*COUNTIF('A1'!$K$30:$L$79,A$6)))))) ->  | B110: =IF(B108="","",IF((SUM(IF(FREQUENCY('A1'!$K$30:$L$79,'A1'!$K$30:$L$79)>0,1)))>(B108+1),(B108+1),"")) ->  | D110: =IF(C110="","",SUM(IF('A1'!J$30:J$79="HOT",IF('A1'!K$30:K$79>=A109,IF('A1'!L$30:L$79<=A111,1*'A1'!H$30:H$79,0),0),0),IF('A1'!J$30:J$79="COLD",IF('A1'!K$30:K$79<=A111,IF('A1'!L$30:L$79>=A109,-1*'A1'!H$30:H$79,0),0),0))) ->  | I110: =E110 ->  | J110: =IF(A110="","",J$5+SUM(I$6:I109)) ->  | L110: =E110 ->  | M110: =IF(A110="","",IF(L110="▼",((M$5)+(SUM(L$6:L109))),(-(M$5+SUM(L$6:L109))))) -> 
A111: =IF(B110="","",(LARGE('A1'!$K$30:$L$79,(1+SUM(COUNTIF('A1'!$K$30:$L$79,A$5:A110))-(B110*COUNTIF('A1'!$K$30:$L$79,A$6)))))) ->  | B111: =IF(B109="","",IF((SUM(IF(FREQUENCY('A1'!$K$30:$L$79,'A1'!$K$30:$L$79)>0,1)))>(B109+1),(B109+1),"")) ->  | D111: =IF(C111="","",SUM(IF('A1'!J$30:J$79="HOT",IF('A1'!K$30:K$79>=A110,IF('A1'!L$30:L$79<=A112,1*'A1'!H$30:H$79,0),0),0),IF('A1'!J$30:J$79="COLD",IF('A1'!K$30:K$79<=A112,IF('A1'!L$30:L$79>=A110,-1*'A1'!H$30:H$79,0),0),0))) ->  | I111: =IF(A111="","","▼") ->  | J111: =IF(A111="","",J$5+SUM(I$6:I110)) ->  | L111: =IF(L110="","",IF((M$5+SUM(L$6:L110))>=0,"▼","▲")) ->  | M111: =IF(A111="","",IF(L111="▼",((M$5)+(SUM(L$6:L110))),(-(M$5+SUM(L$6:L110))))) -> 
A112: =IF(B111="","",(LARGE('A1'!$K$30:$L$79,(1+SUM(COUNTIF('A1'!$K$30:$L$79,A$5:A111))-(B111*COUNTIF('A1'!$K$30:$L$79,A$6)))))) ->  | B112: =IF(B110="","",IF((SUM(IF(FREQUENCY('A1'!$K$30:$L$79,'A1'!$K$30:$L$79)>0,1)))>(B110+1),(B110+1),"")) ->  | D112: =IF(C112="","",SUM(IF('A1'!J$30:J$79="HOT",IF('A1'!K$30:K$79>=A111,IF('A1'!L$30:L$79<=A113,1*'A1'!H$30:H$79,0),0),0),IF('A1'!J$30:J$79="COLD",IF('A1'!K$30:K$79<=A113,IF('A1'!L$30:L$79>=A111,-1*'A1'!H$30:H$79,0),0),0))) ->  | I112: =E112 ->  | J112: =IF(A112="","",J$5+SUM(I$6:I111)) ->  | L112: =E112 ->  | M112: =IF(A112="","",IF(L112="▼",((M$5)+(SUM(L$6:L111))),(-(M$5+SUM(L$6:L111))))) -> 
A113: =IF(B112="","",(LARGE('A1'!$K$30:$L$79,(1+SUM(COUNTIF('A1'!$K$30:$L$79,A$5:A112))-(B112*COUNTIF('A1'!$K$30:$L$79,A$6)))))) ->  | B113: =IF(B111="","",IF((SUM(IF(FREQUENCY('A1'!$K$30:$L$79,'A1'!$K$30:$L$79)>0,1)))>(B111+1),(B111+1),"")) ->  | D113: =IF(C113="","",SUM(IF('A1'!J$30:J$79="HOT",IF('A1'!K$30:K$79>=A112,IF('A1'!L$30:L$79<=A114,1*'A1'!H$30:H$79,0),0),0),IF('A1'!J$30:J$79="COLD",IF('A1'!K$30:K$79<=A114,IF('A1'!L$30:L$79>=A112,-1*'A1'!H$30:H$79,0),0),0))) ->  | I113: =IF(A113="","","▼") ->  | J113: =IF(A113="","",J$5+SUM(I$6:I112)) ->  | L113: =IF(L112="","",IF((M$5+SUM(L$6:L112))>=0,"▼","▲")) ->  | M113: =IF(A113="","",IF(L113="▼",((M$5)+(SUM(L$6:L112))),(-(M$5+SUM(L$6:L112))))) -> 
A114: =IF(B113="","",(LARGE('A1'!$K$30:$L$79,(1+SUM(COUNTIF('A1'!$K$30:$L$79,A$5:A113))-(B113*COUNTIF('A1'!$K$30:$L$79,A$6)))))) ->  | B114: =IF(B112="","",IF((SUM(IF(FREQUENCY('A1'!$K$30:$L$79,'A1'!$K$30:$L$79)>0,1)))>(B112+1),(B112+1),"")) ->  | D114: =IF(C114="","",SUM(IF('A1'!J$30:J$79="HOT",IF('A1'!K$30:K$79>=A113,IF('A1'!L$30:L$79<=A115,1*'A1'!H$30:H$79,0),0),0),IF('A1'!J$30:J$79="COLD",IF('A1'!K$30:K$79<=A115,IF('A1'!L$30:L$79>=A113,-1*'A1'!H$30:H$79,0),0),0))) ->  | I114: =E114 ->  | J114: =IF(A114="","",J$5+SUM(I$6:I113)) ->  | L114: =E114 ->  | M114: =IF(A114="","",IF(L114="▼",((M$5)+(SUM(L$6:L113))),(-(M$5+SUM(L$6:L113))))) -> 
A115: =IF(B114="","",(LARGE('A1'!$K$30:$L$79,(1+SUM(COUNTIF('A1'!$K$30:$L$79,A$5:A114))-(B114*COUNTIF('A1'!$K$30:$L$79,A$6)))))) ->  | B115: =IF(B113="","",IF((SUM(IF(FREQUENCY('A1'!$K$30:$L$79,'A1'!$K$30:$L$79)>0,1)))>(B113+1),(B113+1),"")) ->  | D115: =IF(C115="","",SUM(IF('A1'!J$30:J$79="HOT",IF('A1'!K$30:K$79>=A114,IF('A1'!L$30:L$79<=A116,1*'A1'!H$30:H$79,0),0),0),IF('A1'!J$30:J$79="COLD",IF('A1'!K$30:K$79<=A116,IF('A1'!L$30:L$79>=A114,-1*'A1'!H$30:H$79,0),0),0))) ->  | I115: =IF(A115="","","▼") ->  | J115: =IF(A115="","",J$5+SUM(I$6:I114)) ->  | L115: =IF(L114="","",IF((M$5+SUM(L$6:L114))>=0,"▼","▲")) ->  | M115: =IF(A115="","",IF(L115="▼",((M$5)+(SUM(L$6:L114))),(-(M$5+SUM(L$6:L114))))) -> 
A116: =IF(B115="","",(LARGE('A1'!$K$30:$L$79,(1+SUM(COUNTIF('A1'!$K$30:$L$79,A$5:A115))-(B115*COUNTIF('A1'!$K$30:$L$79,A$6)))))) ->  | B116: =IF(B114="","",IF((SUM(IF(FREQUENCY('A1'!$K$30:$L$79,'A1'!$K$30:$L$79)>0,1)))>(B114+1),(B114+1),"")) ->  | D116: =IF(C116="","",SUM(IF('A1'!J$30:J$79="HOT",IF('A1'!K$30:K$79>=A115,IF('A1'!L$30:L$79<=A117,1*'A1'!H$30:H$79,0),0),0),IF('A1'!J$30:J$79="COLD",IF('A1'!K$30:K$79<=A117,IF('A1'!L$30:L$79>=A115,-1*'A1'!H$30:H$79,0),0),0))) ->  | I116: =E116 ->  | J116: =IF(A116="","",J$5+SUM(I$6:I115)) ->  | L116: =E116 ->  | M116: =IF(A116="","",IF(L116="▼",((M$5)+(SUM(L$6:L115))),(-(M$5+SUM(L$6:L115))))) -> 
A117: =IF(B116="","",(LARGE('A1'!$K$30:$L$79,(1+SUM(COUNTIF('A1'!$K$30:$L$79,A$5:A116))-(B116*COUNTIF('A1'!$K$30:$L$79,A$6)))))) ->  | B117: =IF(B115="","",IF((SUM(IF(FREQUENCY('A1'!$K$30:$L$79,'A1'!$K$30:$L$79)>0,1)))>(B115+1),(B115+1),"")) ->  | D117: =IF(C117="","",SUM(IF('A1'!J$30:J$79="HOT",IF('A1'!K$30:K$79>=A116,IF('A1'!L$30:L$79<=A118,1*'A1'!H$30:H$79,0),0),0),IF('A1'!J$30:J$79="COLD",IF('A1'!K$30:K$79<=A118,IF('A1'!L$30:L$79>=A116,-1*'A1'!H$30:H$79,0),0),0))) ->  | I117: =IF(A117="","","▼") ->  | J117: =IF(A117="","",J$5+SUM(I$6:I116)) ->  | L117: =IF(L116="","",IF((M$5+SUM(L$6:L116))>=0,"▼","▲")) ->  | M117: =IF(A117="","",IF(L117="▼",((M$5)+(SUM(L$6:L116))),(-(M$5+SUM(L$6:L116))))) -> 
A118: =IF(B117="","",(LARGE('A1'!$K$30:$L$79,(1+SUM(COUNTIF('A1'!$K$30:$L$79,A$5:A117))-(B117*COUNTIF('A1'!$K$30:$L$79,A$6)))))) ->  | B118: =IF(B116="","",IF((SUM(IF(FREQUENCY('A1'!$K$30:$L$79,'A1'!$K$30:$L$79)>0,1)))>(B116+1),(B116+1),"")) ->  | D118: =IF(C118="","",SUM(IF('A1'!J$30:J$79="HOT",IF('A1'!K$30:K$79>=A117,IF('A1'!L$30:L$79<=A119,1*'A1'!H$30:H$79,0),0),0),IF('A1'!J$30:J$79="COLD",IF('A1'!K$30:K$79<=A119,IF('A1'!L$30:L$79>=A117,-1*'A1'!H$30:H$79,0),0),0))) ->  | I118: =E118 ->  | J118: =IF(A118="","",J$5+SUM(I$6:I117)) ->  | L118: =E118 ->  | M118: =IF(A118="","",IF(L118="▼",((M$5)+(SUM(L$6:L117))),(-(M$5+SUM(L$6:L117))))) -> 
A119: =IF(B118="","",(LARGE('A1'!$K$30:$L$79,(1+SUM(COUNTIF('A1'!$K$30:$L$79,A$5:A118))-(B118*COUNTIF('A1'!$K$30:$L$79,A$6)))))) ->  | B119: =IF(B117="","",IF((SUM(IF(FREQUENCY('A1'!$K$30:$L$79,'A1'!$K$30:$L$79)>0,1)))>(B117+1),(B117+1),"")) ->  | D119: =IF(C119="","",SUM(IF('A1'!J$30:J$79="HOT",IF('A1'!K$30:K$79>=A118,IF('A1'!L$30:L$79<=A120,1*'A1'!H$30:H$79,0),0),0),IF('A1'!J$30:J$79="COLD",IF('A1'!K$30:K$79<=A120,IF('A1'!L$30:L$79>=A118,-1*'A1'!H$30:H$79,0),0),0))) ->  | I119: =IF(A119="","","▼") ->  | J119: =IF(A119="","",J$5+SUM(I$6:I118)) ->  | L119: =IF(L118="","",IF((M$5+SUM(L$6:L118))>=0,"▼","▲")) ->  | M119: =IF(A119="","",IF(L119="▼",((M$5)+(SUM(L$6:L118))),(-(M$5+SUM(L$6:L118))))) -> 
A120: =IF(B119="","",(LARGE('A1'!$K$30:$L$79,(1+SUM(COUNTIF('A1'!$K$30:$L$79,A$5:A119))-(B119*COUNTIF('A1'!$K$30:$L$79,A$6)))))) ->  | B120: =IF(B118="","",IF((SUM(IF(FREQUENCY('A1'!$K$30:$L$79,'A1'!$K$30:$L$79)>0,1)))>(B118+1),(B118+1),"")) ->  | D120: =IF(C120="","",SUM(IF('A1'!J$30:J$79="HOT",IF('A1'!K$30:K$79>=A119,IF('A1'!L$30:L$79<=A121,1*'A1'!H$30:H$79,0),0),0),IF('A1'!J$30:J$79="COLD",IF('A1'!K$30:K$79<=A121,IF('A1'!L$30:L$79>=A119,-1*'A1'!H$30:H$79,0),0),0))) ->  | I120: =E120 ->  | J120: =IF(A120="","",J$5+SUM(I$6:I119)) ->  | L120: =E120 ->  | M120: =IF(A120="","",IF(L120="▼",((M$5)+(SUM(L$6:L119))),(-(M$5+SUM(L$6:L119))))) -> 
A121: =IF(B120="","",(LARGE('A1'!$K$30:$L$79,(1+SUM(COUNTIF('A1'!$K$30:$L$79,A$5:A120))-(B120*COUNTIF('A1'!$K$30:$L$79,A$6)))))) ->  | B121: =IF(B119="","",IF((SUM(IF(FREQUENCY('A1'!$K$30:$L$79,'A1'!$K$30:$L$79)>0,1)))>(B119+1),(B119+1),"")) ->  | D121: =IF(C121="","",SUM(IF('A1'!J$30:J$79="HOT",IF('A1'!K$30:K$79>=A120,IF('A1'!L$30:L$79<=A122,1*'A1'!H$30:H$79,0),0),0),IF('A1'!J$30:J$79="COLD",IF('A1'!K$30:K$79<=A122,IF('A1'!L$30:L$79>=A120,-1*'A1'!H$30:H$79,0),0),0))) ->  | I121: =IF(A121="","","▼") ->  | J121: =IF(A121="","",J$5+SUM(I$6:I120)) ->  | L121: =IF(L120="","",IF((M$5+SUM(L$6:L120))>=0,"▼","▲")) ->  | M121: =IF(A121="","",IF(L121="▼",((M$5)+(SUM(L$6:L120))),(-(M$5+SUM(L$6:L120))))) -> 
A122: =IF(B121="","",(LARGE('A1'!$K$30:$L$79,(1+SUM(COUNTIF('A1'!$K$30:$L$79,A$5:A121))-(B121*COUNTIF('A1'!$K$30:$L$79,A$6)))))) ->  | B122: =IF(B120="","",IF((SUM(IF(FREQUENCY('A1'!$K$30:$L$79,'A1'!$K$30:$L$79)>0,1)))>(B120+1),(B120+1),"")) ->  | D122: =IF(C122="","",SUM(IF('A1'!J$30:J$79="HOT",IF('A1'!K$30:K$79>=A121,IF('A1'!L$30:L$79<=A123,1*'A1'!H$30:H$79,0),0),0),IF('A1'!J$30:J$79="COLD",IF('A1'!K$30:K$79<=A123,IF('A1'!L$30:L$79>=A121,-1*'A1'!H$30:H$79,0),0),0))) ->  | I122: =E122 ->  | J122: =IF(A122="","",J$5+SUM(I$6:I121)) ->  | L122: =E122 ->  | M122: =IF(A122="","",IF(L122="▼",((M$5)+(SUM(L$6:L121))),(-(M$5+SUM(L$6:L121))))) -> 
A123: =IF(B122="","",(LARGE('A1'!$K$30:$L$79,(1+SUM(COUNTIF('A1'!$K$30:$L$79,A$5:A122))-(B122*COUNTIF('A1'!$K$30:$L$79,A$6)))))) ->  | B123: =IF(B121="","",IF((SUM(IF(FREQUENCY('A1'!$K$30:$L$79,'A1'!$K$30:$L$79)>0,1)))>(B121+1),(B121+1),"")) ->  | D123: =IF(C123="","",SUM(IF('A1'!J$30:J$79="HOT",IF('A1'!K$30:K$79>=A122,IF('A1'!L$30:L$79<=A124,1*'A1'!H$30:H$79,0),0),0),IF('A1'!J$30:J$79="COLD",IF('A1'!K$30:K$79<=A124,IF('A1'!L$30:L$79>=A122,-1*'A1'!H$30:H$79,0),0),0))) ->  | I123: =IF(A123="","","▼") ->  | J123: =IF(A123="","",J$5+SUM(I$6:I122)) ->  | L123: =IF(L122="","",IF((M$5+SUM(L$6:L122))>=0,"▼","▲")) ->  | M123: =IF(A123="","",IF(L123="▼",((M$5)+(SUM(L$6:L122))),(-(M$5+SUM(L$6:L122))))) -> 
A124: =IF(B123="","",(LARGE('A1'!$K$30:$L$79,(1+SUM(COUNTIF('A1'!$K$30:$L$79,A$5:A123))-(B123*COUNTIF('A1'!$K$30:$L$79,A$6)))))) ->  | B124: =IF(B122="","",IF((SUM(IF(FREQUENCY('A1'!$K$30:$L$79,'A1'!$K$30:$L$79)>0,1)))>(B122+1),(B122+1),"")) ->  | D124: =IF(C124="","",SUM(IF('A1'!J$30:J$79="HOT",IF('A1'!K$30:K$79>=A123,IF('A1'!L$30:L$79<=A125,1*'A1'!H$30:H$79,0),0),0),IF('A1'!J$30:J$79="COLD",IF('A1'!K$30:K$79<=A125,IF('A1'!L$30:L$79>=A123,-1*'A1'!H$30:H$79,0),0),0))) ->  | I124: =E124 ->  | J124: =IF(A124="","",J$5+SUM(I$6:I123)) ->  | L124: =E124 ->  | M124: =IF(A124="","",IF(L124="▼",((M$5)+(SUM(L$6:L123))),(-(M$5+SUM(L$6:L123))))) -> 
A125: =IF(B124="","",(LARGE('A1'!$K$30:$L$79,(1+SUM(COUNTIF('A1'!$K$30:$L$79,A$5:A124))-(B124*COUNTIF('A1'!$K$30:$L$79,A$6)))))) ->  | B125: =IF(B123="","",IF((SUM(IF(FREQUENCY('A1'!$K$30:$L$79,'A1'!$K$30:$L$79)>0,1)))>(B123+1),(B123+1),"")) ->  | D125: =IF(C125="","",SUM(IF('A1'!J$30:J$79="HOT",IF('A1'!K$30:K$79>=A124,IF('A1'!L$30:L$79<=A126,1*'A1'!H$30:H$79,0),0),0),IF('A1'!J$30:J$79="COLD",IF('A1'!K$30:K$79<=A126,IF('A1'!L$30:L$79>=A124,-1*'A1'!H$30:H$79,0),0),0))) ->  | I125: =IF(A125="","","▼") ->  | J125: =IF(A125="","",J$5+SUM(I$6:I124)) ->  | L125: =IF(L124="","",IF((M$5+SUM(L$6:L124))>=0,"▼","▲")) ->  | M125: =IF(A125="","",IF(L125="▼",((M$5)+(SUM(L$6:L124))),(-(M$5+SUM(L$6:L124))))) -> 
A126: =IF(B125="","",(LARGE('A1'!$K$30:$L$79,(1+SUM(COUNTIF('A1'!$K$30:$L$79,A$5:A125))-(B125*COUNTIF('A1'!$K$30:$L$79,A$6)))))) ->  | B126: =IF(B124="","",IF((SUM(IF(FREQUENCY('A1'!$K$30:$L$79,'A1'!$K$30:$L$79)>0,1)))>(B124+1),(B124+1),"")) ->  | D126: =IF(C126="","",SUM(IF('A1'!J$30:J$79="HOT",IF('A1'!K$30:K$79>=A125,IF('A1'!L$30:L$79<=A127,1*'A1'!H$30:H$79,0),0),0),IF('A1'!J$30:J$79="COLD",IF('A1'!K$30:K$79<=A127,IF('A1'!L$30:L$79>=A125,-1*'A1'!H$30:H$79,0),0),0))) ->  | I126: =E126 ->  | J126: =IF(A126="","",J$5+SUM(I$6:I125)) ->  | L126: =E126 ->  | M126: =IF(A126="","",IF(L126="▼",((M$5)+(SUM(L$6:L125))),(-(M$5+SUM(L$6:L125))))) -> 
A127: =IF(B126="","",(LARGE('A1'!$K$30:$L$79,(1+SUM(COUNTIF('A1'!$K$30:$L$79,A$5:A126))-(B126*COUNTIF('A1'!$K$30:$L$79,A$6)))))) ->  | B127: =IF(B125="","",IF((SUM(IF(FREQUENCY('A1'!$K$30:$L$79,'A1'!$K$30:$L$79)>0,1)))>(B125+1),(B125+1),"")) ->  | D127: =IF(C127="","",SUM(IF('A1'!J$30:J$79="HOT",IF('A1'!K$30:K$79>=A126,IF('A1'!L$30:L$79<=A128,1*'A1'!H$30:H$79,0),0),0),IF('A1'!J$30:J$79="COLD",IF('A1'!K$30:K$79<=A128,IF('A1'!L$30:L$79>=A126,-1*'A1'!H$30:H$79,0),0),0))) ->  | I127: =IF(A127="","","▼") ->  | J127: =IF(A127="","",J$5+SUM(I$6:I126)) ->  | L127: =IF(L126="","",IF((M$5+SUM(L$6:L126))>=0,"▼","▲")) ->  | M127: =IF(A127="","",IF(L127="▼",((M$5)+(SUM(L$6:L126))),(-(M$5+SUM(L$6:L126))))) -> 
A128: =IF(B127="","",(LARGE('A1'!$K$30:$L$79,(1+SUM(COUNTIF('A1'!$K$30:$L$79,A$5:A127))-(B127*COUNTIF('A1'!$K$30:$L$79,A$6)))))) ->  | B128: =IF(B126="","",IF((SUM(IF(FREQUENCY('A1'!$K$30:$L$79,'A1'!$K$30:$L$79)>0,1)))>(B126+1),(B126+1),"")) ->  | D128: =IF(C128="","",SUM(IF('A1'!J$30:J$79="HOT",IF('A1'!K$30:K$79>=A127,IF('A1'!L$30:L$79<=A129,1*'A1'!H$30:H$79,0),0),0),IF('A1'!J$30:J$79="COLD",IF('A1'!K$30:K$79<=A129,IF('A1'!L$30:L$79>=A127,-1*'A1'!H$30:H$79,0),0),0))) ->  | I128: =E128 ->  | J128: =IF(A128="","",J$5+SUM(I$6:I127)) ->  | L128: =E128 ->  | M128: =IF(A128="","",IF(L128="▼",((M$5)+(SUM(L$6:L127))),(-(M$5+SUM(L$6:L127))))) -> 
A129: =IF(B128="","",(LARGE('A1'!$K$30:$L$79,(1+SUM(COUNTIF('A1'!$K$30:$L$79,A$5:A128))-(B128*COUNTIF('A1'!$K$30:$L$79,A$6)))))) ->  | B129: =IF(B127="","",IF((SUM(IF(FREQUENCY('A1'!$K$30:$L$79,'A1'!$K$30:$L$79)>0,1)))>(B127+1),(B127+1),"")) ->  | D129: =IF(C129="","",SUM(IF('A1'!J$30:J$79="HOT",IF('A1'!K$30:K$79>=A128,IF('A1'!L$30:L$79<=A130,1*'A1'!H$30:H$79,0),0),0),IF('A1'!J$30:J$79="COLD",IF('A1'!K$30:K$79<=A130,IF('A1'!L$30:L$79>=A128,-1*'A1'!H$30:H$79,0),0),0))) ->  | I129: =IF(A129="","","▼") ->  | J129: =IF(A129="","",J$5+SUM(I$6:I128)) ->  | L129: =IF(L128="","",IF((M$5+SUM(L$6:L128))>=0,"▼","▲")) ->  | M129: =IF(A129="","",IF(L129="▼",((M$5)+(SUM(L$6:L128))),(-(M$5+SUM(L$6:L128))))) -> 
A130: =IF(B129="","",(LARGE('A1'!$K$30:$L$79,(1+SUM(COUNTIF('A1'!$K$30:$L$79,A$5:A129))-(B129*COUNTIF('A1'!$K$30:$L$79,A$6)))))) ->  | B130: =IF(B128="","",IF((SUM(IF(FREQUENCY('A1'!$K$30:$L$79,'A1'!$K$30:$L$79)>0,1)))>(B128+1),(B128+1),"")) ->  | D130: =IF(C130="","",SUM(IF('A1'!J$30:J$79="HOT",IF('A1'!K$30:K$79>=A129,IF('A1'!L$30:L$79<=A131,1*'A1'!H$30:H$79,0),0),0),IF('A1'!J$30:J$79="COLD",IF('A1'!K$30:K$79<=A131,IF('A1'!L$30:L$79>=A129,-1*'A1'!H$30:H$79,0),0),0))) ->  | I130: =E130 ->  | J130: =IF(A130="","",J$5+SUM(I$6:I129)) ->  | L130: =E130 ->  | M130: =IF(A130="","",IF(L130="▼",((M$5)+(SUM(L$6:L129))),(-(M$5+SUM(L$6:L129))))) -> 
A131: =IF(B130="","",(LARGE('A1'!$K$30:$L$79,(1+SUM(COUNTIF('A1'!$K$30:$L$79,A$5:A130))-(B130*COUNTIF('A1'!$K$30:$L$79,A$6)))))) ->  | B131: =IF(B129="","",IF((SUM(IF(FREQUENCY('A1'!$K$30:$L$79,'A1'!$K$30:$L$79)>0,1)))>(B129+1),(B129+1),"")) ->  | D131: =IF(C131="","",SUM(IF('A1'!J$30:J$79="HOT",IF('A1'!K$30:K$79>=A130,IF('A1'!L$30:L$79<=A132,1*'A1'!H$30:H$79,0),0),0),IF('A1'!J$30:J$79="COLD",IF('A1'!K$30:K$79<=A132,IF('A1'!L$30:L$79>=A130,-1*'A1'!H$30:H$79,0),0),0))) ->  | I131: =IF(A131="","","▼") ->  | J131: =IF(A131="","",J$5+SUM(I$6:I130)) ->  | L131: =IF(L130="","",IF((M$5+SUM(L$6:L130))>=0,"▼","▲")) ->  | M131: =IF(A131="","",IF(L131="▼",((M$5)+(SUM(L$6:L130))),(-(M$5+SUM(L$6:L130))))) -> 
A132: =IF(B131="","",(LARGE('A1'!$K$30:$L$79,(1+SUM(COUNTIF('A1'!$K$30:$L$79,A$5:A131))-(B131*COUNTIF('A1'!$K$30:$L$79,A$6)))))) ->  | B132: =IF(B130="","",IF((SUM(IF(FREQUENCY('A1'!$K$30:$L$79,'A1'!$K$30:$L$79)>0,1)))>(B130+1),(B130+1),"")) ->  | D132: =IF(C132="","",SUM(IF('A1'!J$30:J$79="HOT",IF('A1'!K$30:K$79>=A131,IF('A1'!L$30:L$79<=A133,1*'A1'!H$30:H$79,0),0),0),IF('A1'!J$30:J$79="COLD",IF('A1'!K$30:K$79<=A133,IF('A1'!L$30:L$79>=A131,-1*'A1'!H$30:H$79,0),0),0))) ->  | I132: =E132 ->  | J132: =IF(A132="","",J$5+SUM(I$6:I131)) ->  | L132: =E132 ->  | M132: =IF(A132="","",IF(L132="▼",((M$5)+(SUM(L$6:L131))),(-(M$5+SUM(L$6:L131))))) -> 
A133: =IF(B132="","",(LARGE('A1'!$K$30:$L$79,(1+SUM(COUNTIF('A1'!$K$30:$L$79,A$5:A132))-(B132*COUNTIF('A1'!$K$30:$L$79,A$6)))))) ->  | B133: =IF(B131="","",IF((SUM(IF(FREQUENCY('A1'!$K$30:$L$79,'A1'!$K$30:$L$79)>0,1)))>(B131+1),(B131+1),"")) ->  | D133: =IF(C133="","",SUM(IF('A1'!J$30:J$79="HOT",IF('A1'!K$30:K$79>=A132,IF('A1'!L$30:L$79<=A134,1*'A1'!H$30:H$79,0),0),0),IF('A1'!J$30:J$79="COLD",IF('A1'!K$30:K$79<=A134,IF('A1'!L$30:L$79>=A132,-1*'A1'!H$30:H$79,0),0),0))) ->  | I133: =IF(A133="","","▼") ->  | J133: =IF(A133="","",J$5+SUM(I$6:I132)) ->  | L133: =IF(L132="","",IF((M$5+SUM(L$6:L132))>=0,"▼","▲")) ->  | M133: =IF(A133="","",IF(L133="▼",((M$5)+(SUM(L$6:L132))),(-(M$5+SUM(L$6:L132))))) -> 
A134: =IF(B133="","",(LARGE('A1'!$K$30:$L$79,(1+SUM(COUNTIF('A1'!$K$30:$L$79,A$5:A133))-(B133*COUNTIF('A1'!$K$30:$L$79,A$6)))))) ->  | B134: =IF(B132="","",IF((SUM(IF(FREQUENCY('A1'!$K$30:$L$79,'A1'!$K$30:$L$79)>0,1)))>(B132+1),(B132+1),"")) ->  | D134: =IF(C134="","",SUM(IF('A1'!J$30:J$79="HOT",IF('A1'!K$30:K$79>=A133,IF('A1'!L$30:L$79<=A135,1*'A1'!H$30:H$79,0),0),0),IF('A1'!J$30:J$79="COLD",IF('A1'!K$30:K$79<=A135,IF('A1'!L$30:L$79>=A133,-1*'A1'!H$30:H$79,0),0),0))) ->  | I134: =E134 ->  | J134: =IF(A134="","",J$5+SUM(I$6:I133)) ->  | L134: =E134 ->  | M134: =IF(A134="","",IF(L134="▼",((M$5)+(SUM(L$6:L133))),(-(M$5+SUM(L$6:L133))))) -> 
A135: =IF(B134="","",(LARGE('A1'!$K$30:$L$79,(1+SUM(COUNTIF('A1'!$K$30:$L$79,A$5:A134))-(B134*COUNTIF('A1'!$K$30:$L$79,A$6)))))) ->  | B135: =IF(B133="","",IF((SUM(IF(FREQUENCY('A1'!$K$30:$L$79,'A1'!$K$30:$L$79)>0,1)))>(B133+1),(B133+1),"")) ->  | D135: =IF(C135="","",SUM(IF('A1'!J$30:J$79="HOT",IF('A1'!K$30:K$79>=A134,IF('A1'!L$30:L$79<=A136,1*'A1'!H$30:H$79,0),0),0),IF('A1'!J$30:J$79="COLD",IF('A1'!K$30:K$79<=A136,IF('A1'!L$30:L$79>=A134,-1*'A1'!H$30:H$79,0),0),0))) ->  | F135: =IF(E135="","",IF(E135<1,"demand","surplus")) ->  | I135: =IF(A135="","","▼") ->  | J135: =IF(A135="","",J$5+SUM(I$6:I134)) ->  | L135: =IF(L134="","",IF((M$5+SUM(L$6:L134))>=0,"▼","▲")) ->  | M135: =IF(A135="","",IF(L135="▼",((M$5)+(SUM(L$6:L134))),(-(M$5+SUM(L$6:L134))))) -> 
A136: =IF(B135="","",(LARGE('A1'!$K$30:$L$79,(1+SUM(COUNTIF('A1'!$K$30:$L$79,A$5:A135))-(B135*COUNTIF('A1'!$K$30:$L$79,A$6)))))) ->  | B136: =IF(B134="","",IF((SUM(IF(FREQUENCY('A1'!$K$30:$L$79,'A1'!$K$30:$L$79)>0,1)))>(B134+1),(B134+1),"")) ->  | D136: =IF(C136="","",SUM(IF('A1'!J$30:J$79="HOT",IF('A1'!K$30:K$79>=A135,IF('A1'!L$30:L$79<=A137,1*'A1'!H$30:H$79,0),0),0),IF('A1'!J$30:J$79="COLD",IF('A1'!K$30:K$79<=A137,IF('A1'!L$30:L$79>=A135,-1*'A1'!H$30:H$79,0),0),0))) ->  | I136: =E136 ->  | J136: =IF(A136="","",J$5+SUM(I$6:I135)) ->  | L136: =E136 ->  | M136: =IF(A136="","",IF(L136="▼",((M$5)+(SUM(L$6:L135))),(-(M$5+SUM(L$6:L135))))) -> 
A137: =IF(B136="","",(LARGE('A1'!$K$30:$L$79,(1+SUM(COUNTIF('A1'!$K$30:$L$79,A$5:A136))-(B136*COUNTIF('A1'!$K$30:$L$79,A$6)))))) ->  | B137: =IF(B135="","",IF((SUM(IF(FREQUENCY('A1'!$K$30:$L$79,'A1'!$K$30:$L$79)>0,1)))>(B135+1),(B135+1),"")) ->  | D137: =IF(C137="","",SUM(IF('A1'!J$30:J$79="HOT",IF('A1'!K$30:K$79>=A136,IF('A1'!L$30:L$79<=A138,1*'A1'!H$30:H$79,0),0),0),IF('A1'!J$30:J$79="COLD",IF('A1'!K$30:K$79<=A138,IF('A1'!L$30:L$79>=A136,-1*'A1'!H$30:H$79,0),0),0))) ->  | I137: =IF(A137="","","▼") ->  | J137: =IF(A137="","",J$5+SUM(I$6:I136)) ->  | L137: =IF(L136="","",IF((M$5+SUM(L$6:L136))>=0,"▼","▲")) ->  | M137: =IF(A137="","",IF(L137="▼",((M$5)+(SUM(L$6:L136))),(-(M$5+SUM(L$6:L136))))) -> 
A138: =IF(B137="","",(LARGE('A1'!$K$30:$L$79,(1+SUM(COUNTIF('A1'!$K$30:$L$79,A$5:A137))-(B137*COUNTIF('A1'!$K$30:$L$79,A$6)))))) ->  | B138: =IF(B136="","",IF((SUM(IF(FREQUENCY('A1'!$K$30:$L$79,'A1'!$K$30:$L$79)>0,1)))>(B136+1),(B136+1),"")) ->  | D138: =IF(C138="","",SUM(IF('A1'!J$30:J$79="HOT",IF('A1'!K$30:K$79>=A137,IF('A1'!L$30:L$79<=A139,1*'A1'!H$30:H$79,0),0),0),IF('A1'!J$30:J$79="COLD",IF('A1'!K$30:K$79<=A139,IF('A1'!L$30:L$79>=A137,-1*'A1'!H$30:H$79,0),0),0))) ->  | I138: =E138 ->  | J138: =IF(A138="","",J$5+SUM(I$6:I137)) ->  | L138: =E138 ->  | M138: =IF(A138="","",IF(L138="▼",((M$5)+(SUM(L$6:L137))),(-(M$5+SUM(L$6:L137))))) -> 
A139: =IF(B138="","",(LARGE('A1'!$K$30:$L$79,(1+SUM(COUNTIF('A1'!$K$30:$L$79,A$5:A138))-(B138*COUNTIF('A1'!$K$30:$L$79,A$6)))))) ->  | B139: =IF(B137="","",IF((SUM(IF(FREQUENCY('A1'!$K$30:$L$79,'A1'!$K$30:$L$79)>0,1)))>(B137+1),(B137+1),"")) ->  | D139: =IF(C139="","",SUM(IF('A1'!J$30:J$79="HOT",IF('A1'!K$30:K$79>=A138,IF('A1'!L$30:L$79<=A140,1*'A1'!H$30:H$79,0),0),0),IF('A1'!J$30:J$79="COLD",IF('A1'!K$30:K$79<=A140,IF('A1'!L$30:L$79>=A138,-1*'A1'!H$30:H$79,0),0),0))) ->  | I139: =IF(A139="","","▼") ->  | J139: =IF(A139="","",J$5+SUM(I$6:I138)) ->  | L139: =IF(L138="","",IF((M$5+SUM(L$6:L138))>=0,"▼","▲")) ->  | M139: =IF(A139="","",IF(L139="▼",((M$5)+(SUM(L$6:L138))),(-(M$5+SUM(L$6:L138))))) -> 
A140: =IF(B139="","",(LARGE('A1'!$K$30:$L$79,(1+SUM(COUNTIF('A1'!$K$30:$L$79,A$5:A139))-(B139*COUNTIF('A1'!$K$30:$L$79,A$6)))))) ->  | B140: =IF(B138="","",IF((SUM(IF(FREQUENCY('A1'!$K$30:$L$79,'A1'!$K$30:$L$79)>0,1)))>(B138+1),(B138+1),"")) ->  | D140: =IF(C140="","",SUM(IF('A1'!J$30:J$79="HOT",IF('A1'!K$30:K$79>=A139,IF('A1'!L$30:L$79<=A141,1*'A1'!H$30:H$79,0),0),0),IF('A1'!J$30:J$79="COLD",IF('A1'!K$30:K$79<=A141,IF('A1'!L$30:L$79>=A139,-1*'A1'!H$30:H$79,0),0),0))) ->  | I140: =E140 ->  | J140: =IF(A140="","",J$5+SUM(I$6:I139)) ->  | L140: =E140 ->  | M140: =IF(A140="","",IF(L140="▼",((M$5)+(SUM(L$6:L139))),(-(M$5+SUM(L$6:L139))))) -> 
A141: =IF(B140="","",(LARGE('A1'!$K$30:$L$79,(1+SUM(COUNTIF('A1'!$K$30:$L$79,A$5:A140))-(B140*COUNTIF('A1'!$K$30:$L$79,A$6)))))) ->  | B141: =IF(B139="","",IF((SUM(IF(FREQUENCY('A1'!$K$30:$L$79,'A1'!$K$30:$L$79)>0,1)))>(B139+1),(B139+1),"")) ->  | D141: =IF(C141="","",SUM(IF('A1'!J$30:J$79="HOT",IF('A1'!K$30:K$79>=A140,IF('A1'!L$30:L$79<=A142,1*'A1'!H$30:H$79,0),0),0),IF('A1'!J$30:J$79="COLD",IF('A1'!K$30:K$79<=A142,IF('A1'!L$30:L$79>=A140,-1*'A1'!H$30:H$79,0),0),0))) ->  | I141: =IF(A141="","","▼") ->  | J141: =IF(A141="","",J$5+SUM(I$6:I140)) ->  | L141: =IF(L140="","",IF((M$5+SUM(L$6:L140))>=0,"▼","▲")) ->  | M141: =IF(A141="","",IF(L141="▼",((M$5)+(SUM(L$6:L140))),(-(M$5+SUM(L$6:L140))))) -> 
A142: =IF(B141="","",(LARGE('A1'!$K$30:$L$79,(1+SUM(COUNTIF('A1'!$K$30:$L$79,A$5:A141))-(B141*COUNTIF('A1'!$K$30:$L$79,A$6)))))) ->  | B142: =IF(B140="","",IF((SUM(IF(FREQUENCY('A1'!$K$30:$L$79,'A1'!$K$30:$L$79)>0,1)))>(B140+1),(B140+1),"")) ->  | D142: =IF(C142="","",SUM(IF('A1'!J$30:J$79="HOT",IF('A1'!K$30:K$79>=A141,IF('A1'!L$30:L$79<=A143,1*'A1'!H$30:H$79,0),0),0),IF('A1'!J$30:J$79="COLD",IF('A1'!K$30:K$79<=A143,IF('A1'!L$30:L$79>=A141,-1*'A1'!H$30:H$79,0),0),0))) ->  | I142: =E142 ->  | J142: =IF(A142="","",J$5+SUM(I$6:I141)) ->  | L142: =E142 ->  | M142: =IF(A142="","",IF(L142="▼",((M$5)+(SUM(L$6:L141))),(-(M$5+SUM(L$6:L141))))) -> 
A143: =IF(B142="","",(LARGE('A1'!$K$30:$L$79,(1+SUM(COUNTIF('A1'!$K$30:$L$79,A$5:A142))-(B142*COUNTIF('A1'!$K$30:$L$79,A$6)))))) ->  | B143: =IF(B141="","",IF((SUM(IF(FREQUENCY('A1'!$K$30:$L$79,'A1'!$K$30:$L$79)>0,1)))>(B141+1),(B141+1),"")) ->  | D143: =IF(C143="","",SUM(IF('A1'!J$30:J$79="HOT",IF('A1'!K$30:K$79>=A142,IF('A1'!L$30:L$79<=A144,1*'A1'!H$30:H$79,0),0),0),IF('A1'!J$30:J$79="COLD",IF('A1'!K$30:K$79<=A144,IF('A1'!L$30:L$79>=A142,-1*'A1'!H$30:H$79,0),0),0))) ->  | E143: =IF(D143="","",D143*C143) ->  | I143: =IF(A143="","","▼") ->  | J143: =IF(A143="","",J$5+SUM(I$6:I142)) ->  | L143: =IF(L142="","",IF((M$5+SUM(L$6:L142))>=0,"▼","▲")) ->  | M143: =IF(A143="","",IF(L143="▼",((M$5)+(SUM(L$6:L142))),(-(M$5+SUM(L$6:L142))))) -> 
A144: =IF(B143="","",(LARGE('A1'!$K$30:$L$79,(1+SUM(COUNTIF('A1'!$K$30:$L$79,A$5:A143))-(B143*COUNTIF('A1'!$K$30:$L$79,A$6)))))) ->  | B144: =IF(B142="","",IF((SUM(IF(FREQUENCY('A1'!$K$30:$L$79,'A1'!$K$30:$L$79)>0,1)))>(B142+1),(B142+1),"")) ->  | D144: =IF(C144="","",SUM(IF('A1'!J$30:J$79="HOT",IF('A1'!K$30:K$79>=A143,IF('A1'!L$30:L$79<=A145,1*'A1'!H$30:H$79,0),0),0),IF('A1'!J$30:J$79="COLD",IF('A1'!K$30:K$79<=A145,IF('A1'!L$30:L$79>=A143,-1*'A1'!H$30:H$79,0),0),0))) ->  | I144: =E144 ->  | J144: =IF(A144="","",J$5+SUM(I$6:I143)) ->  | L144: =E144 ->  | M144: =IF(A144="","",IF(L144="▼",((M$5)+(SUM(L$6:L143))),(-(M$5+SUM(L$6:L143))))) -> 
A145: =IF(B144="","",(LARGE('A1'!$K$30:$L$79,(1+SUM(COUNTIF('A1'!$K$30:$L$79,A$5:A144))-(B144*COUNTIF('A1'!$K$30:$L$79,A$6)))))) ->  | B145: =IF(B143="","",IF((SUM(IF(FREQUENCY('A1'!$K$30:$L$79,'A1'!$K$30:$L$79)>0,1)))>(B143+1),(B143+1),"")) ->  | D145: =IF(C145="","",SUM(IF('A1'!J$30:J$79="HOT",IF('A1'!K$30:K$79>=A144,IF('A1'!L$30:L$79<=A146,1*'A1'!H$30:H$79,0),0),0),IF('A1'!J$30:J$79="COLD",IF('A1'!K$30:K$79<=A146,IF('A1'!L$30:L$79>=A144,-1*'A1'!H$30:H$79,0),0),0))) ->  | I145: =IF(A145="","","▼") ->  | J145: =IF(A145="","",J$5+SUM(I$6:I144)) ->  | L145: =IF(L144="","",IF((M$5+SUM(L$6:L144))>=0,"▼","▲")) ->  | M145: =IF(A145="","",IF(L145="▼",((M$5)+(SUM(L$6:L144))),(-(M$5+SUM(L$6:L144))))) -> 
A146: =IF(B145="","",(LARGE('A1'!$K$30:$L$79,(1+SUM(COUNTIF('A1'!$K$30:$L$79,A$5:A145))-(B145*COUNTIF('A1'!$K$30:$L$79,A$6)))))) ->  | B146: =IF(B144="","",IF((SUM(IF(FREQUENCY('A1'!$K$30:$L$79,'A1'!$K$30:$L$79)>0,1)))>(B144+1),(B144+1),"")) ->  | D146: =IF(C146="","",SUM(IF('A1'!J$30:J$79="HOT",IF('A1'!K$30:K$79>=A145,IF('A1'!L$30:L$79<=A147,1*'A1'!H$30:H$79,0),0),0),IF('A1'!J$30:J$79="COLD",IF('A1'!K$30:K$79<=A147,IF('A1'!L$30:L$79>=A145,-1*'A1'!H$30:H$79,0),0),0))) ->  | I146: =E146 ->  | J146: =IF(A146="","",J$5+SUM(I$6:I145)) ->  | L146: =E146 ->  | M146: =IF(A146="","",IF(L146="▼",((M$5)+(SUM(L$6:L145))),(-(M$5+SUM(L$6:L145))))) -> 
A147: =IF(B146="","",(LARGE('A1'!$K$30:$L$79,(1+SUM(COUNTIF('A1'!$K$30:$L$79,A$5:A146))-(B146*COUNTIF('A1'!$K$30:$L$79,A$6)))))) ->  | B147: =IF(B145="","",IF((SUM(IF(FREQUENCY('A1'!$K$30:$L$79,'A1'!$K$30:$L$79)>0,1)))>(B145+1),(B145+1),"")) ->  | D147: =IF(C147="","",SUM(IF('A1'!J$30:J$79="HOT",IF('A1'!K$30:K$79>=A146,IF('A1'!L$30:L$79<=A148,1*'A1'!H$30:H$79,0),0),0),IF('A1'!J$30:J$79="COLD",IF('A1'!K$30:K$79<=A148,IF('A1'!L$30:L$79>=A146,-1*'A1'!H$30:H$79,0),0),0))) ->  | I147: =IF(A147="","","▼") ->  | J147: =IF(A147="","",J$5+SUM(I$6:I146)) ->  | L147: =IF(L146="","",IF((M$5+SUM(L$6:L146))>=0,"▼","▲")) ->  | M147: =IF(A147="","",IF(L147="▼",((M$5)+(SUM(L$6:L146))),(-(M$5+SUM(L$6:L146))))) -> 
A148: =IF(B147="","",(LARGE('A1'!$K$30:$L$79,(1+SUM(COUNTIF('A1'!$K$30:$L$79,A$5:A147))-(B147*COUNTIF('A1'!$K$30:$L$79,A$6)))))) ->  | B148: =IF(B146="","",IF((SUM(IF(FREQUENCY('A1'!$K$30:$L$79,'A1'!$K$30:$L$79)>0,1)))>(B146+1),(B146+1),"")) ->  | D148: =IF(C148="","",SUM(IF('A1'!J$30:J$79="HOT",IF('A1'!K$30:K$79>=A147,IF('A1'!L$30:L$79<=A149,1*'A1'!H$30:H$79,0),0),0),IF('A1'!J$30:J$79="COLD",IF('A1'!K$30:K$79<=A149,IF('A1'!L$30:L$79>=A147,-1*'A1'!H$30:H$79,0),0),0))) ->  | I148: =E148 ->  | J148: =IF(A148="","",J$5+SUM(I$6:I147)) ->  | L148: =E148 ->  | M148: =IF(A148="","",IF(L148="▼",((M$5)+(SUM(L$6:L147))),(-(M$5+SUM(L$6:L147))))) -> 
A149: =IF(B148="","",(LARGE('A1'!$K$30:$L$79,(1+SUM(COUNTIF('A1'!$K$30:$L$79,A$5:A148))-(B148*COUNTIF('A1'!$K$30:$L$79,A$6)))))) ->  | B149: =IF(B147="","",IF((SUM(IF(FREQUENCY('A1'!$K$30:$L$79,'A1'!$K$30:$L$79)>0,1)))>(B147+1),(B147+1),"")) ->  | D149: =IF(C149="","",SUM(IF('A1'!J$30:J$79="HOT",IF('A1'!K$30:K$79>=A148,IF('A1'!L$30:L$79<=A150,1*'A1'!H$30:H$79,0),0),0),IF('A1'!J$30:J$79="COLD",IF('A1'!K$30:K$79<=A150,IF('A1'!L$30:L$79>=A148,-1*'A1'!H$30:H$79,0),0),0))) ->  | I149: =IF(A149="","","▼") ->  | J149: =IF(A149="","",J$5+SUM(I$6:I148)) ->  | L149: =IF(L148="","",IF((M$5+SUM(L$6:L148))>=0,"▼","▲")) ->  | M149: =IF(A149="","",IF(L149="▼",((M$5)+(SUM(L$6:L148))),(-(M$5+SUM(L$6:L148))))) -> 
A150: =IF(B149="","",(LARGE('A1'!$K$30:$L$79,(1+SUM(COUNTIF('A1'!$K$30:$L$79,A$5:A149))-(B149*COUNTIF('A1'!$K$30:$L$79,A$6)))))) ->  | B150: =IF(B148="","",IF((SUM(IF(FREQUENCY('A1'!$K$30:$L$79,'A1'!$K$30:$L$79)>0,1)))>(B148+1),(B148+1),"")) ->  | D150: =IF(C150="","",SUM(IF('A1'!J$30:J$79="HOT",IF('A1'!K$30:K$79>=A149,IF('A1'!L$30:L$79<=A151,1*'A1'!H$30:H$79,0),0),0),IF('A1'!J$30:J$79="COLD",IF('A1'!K$30:K$79<=A151,IF('A1'!L$30:L$79>=A149,-1*'A1'!H$30:H$79,0),0),0))) ->  | I150: =E150 ->  | J150: =IF(A150="","",J$5+SUM(I$6:I149)) ->  | L150: =E150 ->  | M150: =IF(A150="","",IF(L150="▼",((M$5)+(SUM(L$6:L149))),(-(M$5+SUM(L$6:L149))))) -> 
A151: =IF(B150="","",(LARGE('A1'!$K$30:$L$79,(1+SUM(COUNTIF('A1'!$K$30:$L$79,A$5:A150))-(B150*COUNTIF('A1'!$K$30:$L$79,A$6)))))) ->  | B151: =IF(B149="","",IF((SUM(IF(FREQUENCY('A1'!$K$30:$L$79,'A1'!$K$30:$L$79)>0,1)))>(B149+1),(B149+1),"")) ->  | D151: =IF(C151="","",SUM(IF('A1'!J$30:J$79="HOT",IF('A1'!K$30:K$79>=A150,IF('A1'!L$30:L$79<=A152,1*'A1'!H$30:H$79,0),0),0),IF('A1'!J$30:J$79="COLD",IF('A1'!K$30:K$79<=A152,IF('A1'!L$30:L$79>=A150,-1*'A1'!H$30:H$79,0),0),0))) ->  | I151: =IF(A151="","","▼") ->  | J151: =IF(A151="","",J$5+SUM(I$6:I150)) ->  | L151: =IF(L150="","",IF((M$5+SUM(L$6:L150))>=0,"▼","▲")) ->  | M151: =IF(A151="","",IF(L151="▼",((M$5)+(SUM(L$6:L150))),(-(M$5+SUM(L$6:L150))))) -> 
A152: =IF(B151="","",(LARGE('A1'!$K$30:$L$79,(1+SUM(COUNTIF('A1'!$K$30:$L$79,A$5:A151))-(B151*COUNTIF('A1'!$K$30:$L$79,A$6)))))) ->  | B152: =IF(B150="","",IF((SUM(IF(FREQUENCY('A1'!$K$30:$L$79,'A1'!$K$30:$L$79)>0,1)))>(B150+1),(B150+1),"")) ->  | D152: =IF(C152="","",SUM(IF('A1'!J$30:J$79="HOT",IF('A1'!K$30:K$79>=A151,IF('A1'!L$30:L$79<=A153,1*'A1'!H$30:H$79,0),0),0),IF('A1'!J$30:J$79="COLD",IF('A1'!K$30:K$79<=A153,IF('A1'!L$30:L$79>=A151,-1*'A1'!H$30:H$79,0),0),0))) ->  | I152: =E152 ->  | J152: =IF(A152="","",J$5+SUM(I$6:I151)) ->  | L152: =E152 ->  | M152: =IF(A152="","",IF(L152="▼",((M$5)+(SUM(L$6:L151))),(-(M$5+SUM(L$6:L151))))) -> 
A153: =IF(B152="","",(LARGE('A1'!$K$30:$L$79,(1+SUM(COUNTIF('A1'!$K$30:$L$79,A$5:A152))-(B152*COUNTIF('A1'!$K$30:$L$79,A$6)))))) ->  | B153: =IF(B151="","",IF((SUM(IF(FREQUENCY('A1'!$K$30:$L$79,'A1'!$K$30:$L$79)>0,1)))>(B151+1),(B151+1),"")) ->  | D153: =IF(C153="","",SUM(IF('A1'!J$30:J$79="HOT",IF('A1'!K$30:K$79>=A152,IF('A1'!L$30:L$79<=A154,1*'A1'!H$30:H$79,0),0),0),IF('A1'!J$30:J$79="COLD",IF('A1'!K$30:K$79<=A154,IF('A1'!L$30:L$79>=A152,-1*'A1'!H$30:H$79,0),0),0))) ->  | I153: =IF(A153="","","▼") ->  | J153: =IF(A153="","",J$5+SUM(I$6:I152)) ->  | L153: =IF(L152="","",IF((M$5+SUM(L$6:L152))>=0,"▼","▲")) ->  | M153: =IF(A153="","",IF(L153="▼",((M$5)+(SUM(L$6:L152))),(-(M$5+SUM(L$6:L152))))) -> 
A154: =IF(B153="","",(LARGE('A1'!$K$30:$L$79,(1+SUM(COUNTIF('A1'!$K$30:$L$79,A$5:A153))-(B153*COUNTIF('A1'!$K$30:$L$79,A$6)))))) ->  | B154: =IF(B152="","",IF((SUM(IF(FREQUENCY('A1'!$K$30:$L$79,'A1'!$K$30:$L$79)>0,1)))>(B152+1),(B152+1),"")) ->  | D154: =IF(C154="","",SUM(IF('A1'!J$30:J$79="HOT",IF('A1'!K$30:K$79>=A153,IF('A1'!L$30:L$79<=A155,1*'A1'!H$30:H$79,0),0),0),IF('A1'!J$30:J$79="COLD",IF('A1'!K$30:K$79<=A155,IF('A1'!L$30:L$79>=A153,-1*'A1'!H$30:H$79,0),0),0))) ->  | I154: =E154 ->  | J154: =IF(A154="","",J$5+SUM(I$6:I153)) ->  | L154: =E154 ->  | M154: =IF(A154="","",IF(L154="▼",((M$5)+(SUM(L$6:L153))),(-(M$5+SUM(L$6:L153))))) -> 
A155: =IF(B154="","",(LARGE('A1'!$K$30:$L$79,(1+SUM(COUNTIF('A1'!$K$30:$L$79,A$5:A154))-(B154*COUNTIF('A1'!$K$30:$L$79,A$6)))))) ->  | B155: =IF(B153="","",IF((SUM(IF(FREQUENCY('A1'!$K$30:$L$79,'A1'!$K$30:$L$79)>0,1)))>(B153+1),(B153+1),"")) ->  | D155: =IF(C155="","",SUM(IF('A1'!J$30:J$79="HOT",IF('A1'!K$30:K$79>=A154,IF('A1'!L$30:L$79<=A156,1*'A1'!H$30:H$79,0),0),0),IF('A1'!J$30:J$79="COLD",IF('A1'!K$30:K$79<=A156,IF('A1'!L$30:L$79>=A154,-1*'A1'!H$30:H$79,0),0),0))) ->  | I155: =IF(A155="","","▼") ->  | J155: =IF(A155="","",J$5+SUM(I$6:I154)) ->  | L155: =IF(L154="","",IF((M$5+SUM(L$6:L154))>=0,"▼","▲")) ->  | M155: =IF(A155="","",IF(L155="▼",((M$5)+(SUM(L$6:L154))),(-(M$5+SUM(L$6:L154))))) -> 
A156: =IF(B155="","",(LARGE('A1'!$K$30:$L$79,(1+SUM(COUNTIF('A1'!$K$30:$L$79,A$5:A155))-(B155*COUNTIF('A1'!$K$30:$L$79,A$6)))))) ->  | B156: =IF(B154="","",IF((SUM(IF(FREQUENCY('A1'!$K$30:$L$79,'A1'!$K$30:$L$79)>0,1)))>(B154+1),(B154+1),"")) ->  | D156: =IF(C156="","",SUM(IF('A1'!J$30:J$79="HOT",IF('A1'!K$30:K$79>=A155,IF('A1'!L$30:L$79<=A157,1*'A1'!H$30:H$79,0),0),0),IF('A1'!J$30:J$79="COLD",IF('A1'!K$30:K$79<=A157,IF('A1'!L$30:L$79>=A155,-1*'A1'!H$30:H$79,0),0),0))) ->  | I156: =E156 ->  | J156: =IF(A156="","",J$5+SUM(I$6:I155)) ->  | L156: =E156 ->  | M156: =IF(A156="","",IF(L156="▼",((M$5)+(SUM(L$6:L155))),(-(M$5+SUM(L$6:L155))))) -> 
A157: =IF(B156="","",(LARGE('A1'!$K$30:$L$79,(1+SUM(COUNTIF('A1'!$K$30:$L$79,A$5:A156))-(B156*COUNTIF('A1'!$K$30:$L$79,A$6)))))) ->  | B157: =IF(B155="","",IF((SUM(IF(FREQUENCY('A1'!$K$30:$L$79,'A1'!$K$30:$L$79)>0,1)))>(B155+1),(B155+1),"")) ->  | D157: =IF(C157="","",SUM(IF('A1'!J$30:J$79="HOT",IF('A1'!K$30:K$79>=A156,IF('A1'!L$30:L$79<=A158,1*'A1'!H$30:H$79,0),0),0),IF('A1'!J$30:J$79="COLD",IF('A1'!K$30:K$79<=A158,IF('A1'!L$30:L$79>=A156,-1*'A1'!H$30:H$79,0),0),0))) ->  | I157: =IF(A157="","","▼") ->  | J157: =IF(A157="","",J$5+SUM(I$6:I156)) ->  | L157: =IF(L156="","",IF((M$5+SUM(L$6:L156))>=0,"▼","▲")) ->  | M157: =IF(A157="","",IF(L157="▼",((M$5)+(SUM(L$6:L156))),(-(M$5+SUM(L$6:L156))))) -> 
A158: =IF(B157="","",(LARGE('A1'!$K$30:$L$79,(1+SUM(COUNTIF('A1'!$K$30:$L$79,A$5:A157))-(B157*COUNTIF('A1'!$K$30:$L$79,A$6)))))) ->  | B158: =IF(B156="","",IF((SUM(IF(FREQUENCY('A1'!$K$30:$L$79,'A1'!$K$30:$L$79)>0,1)))>(B156+1),(B156+1),"")) ->  | D158: =IF(C158="","",SUM(IF('A1'!J$30:J$79="HOT",IF('A1'!K$30:K$79>=A157,IF('A1'!L$30:L$79<=A159,1*'A1'!H$30:H$79,0),0),0),IF('A1'!J$30:J$79="COLD",IF('A1'!K$30:K$79<=A159,IF('A1'!L$30:L$79>=A157,-1*'A1'!H$30:H$79,0),0),0))) ->  | I158: =E158 ->  | J158: =IF(A158="","",J$5+SUM(I$6:I157)) ->  | L158: =E158 ->  | M158: =IF(A158="","",IF(L158="▼",((M$5)+(SUM(L$6:L157))),(-(M$5+SUM(L$6:L157))))) -> 
A159: =IF(B158="","",(LARGE('A1'!$K$30:$L$79,(1+SUM(COUNTIF('A1'!$K$30:$L$79,A$5:A158))-(B158*COUNTIF('A1'!$K$30:$L$79,A$6)))))) ->  | B159: =IF(B157="","",IF((SUM(IF(FREQUENCY('A1'!$K$30:$L$79,'A1'!$K$30:$L$79)>0,1)))>(B157+1),(B157+1),"")) ->  | D159: =IF(C159="","",SUM(IF('A1'!J$30:J$79="HOT",IF('A1'!K$30:K$79>=A158,IF('A1'!L$30:L$79<=A160,1*'A1'!H$30:H$79,0),0),0),IF('A1'!J$30:J$79="COLD",IF('A1'!K$30:K$79<=A160,IF('A1'!L$30:L$79>=A158,-1*'A1'!H$30:H$79,0),0),0))) ->  | I159: =IF(A159="","","▼") ->  | J159: =IF(A159="","",J$5+SUM(I$6:I158)) ->  | L159: =IF(L158="","",IF((M$5+SUM(L$6:L158))>=0,"▼","▲")) ->  | M159: =IF(A159="","",IF(L159="▼",((M$5)+(SUM(L$6:L158))),(-(M$5+SUM(L$6:L158))))) -> 
A160: =IF(B159="","",(LARGE('A1'!$K$30:$L$79,(1+SUM(COUNTIF('A1'!$K$30:$L$79,A$5:A159))-(B159*COUNTIF('A1'!$K$30:$L$79,A$6)))))) ->  | B160: =IF(B158="","",IF((SUM(IF(FREQUENCY('A1'!$K$30:$L$79,'A1'!$K$30:$L$79)>0,1)))>(B158+1),(B158+1),"")) ->  | D160: =IF(C160="","",SUM(IF('A1'!J$30:J$79="HOT",IF('A1'!K$30:K$79>=A159,IF('A1'!L$30:L$79<=A161,1*'A1'!H$30:H$79,0),0),0),IF('A1'!J$30:J$79="COLD",IF('A1'!K$30:K$79<=A161,IF('A1'!L$30:L$79>=A159,-1*'A1'!H$30:H$79,0),0),0))) ->  | I160: =E160 ->  | J160: =IF(A160="","",J$5+SUM(I$6:I159)) ->  | L160: =E160 ->  | M160: =IF(A160="","",IF(L160="▼",((M$5)+(SUM(L$6:L159))),(-(M$5+SUM(L$6:L159))))) -> 
A161: =IF(B160="","",(LARGE('A1'!$K$30:$L$79,(1+SUM(COUNTIF('A1'!$K$30:$L$79,A$5:A160))-(B160*COUNTIF('A1'!$K$30:$L$79,A$6)))))) ->  | B161: =IF(B159="","",IF((SUM(IF(FREQUENCY('A1'!$K$30:$L$79,'A1'!$K$30:$L$79)>0,1)))>(B159+1),(B159+1),"")) ->  | D161: =IF(C161="","",SUM(IF('A1'!J$30:J$79="HOT",IF('A1'!K$30:K$79>=A160,IF('A1'!L$30:L$79<=A162,1*'A1'!H$30:H$79,0),0),0),IF('A1'!J$30:J$79="COLD",IF('A1'!K$30:K$79<=A162,IF('A1'!L$30:L$79>=A160,-1*'A1'!H$30:H$79,0),0),0))) ->  | I161: =IF(A161="","","▼") ->  | J161: =IF(A161="","",J$5+SUM(I$6:I160)) ->  | L161: =IF(L160="","",IF((M$5+SUM(L$6:L160))>=0,"▼","▲")) ->  | M161: =IF(A161="","",IF(L161="▼",((M$5)+(SUM(L$6:L160))),(-(M$5+SUM(L$6:L160))))) -> 
A162: =IF(B161="","",(LARGE('A1'!$K$30:$L$79,(1+SUM(COUNTIF('A1'!$K$30:$L$79,A$5:A161))-(B161*COUNTIF('A1'!$K$30:$L$79,A$6)))))) ->  | B162: =IF(B160="","",IF((SUM(IF(FREQUENCY('A1'!$K$30:$L$79,'A1'!$K$30:$L$79)>0,1)))>(B160+1),(B160+1),"")) ->  | D162: =IF(C162="","",SUM(IF('A1'!J$30:J$79="HOT",IF('A1'!K$30:K$79>=A161,IF('A1'!L$30:L$79<=A163,1*'A1'!H$30:H$79,0),0),0),IF('A1'!J$30:J$79="COLD",IF('A1'!K$30:K$79<=A163,IF('A1'!L$30:L$79>=A161,-1*'A1'!H$30:H$79,0),0),0))) ->  | I162: =E162 ->  | J162: =IF(A162="","",J$5+SUM(I$6:I161)) ->  | L162: =E162 ->  | M162: =IF(A162="","",IF(L162="▼",((M$5)+(SUM(L$6:L161))),(-(M$5+SUM(L$6:L161))))) -> 
A163: =IF(B162="","",(LARGE('A1'!$K$30:$L$79,(1+SUM(COUNTIF('A1'!$K$30:$L$79,A$5:A162))-(B162*COUNTIF('A1'!$K$30:$L$79,A$6)))))) ->  | B163: =IF(B161="","",IF((SUM(IF(FREQUENCY('A1'!$K$30:$L$79,'A1'!$K$30:$L$79)>0,1)))>(B161+1),(B161+1),"")) ->  | D163: =IF(C163="","",SUM(IF('A1'!J$30:J$79="HOT",IF('A1'!K$30:K$79>=A162,IF('A1'!L$30:L$79<=A164,1*'A1'!H$30:H$79,0),0),0),IF('A1'!J$30:J$79="COLD",IF('A1'!K$30:K$79<=A164,IF('A1'!L$30:L$79>=A162,-1*'A1'!H$30:H$79,0),0),0))) ->  | I163: =IF(A163="","","▼") ->  | J163: =IF(A163="","",J$5+SUM(I$6:I162)) ->  | L163: =IF(L162="","",IF((M$5+SUM(L$6:L162))>=0,"▼","▲")) ->  | M163: =IF(A163="","",IF(L163="▼",((M$5)+(SUM(L$6:L162))),(-(M$5+SUM(L$6:L162))))) -> 
A164: =IF(B163="","",(LARGE('A1'!$K$30:$L$79,(1+SUM(COUNTIF('A1'!$K$30:$L$79,A$5:A163))-(B163*COUNTIF('A1'!$K$30:$L$79,A$6)))))) ->  | B164: =IF(B162="","",IF((SUM(IF(FREQUENCY('A1'!$K$30:$L$79,'A1'!$K$30:$L$79)>0,1)))>(B162+1),(B162+1),"")) ->  | D164: =IF(C164="","",SUM(IF('A1'!J$30:J$79="HOT",IF('A1'!K$30:K$79>=A163,IF('A1'!L$30:L$79<=A165,1*'A1'!H$30:H$79,0),0),0),IF('A1'!J$30:J$79="COLD",IF('A1'!K$30:K$79<=A165,IF('A1'!L$30:L$79>=A163,-1*'A1'!H$30:H$79,0),0),0))) ->  | I164: =E164 ->  | J164: =IF(A164="","",J$5+SUM(I$6:I163)) ->  | L164: =E164 ->  | M164: =IF(A164="","",IF(L164="▼",((M$5)+(SUM(L$6:L163))),(-(M$5+SUM(L$6:L163))))) -> 
A165: =IF(B164="","",(LARGE('A1'!$K$30:$L$79,(1+SUM(COUNTIF('A1'!$K$30:$L$79,A$5:A164))-(B164*COUNTIF('A1'!$K$30:$L$79,A$6)))))) ->  | B165: =IF(B163="","",IF((SUM(IF(FREQUENCY('A1'!$K$30:$L$79,'A1'!$K$30:$L$79)>0,1)))>(B163+1),(B163+1),"")) ->  | D165: =IF(C165="","",SUM(IF('A1'!J$30:J$79="HOT",IF('A1'!K$30:K$79>=A164,IF('A1'!L$30:L$79<=A166,1*'A1'!H$30:H$79,0),0),0),IF('A1'!J$30:J$79="COLD",IF('A1'!K$30:K$79<=A166,IF('A1'!L$30:L$79>=A164,-1*'A1'!H$30:H$79,0),0),0))) ->  | I165: =IF(A165="","","▼") ->  | J165: =IF(A165="","",J$5+SUM(I$6:I164)) ->  | L165: =IF(L164="","",IF((M$5+SUM(L$6:L164))>=0,"▼","▲")) ->  | M165: =IF(A165="","",IF(L165="▼",((M$5)+(SUM(L$6:L164))),(-(M$5+SUM(L$6:L164))))) -> 
A166: =IF(B165="","",(LARGE('A1'!$K$30:$L$79,(1+SUM(COUNTIF('A1'!$K$30:$L$79,A$5:A165))-(B165*COUNTIF('A1'!$K$30:$L$79,A$6)))))) ->  | B166: =IF(B164="","",IF((SUM(IF(FREQUENCY('A1'!$K$30:$L$79,'A1'!$K$30:$L$79)>0,1)))>(B164+1),(B164+1),"")) ->  | D166: =IF(C166="","",SUM(IF('A1'!J$30:J$79="HOT",IF('A1'!K$30:K$79>=A165,IF('A1'!L$30:L$79<=A167,1*'A1'!H$30:H$79,0),0),0),IF('A1'!J$30:J$79="COLD",IF('A1'!K$30:K$79<=A167,IF('A1'!L$30:L$79>=A165,-1*'A1'!H$30:H$79,0),0),0))) ->  | I166: =E166 ->  | J166: =IF(A166="","",J$5+SUM(I$6:I165)) ->  | L166: =E166 ->  | M166: =IF(A166="","",IF(L166="▼",((M$5)+(SUM(L$6:L165))),(-(M$5+SUM(L$6:L165))))) -> 
A167: =IF(B166="","",(LARGE('A1'!$K$30:$L$79,(1+SUM(COUNTIF('A1'!$K$30:$L$79,A$5:A166))-(B166*COUNTIF('A1'!$K$30:$L$79,A$6)))))) ->  | B167: =IF(B165="","",IF((SUM(IF(FREQUENCY('A1'!$K$30:$L$79,'A1'!$K$30:$L$79)>0,1)))>(B165+1),(B165+1),"")) ->  | D167: =IF(C167="","",SUM(IF('A1'!J$30:J$79="HOT",IF('A1'!K$30:K$79>=A166,IF('A1'!L$30:L$79<=A168,1*'A1'!H$30:H$79,0),0),0),IF('A1'!J$30:J$79="COLD",IF('A1'!K$30:K$79<=A168,IF('A1'!L$30:L$79>=A166,-1*'A1'!H$30:H$79,0),0),0))) ->  | I167: =IF(A167="","","▼") ->  | J167: =IF(A167="","",J$5+SUM(I$6:I166)) ->  | L167: =IF(L166="","",IF((M$5+SUM(L$6:L166))>=0,"▼","▲")) ->  | M167: =IF(A167="","",IF(L167="▼",((M$5)+(SUM(L$6:L166))),(-(M$5+SUM(L$6:L166))))) -> 
A168: =IF(B167="","",(LARGE('A1'!$K$30:$L$79,(1+SUM(COUNTIF('A1'!$K$30:$L$79,A$5:A167))-(B167*COUNTIF('A1'!$K$30:$L$79,A$6)))))) ->  | B168: =IF(B166="","",IF((SUM(IF(FREQUENCY('A1'!$K$30:$L$79,'A1'!$K$30:$L$79)>0,1)))>(B166+1),(B166+1),"")) ->  | D168: =IF(C168="","",SUM(IF('A1'!J$30:J$79="HOT",IF('A1'!K$30:K$79>=A167,IF('A1'!L$30:L$79<=A169,1*'A1'!H$30:H$79,0),0),0),IF('A1'!J$30:J$79="COLD",IF('A1'!K$30:K$79<=A169,IF('A1'!L$30:L$79>=A167,-1*'A1'!H$30:H$79,0),0),0))) ->  | I168: =E168 ->  | J168: =IF(A168="","",J$5+SUM(I$6:I167)) ->  | L168: =E168 ->  | M168: =IF(A168="","",IF(L168="▼",((M$5)+(SUM(L$6:L167))),(-(M$5+SUM(L$6:L167))))) -> 
A169: =IF(B168="","",(LARGE('A1'!$K$30:$L$79,(1+SUM(COUNTIF('A1'!$K$30:$L$79,A$5:A168))-(B168*COUNTIF('A1'!$K$30:$L$79,A$6)))))) ->  | B169: =IF(B167="","",IF((SUM(IF(FREQUENCY('A1'!$K$30:$L$79,'A1'!$K$30:$L$79)>0,1)))>(B167+1),(B167+1),"")) ->  | D169: =IF(C169="","",SUM(IF('A1'!J$30:J$79="HOT",IF('A1'!K$30:K$79>=A168,IF('A1'!L$30:L$79<=A170,1*'A1'!H$30:H$79,0),0),0),IF('A1'!J$30:J$79="COLD",IF('A1'!K$30:K$79<=A170,IF('A1'!L$30:L$79>=A168,-1*'A1'!H$30:H$79,0),0),0))) ->  | I169: =IF(A169="","","▼") ->  | J169: =IF(A169="","",J$5+SUM(I$6:I168)) ->  | L169: =IF(L168="","",IF((M$5+SUM(L$6:L168))>=0,"▼","▲")) ->  | M169: =IF(A169="","",IF(L169="▼",((M$5)+(SUM(L$6:L168))),(-(M$5+SUM(L$6:L168))))) -> 
A170: =IF(B169="","",(LARGE('A1'!$K$30:$L$79,(1+SUM(COUNTIF('A1'!$K$30:$L$79,A$5:A169))-(B169*COUNTIF('A1'!$K$30:$L$79,A$6)))))) ->  | B170: =IF(B168="","",IF((SUM(IF(FREQUENCY('A1'!$K$30:$L$79,'A1'!$K$30:$L$79)>0,1)))>(B168+1),(B168+1),"")) ->  | D170: =IF(C170="","",SUM(IF('A1'!J$30:J$79="HOT",IF('A1'!K$30:K$79>=A169,IF('A1'!L$30:L$79<=A171,1*'A1'!H$30:H$79,0),0),0),IF('A1'!J$30:J$79="COLD",IF('A1'!K$30:K$79<=A171,IF('A1'!L$30:L$79>=A169,-1*'A1'!H$30:H$79,0),0),0))) ->  | I170: =E170 ->  | J170: =IF(A170="","",J$5+SUM(I$6:I169)) ->  | L170: =E170 ->  | M170: =IF(A170="","",IF(L170="▼",((M$5)+(SUM(L$6:L169))),(-(M$5+SUM(L$6:L169))))) -> 
A171: =IF(B170="","",(LARGE('A1'!$K$30:$L$79,(1+SUM(COUNTIF('A1'!$K$30:$L$79,A$5:A170))-(B170*COUNTIF('A1'!$K$30:$L$79,A$6)))))) ->  | B171: =IF(B169="","",IF((SUM(IF(FREQUENCY('A1'!$K$30:$L$79,'A1'!$K$30:$L$79)>0,1)))>(B169+1),(B169+1),"")) ->  | D171: =IF(C171="","",SUM(IF('A1'!J$30:J$79="HOT",IF('A1'!K$30:K$79>=A170,IF('A1'!L$30:L$79<=A172,1*'A1'!H$30:H$79,0),0),0),IF('A1'!J$30:J$79="COLD",IF('A1'!K$30:K$79<=A172,IF('A1'!L$30:L$79>=A170,-1*'A1'!H$30:H$79,0),0),0))) ->  | I171: =IF(A171="","","▼") ->  | J171: =IF(A171="","",J$5+SUM(I$6:I170)) ->  | L171: =IF(L170="","",IF((M$5+SUM(L$6:L170))>=0,"▼","▲")) ->  | M171: =IF(A171="","",IF(L171="▼",((M$5)+(SUM(L$6:L170))),(-(M$5+SUM(L$6:L170))))) -> 
A172: =IF(B171="","",(LARGE('A1'!$K$30:$L$79,(1+SUM(COUNTIF('A1'!$K$30:$L$79,A$5:A171))-(B171*COUNTIF('A1'!$K$30:$L$79,A$6)))))) ->  | B172: =IF(B170="","",IF((SUM(IF(FREQUENCY('A1'!$K$30:$L$79,'A1'!$K$30:$L$79)>0,1)))>(B170+1),(B170+1),"")) ->  | D172: =IF(C172="","",SUM(IF('A1'!J$30:J$79="HOT",IF('A1'!K$30:K$79>=A171,IF('A1'!L$30:L$79<=A173,1*'A1'!H$30:H$79,0),0),0),IF('A1'!J$30:J$79="COLD",IF('A1'!K$30:K$79<=A173,IF('A1'!L$30:L$79>=A171,-1*'A1'!H$30:H$79,0),0),0))) ->  | I172: =E172 ->  | J172: =IF(A172="","",J$5+SUM(I$6:I171)) ->  | L172: =E172 ->  | M172: =IF(A172="","",IF(L172="▼",((M$5)+(SUM(L$6:L171))),(-(M$5+SUM(L$6:L171))))) -> 
A173: =IF(B172="","",(LARGE('A1'!$K$30:$L$79,(1+SUM(COUNTIF('A1'!$K$30:$L$79,A$5:A172))-(B172*COUNTIF('A1'!$K$30:$L$79,A$6)))))) ->  | B173: =IF(B171="","",IF((SUM(IF(FREQUENCY('A1'!$K$30:$L$79,'A1'!$K$30:$L$79)>0,1)))>(B171+1),(B171+1),"")) ->  | D173: =IF(C173="","",SUM(IF('A1'!J$30:J$79="HOT",IF('A1'!K$30:K$79>=A172,IF('A1'!L$30:L$79<=A174,1*'A1'!H$30:H$79,0),0),0),IF('A1'!J$30:J$79="COLD",IF('A1'!K$30:K$79<=A174,IF('A1'!L$30:L$79>=A172,-1*'A1'!H$30:H$79,0),0),0))) ->  | I173: =IF(A173="","","▼") ->  | J173: =IF(A173="","",J$5+SUM(I$6:I172)) ->  | L173: =IF(L172="","",IF((M$5+SUM(L$6:L172))>=0,"▼","▲")) ->  | M173: =IF(A173="","",IF(L173="▼",((M$5)+(SUM(L$6:L172))),(-(M$5+SUM(L$6:L172))))) -> 
A174: =IF(B173="","",(LARGE('A1'!$K$30:$L$79,(1+SUM(COUNTIF('A1'!$K$30:$L$79,A$5:A173))-(B173*COUNTIF('A1'!$K$30:$L$79,A$6)))))) ->  | B174: =IF(B172="","",IF((SUM(IF(FREQUENCY('A1'!$K$30:$L$79,'A1'!$K$30:$L$79)>0,1)))>(B172+1),(B172+1),"")) ->  | D174: =IF(C174="","",SUM(IF('A1'!J$30:J$79="HOT",IF('A1'!K$30:K$79>=A173,IF('A1'!L$30:L$79<=A175,1*'A1'!H$30:H$79,0),0),0),IF('A1'!J$30:J$79="COLD",IF('A1'!K$30:K$79<=A175,IF('A1'!L$30:L$79>=A173,-1*'A1'!H$30:H$79,0),0),0))) ->  | I174: =E174 ->  | J174: =IF(A174="","",J$5+SUM(I$6:I173)) ->  | L174: =E174 ->  | M174: =IF(A174="","",IF(L174="▼",((M$5)+(SUM(L$6:L173))),(-(M$5+SUM(L$6:L173))))) -> 
A175: =IF(B174="","",(LARGE('A1'!$K$30:$L$79,(1+SUM(COUNTIF('A1'!$K$30:$L$79,A$5:A174))-(B174*COUNTIF('A1'!$K$30:$L$79,A$6)))))) ->  | B175: =IF(B173="","",IF((SUM(IF(FREQUENCY('A1'!$K$30:$L$79,'A1'!$K$30:$L$79)>0,1)))>(B173+1),(B173+1),"")) ->  | D175: =IF(C175="","",SUM(IF('A1'!J$30:J$79="HOT",IF('A1'!K$30:K$79>=A174,IF('A1'!L$30:L$79<=A176,1*'A1'!H$30:H$79,0),0),0),IF('A1'!J$30:J$79="COLD",IF('A1'!K$30:K$79<=A176,IF('A1'!L$30:L$79>=A174,-1*'A1'!H$30:H$79,0),0),0))) ->  | I175: =IF(A175="","","▼") ->  | J175: =IF(A175="","",J$5+SUM(I$6:I174)) ->  | L175: =IF(L174="","",IF((M$5+SUM(L$6:L174))>=0,"▼","▲")) ->  | M175: =IF(A175="","",IF(L175="▼",((M$5)+(SUM(L$6:L174))),(-(M$5+SUM(L$6:L174))))) -> 
A176: =IF(B175="","",(LARGE('A1'!$K$30:$L$79,(1+SUM(COUNTIF('A1'!$K$30:$L$79,A$5:A175))-(B175*COUNTIF('A1'!$K$30:$L$79,A$6)))))) ->  | B176: =IF(B174="","",IF((SUM(IF(FREQUENCY('A1'!$K$30:$L$79,'A1'!$K$30:$L$79)>0,1)))>(B174+1),(B174+1),"")) ->  | D176: =IF(C176="","",SUM(IF('A1'!J$30:J$79="HOT",IF('A1'!K$30:K$79>=A175,IF('A1'!L$30:L$79<=A177,1*'A1'!H$30:H$79,0),0),0),IF('A1'!J$30:J$79="COLD",IF('A1'!K$30:K$79<=A177,IF('A1'!L$30:L$79>=A175,-1*'A1'!H$30:H$79,0),0),0))) ->  | I176: =E176 ->  | J176: =IF(A176="","",J$5+SUM(I$6:I175)) ->  | L176: =E176 ->  | M176: =IF(A176="","",IF(L176="▼",((M$5)+(SUM(L$6:L175))),(-(M$5+SUM(L$6:L175))))) -> 
A177: =IF(B176="","",(LARGE('A1'!$K$30:$L$79,(1+SUM(COUNTIF('A1'!$K$30:$L$79,A$5:A176))-(B176*COUNTIF('A1'!$K$30:$L$79,A$6)))))) ->  | B177: =IF(B175="","",IF((SUM(IF(FREQUENCY('A1'!$K$30:$L$79,'A1'!$K$30:$L$79)>0,1)))>(B175+1),(B175+1),"")) ->  | D177: =IF(C177="","",SUM(IF('A1'!J$30:J$79="HOT",IF('A1'!K$30:K$79>=A176,IF('A1'!L$30:L$79<=A178,1*'A1'!H$30:H$79,0),0),0),IF('A1'!J$30:J$79="COLD",IF('A1'!K$30:K$79<=A178,IF('A1'!L$30:L$79>=A176,-1*'A1'!H$30:H$79,0),0),0))) ->  | I177: =IF(A177="","","▼") ->  | J177: =IF(A177="","",J$5+SUM(I$6:I176)) ->  | L177: =IF(L176="","",IF((M$5+SUM(L$6:L176))>=0,"▼","▲")) ->  | M177: =IF(A177="","",IF(L177="▼",((M$5)+(SUM(L$6:L176))),(-(M$5+SUM(L$6:L176))))) -> 
A178: =IF(B177="","",(LARGE('A1'!$K$30:$L$79,(1+SUM(COUNTIF('A1'!$K$30:$L$79,A$5:A177))-(B177*COUNTIF('A1'!$K$30:$L$79,A$6)))))) ->  | B178: =IF(B176="","",IF((SUM(IF(FREQUENCY('A1'!$K$30:$L$79,'A1'!$K$30:$L$79)>0,1)))>(B176+1),(B176+1),"")) ->  | D178: =IF(C178="","",SUM(IF('A1'!J$30:J$79="HOT",IF('A1'!K$30:K$79>=A177,IF('A1'!L$30:L$79<=A179,1*'A1'!H$30:H$79,0),0),0),IF('A1'!J$30:J$79="COLD",IF('A1'!K$30:K$79<=A179,IF('A1'!L$30:L$79>=A177,-1*'A1'!H$30:H$79,0),0),0))) ->  | I178: =E178 ->  | J178: =IF(A178="","",J$5+SUM(I$6:I177)) ->  | L178: =E178 ->  | M178: =IF(A178="","",IF(L178="▼",((M$5)+(SUM(L$6:L177))),(-(M$5+SUM(L$6:L177))))) -> 
A179: =IF(B178="","",(LARGE('A1'!$K$30:$L$79,(1+SUM(COUNTIF('A1'!$K$30:$L$79,A$5:A178))-(B178*COUNTIF('A1'!$K$30:$L$79,A$6)))))) ->  | B179: =IF(B177="","",IF((SUM(IF(FREQUENCY('A1'!$K$30:$L$79,'A1'!$K$30:$L$79)>0,1)))>(B177+1),(B177+1),"")) ->  | D179: =IF(C179="","",SUM(IF('A1'!J$30:J$79="HOT",IF('A1'!K$30:K$79>=A178,IF('A1'!L$30:L$79<=A180,1*'A1'!H$30:H$79,0),0),0),IF('A1'!J$30:J$79="COLD",IF('A1'!K$30:K$79<=A180,IF('A1'!L$30:L$79>=A178,-1*'A1'!H$30:H$79,0),0),0))) ->  | I179: =IF(A179="","","▼") ->  | J179: =IF(A179="","",J$5+SUM(I$6:I178)) ->  | L179: =IF(L178="","",IF((M$5+SUM(L$6:L178))>=0,"▼","▲")) ->  | M179: =IF(A179="","",IF(L179="▼",((M$5)+(SUM(L$6:L178))),(-(M$5+SUM(L$6:L178))))) -> 
A180: =IF(B179="","",(LARGE('A1'!$K$30:$L$79,(1+SUM(COUNTIF('A1'!$K$30:$L$79,A$5:A179))-(B179*COUNTIF('A1'!$K$30:$L$79,A$6)))))) ->  | B180: =IF(B178="","",IF((SUM(IF(FREQUENCY('A1'!$K$30:$L$79,'A1'!$K$30:$L$79)>0,1)))>(B178+1),(B178+1),"")) ->  | D180: =IF(C180="","",SUM(IF('A1'!J$30:J$79="HOT",IF('A1'!K$30:K$79>=A179,IF('A1'!L$30:L$79<=A181,1*'A1'!H$30:H$79,0),0),0),IF('A1'!J$30:J$79="COLD",IF('A1'!K$30:K$79<=A181,IF('A1'!L$30:L$79>=A179,-1*'A1'!H$30:H$79,0),0),0))) ->  | I180: =E180 ->  | J180: =IF(A180="","",J$5+SUM(I$6:I179)) ->  | L180: =E180 ->  | M180: =IF(A180="","",IF(L180="▼",((M$5)+(SUM(L$6:L179))),(-(M$5+SUM(L$6:L179))))) -> 
A181: =IF(B180="","",(LARGE('A1'!$K$30:$L$79,(1+SUM(COUNTIF('A1'!$K$30:$L$79,A$5:A180))-(B180*COUNTIF('A1'!$K$30:$L$79,A$6)))))) ->  | B181: =IF(B179="","",IF((SUM(IF(FREQUENCY('A1'!$K$30:$L$79,'A1'!$K$30:$L$79)>0,1)))>(B179+1),(B179+1),"")) ->  | D181: =IF(C181="","",SUM(IF('A1'!J$30:J$79="HOT",IF('A1'!K$30:K$79>=A180,IF('A1'!L$30:L$79<=A182,1*'A1'!H$30:H$79,0),0),0),IF('A1'!J$30:J$79="COLD",IF('A1'!K$30:K$79<=A182,IF('A1'!L$30:L$79>=A180,-1*'A1'!H$30:H$79,0),0),0))) ->  | I181: =IF(A181="","","▼") ->  | J181: =IF(A181="","",J$5+SUM(I$6:I180)) ->  | L181: =IF(L180="","",IF((M$5+SUM(L$6:L180))>=0,"▼","▲")) ->  | M181: =IF(A181="","",IF(L181="▼",((M$5)+(SUM(L$6:L180))),(-(M$5+SUM(L$6:L180))))) -> 
A182: =IF(B181="","",(LARGE('A1'!$K$30:$L$79,(1+SUM(COUNTIF('A1'!$K$30:$L$79,A$5:A181))-(B181*COUNTIF('A1'!$K$30:$L$79,A$6)))))) ->  | B182: =IF(B180="","",IF((SUM(IF(FREQUENCY('A1'!$K$30:$L$79,'A1'!$K$30:$L$79)>0,1)))>(B180+1),(B180+1),"")) ->  | D182: =IF(C182="","",SUM(IF('A1'!J$30:J$79="HOT",IF('A1'!K$30:K$79>=A181,IF('A1'!L$30:L$79<=A183,1*'A1'!H$30:H$79,0),0),0),IF('A1'!J$30:J$79="COLD",IF('A1'!K$30:K$79<=A183,IF('A1'!L$30:L$79>=A181,-1*'A1'!H$30:H$79,0),0),0))) ->  | I182: =E182 ->  | J182: =IF(A182="","",J$5+SUM(I$6:I181)) ->  | L182: =E182 ->  | M182: =IF(A182="","",IF(L182="▼",((M$5)+(SUM(L$6:L181))),(-(M$5+SUM(L$6:L181))))) -> 
A183: =IF(B182="","",(LARGE('A1'!$K$30:$L$79,(1+SUM(COUNTIF('A1'!$K$30:$L$79,A$5:A182))-(B182*COUNTIF('A1'!$K$30:$L$79,A$6)))))) ->  | B183: =IF(B181="","",IF((SUM(IF(FREQUENCY('A1'!$K$30:$L$79,'A1'!$K$30:$L$79)>0,1)))>(B181+1),(B181+1),"")) ->  | D183: =IF(C183="","",SUM(IF('A1'!J$30:J$79="HOT",IF('A1'!K$30:K$79>=A182,IF('A1'!L$30:L$79<=A184,1*'A1'!H$30:H$79,0),0),0),IF('A1'!J$30:J$79="COLD",IF('A1'!K$30:K$79<=A184,IF('A1'!L$30:L$79>=A182,-1*'A1'!H$30:H$79,0),0),0))) ->  | I183: =IF(A183="","","▼") ->  | J183: =IF(A183="","",J$5+SUM(I$6:I182)) ->  | L183: =IF(L182="","",IF((M$5+SUM(L$6:L182))>=0,"▼","▲")) ->  | M183: =IF(A183="","",IF(L183="▼",((M$5)+(SUM(L$6:L182))),(-(M$5+SUM(L$6:L182))))) -> 
A184: =IF(B183="","",(LARGE('A1'!$K$30:$L$79,(1+SUM(COUNTIF('A1'!$K$30:$L$79,A$5:A183))-(B183*COUNTIF('A1'!$K$30:$L$79,A$6)))))) ->  | B184: =IF(B182="","",IF((SUM(IF(FREQUENCY('A1'!$K$30:$L$79,'A1'!$K$30:$L$79)>0,1)))>(B182+1),(B182+1),"")) ->  | D184: =IF(C184="","",SUM(IF('A1'!J$30:J$79="HOT",IF('A1'!K$30:K$79>=A183,IF('A1'!L$30:L$79<=A185,1*'A1'!H$30:H$79,0),0),0),IF('A1'!J$30:J$79="COLD",IF('A1'!K$30:K$79<=A185,IF('A1'!L$30:L$79>=A183,-1*'A1'!H$30:H$79,0),0),0))) ->  | I184: =E184 ->  | J184: =IF(A184="","",J$5+SUM(I$6:I183)) ->  | L184: =E184 ->  | M184: =IF(A184="","",IF(L184="▼",((M$5)+(SUM(L$6:L183))),(-(M$5+SUM(L$6:L183))))) -> 
A185: =IF(B184="","",(LARGE('A1'!$K$30:$L$79,(1+SUM(COUNTIF('A1'!$K$30:$L$79,A$5:A184))-(B184*COUNTIF('A1'!$K$30:$L$79,A$6)))))) ->  | B185: =IF(B183="","",IF((SUM(IF(FREQUENCY('A1'!$K$30:$L$79,'A1'!$K$30:$L$79)>0,1)))>(B183+1),(B183+1),"")) ->  | D185: =IF(C185="","",SUM(IF('A1'!J$30:J$79="HOT",IF('A1'!K$30:K$79>=A184,IF('A1'!L$30:L$79<=A186,1*'A1'!H$30:H$79,0),0),0),IF('A1'!J$30:J$79="COLD",IF('A1'!K$30:K$79<=A186,IF('A1'!L$30:L$79>=A184,-1*'A1'!H$30:H$79,0),0),0))) ->  | I185: =IF(A185="","","▼") ->  | J185: =IF(A185="","",J$5+SUM(I$6:I184)) ->  | L185: =IF(L184="","",IF((M$5+SUM(L$6:L184))>=0,"▼","▲")) ->  | M185: =IF(A185="","",IF(L185="▼",((M$5)+(SUM(L$6:L184))),(-(M$5+SUM(L$6:L184))))) -> 
A186: =IF(B185="","",(LARGE('A1'!$K$30:$L$79,(1+SUM(COUNTIF('A1'!$K$30:$L$79,A$5:A185))-(B185*COUNTIF('A1'!$K$30:$L$79,A$6)))))) ->  | B186: =IF(B184="","",IF((SUM(IF(FREQUENCY('A1'!$K$30:$L$79,'A1'!$K$30:$L$79)>0,1)))>(B184+1),(B184+1),"")) ->  | D186: =IF(C186="","",SUM(IF('A1'!J$30:J$79="HOT",IF('A1'!K$30:K$79>=A185,IF('A1'!L$30:L$79<=A187,1*'A1'!H$30:H$79,0),0),0),IF('A1'!J$30:J$79="COLD",IF('A1'!K$30:K$79<=A187,IF('A1'!L$30:L$79>=A185,-1*'A1'!H$30:H$79,0),0),0))) ->  | I186: =E186 ->  | J186: =IF(A186="","",J$5+SUM(I$6:I185)) ->  | L186: =E186 ->  | M186: =IF(A186="","",IF(L186="▼",((M$5)+(SUM(L$6:L185))),(-(M$5+SUM(L$6:L185))))) -> 
A187: =IF(B186="","",(LARGE('A1'!$K$30:$L$79,(1+SUM(COUNTIF('A1'!$K$30:$L$79,A$5:A186))-(B186*COUNTIF('A1'!$K$30:$L$79,A$6)))))) ->  | B187: =IF(B185="","",IF((SUM(IF(FREQUENCY('A1'!$K$30:$L$79,'A1'!$K$30:$L$79)>0,1)))>(B185+1),(B185+1),"")) ->  | D187: =IF(C187="","",SUM(IF('A1'!J$30:J$79="HOT",IF('A1'!K$30:K$79>=A186,IF('A1'!L$30:L$79<=A188,1*'A1'!H$30:H$79,0),0),0),IF('A1'!J$30:J$79="COLD",IF('A1'!K$30:K$79<=A188,IF('A1'!L$30:L$79>=A186,-1*'A1'!H$30:H$79,0),0),0))) ->  | I187: =IF(A187="","","▼") ->  | J187: =IF(A187="","",J$5+SUM(I$6:I186)) ->  | L187: =IF(L186="","",IF((M$5+SUM(L$6:L186))>=0,"▼","▲")) ->  | M187: =IF(A187="","",IF(L187="▼",((M$5)+(SUM(L$6:L186))),(-(M$5+SUM(L$6:L186))))) -> 
A188: =IF(B187="","",(LARGE('A1'!$K$30:$L$79,(1+SUM(COUNTIF('A1'!$K$30:$L$79,A$5:A187))-(B187*COUNTIF('A1'!$K$30:$L$79,A$6)))))) ->  | B188: =IF(B186="","",IF((SUM(IF(FREQUENCY('A1'!$K$30:$L$79,'A1'!$K$30:$L$79)>0,1)))>(B186+1),(B186+1),"")) ->  | D188: =IF(C188="","",SUM(IF('A1'!J$30:J$79="HOT",IF('A1'!K$30:K$79>=A187,IF('A1'!L$30:L$79<=A189,1*'A1'!H$30:H$79,0),0),0),IF('A1'!J$30:J$79="COLD",IF('A1'!K$30:K$79<=A189,IF('A1'!L$30:L$79>=A187,-1*'A1'!H$30:H$79,0),0),0))) ->  | I188: =E188 ->  | J188: =IF(A188="","",J$5+SUM(I$6:I187)) ->  | L188: =E188 ->  | M188: =IF(A188="","",IF(L188="▼",((M$5)+(SUM(L$6:L187))),(-(M$5+SUM(L$6:L187))))) -> 
A189: =IF(B188="","",(LARGE('A1'!$K$30:$L$79,(1+SUM(COUNTIF('A1'!$K$30:$L$79,A$5:A188))-(B188*COUNTIF('A1'!$K$30:$L$79,A$6)))))) ->  | B189: =IF(B187="","",IF((SUM(IF(FREQUENCY('A1'!$K$30:$L$79,'A1'!$K$30:$L$79)>0,1)))>(B187+1),(B187+1),"")) ->  | D189: =IF(C189="","",SUM(IF('A1'!J$30:J$79="HOT",IF('A1'!K$30:K$79>=A188,IF('A1'!L$30:L$79<=A190,1*'A1'!H$30:H$79,0),0),0),IF('A1'!J$30:J$79="COLD",IF('A1'!K$30:K$79<=A190,IF('A1'!L$30:L$79>=A188,-1*'A1'!H$30:H$79,0),0),0))) ->  | I189: =IF(A189="","","▼") ->  | J189: =IF(A189="","",J$5+SUM(I$6:I188)) ->  | L189: =IF(L188="","",IF((M$5+SUM(L$6:L188))>=0,"▼","▲")) ->  | M189: =IF(A189="","",IF(L189="▼",((M$5)+(SUM(L$6:L188))),(-(M$5+SUM(L$6:L188))))) -> 
A190: =IF(B189="","",(LARGE('A1'!$K$30:$L$79,(1+SUM(COUNTIF('A1'!$K$30:$L$79,A$5:A189))-(B189*COUNTIF('A1'!$K$30:$L$79,A$6)))))) ->  | B190: =IF(B188="","",IF((SUM(IF(FREQUENCY('A1'!$K$30:$L$79,'A1'!$K$30:$L$79)>0,1)))>(B188+1),(B188+1),"")) ->  | D190: =IF(C190="","",SUM(IF('A1'!J$30:J$79="HOT",IF('A1'!K$30:K$79>=A189,IF('A1'!L$30:L$79<=A191,1*'A1'!H$30:H$79,0),0),0),IF('A1'!J$30:J$79="COLD",IF('A1'!K$30:K$79<=A191,IF('A1'!L$30:L$79>=A189,-1*'A1'!H$30:H$79,0),0),0))) ->  | I190: =E190 ->  | J190: =IF(A190="","",J$5+SUM(I$6:I189)) ->  | L190: =E190 ->  | M190: =IF(A190="","",IF(L190="▼",((M$5)+(SUM(L$6:L189))),(-(M$5+SUM(L$6:L189))))) -> 
A191: =IF(B190="","",(LARGE('A1'!$K$30:$L$79,(1+SUM(COUNTIF('A1'!$K$30:$L$79,A$5:A190))-(B190*COUNTIF('A1'!$K$30:$L$79,A$6)))))) ->  | B191: =IF(B189="","",IF((SUM(IF(FREQUENCY('A1'!$K$30:$L$79,'A1'!$K$30:$L$79)>0,1)))>(B189+1),(B189+1),"")) ->  | D191: =IF(C191="","",SUM(IF('A1'!J$30:J$79="HOT",IF('A1'!K$30:K$79>=A190,IF('A1'!L$30:L$79<=A192,1*'A1'!H$30:H$79,0),0),0),IF('A1'!J$30:J$79="COLD",IF('A1'!K$30:K$79<=A192,IF('A1'!L$30:L$79>=A190,-1*'A1'!H$30:H$79,0),0),0))) ->  | I191: =IF(A191="","","▼") ->  | J191: =IF(A191="","",J$5+SUM(I$6:I190)) ->  | L191: =IF(L190="","",IF((M$5+SUM(L$6:L190))>=0,"▼","▲")) ->  | M191: =IF(A191="","",IF(L191="▼",((M$5)+(SUM(L$6:L190))),(-(M$5+SUM(L$6:L190))))) -> 
A192: =IF(B191="","",(LARGE('A1'!$K$30:$L$79,(1+SUM(COUNTIF('A1'!$K$30:$L$79,A$5:A191))-(B191*COUNTIF('A1'!$K$30:$L$79,A$6)))))) ->  | B192: =IF(B190="","",IF((SUM(IF(FREQUENCY('A1'!$K$30:$L$79,'A1'!$K$30:$L$79)>0,1)))>(B190+1),(B190+1),"")) ->  | D192: =IF(C192="","",SUM(IF('A1'!J$30:J$79="HOT",IF('A1'!K$30:K$79>=A191,IF('A1'!L$30:L$79<=A193,1*'A1'!H$30:H$79,0),0),0),IF('A1'!J$30:J$79="COLD",IF('A1'!K$30:K$79<=A193,IF('A1'!L$30:L$79>=A191,-1*'A1'!H$30:H$79,0),0),0))) ->  | I192: =E192 ->  | J192: =IF(A192="","",J$5+SUM(I$6:I191)) ->  | L192: =E192 ->  | M192: =IF(A192="","",IF(L192="▼",((M$5)+(SUM(L$6:L191))),(-(M$5+SUM(L$6:L191))))) -> 
A193: =IF(B192="","",(LARGE('A1'!$K$30:$L$79,(1+SUM(COUNTIF('A1'!$K$30:$L$79,A$5:A192))-(B192*COUNTIF('A1'!$K$30:$L$79,A$6)))))) ->  | B193: =IF(B191="","",IF((SUM(IF(FREQUENCY('A1'!$K$30:$L$79,'A1'!$K$30:$L$79)>0,1)))>(B191+1),(B191+1),"")) ->  | D193: =IF(C193="","",SUM(IF('A1'!J$30:J$79="HOT",IF('A1'!K$30:K$79>=A192,IF('A1'!L$30:L$79<=A194,1*'A1'!H$30:H$79,0),0),0),IF('A1'!J$30:J$79="COLD",IF('A1'!K$30:K$79<=A194,IF('A1'!L$30:L$79>=A192,-1*'A1'!H$30:H$79,0),0),0))) ->  | I193: =IF(A193="","","▼") ->  | J193: =IF(A193="","",J$5+SUM(I$6:I192)) ->  | L193: =IF(L192="","",IF((M$5+SUM(L$6:L192))>=0,"▼","▲")) ->  | M193: =IF(A193="","",IF(L193="▼",((M$5)+(SUM(L$6:L192))),(-(M$5+SUM(L$6:L192))))) -> 
A194: =IF(B193="","",(LARGE('A1'!$K$30:$L$79,(1+SUM(COUNTIF('A1'!$K$30:$L$79,A$5:A193))-(B193*COUNTIF('A1'!$K$30:$L$79,A$6)))))) ->  | B194: =IF(B192="","",IF((SUM(IF(FREQUENCY('A1'!$K$30:$L$79,'A1'!$K$30:$L$79)>0,1)))>(B192+1),(B192+1),"")) ->  | D194: =IF(C194="","",SUM(IF('A1'!J$30:J$79="HOT",IF('A1'!K$30:K$79>=A193,IF('A1'!L$30:L$79<=A195,1*'A1'!H$30:H$79,0),0),0),IF('A1'!J$30:J$79="COLD",IF('A1'!K$30:K$79<=A195,IF('A1'!L$30:L$79>=A193,-1*'A1'!H$30:H$79,0),0),0))) ->  | I194: =E194 ->  | J194: =IF(A194="","",J$5+SUM(I$6:I193)) ->  | L194: =E194 ->  | M194: =IF(A194="","",IF(L194="▼",((M$5)+(SUM(L$6:L193))),(-(M$5+SUM(L$6:L193))))) -> 
A195: =IF(B194="","",(LARGE('A1'!$K$30:$L$79,(1+SUM(COUNTIF('A1'!$K$30:$L$79,A$5:A194))-(B194*COUNTIF('A1'!$K$30:$L$79,A$6)))))) ->  | B195: =IF(B193="","",IF((SUM(IF(FREQUENCY('A1'!$K$30:$L$79,'A1'!$K$30:$L$79)>0,1)))>(B193+1),(B193+1),"")) ->  | D195: =IF(C195="","",SUM(IF('A1'!J$30:J$79="HOT",IF('A1'!K$30:K$79>=A194,IF('A1'!L$30:L$79<=A196,1*'A1'!H$30:H$79,0),0),0),IF('A1'!J$30:J$79="COLD",IF('A1'!K$30:K$79<=A196,IF('A1'!L$30:L$79>=A194,-1*'A1'!H$30:H$79,0),0),0))) ->  | I195: =IF(A195="","","▼") ->  | J195: =IF(A195="","",J$5+SUM(I$6:I194)) ->  | L195: =IF(L194="","",IF((M$5+SUM(L$6:L194))>=0,"▼","▲")) ->  | M195: =IF(A195="","",IF(L195="▼",((M$5)+(SUM(L$6:L194))),(-(M$5+SUM(L$6:L194))))) -> 
A196: =IF(B195="","",(LARGE('A1'!$K$30:$L$79,(1+SUM(COUNTIF('A1'!$K$30:$L$79,A$5:A195))-(B195*COUNTIF('A1'!$K$30:$L$79,A$6)))))) ->  | B196: =IF(B194="","",IF((SUM(IF(FREQUENCY('A1'!$K$30:$L$79,'A1'!$K$30:$L$79)>0,1)))>(B194+1),(B194+1),"")) ->  | D196: =IF(C196="","",SUM(IF('A1'!J$30:J$79="HOT",IF('A1'!K$30:K$79>=A195,IF('A1'!L$30:L$79<=A197,1*'A1'!H$30:H$79,0),0),0),IF('A1'!J$30:J$79="COLD",IF('A1'!K$30:K$79<=A197,IF('A1'!L$30:L$79>=A195,-1*'A1'!H$30:H$79,0),0),0))) ->  | I196: =E196 ->  | J196: =IF(A196="","",J$5+SUM(I$6:I195)) ->  | L196: =E196 ->  | M196: =IF(A196="","",IF(L196="▼",((M$5)+(SUM(L$6:L195))),(-(M$5+SUM(L$6:L195))))) -> 
A197: =IF(B196="","",(LARGE('A1'!$K$30:$L$79,(1+SUM(COUNTIF('A1'!$K$30:$L$79,A$5:A196))-(B196*COUNTIF('A1'!$K$30:$L$79,A$6)))))) ->  | B197: =IF(B195="","",IF((SUM(IF(FREQUENCY('A1'!$K$30:$L$79,'A1'!$K$30:$L$79)>0,1)))>(B195+1),(B195+1),"")) ->  | D197: =IF(C197="","",SUM(IF('A1'!J$30:J$79="HOT",IF('A1'!K$30:K$79>=A196,IF('A1'!L$30:L$79<=A198,1*'A1'!H$30:H$79,0),0),0),IF('A1'!J$30:J$79="COLD",IF('A1'!K$30:K$79<=A198,IF('A1'!L$30:L$79>=A196,-1*'A1'!H$30:H$79,0),0),0))) ->  | I197: =IF(A197="","","▼") ->  | J197: =IF(A197="","",J$5+SUM(I$6:I196)) ->  | L197: =IF(L196="","",IF((M$5+SUM(L$6:L196))>=0,"▼","▲")) ->  | M197: =IF(A197="","",IF(L197="▼",((M$5)+(SUM(L$6:L196))),(-(M$5+SUM(L$6:L196))))) -> 
A198: =IF(B197="","",(LARGE('A1'!$K$30:$L$79,(1+SUM(COUNTIF('A1'!$K$30:$L$79,A$5:A197))-(B197*COUNTIF('A1'!$K$30:$L$79,A$6)))))) ->  | B198: =IF(B196="","",IF((SUM(IF(FREQUENCY('A1'!$K$30:$L$79,'A1'!$K$30:$L$79)>0,1)))>(B196+1),(B196+1),"")) ->  | D198: =IF(C198="","",SUM(IF('A1'!J$30:J$79="HOT",IF('A1'!K$30:K$79>=A197,IF('A1'!L$30:L$79<=A199,1*'A1'!H$30:H$79,0),0),0),IF('A1'!J$30:J$79="COLD",IF('A1'!K$30:K$79<=A199,IF('A1'!L$30:L$79>=A197,-1*'A1'!H$30:H$79,0),0),0))) ->  | I198: =E198 ->  | J198: =IF(A198="","",J$5+SUM(I$6:I197)) ->  | L198: =E198 ->  | M198: =IF(A198="","",IF(L198="▼",((M$5)+(SUM(L$6:L197))),(-(M$5+SUM(L$6:L197))))) -> 
A199: =IF(B198="","",(LARGE('A1'!$K$30:$L$79,(1+SUM(COUNTIF('A1'!$K$30:$L$79,A$5:A198))-(B198*COUNTIF('A1'!$K$30:$L$79,A$6)))))) ->  | B199: =IF(B197="","",IF((SUM(IF(FREQUENCY('A1'!$K$30:$L$79,'A1'!$K$30:$L$79)>0,1)))>(B197+1),(B197+1),"")) ->  | D199: =IF(C199="","",SUM(IF('A1'!J$30:J$79="HOT",IF('A1'!K$30:K$79>=A198,IF('A1'!L$30:L$79<=A200,1*'A1'!H$30:H$79,0),0),0),IF('A1'!J$30:J$79="COLD",IF('A1'!K$30:K$79<=A200,IF('A1'!L$30:L$79>=A198,-1*'A1'!H$30:H$79,0),0),0))) ->  | F199: =IF(E199="","",IF(E199<1,"demand","surplus")) ->  | I199: =IF(A199="","","▼") ->  | J199: =IF(A199="","",J$5+SUM(I$6:I198)) ->  | L199: =IF(L198="","",IF((M$5+SUM(L$6:L198))>=0,"▼","▲")) ->  | M199: =IF(A199="","",IF(L199="▼",((M$5)+(SUM(L$6:L198))),(-(M$5+SUM(L$6:L198))))) -> 
A200: =IF(B199="","",(LARGE('A1'!$K$30:$L$79,(1+SUM(COUNTIF('A1'!$K$30:$L$79,A$5:A199))-(B199*COUNTIF('A1'!$K$30:$L$79,A$6)))))) ->  | B200: =IF(B198="","",IF((SUM(IF(FREQUENCY('A1'!$K$30:$L$79,'A1'!$K$30:$L$79)>0,1)))>(B198+1),(B198+1),"")) ->  | D200: =IF(C200="","",SUM(IF('A1'!J$30:J$79="HOT",IF('A1'!K$30:K$79>=A199,IF('A1'!L$30:L$79<=A201,1*'A1'!H$30:H$79,0),0),0),IF('A1'!J$30:J$79="COLD",IF('A1'!K$30:K$79<=A201,IF('A1'!L$30:L$79>=A199,-1*'A1'!H$30:H$79,0),0),0))) ->  | F200: =IF(E200="","",IF(E200<1,"demand","surplus")) ->  | I200: =E200 ->  | J200: =IF(A200="","",J$5+SUM(I$6:I199)) ->  | L200: =E200 ->  | M200: =IF(A200="","",IF(L200="▼",((M$5)+(SUM(L$6:L199))),(-(M$5+SUM(L$6:L199))))) -> 
A201: =IF(B200="","",(LARGE('A1'!$K$30:$L$79,(1+SUM(COUNTIF('A1'!$K$30:$L$79,A$5:A200))-(B200*COUNTIF('A1'!$K$30:$L$79,A$6)))))) ->  | B201: =IF(B199="","",IF((SUM(IF(FREQUENCY('A1'!$K$30:$L$79,'A1'!$K$30:$L$79)>0,1)))>(B199+1),(B199+1),"")) ->  | D201: =IF(C201="","",SUM(IF('A1'!J$30:J$79="HOT",IF('A1'!K$30:K$79>=A200,IF('A1'!L$30:L$79<=A202,1*'A1'!H$30:H$79,0),0),0),IF('A1'!J$30:J$79="COLD",IF('A1'!K$30:K$79<=A202,IF('A1'!L$30:L$79>=A200,-1*'A1'!H$30:H$79,0),0),0))) ->  | F201: =IF(E201="","",IF(E201<1,"demand","surplus")) ->  | I201: =IF(A201="","","▼") ->  | J201: =IF(A201="","",J$5+SUM(I$6:I200)) ->  | L201: =IF(L200="","",IF((M$5+SUM(L$6:L200))>=0,"▼","▲")) ->  | M201: =IF(A201="","",IF(L201="▼",((M$5)+(SUM(L$6:L200))),(-(M$5+SUM(L$6:L200))))) -> 
... 2 more rows

Sheet CC
A30: =IF(INPUT!$F$12='A1'!$P$3,A31,IF(INPUT!$F$12='A1'!$P$4,A32,A33)) -> Heat Flow (kW) | B30: =IF(INPUT!$F$12='A1'!$P$5,B32,B31) -> Actual Temperature (°C)
A31: Heat Flow (kW) | B31: Actual Temperature (°C)
A32: Heat Flow(MJ/h) | B32: Actual Temperature (°F)
A33: Heat Flow (Mbtu(IT)/hr)

Sheet SCC
A30: =IF(INPUT!$F$12='A1'!$P$3,A31,IF(INPUT!$F$12='A1'!$P$4,A32,A33)) -> Heat Flow (kW) | B30: =IF(INPUT!$F$12='A1'!$P$5,B32,B31) -> Shifted Temperature (°C)
A31: Heat Flow (kW) | B31: Shifted Temperature (°C)
A32: Heat Flow(MJ/h) | B32: Shifted Temperature (°F)
A33: Heat Flow (Mbtu(IT)/hr)

Sheet GCC
A30: =IF(INPUT!$F$12='A1'!$P$3,A31,IF(INPUT!$F$12='A1'!$P$4,A32,A33)) -> Net Heat Flow (kW) | B30: =IF(INPUT!$F$12='A1'!$P$5,B32,B31) -> Shifted Temperature (°C)
A31: Net Heat Flow (kW) | B31: Shifted Temperature (°C)
A32: Net Heat Flow(MJ/h) | B32: Shifted Temperature (°F)
A33: Net Heat Flow (Mbtu(IT)/hr)

Sheet GRID
A1: Grid Diagram
D2: Interval | F2: =IF((SUM(IF(FREQUENCY('A1'!$K$30:$L$103,'A1'!$K$30:$L$103)>0,1)))>1,1,"") -> 1 | G2: =IF(E2="","",IF((SUM(IF(FREQUENCY('A1'!$K$30:$L$103,'A1'!$K$30:$L$103)>0,1)))>(E2+1),(E2+1),"")) ->  | H2: =IF(F2="","",IF((SUM(IF(FREQUENCY('A1'!$K$30:$L$103,'A1'!$K$30:$L$103)>0,1)))>(F2+1),(F2+1),"")) -> 2 | I2: =IF(G2="","",IF((SUM(IF(FREQUENCY('A1'!$K$30:$L$103,'A1'!$K$30:$L$103)>0,1)))>(G2+1),(G2+1),"")) ->  | J2: =IF(H2="","",IF((SUM(IF(FREQUENCY('A1'!$K$30:$L$103,'A1'!$K$30:$L$103)>0,1)))>(H2+1),(H2+1),"")) -> 3 | K2: =IF(I2="","",IF((SUM(IF(FREQUENCY('A1'!$K$30:$L$103,'A1'!$K$30:$L$103)>0,1)))>(I2+1),(I2+1),"")) ->  | L2: =IF(J2="","",IF((SUM(IF(FREQUENCY('A1'!$K$30:$L$103,'A1'!$K$30:$L$103)>0,1)))>(J2+1),(J2+1),"")) -> 4 | M2: =IF(K2="","",IF((SUM(IF(FREQUENCY('A1'!$K$30:$L$103,'A1'!$K$30:$L$103)>0,1)))>(K2+1),(K2+1),"")) ->  | N2: =IF(L2="","",IF((SUM(IF(FREQUENCY('A1'!$K$30:$L$103,'A1'!$K$30:$L$103)>0,1)))>(L2+1),(L2+1),"")) -> 5 | O2: =IF(M2="","",IF((SUM(IF(FREQUENCY('A1'!$K$30:$L$103,'A1'!$K$30:$L$103)>0,1)))>(M2+1),(M2+1),"")) ->  | P2: =IF(N2="","",IF((SUM(IF(FREQUENCY('A1'!$K$30:$L$103,'A1'!$K$30:$L$103)>0,1)))>(N2+1),(N2+1),"")) -> 6 | Q2: =IF(O2="","",IF((SUM(IF(FREQUENCY('A1'!$K$30:$L$103,'A1'!$K$30:$L$103)>0,1)))>(O2+1),(O2+1),"")) ->  | R2: =IF(P2="","",IF((SUM(IF(FREQUENCY('A1'!$K$30:$L$103,'A1'!$K$30:$L$103)>0,1)))>(P2+1),(P2+1),"")) -> 7 | S2: =IF(Q2="","",IF((SUM(IF(FREQUENCY('A1'!$K$30:$L$103,'A1'!$K$30:$L$103)>0,1)))>(Q2+1),(Q2+1),"")) ->  | T2: =IF(R2="","",IF((SUM(IF(FREQUENCY('A1'!$K$30:$L$103,'A1'!$K$30:$L$103)>0,1)))>(R2+1),(R2+1),"")) -> 8 | U2: =IF(S2="","",IF((SUM(IF(FREQUENCY('A1'!$K$30:$L$103,'A1'!$K$30:$L$103)>0,1)))>(S2+1),(S2+1),"")) ->  | V2: =IF(T2="","",IF((SUM(IF(FREQUENCY('A1'!$K$30:$L$103,'A1'!$K$30:$L$103)>0,1)))>(T2+1),(T2+1),"")) ->  | W2: =IF(U2="","",IF((SUM(IF(FREQUENCY('A1'!$K$30:$L$103,'A1'!$K$30:$L$103)>0,1)))>(U2+1),(U2+1),"")) ->  | X2: =IF(V2="","",IF((SUM(IF(FREQUENCY('A1'!$K$30:$L$103,'A1'!$K$30:$L$103)>0,1)))>(V2+1),(V2+1),"")) ->  | Y2: =IF(W2="","",IF((SUM(IF(FREQUENCY('A1'!$K$30:$L$103,'A1'!$K$30:$L$103)>0,1)))>(W2+1),(W2+1),"")) ->  | Z2: =IF(X2="","",IF((SUM(IF(FREQUENCY('A1'!$K$30:$L$103,'A1'!$K$30:$L$103)>0,1)))>(X2+1),(X2+1),"")) ->  | AA2: =IF(Y2="","",IF((SUM(IF(FREQUENCY('A1'!$K$30:$L$103,'A1'!$K$30:$L$103)>0,1)))>(Y2+1),(Y2+1),"")) ->  | AB2: =IF(Z2="","",IF((SUM(IF(FREQUENCY('A1'!$K$30:$L$103,'A1'!$K$30:$L$103)>0,1)))>(Z2+1),(Z2+1),"")) ->  | AC2: =IF(AA2="","",IF((SUM(IF(FREQUENCY('A1'!$K$30:$L$103,'A1'!$K$30:$L$103)>0,1)))>(AA2+1),(AA2+1),"")) ->  | AD2: =IF(AB2="","",IF((SUM(IF(FREQUENCY('A1'!$K$30:$L$103,'A1'!$K$30:$L$103)>0,1)))>(AB2+1),(AB2+1),"")) ->  | AE2: =IF(AC2="","",IF((SUM(IF(FREQUENCY('A1'!$K$30:$L$103,'A1'!$K$30:$L$103)>0,1)))>(AC2+1),(AC2+1),"")) ->  | AF2: =IF(AD2="","",IF((SUM(IF(FREQUENCY('A1'!$K$30:$L$103,'A1'!$K$30:$L$103)>0,1)))>(AD2+1),(AD2+1),"")) ->  | AG2: =IF(AE2="","",IF((SUM(IF(FREQUENCY('A1'!$K$30:$L$103,'A1'!$K$30:$L$103)>0,1)))>(AE2+1),(AE2+1),"")) ->  | AH2: =IF(AF2="","",IF((SUM(IF(FREQUENCY('A1'!$K$30:$L$103,'A1'!$K$30:$L$103)>0,1)))>(AF2+1),(AF2+1),"")) ->  | AI2: =IF(AG2="","",IF((SUM(IF(FREQUENCY('A1'!$K$30:$L$103,'A1'!$K$30:$L$103)>0,1)))>(AG2+1),(AG2+1),"")) ->  | AJ2: =IF(AH2="","",IF((SUM(IF(FREQUENCY('A1'!$K$30:$L$103,'A1'!$K$30:$L$103)>0,1)))>(AH2+1),(AH2+1),"")) ->  | AK2: =IF(AI2="","",IF((SUM(IF(FREQUENCY('A1'!$K$30:$L$103,'A1'!$K$30:$L$103)>0,1)))>(AI2+1),(AI2+1),"")) ->  | AL2: =IF(AJ2="","",IF((SUM(IF(FREQUENCY('A1'!$K$30:$L$103,'A1'!$K$30:$L$103)>0,1)))>(AJ2+1),(AJ2+1),"")) ->  | AM2: =IF(AK2="","",IF((SUM(IF(FREQUENCY('A1'!$K$30:$L$103,'A1'!$K$30:$L$103)>0,1)))>(AK2+1),(AK2+1),"")) ->  | AN2: =IF(AL2="","",IF((SUM(IF(FREQUENCY('A1'!$K$30:$L$103,'A1'!$K$30:$L$103)>0,1)))>(AL2+1),(AL2+1),"")) ->  | AO2: =IF(AM2="","",IF((SUM(IF(FREQUENCY('A1'!$K$30:$L$103,'A1'!$K$30:$L$103)>0,1)))>(AM2+1),(AM2+1),"")) ->  | AP2: =IF(AN2="","",IF((SUM(IF(FREQUENCY('A1'!$K$30:$L$103,'A1'!$K$30:$L$103)>0,1)))>(AN2+1),(AN2+1),"")) ->  | AQ2: =IF(AO2="","",IF((SUM(IF(FREQUENCY('A1'!$K$30:$L$103,'A1'!$K$30:$L$103)>0,1)))>(AO2+1),(AO2+1),"")) ->  | AR2: =IF(AP2="","",IF((SUM(IF(FREQUENCY('A1'!$K$30:$L$103,'A1'!$K$30:$L$103)>0,1)))>(AP2+1),(AP2+1),"")) ->  | AS2: =IF(AQ2="","",IF((SUM(IF(FREQUENCY('A1'!$K$30:$L$103,'A1'!$K$30:$L$103)>0,1)))>(AQ2+1),(AQ2+1),"")) ->  | AT2: =IF(AR2="","",IF((SUM(IF(FREQUENCY('A1'!$K$30:$L$103,'A1'!$K$30:$L$103)>0,1)))>(AR2+1),(AR2+1),"")) ->  | AU2: =IF(AS2="","",IF((SUM(IF(FREQUENCY('A1'!$K$30:$L$103,'A1'!$K$30:$L$103)>0,1)))>(AS2+1),(AS2+1),"")) ->  | AV2: =IF(AT2="","",IF((SUM(IF(FREQUENCY('A1'!$K$30:$L$103,'A1'!$K$30:$L$103)>0,1)))>(AT2+1),(AT2+1),"")) ->  | AW2: =IF(AU2="","",IF((SUM(IF(FREQUENCY('A1'!$K$30:$L$103,'A1'!$K$30:$L$103)>0,1)))>(AU2+1),(AU2+1),"")) ->  | AX2: =IF(AV2="","",IF((SUM(IF(FREQUENCY('A1'!$K$30:$L$103,'A1'!$K$30:$L$103)>0,1)))>(AV2+1),(AV2+1),"")) ->  | AY2: =IF(AW2="","",IF((SUM(IF(FREQUENCY('A1'!$K$30:$L$103,'A1'!$K$30:$L$103)>0,1)))>(AW2+1),(AW2+1),"")) ->  | AZ2: =IF(AX2="","",IF((SUM(IF(FREQUENCY('A1'!$K$30:$L$103,'A1'!$K$30:$L$103)>0,1)))>(AX2+1),(AX2+1),"")) ->  | BA2: =IF(AY2="","",IF((SUM(IF(FREQUENCY('A1'!$K$30:$L$103,'A1'!$K$30:$L$103)>0,1)))>(AY2+1),(AY2+1),"")) ->  | BB2: =IF(AZ2="","",IF((SUM(IF(FREQUENCY('A1'!$K$30:$L$103,'A1'!$K$30:$L$103)>0,1)))>(AZ2+1),(AZ2+1),"")) ->  | BC2: =IF(BA2="","",IF((SUM(IF(FREQUENCY('A1'!$K$30:$L$103,'A1'!$K$30:$L$103)>0,1)))>(BA2+1),(BA2+1),"")) ->  | BD2: =IF(BB2="","",IF((SUM(IF(FREQUENCY('A1'!$K$30:$L$103,'A1'!$K$30:$L$103)>0,1)))>(BB2+1),(BB2+1),"")) ->  | BE2: =IF(BC2="","",IF((SUM(IF(FREQUENCY('A1'!$K$30:$L$103,'A1'!$K$30:$L$103)>0,1)))>(BC2+1),(BC2+1),"")) ->  | BF2: =IF(BD2="","",IF((SUM(IF(FREQUENCY('A1'!$K$30:$L$103,'A1'!$K$30:$L$103)>0,1)))>(BD2+1),(BD2+1),"")) ->  | BG2: =IF(BE2="","",IF((SUM(IF(FREQUENCY('A1'!$K$30:$L$103,'A1'!$K$30:$L$103)>0,1)))>(BE2+1),(BE2+1),"")) ->  | BH2: =IF(BF2="","",IF((SUM(IF(FREQUENCY('A1'!$K$30:$L$103,'A1'!$K$30:$L$103)>0,1)))>(BF2+1),(BF2+1),"")) ->  | BI2: =IF(BG2="","",IF((SUM(IF(FREQUENCY('A1'!$K$30:$L$103,'A1'!$K$30:$L$103)>0,1)))>(BG2+1),(BG2+1),"")) ->  | BJ2: =IF(BH2="","",IF((SUM(IF(FREQUENCY('A1'!$K$30:$L$103,'A1'!$K$30:$L$103)>0,1)))>(BH2+1),(BH2+1),"")) ->  | BK2: =IF(BI2="","",IF((SUM(IF(FREQUENCY('A1'!$K$30:$L$103,'A1'!$K$30:$L$103)>0,1)))>(BI2+1),(BI2+1),"")) ->  | BL2: =IF(BJ2="","",IF((SUM(IF(FREQUENCY('A1'!$K$30:$L$103,'A1'!$K$30:$L$103)>0,1)))>(BJ2+1),(BJ2+1),"")) ->  | BM2: =IF(BK2="","",IF((SUM(IF(FREQUENCY('A1'!$K$30:$L$103,'A1'!$K$30:$L$103)>0,1)))>(BK2+1),(BK2+1),"")) ->  | BN2: =IF(BL2="","",IF((SUM(IF(FREQUENCY('A1'!$K$30:$L$103,'A1'!$K$30:$L$103)>0,1)))>(BL2+1),(BL2+1),"")) ->  | BO2: =IF(BM2="","",IF((SUM(IF(FREQUENCY('A1'!$K$30:$L$103,'A1'!$K$30:$L$103)>0,1)))>(BM2+1),(BM2+1),"")) ->  | BP2: =IF(BN2="","",IF((SUM(IF(FREQUENCY('A1'!$K$30:$L$103,'A1'!$K$30:$L$103)>0,1)))>(BN2+1),(BN2+1),"")) ->  | BQ2: =IF(BO2="","",IF((SUM(IF(FREQUENCY('A1'!$K$30:$L$103,'A1'!$K$30:$L$103)>0,1)))>(BO2+1),(BO2+1),"")) ->  | BR2: =IF(BP2="","",IF((SUM(IF(FREQUENCY('A1'!$K$30:$L$103,'A1'!$K$30:$L$103)>0,1)))>(BP2+1),(BP2+1),"")) ->  | BS2: =IF(BQ2="","",IF((SUM(IF(FREQUENCY('A1'!$K$30:$L$103,'A1'!$K$30:$L$103)>0,1)))>(BQ2+1),(BQ2+1),"")) ->  | BT2: =IF(BR2="","",IF((SUM(IF(FREQUENCY('A1'!$K$30:$L$103,'A1'!$K$30:$L$103)>0,1)))>(BR2+1),(BR2+1),"")) ->  | BU2: =IF(BS2="","",IF((SUM(IF(FREQUENCY('A1'!$K$30:$L$103,'A1'!$K$30:$L$103)>0,1)))>(BS2+1),(BS2+1),"")) ->  | BV2: =IF(BT2="","",IF((SUM(IF(FREQUENCY('A1'!$K$30:$L$103,'A1'!$K$30:$L$103)>0,1)))>(BT2+1),(BT2+1),"")) ->  | BW2: =IF(BU2="","",IF((SUM(IF(FREQUENCY('A1'!$K$30:$L$103,'A1'!$K$30:$L$103)>0,1)))>(BU2+1),(BU2+1),"")) ->  | BX2: =IF(BV2="","",IF((SUM(IF(FREQUENCY('A1'!$K$30:$L$103,'A1'!$K$30:$L$103)>0,1)))>(BV2+1),(BV2+1),"")) ->  | BY2: =IF(BW2="","",IF((SUM(IF(FREQUENCY('A1'!$K$30:$L$103,'A1'!$K$30:$L$103)>0,1)))>(BW2+1),(BW2+1),"")) ->  | BZ2: =IF(BX2="","",IF((SUM(IF(FREQUENCY('A1'!$K$30:$L$103,'A1'!$K$30:$L$103)>0,1)))>(BX2+1),(BX2+1),"")) ->  | CA2: =IF(BY2="","",IF((SUM(IF(FREQUENCY('A1'!$K$30:$L$103,'A1'!$K$30:$L$103)>0,1)))>(BY2+1),(BY2+1),"")) ->  | CB2: =IF(BZ2="","",IF((SUM(IF(FREQUENCY('A1'!$K$30:$L$103,'A1'!$K$30:$L$103)>0,1)))>(BZ2+1),(BZ2+1),"")) ->  | CC2: =IF(CA2="","",IF((SUM(IF(FREQUENCY('A1'!$K$30:$L$103,'A1'!$K$30:$L$103)>0,1)))>(CA2+1),(CA2+1),"")) ->  | CD2: =IF(CB2="","",IF((SUM(IF(FREQUENCY('A1'!$K$30:$L$103,'A1'!$K$30:$L$103)>0,1)))>(CB2+1),(CB2+1),"")) ->  | CE2: =IF(CC2="","",IF((SUM(IF(FREQUENCY('A1'!$K$30:$L$103,'A1'!$K$30:$L$103)>0,1)))>(CC2+1),(CC2+1),"")) ->  | CF2: =IF(CD2="","",IF((SUM(IF(FREQUENCY('A1'!$K$30:$L$103,'A1'!$K$30:$L$103)>0,1)))>(CD2+1),(CD2+1),"")) ->  | CG2: =IF(CE2="","",IF((SUM(IF(FREQUENCY('A1'!$K$30:$L$103,'A1'!$K$30:$L$103)>0,1)))>(CE2+1),(CE2+1),"")) ->  | CH2: =IF(CF2="","",IF((SUM(IF(FREQUENCY('A1'!$K$30:$L$103,'A1'!$K$30:$L$103)>0,1)))>(CF2+1),(CF2+1),"")) ->  | CI2: =IF(CG2="","",IF((SUM(IF(FREQUENCY('A1'!$K$30:$L$103,'A1'!$K$30:$L$103)>0,1)))>(CG2+1),(CG2+1),"")) ->  | CJ2: =IF(CH2="","",IF((SUM(IF(FREQUENCY('A1'!$K$30:$L$103,'A1'!$K$30:$L$103)>0,1)))>(CH2+1),(CH2+1),"")) ->  | CK2: =IF(CI2="","",IF((SUM(IF(FREQUENCY('A1'!$K$30:$L$103,'A1'!$K$30:$L$103)>0,1)))>(CI2+1),(CI2+1),"")) ->  | CL2: =IF(CJ2="","",IF((SUM(IF(FREQUENCY('A1'!$K$30:$L$103,'A1'!$K$30:$L$103)>0,1)))>(CJ2+1),(CJ2+1),"")) ->  | CM2: =IF(CK2="","",IF((SUM(IF(FREQUENCY('A1'!$K$30:$L$103,'A1'!$K$30:$L$103)>0,1)))>(CK2+1),(CK2+1),"")) ->  | CN2: =IF(CL2="","",IF((SUM(IF(FREQUENCY('A1'!$K$30:$L$103,'A1'!$K$30:$L$103)>0,1)))>(CL2+1),(CL2+1),"")) ->  | CO2: =IF(CM2="","",IF((SUM(IF(FREQUENCY('A1'!$K$30:$L$103,'A1'!$K$30:$L$103)>0,1)))>(CM2+1),(CM2+1),"")) ->  | CP2: =IF(CN2="","",IF((SUM(IF(FREQUENCY('A1'!$K$30:$L$103,'A1'!$K$30:$L$103)>0,1)))>(CN2+1),(CN2+1),"")) ->  | CQ2: =IF(CO2="","",IF((SUM(IF(FREQUENCY('A1'!$K$30:$L$103,'A1'!$K$30:$L$103)>0,1)))>(CO2+1),(CO2+1),"")) ->  | CR2: =IF(CP2="","",IF((SUM(IF(FREQUENCY('A1'!$K$30:$L$103,'A1'!$K$30:$L$103)>0,1)))>(CP2+1),(CP2+1),"")) ->  | CS2: =IF(CQ2="","",IF((SUM(IF(FREQUENCY('A1'!$K$30:$L$103,'A1'!$K$30:$L$103)>0,1)))>(CQ2+1),(CQ2+1),"")) ->  | CT2: =IF(CR2="","",IF((SUM(IF(FREQUENCY('A1'!$K$30:$L$103,'A1'!$K$30:$L$103)>0,1)))>(CR2+1),(CR2+1),"")) ->  | CU2: =IF(CS2="","",IF((SUM(IF(FREQUENCY('A1'!$K$30:$L$103,'A1'!$K$30:$L$103)>0,1)))>(CS2+1),(CS2+1),"")) ->  | CV2: =IF(CT2="","",IF((SUM(IF(FREQUENCY('A1'!$K$30:$L$103,'A1'!$K$30:$L$103)>0,1)))>(CT2+1),(CT2+1),"")) ->  | CW2: =IF(CU2="","",IF((SUM(IF(FREQUENCY('A1'!$K$30:$L$103,'A1'!$K$30:$L$103)>0,1)))>(CU2+1),(CU2+1),"")) ->  | CX2: =IF(CV2="","",IF((SUM(IF(FREQUENCY('A1'!$K$30:$L$103,'A1'!$K$30:$L$103)>0,1)))>(CV2+1),(CV2+1),"")) ->  | CY2: =IF(CW2="","",IF((SUM(IF(FREQUENCY('A1'!$K$30:$L$103,'A1'!$K$30:$L$103)>0,1)))>(CW2+1),(CW2+1),"")) ->  | CZ2: =IF(CX2="","",IF((SUM(IF(FREQUENCY('A1'!$K$30:$L$103,'A1'!$K$30:$L$103)>0,1)))>(CX2+1),(CX2+1),"")) ->  | DA2: =IF(CY2="","",IF((SUM(IF(FREQUENCY('A1'!$K$30:$L$103,'A1'!$K$30:$L$103)>0,1)))>(CY2+1),(CY2+1),"")) ->  | DB2: =IF(CZ2="","",IF((SUM(IF(FREQUENCY('A1'!$K$30:$L$103,'A1'!$K$30:$L$103)>0,1)))>(CZ2+1),(CZ2+1),"")) ->  | DC2: =IF(DA2="","",IF((SUM(IF(FREQUENCY('A1'!$K$30:$L$103,'A1'!$K$30:$L$103)>0,1)))>(DA2+1),(DA2+1),"")) ->  | DD2: =IF(DB2="","",IF((SUM(IF(FREQUENCY('A1'!$K$30:$L$103,'A1'!$K$30:$L$103)>0,1)))>(DB2+1),(DB2+1),"")) ->  | DE2: =IF(DC2="","",IF((SUM(IF(FREQUENCY('A1'!$K$30:$L$103,'A1'!$K$30:$L$103)>0,1)))>(DC2+1),(DC2+1),"")) ->  | DF2: =IF(DD2="","",IF((SUM(IF(FREQUENCY('A1'!$K$30:$L$103,'A1'!$K$30:$L$103)>0,1)))>(DD2+1),(DD2+1),"")) ->  | DG2: =IF(DE2="","",IF((SUM(IF(FREQUENCY('A1'!$K$30:$L$103,'A1'!$K$30:$L$103)>0,1)))>(DE2+1),(DE2+1),"")) ->  | DH2: =IF(DF2="","",IF((SUM(IF(FREQUENCY('A1'!$K$30:$L$103,'A1'!$K$30:$L$103)>0,1)))>(DF2+1),(DF2+1),"")) ->  | DI2: =IF(DG2="","",IF((SUM(IF(FREQUENCY('A1'!$K$30:$L$103,'A1'!$K$30:$L$103)>0,1)))>(DG2+1),(DG2+1),"")) ->  | DJ2: =IF(DH2="","",IF((SUM(IF(FREQUENCY('A1'!$K$30:$L$103,'A1'!$K$30:$L$103)>0,1)))>(DH2+1),(DH2+1),"")) ->  | DK2: =IF(DI2="","",IF((SUM(IF(FREQUENCY('A1'!$K$30:$L$103,'A1'!$K$30:$L$103)>0,1)))>(DI2+1),(DI2+1),"")) ->  | DL2: =IF(DJ2="","",IF((SUM(IF(FREQUENCY('A1'!$K$30:$L$103,'A1'!$K$30:$L$103)>0,1)))>(DJ2+1),(DJ2+1),"")) ->  | DM2: =IF(DK2="","",IF((SUM(IF(FREQUENCY('A1'!$K$30:$L$103,'A1'!$K$30:$L$103)>0,1)))>(DK2+1),(DK2+1),"")) ->  | DN2: =IF(DL2="","",IF((SUM(IF(FREQUENCY('A1'!$K$30:$L$103,'A1'!$K$30:$L$103)>0,1)))>(DL2+1),(DL2+1),"")) ->  | DO2: =IF(DM2="","",IF((SUM(IF(FREQUENCY('A1'!$K$30:$L$103,'A1'!$K$30:$L$103)>0,1)))>(DM2+1),(DM2+1),"")) ->  | DP2: =IF(DN2="","",IF((SUM(IF(FREQUENCY('A1'!$K$30:$L$103,'A1'!$K$30:$L$103)>0,1)))>(DN2+1),(DN2+1),"")) ->  | DQ2: =IF(DO2="","",IF((SUM(IF(FREQUENCY('A1'!$K$30:$L$103,'A1'!$K$30:$L$103)>0,1)))>(DO2+1),(DO2+1),"")) ->  | DR2: =IF(DP2="","",IF((SUM(IF(FREQUENCY('A1'!$K$30:$L$103,'A1'!$K$30:$L$103)>0,1)))>(DP2+1),(DP2+1),"")) ->  | DS2: =IF(DQ2="","",IF((SUM(IF(FREQUENCY('A1'!$K$30:$L$103,'A1'!$K$30:$L$103)>0,1)))>(DQ2+1),(DQ2+1),"")) ->  | DT2: =IF(DR2="","",IF((SUM(IF(FREQUENCY('A1'!$K$30:$L$103,'A1'!$K$30:$L$103)>0,1)))>(DR2+1),(DR2+1),"")) ->  | DU2: =IF(DS2="","",IF((SUM(IF(FREQUENCY('A1'!$K$30:$L$103,'A1'!$K$30:$L$103)>0,1)))>(DS2+1),(DS2+1),"")) ->  | DV2: =IF(DT2="","",IF((SUM(IF(FREQUENCY('A1'!$K$30:$L$103,'A1'!$K$30:$L$103)>0,1)))>(DT2+1),(DT2+1),"")) ->  | DW2: =IF(DU2="","",IF((SUM(IF(FREQUENCY('A1'!$K$30:$L$103,'A1'!$K$30:$L$103)>0,1)))>(DU2+1),(DU2+1),"")) ->  | DX2: =IF(DV2="","",IF((SUM(IF(FREQUENCY('A1'!$K$30:$L$103,'A1'!$K$30:$L$103)>0,1)))>(DV2+1),(DV2+1),"")) ->  | DY2: =IF(DW2="","",IF((SUM(IF(FREQUENCY('A1'!$K$30:$L$103,'A1'!$K$30:$L$103)>0,1)))>(DW2+1),(DW2+1),"")) ->  | DZ2: =IF(DX2="","",IF((SUM(IF(FREQUENCY('A1'!$K$30:$L$103,'A1'!$K$30:$L$103)>0,1)))>(DX2+1),(DX2+1),"")) ->  | EA2: =IF(DY2="","",IF((SUM(IF(FREQUENCY('A1'!$K$30:$L$103,'A1'!$K$30:$L$103)>0,1)))>(DY2+1),(DY2+1),"")) ->  | EB2: =IF(DZ2="","",IF((SUM(IF(FREQUENCY('A1'!$K$30:$L$103,'A1'!$K$30:$L$103)>0,1)))>(DZ2+1),(DZ2+1),"")) ->  | EC2: =IF(EA2="","",IF((SUM(IF(FREQUENCY('A1'!$K$30:$L$103,'A1'!$K$30:$L$103)>0,1)))>(EA2+1),(EA2+1),"")) ->  | ED2: =IF(EB2="","",IF((SUM(IF(FREQUENCY('A1'!$K$30:$L$103,'A1'!$K$30:$L$103)>0,1)))>(EB2+1),(EB2+1),"")) ->  | EE2: =IF(EC2="","",IF((SUM(IF(FREQUENCY('A1'!$K$30:$L$103,'A1'!$K$30:$L$103)>0,1)))>(EC2+1),(EC2+1),"")) ->  | EF2: =IF(ED2="","",IF((SUM(IF(FREQUENCY('A1'!$K$30:$L$103,'A1'!$K$30:$L$103)>0,1)))>(ED2+1),(ED2+1),"")) ->  | EG2: =IF(EE2="","",IF((SUM(IF(FREQUENCY('A1'!$K$30:$L$103,'A1'!$K$30:$L$103)>0,1)))>(EE2+1),(EE2+1),"")) ->  | EH2: =IF(EF2="","",IF((SUM(IF(FREQUENCY('A1'!$K$30:$L$103,'A1'!$K$30:$L$103)>0,1)))>(EF2+1),(EF2+1),"")) ->  | EI2: =IF(EG2="","",IF((SUM(IF(FREQUENCY('A1'!$K$30:$L$103,'A1'!$K$30:$L$103)>0,1)))>(EG2+1),(EG2+1),"")) ->  | EJ2: =IF(EH2="","",IF((SUM(IF(FREQUENCY('A1'!$K$30:$L$103,'A1'!$K$30:$L$103)>0,1)))>(EH2+1),(EH2+1),"")) ->  | EK2: =IF(EI2="","",IF((SUM(IF(FREQUENCY('A1'!$K$30:$L$103,'A1'!$K$30:$L$103)>0,1)))>(EI2+1),(EI2+1),"")) ->  | EL2: =IF(EJ2="","",IF((SUM(IF(FREQUENCY('A1'!$K$30:$L$103,'A1'!$K$30:$L$103)>0,1)))>(EJ2+1),(EJ2+1),"")) ->  | EM2: =IF(EK2="","",IF((SUM(IF(FREQUENCY('A1'!$K$30:$L$103,'A1'!$K$30:$L$103)>0,1)))>(EK2+1),(EK2+1),"")) ->  | EN2: =IF(EL2="","",IF((SUM(IF(FREQUENCY('A1'!$K$30:$L$103,'A1'!$K$30:$L$103)>0,1)))>(EL2+1),(EL2+1),"")) ->  | EO2: =IF(EM2="","",IF((SUM(IF(FREQUENCY('A1'!$K$30:$L$103,'A1'!$K$30:$L$103)>0,1)))>(EM2+1),(EM2+1),"")) ->  | EP2: =IF(EN2="","",IF((SUM(IF(FREQUENCY('A1'!$K$30:$L$103,'A1'!$K$30:$L$103)>0,1)))>(EN2+1),(EN2+1),"")) ->  | EQ2: =IF(EO2="","",IF((SUM(IF(FREQUENCY('A1'!$K$30:$L$103,'A1'!$K$30:$L$103)>0,1)))>(EO2+1),(EO2+1),"")) ->  | ER2: =IF(EP2="","",IF((SUM(IF(FREQUENCY('A1'!$K$30:$L$103,'A1'!$K$30:$L$103)>0,1)))>(EP2+1),(EP2+1),"")) ->  | ES2: =IF(EQ2="","",IF((SUM(IF(FREQUENCY('A1'!$K$30:$L$103,'A1'!$K$30:$L$103)>0,1)))>(EQ2+1),(EQ2+1),"")) ->  | ET2: =IF(ER2="","",IF((SUM(IF(FREQUENCY('A1'!$K$30:$L$103,'A1'!$K$30:$L$103)>0,1)))>(ER2+1),(ER2+1),"")) ->  | EU2: =IF(ES2="","",IF((SUM(IF(FREQUENCY('A1'!$K$30:$L$103,'A1'!$K$30:$L$103)>0,1)))>(ES2+1),(ES2+1),"")) ->  | EV2: =IF(ET2="","",IF((SUM(IF(FREQUENCY('A1'!$K$30:$L$103,'A1'!$K$30:$L$103)>0,1)))>(ET2+1),(ET2+1),"")) ->  | EW2: =IF(EU2="","",IF((SUM(IF(FREQUENCY('A1'!$K$30:$L$103,'A1'!$K$30:$L$103)>0,1)))>(EU2+1),(EU2+1),"")) ->  | EX2: =IF(EV2="","",IF((SUM(IF(FREQUENCY('A1'!$K$30:$L$103,'A1'!$K$30:$L$103)>0,1)))>(EV2+1),(EV2+1),"")) ->  | EY2: =IF(EW2="","",IF((SUM(IF(FREQUENCY('A1'!$K$30:$L$103,'A1'!$K$30:$L$103)>0,1)))>(EW2+1),(EW2+1),"")) ->  | EZ2: =IF(EX2="","",IF((SUM(IF(FREQUENCY('A1'!$K$30:$L$103,'A1'!$K$30:$L$103)>0,1)))>(EX2+1),(EX2+1),"")) ->  | FA2: =IF(EY2="","",IF((SUM(IF(FREQUENCY('A1'!$K$30:$L$103,'A1'!$K$30:$L$103)>0,1)))>(EY2+1),(EY2+1),"")) ->  | FB2: =IF(EZ2="","",IF((SUM(IF(FREQUENCY('A1'!$K$30:$L$103,'A1'!$K$30:$L$103)>0,1)))>(EZ2+1),(EZ2+1),"")) ->  | FC2: =IF(FA2="","",IF((SUM(IF(FREQUENCY('A1'!$K$30:$L$103,'A1'!$K$30:$L$103)>0,1)))>(FA2+1),(FA2+1),"")) ->  | FD2: =IF(FB2="","",IF((SUM(IF(FREQUENCY('A1'!$K$30:$L$103,'A1'!$K$30:$L$103)>0,1)))>(FB2+1),(FB2+1),"")) ->  | FE2: =IF(FC2="","",IF((SUM(IF(FREQUENCY('A1'!$K$30:$L$103,'A1'!$K$30:$L$103)>0,1)))>(FC2+1),(FC2+1),"")) ->  | FF2: =IF(FD2="","",IF((SUM(IF(FREQUENCY('A1'!$K$30:$L$103,'A1'!$K$30:$L$103)>0,1)))>(FD2+1),(FD2+1),"")) ->  | FG2: =IF(FE2="","",IF((SUM(IF(FREQUENCY('A1'!$K$30:$L$103,'A1'!$K$30:$L$103)>0,1)))>(FE2+1),(FE2+1),"")) ->  | FH2: =IF(FF2="","",IF((SUM(IF(FREQUENCY('A1'!$K$30:$L$103,'A1'!$K$30:$L$103)>0,1)))>(FF2+1),(FF2+1),"")) ->  | FI2: =IF(FG2="","",IF((SUM(IF(FREQUENCY('A1'!$K$30:$L$103,'A1'!$K$30:$L$103)>0,1)))>(FG2+1),(FG2+1),"")) ->  | FJ2: =IF(FH2="","",IF((SUM(IF(FREQUENCY('A1'!$K$30:$L$103,'A1'!$K$30:$L$103)>0,1)))>(FH2+1),(FH2+1),"")) ->  | FK2: =IF(FI2="","",IF((SUM(IF(FREQUENCY('A1'!$K$30:$L$103,'A1'!$K$30:$L$103)>0,1)))>(FI2+1),(FI2+1),"")) ->  | FL2: =IF(FJ2="","",IF((SUM(IF(FREQUENCY('A1'!$K$30:$L$103,'A1'!$K$30:$L$103)>0,1)))>(FJ2+1),(FJ2+1),"")) ->  | FM2: =IF(FK2="","",IF((SUM(IF(FREQUENCY('A1'!$K$30:$L$103,'A1'!$K$30:$L$103)>0,1)))>(FK2+1),(FK2+1),"")) ->  | FN2: =IF(FL2="","",IF((SUM(IF(FREQUENCY('A1'!$K$30:$L$103,'A1'!$K$30:$L$103)>0,1)))>(FL2+1),(FL2+1),"")) ->  | FO2: =IF(FM2="","",IF((SUM(IF(FREQUENCY('A1'!$K$30:$L$103,'A1'!$K$30:$L$103)>0,1)))>(FM2+1),(FM2+1),"")) ->  | FP2: =IF(FN2="","",IF((SUM(IF(FREQUENCY('A1'!$K$30:$L$103,'A1'!$K$30:$L$103)>0,1)))>(FN2+1),(FN2+1),"")) ->  | FQ2: =IF(FO2="","",IF((SUM(IF(FREQUENCY('A1'!$K$30:$L$103,'A1'!$K$30:$L$103)>0,1)))>(FO2+1),(FO2+1),"")) ->  | FR2: =IF(FP2="","",IF((SUM(IF(FREQUENCY('A1'!$K$30:$L$103,'A1'!$K$30:$L$103)>0,1)))>(FP2+1),(FP2+1),"")) ->  | FS2: =IF(FQ2="","",IF((SUM(IF(FREQUENCY('A1'!$K$30:$L$103,'A1'!$K$30:$L$103)>0,1)))>(FQ2+1),(FQ2+1),"")) ->  | FT2: =IF(FR2="","",IF((SUM(IF(FREQUENCY('A1'!$K$30:$L$103,'A1'!$K$30:$L$103)>0,1)))>(FR2+1),(FR2+1),"")) ->  | FU2: =IF(FS2="","",IF((SUM(IF(FREQUENCY('A1'!$K$30:$L$103,'A1'!$K$30:$L$103)>0,1)))>(FS2+1),(FS2+1),"")) ->  | FV2: =IF(FT2="","",IF((SUM(IF(FREQUENCY('A1'!$K$30:$L$103,'A1'!$K$30:$L$103)>0,1)))>(FT2+1),(FT2+1),"")) ->  | FW2: =IF(FU2="","",IF((SUM(IF(FREQUENCY('A1'!$K$30:$L$103,'A1'!$K$30:$L$103)>0,1)))>(FU2+1),(FU2+1),"")) ->  | FX2: =IF(FV2="","",IF((SUM(IF(FREQUENCY('A1'!$K$30:$L$103,'A1'!$K$30:$L$103)>0,1)))>(FV2+1),(FV2+1),"")) ->  | FY2: =IF(FW2="","",IF((SUM(IF(FREQUENCY('A1'!$K$30:$L$103,'A1'!$K$30:$L$103)>0,1)))>(FW2+1),(FW2+1),"")) ->  | FZ2: =IF(FX2="","",IF((SUM(IF(FREQUENCY('A1'!$K$30:$L$103,'A1'!$K$30:$L$103)>0,1)))>(FX2+1),(FX2+1),"")) ->  | GA2: =IF(FY2="","",IF((SUM(IF(FREQUENCY('A1'!$K$30:$L$103,'A1'!$K$30:$L$103)>0,1)))>(FY2+1),(FY2+1),"")) ->  | GB2: =IF(FZ2="","",IF((SUM(IF(FREQUENCY('A1'!$K$30:$L$103,'A1'!$K$30:$L$103)>0,1)))>(FZ2+1),(FZ2+1),"")) ->  | GC2: =IF(GA2="","",IF((SUM(IF(FREQUENCY('A1'!$K$30:$L$103,'A1'!$K$30:$L$103)>0,1)))>(GA2+1),(GA2+1),"")) ->  | GD2: =IF(GB2="","",IF((SUM(IF(FREQUENCY('A1'!$K$30:$L$103,'A1'!$K$30:$L$103)>0,1)))>(GB2+1),(GB2+1),"")) ->  | GE2: =IF(GC2="","",IF((SUM(IF(FREQUENCY('A1'!$K$30:$L$103,'A1'!$K$30:$L$103)>0,1)))>(GC2+1),(GC2+1),"")) ->  | GF2: =IF(GD2="","",IF((SUM(IF(FREQUENCY('A1'!$K$30:$L$103,'A1'!$K$30:$L$103)>0,1)))>(GD2+1),(GD2+1),"")) ->  | GG2: =IF(GE2="","",IF((SUM(IF(FREQUENCY('A1'!$K$30:$L$103,'A1'!$K$30:$L$103)>0,1)))>(GE2+1),(GE2+1),"")) ->  | GH2: =IF(GF2="","",IF((SUM(IF(FREQUENCY('A1'!$K$30:$L$103,'A1'!$K$30:$L$103)>0,1)))>(GF2+1),(GF2+1),"")) ->  | GI2: =IF(GG2="","",IF((SUM(IF(FREQUENCY('A1'!$K$30:$L$103,'A1'!$K$30:$L$103)>0,1)))>(GG2+1),(GG2+1),"")) ->  | GJ2: =IF(GH2="","",IF((SUM(IF(FREQUENCY('A1'!$K$30:$L$103,'A1'!$K$30:$L$103)>0,1)))>(GH2+1),(GH2+1),"")) ->  | GK2: =IF(GI2="","",IF((SUM(IF(FREQUENCY('A1'!$K$30:$L$103,'A1'!$K$30:$L$103)>0,1)))>(GI2+1),(GI2+1),"")) ->  | GL2: =IF(GJ2="","",IF((SUM(IF(FREQUENCY('A1'!$K$30:$L$103,'A1'!$K$30:$L$103)>0,1)))>(GJ2+1),(GJ2+1),"")) ->  | GM2: =IF(GK2="","",IF((SUM(IF(FREQUENCY('A1'!$K$30:$L$103,'A1'!$K$30:$L$103)>0,1)))>(GK2+1),(GK2+1),"")) ->  | GN2: =IF(GL2="","",IF((SUM(IF(FREQUENCY('A1'!$K$30:$L$103,'A1'!$K$30:$L$103)>0,1)))>(GL2+1),(GL2+1),"")) ->  | GO2: =IF(GM2="","",IF((SUM(IF(FREQUENCY('A1'!$K$30:$L$103,'A1'!$K$30:$L$103)>0,1)))>(GM2+1),(GM2+1),"")) ->  | GP2: =IF(GN2="","",IF((SUM(IF(FREQUENCY('A1'!$K$30:$L$103,'A1'!$K$30:$L$103)>0,1)))>(GN2+1),(GN2+1),"")) ->  | GQ2: =IF(GO2="","",IF((SUM(IF(FREQUENCY('A1'!$K$30:$L$103,'A1'!$K$30:$L$103)>0,1)))>(GO2+1),(GO2+1),"")) ->  | GR2: =IF(GP2="","",IF((SUM(IF(FREQUENCY('A1'!$K$30:$L$103,'A1'!$K$30:$L$103)>0,1)))>(GP2+1),(GP2+1),"")) ->  | GS2: =IF(GQ2="","",IF((SUM(IF(FREQUENCY('A1'!$K$30:$L$103,'A1'!$K$30:$L$103)>0,1)))>(GQ2+1),(GQ2+1),"")) ->  | GT2: =IF(GR2="","",IF((SUM(IF(FREQUENCY('A1'!$K$30:$L$103,'A1'!$K$30:$L$103)>0,1)))>(GR2+1),(GR2+1),"")) ->  | GU2: =IF(GS2="","",IF((SUM(IF(FREQUENCY('A1'!$K$30:$L$103,'A1'!$K$30:$L$103)>0,1)))>(GS2+1),(GS2+1),"")) -> 
E3: =IF(TRANSPOSE(PT!H5:H203)="","","PINCH") ->  | M3: PINCH
A4: Stream Name | B4: =SCC!$A$30 -> Heat Flow (kW) | C4: ="mCp ("&'A1'!H29&")" -> mCp (kW/K) | D4: ="Shifted Temp ("&'A1'!T3&")" -> Shifted Temp (°C) | E4: =IF(F2="","",(LARGE('A1'!$K$30:$L$105,F2))) -> 260 | F4: =IF(G2="","",(LARGE('A1'!$K$30:$L$105,G2))) ->  | G4: =IF(F2="","",(LARGE('A1'!$K$30:$L$105,(1+SUM(COUNTIF('A1'!$K$30:$L$105,$E$4:F4))-(F2*COUNTIF('A1'!$K$30:$L$105,$F$4)))))) -> 230 | H4: =IF(G2="","",(LARGE('A1'!$K$30:$L$105,(1+SUM(COUNTIF('A1'!$K$30:$L$105,$E$4:G4))-(G2*COUNTIF('A1'!$K$30:$L$105,$F$4)))))) ->  | I4: =IF(H2="","",(LARGE('A1'!$K$30:$L$105,(1+SUM(COUNTIF('A1'!$K$30:$L$105,$E$4:H4))-(H2*COUNTIF('A1'!$K$30:$L$105,$F$4)))))) -> 210 | J4: =IF(I2="","",(LARGE('A1'!$K$30:$L$105,(1+SUM(COUNTIF('A1'!$K$30:$L$105,$E$4:I4))-(I2*COUNTIF('A1'!$K$30:$L$105,$F$4)))))) ->  | K4: =IF(J2="","",(LARGE('A1'!$K$30:$L$105,(1+SUM(COUNTIF('A1'!$K$30:$L$105,$E$4:J4))-(J2*COUNTIF('A1'!$K$30:$L$105,$F$4)))))) -> 190 | L4: =IF(K2="","",(LARGE('A1'!$K$30:$L$105,(1+SUM(COUNTIF('A1'!$K$30:$L$105,$E$4:K4))-(K2*COUNTIF('A1'!$K$30:$L$105,$F$4)))))) ->  | M4: =IF(L2="","",(LARGE('A1'!$K$30:$L$105,(1+SUM(COUNTIF('A1'!$K$30:$L$105,$E$4:L4))-(L2*COUNTIF('A1'!$K$30:$L$105,$F$4)))))) -> 110 | N4: =IF(M2="","",(LARGE('A1'!$K$30:$L$105,(1+SUM(COUNTIF('A1'!$K$30:$L$105,$E$4:M4))-(M2*COUNTIF('A1'!$K$30:$L$105,$F$4)))))) ->  | O4: =IF(N2="","",(LARGE('A1'!$K$30:$L$105,(1+SUM(COUNTIF('A1'!$K$30:$L$105,$E$4:N4))-(N2*COUNTIF('A1'!$K$30:$L$105,$F$4)))))) -> 109 | P4: =IF(O2="","",(LARGE('A1'!$K$30:$L$105,(1+SUM(COUNTIF('A1'!$K$30:$L$105,$E$4:O4))-(O2*COUNTIF('A1'!$K$30:$L$105,$F$4)))))) ->  | Q4: =IF(P2="","",(LARGE('A1'!$K$30:$L$105,(1+SUM(COUNTIF('A1'!$K$30:$L$105,$E$4:P4))-(P2*COUNTIF('A1'!$K$30:$L$105,$F$4)))))) -> 90 | R4: =IF(Q2="","",(LARGE('A1'!$K$30:$L$105,(1+SUM(COUNTIF('A1'!$K$30:$L$105,$E$4:Q4))-(Q2*COUNTIF('A1'!$K$30:$L$105,$F$4)))))) ->  | S4: =IF(R2="","",(LARGE('A1'!$K$30:$L$105,(1+SUM(COUNTIF('A1'!$K$30:$L$105,$E$4:R4))-(R2*COUNTIF('A1'!$K$30:$L$105,$F$4)))))) -> 60 | T4: =IF(S2="","",(LARGE('A1'!$K$30:$L$105,(1+SUM(COUNTIF('A1'!$K$30:$L$105,$E$4:S4))-(S2*COUNTIF('A1'!$K$30:$L$105,$F$4)))))) ->  | U4: =IF(T2="","",(LARGE('A1'!$K$30:$L$105,(1+SUM(COUNTIF('A1'!$K$30:$L$105,$E$4:T4))-(T2*COUNTIF('A1'!$K$30:$L$105,$F$4)))))) -> 40 | V4: =IF(U2="","",(LARGE('A1'!$K$30:$L$105,(1+SUM(COUNTIF('A1'!$K$30:$L$105,$E$4:U4))-(U2*COUNTIF('A1'!$K$30:$L$105,$F$4)))))) ->  | W4: =IF(V2="","",(LARGE('A1'!$K$30:$L$105,(1+SUM(COUNTIF('A1'!$K$30:$L$105,$E$4:V4))-(V2*COUNTIF('A1'!$K$30:$L$105,$F$4)))))) ->  | X4: =IF(W2="","",(LARGE('A1'!$K$30:$L$105,(1+SUM(COUNTIF('A1'!$K$30:$L$105,$E$4:W4))-(W2*COUNTIF('A1'!$K$30:$L$105,$F$4)))))) ->  | Y4: =IF(X2="","",(LARGE('A1'!$K$30:$L$105,(1+SUM(COUNTIF('A1'!$K$30:$L$105,$E$4:X4))-(X2*COUNTIF('A1'!$K$30:$L$105,$F$4)))))) ->  | Z4: =IF(Y2="","",(LARGE('A1'!$K$30:$L$105,(1+SUM(COUNTIF('A1'!$K$30:$L$105,$E$4:Y4))-(Y2*COUNTIF('A1'!$K$30:$L$105,$F$4)))))) ->  | AA4: =IF(Z2="","",(LARGE('A1'!$K$30:$L$105,(1+SUM(COUNTIF('A1'!$K$30:$L$105,$E$4:Z4))-(Z2*COUNTIF('A1'!$K$30:$L$105,$F$4)))))) ->  | AB4: =IF(AA2="","",(LARGE('A1'!$K$30:$L$105,(1+SUM(COUNTIF('A1'!$K$30:$L$105,$E$4:AA4))-(AA2*COUNTIF('A1'!$K$30:$L$105,$F$4)))))) ->  | AC4: =IF(AB2="","",(LARGE('A1'!$K$30:$L$105,(1+SUM(COUNTIF('A1'!$K$30:$L$105,$E$4:AB4))-(AB2*COUNTIF('A1'!$K$30:$L$105,$F$4)))))) ->  | AD4: =IF(AC2="","",(LARGE('A1'!$K$30:$L$105,(1+SUM(COUNTIF('A1'!$K$30:$L$105,$E$4:AC4))-(AC2*COUNTIF('A1'!$K$30:$L$105,$F$4)))))) ->  | AE4: =IF(AD2="","",(LARGE('A1'!$K$30:$L$105,(1+SUM(COUNTIF('A1'!$K$30:$L$105,$E$4:AD4))-(AD2*COUNTIF('A1'!$K$30:$L$105,$F$4)))))) ->  | AF4: =IF(AE2="","",(LARGE('A1'!$K$30:$L$105,(1+SUM(COUNTIF('A1'!$K$30:$L$105,$E$4:AE4))-(AE2*COUNTIF('A1'!$K$30:$L$105,$F$4)))))) ->  | AG4: =IF(AF2="","",(LARGE('A1'!$K$30:$L$105,(1+SUM(COUNTIF('A1'!$K$30:$L$105,$E$4:AF4))-(AF2*COUNTIF('A1'!$K$30:$L$105,$F$4)))))) ->  | AH4: =IF(AG2="","",(LARGE('A1'!$K$30:$L$105,(1+SUM(COUNTIF('A1'!$K$30:$L$105,$E$4:AG4))-(AG2*COUNTIF('A1'!$K$30:$L$105,$F$4)))))) ->  | AI4: =IF(AH2="","",(LARGE('A1'!$K$30:$L$105,(1+SUM(COUNTIF('A1'!$K$30:$L$105,$E$4:AH4))-(AH2*COUNTIF('A1'!$K$30:$L$105,$F$4)))))) ->  | AJ4: =IF(AI2="","",(LARGE('A1'!$K$30:$L$105,(1+SUM(COUNTIF('A1'!$K$30:$L$105,$E$4:AI4))-(AI2*COUNTIF('A1'!$K$30:$L$105,$F$4)))))) ->  | AK4: =IF(AJ2="","",(LARGE('A1'!$K$30:$L$105,(1+SUM(COUNTIF('A1'!$K$30:$L$105,$E$4:AJ4))-(AJ2*COUNTIF('A1'!$K$30:$L$105,$F$4)))))) ->  | AL4: =IF(AK2="","",(LARGE('A1'!$K$30:$L$105,(1+SUM(COUNTIF('A1'!$K$30:$L$105,$E$4:AK4))-(AK2*COUNTIF('A1'!$K$30:$L$105,$F$4)))))) ->  | AM4: =IF(AL2="","",(LARGE('A1'!$K$30:$L$105,(1+SUM(COUNTIF('A1'!$K$30:$L$105,$E$4:AL4))-(AL2*COUNTIF('A1'!$K$30:$L$105,$F$4)))))) ->  | AN4: =IF(AM2="","",(LARGE('A1'!$K$30:$L$105,(1+SUM(COUNTIF('A1'!$K$30:$L$105,$E$4:AM4))-(AM2*COUNTIF('A1'!$K$30:$L$105,$F$4)))))) ->  | AO4: =IF(AN2="","",(LARGE('A1'!$K$30:$L$105,(1+SUM(COUNTIF('A1'!$K$30:$L$105,$E$4:AN4))-(AN2*COUNTIF('A1'!$K$30:$L$105,$F$4)))))) ->  | AP4: =IF(AO2="","",(LARGE('A1'!$K$30:$L$105,(1+SUM(COUNTIF('A1'!$K$30:$L$105,$E$4:AO4))-(AO2*COUNTIF('A1'!$K$30:$L$105,$F$4)))))) ->  | AQ4: =IF(AP2="","",(LARGE('A1'!$K$30:$L$105,(1+SUM(COUNTIF('A1'!$K$30:$L$105,$E$4:AP4))-(AP2*COUNTIF('A1'!$K$30:$L$105,$F$4)))))) ->  | AR4: =IF(AQ2="","",(LARGE('A1'!$K$30:$L$105,(1+SUM(COUNTIF('A1'!$K$30:$L$105,$E$4:AQ4))-(AQ2*COUNTIF('A1'!$K$30:$L$105,$F$4)))))) ->  | AS4: =IF(AR2="","",(LARGE('A1'!$K$30:$L$105,(1+SUM(COUNTIF('A1'!$K$30:$L$105,$E$4:AR4))-(AR2*COUNTIF('A1'!$K$30:$L$105,$F$4)))))) ->  | AT4: =IF(AS2="","",(LARGE('A1'!$K$30:$L$105,(1+SUM(COUNTIF('A1'!$K$30:$L$105,$E$4:AS4))-(AS2*COUNTIF('A1'!$K$30:$L$105,$F$4)))))) ->  | AU4: =IF(AT2="","",(LARGE('A1'!$K$30:$L$105,(1+SUM(COUNTIF('A1'!$K$30:$L$105,$E$4:AT4))-(AT2*COUNTIF('A1'!$K$30:$L$105,$F$4)))))) ->  | AV4: =IF(AU2="","",(LARGE('A1'!$K$30:$L$105,(1+SUM(COUNTIF('A1'!$K$30:$L$105,$E$4:AU4))-(AU2*COUNTIF('A1'!$K$30:$L$105,$F$4)))))) ->  | AW4: =IF(AV2="","",(LARGE('A1'!$K$30:$L$105,(1+SUM(COUNTIF('A1'!$K$30:$L$105,$E$4:AV4))-(AV2*COUNTIF('A1'!$K$30:$L$105,$F$4)))))) ->  | AX4: =IF(AW2="","",(LARGE('A1'!$K$30:$L$105,(1+SUM(COUNTIF('A1'!$K$30:$L$105,$E$4:AW4))-(AW2*COUNTIF('A1'!$K$30:$L$105,$F$4)))))) ->  | AY4: =IF(AX2="","",(LARGE('A1'!$K$30:$L$105,(1+SUM(COUNTIF('A1'!$K$30:$L$105,$E$4:AX4))-(AX2*COUNTIF('A1'!$K$30:$L$105,$F$4)))))) ->  | AZ4: =IF(AY2="","",(LARGE('A1'!$K$30:$L$105,(1+SUM(COUNTIF('A1'!$K$30:$L$105,$E$4:AY4))-(AY2*COUNTIF('A1'!$K$30:$L$105,$F$4)))))) ->  | BA4: =IF(AZ2="","",(LARGE('A1'!$K$30:$L$105,(1+SUM(COUNTIF('A1'!$K$30:$L$105,$E$4:AZ4))-(AZ2*COUNTIF('A1'!$K$30:$L$105,$F$4)))))) ->  | BB4: =IF(BA2="","",(LARGE('A1'!$K$30:$L$105,(1+SUM(COUNTIF('A1'!$K$30:$L$105,$E$4:BA4))-(BA2*COUNTIF('A1'!$K$30:$L$105,$F$4)))))) ->  | BC4: =IF(BB2="","",(LARGE('A1'!$K$30:$L$105,(1+SUM(COUNTIF('A1'!$K$30:$L$105,$E$4:BB4))-(BB2*COUNTIF('A1'!$K$30:$L$105,$F$4)))))) ->  | BD4: =IF(BC2="","",(LARGE('A1'!$K$30:$L$105,(1+SUM(COUNTIF('A1'!$K$30:$L$105,$E$4:BC4))-(BC2*COUNTIF('A1'!$K$30:$L$105,$F$4)))))) ->  | BE4: =IF(BD2="","",(LARGE('A1'!$K$30:$L$105,(1+SUM(COUNTIF('A1'!$K$30:$L$105,$E$4:BD4))-(BD2*COUNTIF('A1'!$K$30:$L$105,$F$4)))))) ->  | BF4: =IF(BE2="","",(LARGE('A1'!$K$30:$L$105,(1+SUM(COUNTIF('A1'!$K$30:$L$105,$E$4:BE4))-(BE2*COUNTIF('A1'!$K$30:$L$105,$F$4)))))) ->  | BG4: =IF(BF2="","",(LARGE('A1'!$K$30:$L$105,(1+SUM(COUNTIF('A1'!$K$30:$L$105,$E$4:BF4))-(BF2*COUNTIF('A1'!$K$30:$L$105,$F$4)))))) ->  | BH4: =IF(BG2="","",(LARGE('A1'!$K$30:$L$105,(1+SUM(COUNTIF('A1'!$K$30:$L$105,$E$4:BG4))-(BG2*COUNTIF('A1'!$K$30:$L$105,$F$4)))))) ->  | BI4: =IF(BH2="","",(LARGE('A1'!$K$30:$L$105,(1+SUM(COUNTIF('A1'!$K$30:$L$105,$E$4:BH4))-(BH2*COUNTIF('A1'!$K$30:$L$105,$F$4)))))) ->  | BJ4: =IF(BI2="","",(LARGE('A1'!$K$30:$L$105,(1+SUM(COUNTIF('A1'!$K$30:$L$105,$E$4:BI4))-(BI2*COUNTIF('A1'!$K$30:$L$105,$F$4)))))) ->  | BK4: =IF(BJ2="","",(LARGE('A1'!$K$30:$L$105,(1+SUM(COUNTIF('A1'!$K$30:$L$105,$E$4:BJ4))-(BJ2*COUNTIF('A1'!$K$30:$L$105,$F$4)))))) ->  | BL4: =IF(BK2="","",(LARGE('A1'!$K$30:$L$105,(1+SUM(COUNTIF('A1'!$K$30:$L$105,$E$4:BK4))-(BK2*COUNTIF('A1'!$K$30:$L$105,$F$4)))))) ->  | BM4: =IF(BL2="","",(LARGE('A1'!$K$30:$L$105,(1+SUM(COUNTIF('A1'!$K$30:$L$105,$E$4:BL4))-(BL2*COUNTIF('A1'!$K$30:$L$105,$F$4)))))) ->  | BN4: =IF(BM2="","",(LARGE('A1'!$K$30:$L$105,(1+SUM(COUNTIF('A1'!$K$30:$L$105,$E$4:BM4))-(BM2*COUNTIF('A1'!$K$30:$L$105,$F$4)))))) ->  | BO4: =IF(BN2="","",(LARGE('A1'!$K$30:$L$105,(1+SUM(COUNTIF('A1'!$K$30:$L$105,$E$4:BN4))-(BN2*COUNTIF('A1'!$K$30:$L$105,$F$4)))))) ->  | BP4: =IF(BO2="","",(LARGE('A1'!$K$30:$L$105,(1+SUM(COUNTIF('A1'!$K$30:$L$105,$E$4:BO4))-(BO2*COUNTIF('A1'!$K$30:$L$105,$F$4)))))) ->  | BQ4: =IF(BP2="","",(LARGE('A1'!$K$30:$L$105,(1+SUM(COUNTIF('A1'!$K$30:$L$105,$E$4:BP4))-(BP2*COUNTIF('A1'!$K$30:$L$105,$F$4)))))) ->  | BR4: =IF(BQ2="","",(LARGE('A1'!$K$30:$L$105,(1+SUM(COUNTIF('A1'!$K$30:$L$105,$E$4:BQ4))-(BQ2*COUNTIF('A1'!$K$30:$L$105,$F$4)))))) ->  | BS4: =IF(BR2="","",(LARGE('A1'!$K$30:$L$105,(1+SUM(COUNTIF('A1'!$K$30:$L$105,$E$4:BR4))-(BR2*COUNTIF('A1'!$K$30:$L$105,$F$4)))))) ->  | BT4: =IF(BS2="","",(LARGE('A1'!$K$30:$L$105,(1+SUM(COUNTIF('A1'!$K$30:$L$105,$E$4:BS4))-(BS2*COUNTIF('A1'!$K$30:$L$105,$F$4)))))) ->  | BU4: =IF(BT2="","",(LARGE('A1'!$K$30:$L$105,(1+SUM(COUNTIF('A1'!$K$30:$L$105,$E$4:BT4))-(BT2*COUNTIF('A1'!$K$30:$L$105,$F$4)))))) ->  | BV4: =IF(BU2="","",(LARGE('A1'!$K$30:$L$105,(1+SUM(COUNTIF('A1'!$K$30:$L$105,$E$4:BU4))-(BU2*COUNTIF('A1'!$K$30:$L$105,$F$4)))))) ->  | BW4: =IF(BV2="","",(LARGE('A1'!$K$30:$L$105,(1+SUM(COUNTIF('A1'!$K$30:$L$105,$E$4:BV4))-(BV2*COUNTIF('A1'!$K$30:$L$105,$F$4)))))) ->  | BX4: =IF(BW2="","",(LARGE('A1'!$K$30:$L$105,(1+SUM(COUNTIF('A1'!$K$30:$L$105,$E$4:BW4))-(BW2*COUNTIF('A1'!$K$30:$L$105,$F$4)))))) ->  | BY4: =IF(BX2="","",(LARGE('A1'!$K$30:$L$105,(1+SUM(COUNTIF('A1'!$K$30:$L$105,$E$4:BX4))-(BX2*COUNTIF('A1'!$K$30:$L$105,$F$4)))))) ->  | BZ4: =IF(BY2="","",(LARGE('A1'!$K$30:$L$105,(1+SUM(COUNTIF('A1'!$K$30:$L$105,$E$4:BY4))-(BY2*COUNTIF('A1'!$K$30:$L$105,$F$4)))))) ->  | CA4: =IF(BZ2="","",(LARGE('A1'!$K$30:$L$105,(1+SUM(COUNTIF('A1'!$K$30:$L$105,$E$4:BZ4))-(BZ2*COUNTIF('A1'!$K$30:$L$105,$F$4)))))) ->  | CB4: =IF(CA2="","",(LARGE('A1'!$K$30:$L$105,(1+SUM(COUNTIF('A1'!$K$30:$L$105,$E$4:CA4))-(CA2*COUNTIF('A1'!$K$30:$L$105,$F$4)))))) ->  | CC4: =IF(CB2="","",(LARGE('A1'!$K$30:$L$105,(1+SUM(COUNTIF('A1'!$K$30:$L$105,$E$4:CB4))-(CB2*COUNTIF('A1'!$K$30:$L$105,$F$4)))))) ->  | CD4: =IF(CC2="","",(LARGE('A1'!$K$30:$L$105,(1+SUM(COUNTIF('A1'!$K$30:$L$105,$E$4:CC4))-(CC2*COUNTIF('A1'!$K$30:$L$105,$F$4)))))) ->  | CE4: =IF(CD2="","",(LARGE('A1'!$K$30:$L$105,(1+SUM(COUNTIF('A1'!$K$30:$L$105,$E$4:CD4))-(CD2*COUNTIF('A1'!$K$30:$L$105,$F$4)))))) ->  | CF4: =IF(CE2="","",(LARGE('A1'!$K$30:$L$105,(1+SUM(COUNTIF('A1'!$K$30:$L$105,$E$4:CE4))-(CE2*COUNTIF('A1'!$K$30:$L$105,$F$4)))))) ->  | CG4: =IF(CF2="","",(LARGE('A1'!$K$30:$L$105,(1+SUM(COUNTIF('A1'!$K$30:$L$105,$E$4:CF4))-(CF2*COUNTIF('A1'!$K$30:$L$105,$F$4)))))) ->  | CH4: =IF(CG2="","",(LARGE('A1'!$K$30:$L$105,(1+SUM(COUNTIF('A1'!$K$30:$L$105,$E$4:CG4))-(CG2*COUNTIF('A1'!$K$30:$L$105,$F$4)))))) ->  | CI4: =IF(CH2="","",(LARGE('A1'!$K$30:$L$105,(1+SUM(COUNTIF('A1'!$K$30:$L$105,$E$4:CH4))-(CH2*COUNTIF('A1'!$K$30:$L$105,$F$4)))))) ->  | CJ4: =IF(CI2="","",(LARGE('A1'!$K$30:$L$105,(1+SUM(COUNTIF('A1'!$K$30:$L$105,$E$4:CI4))-(CI2*COUNTIF('A1'!$K$30:$L$105,$F$4)))))) ->  | CK4: =IF(CJ2="","",(LARGE('A1'!$K$30:$L$105,(1+SUM(COUNTIF('A1'!$K$30:$L$105,$E$4:CJ4))-(CJ2*COUNTIF('A1'!$K$30:$L$105,$F$4)))))) ->  | CL4: =IF(CK2="","",(LARGE('A1'!$K$30:$L$105,(1+SUM(COUNTIF('A1'!$K$30:$L$105,$E$4:CK4))-(CK2*COUNTIF('A1'!$K$30:$L$105,$F$4)))))) ->  | CM4: =IF(CL2="","",(LARGE('A1'!$K$30:$L$105,(1+SUM(COUNTIF('A1'!$K$30:$L$105,$E$4:CL4))-(CL2*COUNTIF('A1'!$K$30:$L$105,$F$4)))))) ->  | CN4: =IF(CM2="","",(LARGE('A1'!$K$30:$L$105,(1+SUM(COUNTIF('A1'!$K$30:$L$105,$E$4:CM4))-(CM2*COUNTIF('A1'!$K$30:$L$105,$F$4)))))) ->  | CO4: =IF(CN2="","",(LARGE('A1'!$K$30:$L$105,(1+SUM(COUNTIF('A1'!$K$30:$L$105,$E$4:CN4))-(CN2*COUNTIF('A1'!$K$30:$L$105,$F$4)))))) ->  | CP4: =IF(CO2="","",(LARGE('A1'!$K$30:$L$105,(1+SUM(COUNTIF('A1'!$K$30:$L$105,$E$4:CO4))-(CO2*COUNTIF('A1'!$K$30:$L$105,$F$4)))))) ->  | CQ4: =IF(CP2="","",(LARGE('A1'!$K$30:$L$105,(1+SUM(COUNTIF('A1'!$K$30:$L$105,$E$4:CP4))-(CP2*COUNTIF('A1'!$K$30:$L$105,$F$4)))))) ->  | CR4: =IF(CQ2="","",(LARGE('A1'!$K$30:$L$105,(1+SUM(COUNTIF('A1'!$K$30:$L$105,$E$4:CQ4))-(CQ2*COUNTIF('A1'!$K$30:$L$105,$F$4)))))) ->  | CS4: =IF(CR2="","",(LARGE('A1'!$K$30:$L$105,(1+SUM(COUNTIF('A1'!$K$30:$L$105,$E$4:CR4))-(CR2*COUNTIF('A1'!$K$30:$L$105,$F$4)))))) ->  | CT4: =IF(CS2="","",(LARGE('A1'!$K$30:$L$105,(1+SUM(COUNTIF('A1'!$K$30:$L$105,$E$4:CS4))-(CS2*COUNTIF('A1'!$K$30:$L$105,$F$4)))))) ->  | CU4: =IF(CT2="","",(LARGE('A1'!$K$30:$L$105,(1+SUM(COUNTIF('A1'!$K$30:$L$105,$E$4:CT4))-(CT2*COUNTIF('A1'!$K$30:$L$105,$F$4)))))) ->  | CV4: =IF(CU2="","",(LARGE('A1'!$K$30:$L$105,(1+SUM(COUNTIF('A1'!$K$30:$L$105,$E$4:CU4))-(CU2*COUNTIF('A1'!$K$30:$L$105,$F$4)))))) ->  | CW4: =IF(CV2="","",(LARGE('A1'!$K$30:$L$105,(1+SUM(COUNTIF('A1'!$K$30:$L$105,$E$4:CV4))-(CV2*COUNTIF('A1'!$K$30:$L$105,$F$4)))))) ->  | CX4: =IF(CW2="","",(LARGE('A1'!$K$30:$L$105,(1+SUM(COUNTIF('A1'!$K$30:$L$105,$E$4:CW4))-(CW2*COUNTIF('A1'!$K$30:$L$105,$F$4)))))) ->  | CY4: =IF(CX2="","",(LARGE('A1'!$K$30:$L$105,(1+SUM(COUNTIF('A1'!$K$30:$L$105,$E$4:CX4))-(CX2*COUNTIF('A1'!$K$30:$L$105,$F$4)))))) ->  | CZ4: =IF(CY2="","",(LARGE('A1'!$K$30:$L$105,(1+SUM(COUNTIF('A1'!$K$30:$L$105,$E$4:CY4))-(CY2*COUNTIF('A1'!$K$30:$L$105,$F$4)))))) ->  | DA4: =IF(CZ2="","",(LARGE('A1'!$K$30:$L$105,(1+SUM(COUNTIF('A1'!$K$30:$L$105,$E$4:CZ4))-(CZ2*COUNTIF('A1'!$K$30:$L$105,$F$4)))))) ->  | DB4: =IF(DA2="","",(LARGE('A1'!$K$30:$L$105,(1+SUM(COUNTIF('A1'!$K$30:$L$105,$E$4:DA4))-(DA2*COUNTIF('A1'!$K$30:$L$105,$F$4)))))) ->  | DC4: =IF(DB2="","",(LARGE('A1'!$K$30:$L$105,(1+SUM(COUNTIF('A1'!$K$30:$L$105,$E$4:DB4))-(DB2*COUNTIF('A1'!$K$30:$L$105,$F$4)))))) ->  | DD4: =IF(DC2="","",(LARGE('A1'!$K$30:$L$105,(1+SUM(COUNTIF('A1'!$K$30:$L$105,$E$4:DC4))-(DC2*COUNTIF('A1'!$K$30:$L$105,$F$4)))))) ->  | DE4: =IF(DD2="","",(LARGE('A1'!$K$30:$L$105,(1+SUM(COUNTIF('A1'!$K$30:$L$105,$E$4:DD4))-(DD2*COUNTIF('A1'!$K$30:$L$105,$F$4)))))) ->  | DF4: =IF(DE2="","",(LARGE('A1'!$K$30:$L$105,(1+SUM(COUNTIF('A1'!$K$30:$L$105,$E$4:DE4))-(DE2*COUNTIF('A1'!$K$30:$L$105,$F$4)))))) ->  | DG4: =IF(DF2="","",(LARGE('A1'!$K$30:$L$105,(1+SUM(COUNTIF('A1'!$K$30:$L$105,$E$4:DF4))-(DF2*COUNTIF('A1'!$K$30:$L$105,$F$4)))))) ->  | DH4: =IF(DG2="","",(LARGE('A1'!$K$30:$L$105,(1+SUM(COUNTIF('A1'!$K$30:$L$105,$E$4:DG4))-(DG2*COUNTIF('A1'!$K$30:$L$105,$F$4)))))) ->  | DI4: =IF(DH2="","",(LARGE('A1'!$K$30:$L$105,(1+SUM(COUNTIF('A1'!$K$30:$L$105,$E$4:DH4))-(DH2*COUNTIF('A1'!$K$30:$L$105,$F$4)))))) ->  | DJ4: =IF(DI2="","",(LARGE('A1'!$K$30:$L$105,(1+SUM(COUNTIF('A1'!$K$30:$L$105,$E$4:DI4))-(DI2*COUNTIF('A1'!$K$30:$L$105,$F$4)))))) ->  | DK4: =IF(DJ2="","",(LARGE('A1'!$K$30:$L$105,(1+SUM(COUNTIF('A1'!$K$30:$L$105,$E$4:DJ4))-(DJ2*COUNTIF('A1'!$K$30:$L$105,$F$4)))))) ->  | DL4: =IF(DK2="","",(LARGE('A1'!$K$30:$L$105,(1+SUM(COUNTIF('A1'!$K$30:$L$105,$E$4:DK4))-(DK2*COUNTIF('A1'!$K$30:$L$105,$F$4)))))) ->  | DM4: =IF(DL2="","",(LARGE('A1'!$K$30:$L$105,(1+SUM(COUNTIF('A1'!$K$30:$L$105,$E$4:DL4))-(DL2*COUNTIF('A1'!$K$30:$L$105,$F$4)))))) ->  | DN4: =IF(DM2="","",(LARGE('A1'!$K$30:$L$105,(1+SUM(COUNTIF('A1'!$K$30:$L$105,$E$4:DM4))-(DM2*COUNTIF('A1'!$K$30:$L$105,$F$4)))))) ->  | DO4: =IF(DN2="","",(LARGE('A1'!$K$30:$L$105,(1+SUM(COUNTIF('A1'!$K$30:$L$105,$E$4:DN4))-(DN2*COUNTIF('A1'!$K$30:$L$105,$F$4)))))) ->  | DP4: =IF(DO2="","",(LARGE('A1'!$K$30:$L$105,(1+SUM(COUNTIF('A1'!$K$30:$L$105,$E$4:DO4))-(DO2*COUNTIF('A1'!$K$30:$L$105,$F$4)))))) ->  | DQ4: =IF(DP2="","",(LARGE('A1'!$K$30:$L$105,(1+SUM(COUNTIF('A1'!$K$30:$L$105,$E$4:DP4))-(DP2*COUNTIF('A1'!$K$30:$L$105,$F$4)))))) ->  | DR4: =IF(DQ2="","",(LARGE('A1'!$K$30:$L$105,(1+SUM(COUNTIF('A1'!$K$30:$L$105,$E$4:DQ4))-(DQ2*COUNTIF('A1'!$K$30:$L$105,$F$4)))))) ->  | DS4: =IF(DR2="","",(LARGE('A1'!$K$30:$L$105,(1+SUM(COUNTIF('A1'!$K$30:$L$105,$E$4:DR4))-(DR2*COUNTIF('A1'!$K$30:$L$105,$F$4)))))) ->  | DT4: =IF(DS2="","",(LARGE('A1'!$K$30:$L$105,(1+SUM(COUNTIF('A1'!$K$30:$L$105,$E$4:DS4))-(DS2*COUNTIF('A1'!$K$30:$L$105,$F$4)))))) ->  | DU4: =IF(DT2="","",(LARGE('A1'!$K$30:$L$105,(1+SUM(COUNTIF('A1'!$K$30:$L$105,$E$4:DT4))-(DT2*COUNTIF('A1'!$K$30:$L$105,$F$4)))))) ->  | DV4: =IF(DU2="","",(LARGE('A1'!$K$30:$L$105,(1+SUM(COUNTIF('A1'!$K$30:$L$105,$E$4:DU4))-(DU2*COUNTIF('A1'!$K$30:$L$105,$F$4)))))) ->  | DW4: =IF(DV2="","",(LARGE('A1'!$K$30:$L$105,(1+SUM(COUNTIF('A1'!$K$30:$L$105,$E$4:DV4))-(DV2*COUNTIF('A1'!$K$30:$L$105,$F$4)))))) ->  | DX4: =IF(DW2="","",(LARGE('A1'!$K$30:$L$105,(1+SUM(COUNTIF('A1'!$K$30:$L$105,$E$4:DW4))-(DW2*COUNTIF('A1'!$K$30:$L$105,$F$4)))))) ->  | DY4: =IF(DX2="","",(LARGE('A1'!$K$30:$L$105,(1+SUM(COUNTIF('A1'!$K$30:$L$105,$E$4:DX4))-(DX2*COUNTIF('A1'!$K$30:$L$105,$F$4)))))) ->  | DZ4: =IF(DY2="","",(LARGE('A1'!$K$30:$L$105,(1+SUM(COUNTIF('A1'!$K$30:$L$105,$E$4:DY4))-(DY2*COUNTIF('A1'!$K$30:$L$105,$F$4)))))) ->  | EA4: =IF(DZ2="","",(LARGE('A1'!$K$30:$L$105,(1+SUM(COUNTIF('A1'!$K$30:$L$105,$E$4:DZ4))-(DZ2*COUNTIF('A1'!$K$30:$L$105,$F$4)))))) ->  | EB4: =IF(EA2="","",(LARGE('A1'!$K$30:$L$105,(1+SUM(COUNTIF('A1'!$K$30:$L$105,$E$4:EA4))-(EA2*COUNTIF('A1'!$K$30:$L$105,$F$4)))))) ->  | EC4: =IF(EB2="","",(LARGE('A1'!$K$30:$L$105,(1+SUM(COUNTIF('A1'!$K$30:$L$105,$E$4:EB4))-(EB2*COUNTIF('A1'!$K$30:$L$105,$F$4)))))) ->  | ED4: =IF(EC2="","",(LARGE('A1'!$K$30:$L$105,(1+SUM(COUNTIF('A1'!$K$30:$L$105,$E$4:EC4))-(EC2*COUNTIF('A1'!$K$30:$L$105,$F$4)))))) ->  | EE4: =IF(ED2="","",(LARGE('A1'!$K$30:$L$105,(1+SUM(COUNTIF('A1'!$K$30:$L$105,$E$4:ED4))-(ED2*COUNTIF('A1'!$K$30:$L$105,$F$4)))))) ->  | EF4: =IF(EE2="","",(LARGE('A1'!$K$30:$L$105,(1+SUM(COUNTIF('A1'!$K$30:$L$105,$E$4:EE4))-(EE2*COUNTIF('A1'!$K$30:$L$105,$F$4)))))) ->  | EG4: =IF(EF2="","",(LARGE('A1'!$K$30:$L$105,(1+SUM(COUNTIF('A1'!$K$30:$L$105,$E$4:EF4))-(EF2*COUNTIF('A1'!$K$30:$L$105,$F$4)))))) ->  | EH4: =IF(EG2="","",(LARGE('A1'!$K$30:$L$105,(1+SUM(COUNTIF('A1'!$K$30:$L$105,$E$4:EG4))-(EG2*COUNTIF('A1'!$K$30:$L$105,$F$4)))))) ->  | EI4: =IF(EH2="","",(LARGE('A1'!$K$30:$L$105,(1+SUM(COUNTIF('A1'!$K$30:$L$105,$E$4:EH4))-(EH2*COUNTIF('A1'!$K$30:$L$105,$F$4)))))) ->  | EJ4: =IF(EI2="","",(LARGE('A1'!$K$30:$L$105,(1+SUM(COUNTIF('A1'!$K$30:$L$105,$E$4:EI4))-(EI2*COUNTIF('A1'!$K$30:$L$105,$F$4)))))) ->  | EK4: =IF(EJ2="","",(LARGE('A1'!$K$30:$L$105,(1+SUM(COUNTIF('A1'!$K$30:$L$105,$E$4:EJ4))-(EJ2*COUNTIF('A1'!$K$30:$L$105,$F$4)))))) ->  | EL4: =IF(EK2="","",(LARGE('A1'!$K$30:$L$105,(1+SUM(COUNTIF('A1'!$K$30:$L$105,$E$4:EK4))-(EK2*COUNTIF('A1'!$K$30:$L$105,$F$4)))))) ->  | EM4: =IF(EL2="","",(LARGE('A1'!$K$30:$L$105,(1+SUM(COUNTIF('A1'!$K$30:$L$105,$E$4:EL4))-(EL2*COUNTIF('A1'!$K$30:$L$105,$F$4)))))) ->  | EN4: =IF(EM2="","",(LARGE('A1'!$K$30:$L$105,(1+SUM(COUNTIF('A1'!$K$30:$L$105,$E$4:EM4))-(EM2*COUNTIF('A1'!$K$30:$L$105,$F$4)))))) ->  | EO4: =IF(EN2="","",(LARGE('A1'!$K$30:$L$105,(1+SUM(COUNTIF('A1'!$K$30:$L$105,$E$4:EN4))-(EN2*COUNTIF('A1'!$K$30:$L$105,$F$4)))))) ->  | EP4: =IF(EO2="","",(LARGE('A1'!$K$30:$L$105,(1+SUM(COUNTIF('A1'!$K$30:$L$105,$E$4:EO4))-(EO2*COUNTIF('A1'!$K$30:$L$105,$F$4)))))) ->  | EQ4: =IF(EP2="","",(LARGE('A1'!$K$30:$L$105,(1+SUM(COUNTIF('A1'!$K$30:$L$105,$E$4:EP4))-(EP2*COUNTIF('A1'!$K$30:$L$105,$F$4)))))) ->  | ER4: =IF(EQ2="","",(LARGE('A1'!$K$30:$L$105,(1+SUM(COUNTIF('A1'!$K$30:$L$105,$E$4:EQ4))-(EQ2*COUNTIF('A1'!$K$30:$L$105,$F$4)))))) ->  | ES4: =IF(ER2="","",(LARGE('A1'!$K$30:$L$105,(1+SUM(COUNTIF('A1'!$K$30:$L$105,$E$4:ER4))-(ER2*COUNTIF('A1'!$K$30:$L$105,$F$4)))))) ->  | ET4: =IF(ES2="","",(LARGE('A1'!$K$30:$L$105,(1+SUM(COUNTIF('A1'!$K$30:$L$105,$E$4:ES4))-(ES2*COUNTIF('A1'!$K$30:$L$105,$F$4)))))) ->  | EU4: =IF(ET2="","",(LARGE('A1'!$K$30:$L$105,(1+SUM(COUNTIF('A1'!$K$30:$L$105,$E$4:ET4))-(ET2*COUNTIF('A1'!$K$30:$L$105,$F$4)))))) ->  | EV4: =IF(EU2="","",(LARGE('A1'!$K$30:$L$105,(1+SUM(COUNTIF('A1'!$K$30:$L$105,$E$4:EU4))-(EU2*COUNTIF('A1'!$K$30:$L$105,$F$4)))))) ->  | EW4: =IF(EV2="","",(LARGE('A1'!$K$30:$L$105,(1+SUM(COUNTIF('A1'!$K$30:$L$105,$E$4:EV4))-(EV2*COUNTIF('A1'!$K$30:$L$105,$F$4)))))) ->  | EX4: =IF(EW2="","",(LARGE('A1'!$K$30:$L$105,(1+SUM(COUNTIF('A1'!$K$30:$L$105,$E$4:EW4))-(EW2*COUNTIF('A1'!$K$30:$L$105,$F$4)))))) ->  | EY4: =IF(EX2="","",(LARGE('A1'!$K$30:$L$105,(1+SUM(COUNTIF('A1'!$K$30:$L$105,$E$4:EX4))-(EX2*COUNTIF('A1'!$K$30:$L$105,$F$4)))))) ->  | EZ4: =IF(EY2="","",(LARGE('A1'!$K$30:$L$105,(1+SUM(COUNTIF('A1'!$K$30:$L$105,$E$4:EY4))-(EY2*COUNTIF('A1'!$K$30:$L$105,$F$4)))))) ->  | FA4: =IF(EZ2="","",(LARGE('A1'!$K$30:$L$105,(1+SUM(COUNTIF('A1'!$K$30:$L$105,$E$4:EZ4))-(EZ2*COUNTIF('A1'!$K$30:$L$105,$F$4)))))) ->  | FB4: =IF(FA2="","",(LARGE('A1'!$K$30:$L$105,(1+SUM(COUNTIF('A1'!$K$30:$L$105,$E$4:FA4))-(FA2*COUNTIF('A1'!$K$30:$L$105,$F$4)))))) ->  | FC4: =IF(FB2="","",(LARGE('A1'!$K$30:$L$105,(1+SUM(COUNTIF('A1'!$K$30:$L$105,$E$4:FB4))-(FB2*COUNTIF('A1'!$K$30:$L$105,$F$4)))))) ->  | FD4: =IF(FC2="","",(LARGE('A1'!$K$30:$L$105,(1+SUM(COUNTIF('A1'!$K$30:$L$105,$E$4:FC4))-(FC2*COUNTIF('A1'!$K$30:$L$105,$F$4)))))) ->  | FE4: =IF(FD2="","",(LARGE('A1'!$K$30:$L$105,(1+SUM(COUNTIF('A1'!$K$30:$L$105,$E$4:FD4))-(FD2*COUNTIF('A1'!$K$30:$L$105,$F$4)))))) ->  | FF4: =IF(FE2="","",(LARGE('A1'!$K$30:$L$105,(1+SUM(COUNTIF('A1'!$K$30:$L$105,$E$4:FE4))-(FE2*COUNTIF('A1'!$K$30:$L$105,$F$4)))))) ->  | FG4: =IF(FF2="","",(LARGE('A1'!$K$30:$L$105,(1+SUM(COUNTIF('A1'!$K$30:$L$105,$E$4:FF4))-(FF2*COUNTIF('A1'!$K$30:$L$105,$F$4)))))) ->  | FH4: =IF(FG2="","",(LARGE('A1'!$K$30:$L$105,(1+SUM(COUNTIF('A1'!$K$30:$L$105,$E$4:FG4))-(FG2*COUNTIF('A1'!$K$30:$L$105,$F$4)))))) ->  | FI4: =IF(FH2="","",(LARGE('A1'!$K$30:$L$105,(1+SUM(COUNTIF('A1'!$K$30:$L$105,$E$4:FH4))-(FH2*COUNTIF('A1'!$K$30:$L$105,$F$4)))))) ->  | FJ4: =IF(FI2="","",(LARGE('A1'!$K$30:$L$105,(1+SUM(COUNTIF('A1'!$K$30:$L$105,$E$4:FI4))-(FI2*COUNTIF('A1'!$K$30:$L$105,$F$4)))))) ->  | FK4: =IF(FJ2="","",(LARGE('A1'!$K$30:$L$105,(1+SUM(COUNTIF('A1'!$K$30:$L$105,$E$4:FJ4))-(FJ2*COUNTIF('A1'!$K$30:$L$105,$F$4)))))) ->  | FL4: =IF(FK2="","",(LARGE('A1'!$K$30:$L$105,(1+SUM(COUNTIF('A1'!$K$30:$L$105,$E$4:FK4))-(FK2*COUNTIF('A1'!$K$30:$L$105,$F$4)))))) ->  | FM4: =IF(FL2="","",(LARGE('A1'!$K$30:$L$105,(1+SUM(COUNTIF('A1'!$K$30:$L$105,$E$4:FL4))-(FL2*COUNTIF('A1'!$K$30:$L$105,$F$4)))))) ->  | FN4: =IF(FM2="","",(LARGE('A1'!$K$30:$L$105,(1+SUM(COUNTIF('A1'!$K$30:$L$105,$E$4:FM4))-(FM2*COUNTIF('A1'!$K$30:$L$105,$F$4)))))) ->  | FO4: =IF(FN2="","",(LARGE('A1'!$K$30:$L$105,(1+SUM(COUNTIF('A1'!$K$30:$L$105,$E$4:FN4))-(FN2*COUNTIF('A1'!$K$30:$L$105,$F$4)))))) ->  | FP4: =IF(FO2="","",(LARGE('A1'!$K$30:$L$105,(1+SUM(COUNTIF('A1'!$K$30:$L$105,$E$4:FO4))-(FO2*COUNTIF('A1'!$K$30:$L$105,$F$4)))))) ->  | FQ4: =IF(FP2="","",(LARGE('A1'!$K$30:$L$105,(1+SUM(COUNTIF('A1'!$K$30:$L$105,$E$4:FP4))-(FP2*COUNTIF('A1'!$K$30:$L$105,$F$4)))))) ->  | FR4: =IF(FQ2="","",(LARGE('A1'!$K$30:$L$105,(1+SUM(COUNTIF('A1'!$K$30:$L$105,$E$4:FQ4))-(FQ2*COUNTIF('A1'!$K$30:$L$105,$F$4)))))) ->  | FS4: =IF(FR2="","",(LARGE('A1'!$K$30:$L$105,(1+SUM(COUNTIF('A1'!$K$30:$L$105,$E$4:FR4))-(FR2*COUNTIF('A1'!$K$30:$L$105,$F$4)))))) ->  | FT4: =IF(FS2="","",(LARGE('A1'!$K$30:$L$105,(1+SUM(COUNTIF('A1'!$K$30:$L$105,$E$4:FS4))-(FS2*COUNTIF('A1'!$K$30:$L$105,$F$4)))))) ->  | FU4: =IF(FT2="","",(LARGE('A1'!$K$30:$L$105,(1+SUM(COUNTIF('A1'!$K$30:$L$105,$E$4:FT4))-(FT2*COUNTIF('A1'!$K$30:$L$105,$F$4)))))) ->  | FV4: =IF(FU2="","",(LARGE('A1'!$K$30:$L$105,(1+SUM(COUNTIF('A1'!$K$30:$L$105,$E$4:FU4))-(FU2*COUNTIF('A1'!$K$30:$L$105,$F$4)))))) ->  | FW4: =IF(FV2="","",(LARGE('A1'!$K$30:$L$105,(1+SUM(COUNTIF('A1'!$K$30:$L$105,$E$4:FV4))-(FV2*COUNTIF('A1'!$K$30:$L$105,$F$4)))))) ->  | FX4: =IF(FW2="","",(LARGE('A1'!$K$30:$L$105,(1+SUM(COUNTIF('A1'!$K$30:$L$105,$E$4:FW4))-(FW2*COUNTIF('A1'!$K$30:$L$105,$F$4)))))) ->  | FY4: =IF(FX2="","",(LARGE('A1'!$K$30:$L$105,(1+SUM(COUNTIF('A1'!$K$30:$L$105,$E$4:FX4))-(FX2*COUNTIF('A1'!$K$30:$L$105,$F$4)))))) ->  | FZ4: =IF(FY2="","",(LARGE('A1'!$K$30:$L$105,(1+SUM(COUNTIF('A1'!$K$30:$L$105,$E$4:FY4))-(FY2*COUNTIF('A1'!$K$30:$L$105,$F$4)))))) ->  | GA4: =IF(FZ2="","",(LARGE('A1'!$K$30:$L$105,(1+SUM(COUNTIF('A1'!$K$30:$L$105,$E$4:FZ4))-(FZ2*COUNTIF('A1'!$K$30:$L$105,$F$4)))))) ->  | GB4: =IF(GA2="","",(LARGE('A1'!$K$30:$L$105,(1+SUM(COUNTIF('A1'!$K$30:$L$105,$E$4:GA4))-(GA2*COUNTIF('A1'!$K$30:$L$105,$F$4)))))) ->  | GC4: =IF(GB2="","",(LARGE('A1'!$K$30:$L$105,(1+SUM(COUNTIF('A1'!$K$30:$L$105,$E$4:GB4))-(GB2*COUNTIF('A1'!$K$30:$L$105,$F$4)))))) ->  | GD4: =IF(GC2="","",(LARGE('A1'!$K$30:$L$105,(1+SUM(COUNTIF('A1'!$K$30:$L$105,$E$4:GC4))-(GC2*COUNTIF('A1'!$K$30:$L$105,$F$4)))))) ->  | GE4: =IF(GD2="","",(LARGE('A1'!$K$30:$L$105,(1+SUM(COUNTIF('A1'!$K$30:$L$105,$E$4:GD4))-(GD2*COUNTIF('A1'!$K$30:$L$105,$F$4)))))) ->  | GF4: =IF(GE2="","",(LARGE('A1'!$K$30:$L$105,(1+SUM(COUNTIF('A1'!$K$30:$L$105,$E$4:GE4))-(GE2*COUNTIF('A1'!$K$30:$L$105,$F$4)))))) ->  | GG4: =IF(GF2="","",(LARGE('A1'!$K$30:$L$105,(1+SUM(COUNTIF('A1'!$K$30:$L$105,$E$4:GF4))-(GF2*COUNTIF('A1'!$K$30:$L$105,$F$4)))))) ->  | GH4: =IF(GG2="","",(LARGE('A1'!$K$30:$L$105,(1+SUM(COUNTIF('A1'!$K$30:$L$105,$E$4:GG4))-(GG2*COUNTIF('A1'!$K$30:$L$105,$F$4)))))) ->  | GI4: =IF(GH2="","",(LARGE('A1'!$K$30:$L$105,(1+SUM(COUNTIF('A1'!$K$30:$L$105,$E$4:GH4))-(GH2*COUNTIF('A1'!$K$30:$L$105,$F$4)))))) ->  | GJ4: =IF(GI2="","",(LARGE('A1'!$K$30:$L$105,(1+SUM(COUNTIF('A1'!$K$30:$L$105,$E$4:GI4))-(GI2*COUNTIF('A1'!$K$30:$L$105,$F$4)))))) ->  | GK4: =IF(GJ2="","",(LARGE('A1'!$K$30:$L$105,(1+SUM(COUNTIF('A1'!$K$30:$L$105,$E$4:GJ4))-(GJ2*COUNTIF('A1'!$K$30:$L$105,$F$4)))))) ->  | GL4: =IF(GK2="","",(LARGE('A1'!$K$30:$L$105,(1+SUM(COUNTIF('A1'!$K$30:$L$105,$E$4:GK4))-(GK2*COUNTIF('A1'!$K$30:$L$105,$F$4)))))) ->  | GM4: =IF(GL2="","",(LARGE('A1'!$K$30:$L$105,(1+SUM(COUNTIF('A1'!$K$30:$L$105,$E$4:GL4))-(GL2*COUNTIF('A1'!$K$30:$L$105,$F$4)))))) ->  | GN4: =IF(GM2="","",(LARGE('A1'!$K$30:$L$105,(1+SUM(COUNTIF('A1'!$K$30:$L$105,$E$4:GM4))-(GM2*COUNTIF('A1'!$K$30:$L$105,$F$4)))))) ->  | GO4: =IF(GN2="","",(LARGE('A1'!$K$30:$L$105,(1+SUM(COUNTIF('A1'!$K$30:$L$105,$E$4:GN4))-(GN2*COUNTIF('A1'!$K$30:$L$105,$F$4)))))) ->  | GP4: =IF(GO2="","",(LARGE('A1'!$K$30:$L$105,(1+SUM(COUNTIF('A1'!$K$30:$L$105,$E$4:GO4))-(GO2*COUNTIF('A1'!$K$30:$L$105,$F$4)))))) ->  | GQ4: =IF(GP2="","",(LARGE('A1'!$K$30:$L$105,(1+SUM(COUNTIF('A1'!$K$30:$L$105,$E$4:GP4))-(GP2*COUNTIF('A1'!$K$30:$L$105,$F$4)))))) ->  | GR4: =IF(GQ2="","",(LARGE('A1'!$K$30:$L$105,(1+SUM(COUNTIF('A1'!$K$30:$L$105,$E$4:GQ4))-(GQ2*COUNTIF('A1'!$K$30:$L$105,$F$4)))))) ->  | GS4: =IF(GR2="","",(LARGE('A1'!$K$30:$L$105,(1+SUM(COUNTIF('A1'!$K$30:$L$105,$E$4:GR4))-(GR2*COUNTIF('A1'!$K$30:$L$105,$F$4)))))) ->  | GT4: =IF(GS2="","",(LARGE('A1'!$K$30:$L$105,(1+SUM(COUNTIF('A1'!$K$30:$L$105,$E$4:GS4))-(GS2*COUNTIF('A1'!$K$30:$L$105,$F$4)))))) ->  | GU4: =IF(GT2="","",(LARGE('A1'!$K$30:$L$105,(1+SUM(COUNTIF('A1'!$K$30:$L$105,$E$4:GT4))-(GT2*COUNTIF('A1'!$K$30:$L$105,$F$4)))))) -> 
A5: =IF(('A1'!A30:A79)="","",('A1'!A30:A79)) -> 1 | B5: =IF(('A1'!I30:I79)="","",('A1'!I30:I79)) -> 450 | C5: =IF(('A1'!H30:H79)="","",('A1'!H30:H79)) -> 3 | D5: =IF(('A1'!J30:J79)="","",('A1'!J30:J79)) -> HOT | E5: =IF($D$5:$D$54="","",IF($D$5:$D$54="HOT",IF(('A1'!$K$30:$K$80)=E$4,"●",IF(TRANSPOSE('A1'!$L$30:$L$80)=E$4,"▼",IF(D$5:D$54="|","|",""))),IF(('A1'!$K$30:$K$80)=E$4,"●",IF(('A1'!$L$30:$L$80)=E$4,"▲",IF(D$5:D$54="|","|",""))))) ->  | F5: =IF($D$5:$D$54="","",IF($D$5:$D$54="HOT",IF(E$5:E$54="●","|",IF(E$5:E$54="|","|","")),IF(E$5:E$54="▲","|",IF(E$5:E$54="|","|","")))) ->  | G5: =IF($D$5:$D$54="","",IF($D$5:$D$54="HOT",IF(('A1'!$K$30:$K$80)=G$4,"●",IF(('A1'!$L$30:$L$80)=G$4,"▼",IF(F$5:F$54="|","|",""))),IF(('A1'!$K$30:$K$80)=G$4,"●",IF(('A1'!$L$30:$L$80)=G$4,"▲",IF(F$5:F$54="|","|",""))))) ->  | H5: =IF($D$5:$D$54="","",IF($D$5:$D$54="HOT",IF(G$5:G$54="●","|",IF(G$5:G$54="|","|","")),IF(G$5:G$54="▲","|",IF(G$5:G$54="|","|","")))) ->  | I5: =IF($D$5:$D$54="","",IF($D$5:$D$54="HOT",IF(('A1'!$K$30:$K$80)=I$4,"●",IF(('A1'!$L$30:$L$80)=I$4,"▼",IF(H$5:H$54="|","|",""))),IF(('A1'!$K$30:$K$80)=I$4,"●",IF(('A1'!$L$30:$L$80)=I$4,"▲",IF(H$5:H$54="|","|",""))))) ->  | J5: =IF($D$5:$D$54="","",IF($D$5:$D$54="HOT",IF(I$5:I$54="●","|",IF(I$5:I$54="|","|","")),IF(I$5:I$54="▲","|",IF(I$5:I$54="|","|","")))) ->  | K5: =IF($D$5:$D$54="","",IF($D$5:$D$54="HOT",IF(('A1'!$K$30:$K$80)=K$4,"●",IF(('A1'!$L$30:$L$80)=K$4,"▼",IF(J$5:J$54="|","|",""))),IF(('A1'!$K$30:$K$80)=K$4,"●",IF(('A1'!$L$30:$L$80)=K$4,"▲",IF(J$5:J$54="|","|",""))))) -> ● | L5: =IF($D$5:$D$54="","",IF($D$5:$D$54="HOT",IF(K$5:K$54="●","|",IF(K$5:K$54="|","|","")),IF(K$5:K$54="▲","|",IF(K$5:K$54="|","|","")))) -> | | M5: =IF($D$5:$D$54="","",IF($D$5:$D$54="HOT",IF(('A1'!$K$30:$K$80)=M$4,"●",IF(('A1'!$L$30:$L$80)=M$4,"▼",IF(L$5:L$54="|","|",""))),IF(('A1'!$K$30:$K$80)=M$4,"●",IF(('A1'!$L$30:$L$80)=M$4,"▲",IF(L$5:L$54="|","|",""))))) -> | | N5: =IF($D$5:$D$54="","",IF($D$5:$D$54="HOT",IF(M$5:M$54="●","|",IF(M$5:M$54="|","|","")),IF(M$5:M$54="▲","|",IF(M$5:M$54="|","|","")))) -> | | O5: =IF($D$5:$D$54="","",IF($D$5:$D$54="HOT",IF(('A1'!$K$30:$K$80)=O$4,"●",IF(('A1'!$L$30:$L$80)=O$4,"▼",IF(N$5:N$54="|","|",""))),IF(('A1'!$K$30:$K$80)=O$4,"●",IF(('A1'!$L$30:$L$80)=O$4,"▲",IF(N$5:N$54="|","|",""))))) -> | | P5: =IF($D$5:$D$54="","",IF($D$5:$D$54="HOT",IF(O$5:O$54="●","|",IF(O$5:O$54="|","|","")),IF(O$5:O$54="▲","|",IF(O$5:O$54="|","|","")))) -> | | Q5: =IF($D$5:$D$54="","",IF($D$5:$D$54="HOT",IF(('A1'!$K$30:$K$80)=Q$4,"●",IF(('A1'!$L$30:$L$80)=Q$4,"▼",IF(P$5:P$54="|","|",""))),IF(('A1'!$K$30:$K$80)=Q$4,"●",IF(('A1'!$L$30:$L$80)=Q$4,"▲",IF(P$5:P$54="|","|",""))))) -> | | R5: =IF($D$5:$D$54="","",IF($D$5:$D$54="HOT",IF(Q$5:Q$54="●","|",IF(Q$5:Q$54="|","|","")),IF(Q$5:Q$54="▲","|",IF(Q$5:Q$54="|","|","")))) -> | | S5: =IF($D$5:$D$54="","",IF($D$5:$D$54="HOT",IF(('A1'!$K$30:$K$80)=S$4,"●",IF(('A1'!$L$30:$L$80)=S$4,"▼",IF(R$5:R$54="|","|",""))),IF(('A1'!$K$30:$K$80)=S$4,"●",IF(('A1'!$L$30:$L$80)=S$4,"▲",IF(R$5:R$54="|","|",""))))) -> | | T5: =IF($D$5:$D$54="","",IF($D$5:$D$54="HOT",IF(S$5:S$54="●","|",IF(S$5:S$54="|","|","")),IF(S$5:S$54="▲","|",IF(S$5:S$54="|","|","")))) -> | | U5: =IF($D$5:$D$54="","",IF($D$5:$D$54="HOT",IF(('A1'!$K$30:$K$80)=U$4,"●",IF(('A1'!$L$30:$L$80)=U$4,"▼",IF(T$5:T$54="|","|",""))),IF(('A1'!$K$30:$K$80)=U$4,"●",IF(('A1'!$L$30:$L$80)=U$4,"▲",IF(T$5:T$54="|","|",""))))) -> ▼ | V5: =IF($D$5:$D$54="","",IF($D$5:$D$54="HOT",IF(U$5:U$54="●","|",IF(U$5:U$54="|","|","")),IF(U$5:U$54="▲","|",IF(U$5:U$54="|","|","")))) ->  | W5: =IF($D$5:$D$54="","",IF($D$5:$D$54="HOT",IF(('A1'!$K$30:$K$80)=W$4,"●",IF(('A1'!$L$30:$L$80)=W$4,"▼",IF(V$5:V$54="|","|",""))),IF(('A1'!$K$30:$K$80)=W$4,"●",IF(('A1'!$L$30:$L$80)=W$4,"▲",IF(V$5:V$54="|","|",""))))) ->  | X5: =IF($D$5:$D$54="","",IF($D$5:$D$54="HOT",IF(W$5:W$54="●","|",IF(W$5:W$54="|","|","")),IF(W$5:W$54="▲","|",IF(W$5:W$54="|","|","")))) ->  | Y5: =IF($D$5:$D$54="","",IF($D$5:$D$54="HOT",IF(('A1'!$K$30:$K$80)=Y$4,"●",IF(('A1'!$L$30:$L$80)=Y$4,"▼",IF(X$5:X$54="|","|",""))),IF(('A1'!$K$30:$K$80)=Y$4,"●",IF(('A1'!$L$30:$L$80)=Y$4,"▲",IF(X$5:X$54="|","|",""))))) ->  | Z5: =IF($D$5:$D$54="","",IF($D$5:$D$54="HOT",IF(Y$5:Y$54="●","|",IF(Y$5:Y$54="|","|","")),IF(Y$5:Y$54="▲","|",IF(Y$5:Y$54="|","|","")))) ->  | AA5: =IF($D$5:$D$54="","",IF($D$5:$D$54="HOT",IF(('A1'!$K$30:$K$80)=AA$4,"●",IF(('A1'!$L$30:$L$80)=AA$4,"▼",IF(Z$5:Z$54="|","|",""))),IF(('A1'!$K$30:$K$80)=AA$4,"●",IF(('A1'!$L$30:$L$80)=AA$4,"▲",IF(Z$5:Z$54="|","|",""))))) ->  | AB5: =IF($D$5:$D$54="","",IF($D$5:$D$54="HOT",IF(AA$5:AA$54="●","|",IF(AA$5:AA$54="|","|","")),IF(AA$5:AA$54="▲","|",IF(AA$5:AA$54="|","|","")))) ->  | AC5: =IF($D$5:$D$54="","",IF($D$5:$D$54="HOT",IF(('A1'!$K$30:$K$80)=AC$4,"●",IF(('A1'!$L$30:$L$80)=AC$4,"▼",IF(AB$5:AB$54="|","|",""))),IF(('A1'!$K$30:$K$80)=AC$4,"●",IF(('A1'!$L$30:$L$80)=AC$4,"▲",IF(AB$5:AB$54="|","|",""))))) ->  | AD5: =IF($D$5:$D$54="","",IF($D$5:$D$54="HOT",IF(AC$5:AC$54="●","|",IF(AC$5:AC$54="|","|","")),IF(AC$5:AC$54="▲","|",IF(AC$5:AC$54="|","|","")))) ->  | AE5: =IF($D$5:$D$54="","",IF($D$5:$D$54="HOT",IF(('A1'!$K$30:$K$80)=AE$4,"●",IF(('A1'!$L$30:$L$80)=AE$4,"▼",IF(AD$5:AD$54="|","|",""))),IF(('A1'!$K$30:$K$80)=AE$4,"●",IF(('A1'!$L$30:$L$80)=AE$4,"▲",IF(AD$5:AD$54="|","|",""))))) ->  | AF5: =IF($D$5:$D$54="","",IF($D$5:$D$54="HOT",IF(AE$5:AE$54="●","|",IF(AE$5:AE$54="|","|","")),IF(AE$5:AE$54="▲","|",IF(AE$5:AE$54="|","|","")))) ->  | AG5: =IF($D$5:$D$54="","",IF($D$5:$D$54="HOT",IF(('A1'!$K$30:$K$80)=AG$4,"●",IF(('A1'!$L$30:$L$80)=AG$4,"▼",IF(AF$5:AF$54="|","|",""))),IF(('A1'!$K$30:$K$80)=AG$4,"●",IF(('A1'!$L$30:$L$80)=AG$4,"▲",IF(AF$5:AF$54="|","|",""))))) ->  | AH5: =IF($D$5:$D$54="","",IF($D$5:$D$54="HOT",IF(AG$5:AG$54="●","|",IF(AG$5:AG$54="|","|","")),IF(AG$5:AG$54="▲","|",IF(AG$5:AG$54="|","|","")))) ->  | AI5: =IF($D$5:$D$54="","",IF($D$5:$D$54="HOT",IF(('A1'!$K$30:$K$80)=AI$4,"●",IF(('A1'!$L$30:$L$80)=AI$4,"▼",IF(AH$5:AH$54="|","|",""))),IF(('A1'!$K$30:$K$80)=AI$4,"●",IF(('A1'!$L$30:$L$80)=AI$4,"▲",IF(AH$5:AH$54="|","|",""))))) ->  | AJ5: =IF($D$5:$D$54="","",IF($D$5:$D$54="HOT",IF(AI$5:AI$54="●","|",IF(AI$5:AI$54="|","|","")),IF(AI$5:AI$54="▲","|",IF(AI$5:AI$54="|","|","")))) ->  | AK5: =IF($D$5:$D$54="","",IF($D$5:$D$54="HOT",IF(('A1'!$K$30:$K$80)=AK$4,"●",IF(('A1'!$L$30:$L$80)=AK$4,"▼",IF(AJ$5:AJ$54="|","|",""))),IF(('A1'!$K$30:$K$80)=AK$4,"●",IF(('A1'!$L$30:$L$80)=AK$4,"▲",IF(AJ$5:AJ$54="|","|",""))))) ->  | AL5: =IF($D$5:$D$54="","",IF($D$5:$D$54="HOT",IF(AK$5:AK$54="●","|",IF(AK$5:AK$54="|","|","")),IF(AK$5:AK$54="▲","|",IF(AK$5:AK$54="|","|","")))) ->  | AM5: =IF($D$5:$D$54="","",IF($D$5:$D$54="HOT",IF(('A1'!$K$30:$K$80)=AM$4,"●",IF(('A1'!$L$30:$L$80)=AM$4,"▼",IF(AL$5:AL$54="|","|",""))),IF(('A1'!$K$30:$K$80)=AM$4,"●",IF(('A1'!$L$30:$L$80)=AM$4,"▲",IF(AL$5:AL$54="|","|",""))))) ->  | AN5: =IF($D$5:$D$54="","",IF($D$5:$D$54="HOT",IF(AM$5:AM$54="●","|",IF(AM$5:AM$54="|","|","")),IF(AM$5:AM$54="▲","|",IF(AM$5:AM$54="|","|","")))) ->  | AO5: =IF($D$5:$D$54="","",IF($D$5:$D$54="HOT",IF(('A1'!$K$30:$K$80)=AO$4,"●",IF(('A1'!$L$30:$L$80)=AO$4,"▼",IF(AN$5:AN$54="|","|",""))),IF(('A1'!$K$30:$K$80)=AO$4,"●",IF(('A1'!$L$30:$L$80)=AO$4,"▲",IF(AN$5:AN$54="|","|",""))))) ->  | AP5: =IF($D$5:$D$54="","",IF($D$5:$D$54="HOT",IF(AO$5:AO$54="●","|",IF(AO$5:AO$54="|","|","")),IF(AO$5:AO$54="▲","|",IF(AO$5:AO$54="|","|","")))) ->  | AQ5: =IF($D$5:$D$54="","",IF($D$5:$D$54="HOT",IF(('A1'!$K$30:$K$80)=AQ$4,"●",IF(('A1'!$L$30:$L$80)=AQ$4,"▼",IF(AP$5:AP$54="|","|",""))),IF(('A1'!$K$30:$K$80)=AQ$4,"●",IF(('A1'!$L$30:$L$80)=AQ$4,"▲",IF(AP$5:AP$54="|","|",""))))) ->  | AR5: =IF($D$5:$D$54="","",IF($D$5:$D$54="HOT",IF(AQ$5:AQ$54="●","|",IF(AQ$5:AQ$54="|","|","")),IF(AQ$5:AQ$54="▲","|",IF(AQ$5:AQ$54="|","|","")))) ->  | AS5: =IF($D$5:$D$54="","",IF($D$5:$D$54="HOT",IF(('A1'!$K$30:$K$80)=AS$4,"●",IF(('A1'!$L$30:$L$80)=AS$4,"▼",IF(AR$5:AR$54="|","|",""))),IF(('A1'!$K$30:$K$80)=AS$4,"●",IF(('A1'!$L$30:$L$80)=AS$4,"▲",IF(AR$5:AR$54="|","|",""))))) ->  | AT5: =IF($D$5:$D$54="","",IF($D$5:$D$54="HOT",IF(AS$5:AS$54="●","|",IF(AS$5:AS$54="|","|","")),IF(AS$5:AS$54="▲","|",IF(AS$5:AS$54="|","|","")))) ->  | AU5: =IF($D$5:$D$54="","",IF($D$5:$D$54="HOT",IF(('A1'!$K$30:$K$80)=AU$4,"●",IF(('A1'!$L$30:$L$80)=AU$4,"▼",IF(AT$5:AT$54="|","|",""))),IF(('A1'!$K$30:$K$80)=AU$4,"●",IF(('A1'!$L$30:$L$80)=AU$4,"▲",IF(AT$5:AT$54="|","|",""))))) ->  | AV5: =IF($D$5:$D$54="","",IF($D$5:$D$54="HOT",IF(AU$5:AU$54="●","|",IF(AU$5:AU$54="|","|","")),IF(AU$5:AU$54="▲","|",IF(AU$5:AU$54="|","|","")))) ->  | AW5: =IF($D$5:$D$54="","",IF($D$5:$D$54="HOT",IF(('A1'!$K$30:$K$80)=AW$4,"●",IF(('A1'!$L$30:$L$80)=AW$4,"▼",IF(AV$5:AV$54="|","|",""))),IF(('A1'!$K$30:$K$80)=AW$4,"●",IF(('A1'!$L$30:$L$80)=AW$4,"▲",IF(AV$5:AV$54="|","|",""))))) ->  | AX5: =IF($D$5:$D$54="","",IF($D$5:$D$54="HOT",IF(AW$5:AW$54="●","|",IF(AW$5:AW$54="|","|","")),IF(AW$5:AW$54="▲","|",IF(AW$5:AW$54="|","|","")))) ->  | AY5: =IF($D$5:$D$54="","",IF($D$5:$D$54="HOT",IF(('A1'!$K$30:$K$80)=AY$4,"●",IF(('A1'!$L$30:$L$80)=AY$4,"▼",IF(AX$5:AX$54="|","|",""))),IF(('A1'!$K$30:$K$80)=AY$4,"●",IF(('A1'!$L$30:$L$80)=AY$4,"▲",IF(AX$5:AX$54="|","|",""))))) ->  | AZ5: =IF($D$5:$D$54="","",IF($D$5:$D$54="HOT",IF(AY$5:AY$54="●","|",IF(AY$5:AY$54="|","|","")),IF(AY$5:AY$54="▲","|",IF(AY$5:AY$54="|","|","")))) ->  | BA5: =IF($D$5:$D$54="","",IF($D$5:$D$54="HOT",IF(('A1'!$K$30:$K$80)=BA$4,"●",IF(('A1'!$L$30:$L$80)=BA$4,"▼",IF(AZ$5:AZ$54="|","|",""))),IF(('A1'!$K$30:$K$80)=BA$4,"●",IF(('A1'!$L$30:$L$80)=BA$4,"▲",IF(AZ$5:AZ$54="|","|",""))))) ->  | BB5: =IF($D$5:$D$54="","",IF($D$5:$D$54="HOT",IF(BA$5:BA$54="●","|",IF(BA$5:BA$54="|","|","")),IF(BA$5:BA$54="▲","|",IF(BA$5:BA$54="|","|","")))) ->  | BC5: =IF($D$5:$D$54="","",IF($D$5:$D$54="HOT",IF(('A1'!$K$30:$K$80)=BC$4,"●",IF(('A1'!$L$30:$L$80)=BC$4,"▼",IF(BB$5:BB$54="|","|",""))),IF(('A1'!$K$30:$K$80)=BC$4,"●",IF(('A1'!$L$30:$L$80)=BC$4,"▲",IF(BB$5:BB$54="|","|",""))))) ->  | BD5: =IF($D$5:$D$54="","",IF($D$5:$D$54="HOT",IF(BC$5:BC$54="●","|",IF(BC$5:BC$54="|","|","")),IF(BC$5:BC$54="▲","|",IF(BC$5:BC$54="|","|","")))) ->  | BE5: =IF($D$5:$D$54="","",IF($D$5:$D$54="HOT",IF(('A1'!$K$30:$K$80)=BE$4,"●",IF(('A1'!$L$30:$L$80)=BE$4,"▼",IF(BD$5:BD$54="|","|",""))),IF(('A1'!$K$30:$K$80)=BE$4,"●",IF(('A1'!$L$30:$L$80)=BE$4,"▲",IF(BD$5:BD$54="|","|",""))))) ->  | BF5: =IF($D$5:$D$54="","",IF($D$5:$D$54="HOT",IF(BE$5:BE$54="●","|",IF(BE$5:BE$54="|","|","")),IF(BE$5:BE$54="▲","|",IF(BE$5:BE$54="|","|","")))) ->  | BG5: =IF($D$5:$D$54="","",IF($D$5:$D$54="HOT",IF(('A1'!$K$30:$K$80)=BG$4,"●",IF(('A1'!$L$30:$L$80)=BG$4,"▼",IF(BF$5:BF$54="|","|",""))),IF(('A1'!$K$30:$K$80)=BG$4,"●",IF(('A1'!$L$30:$L$80)=BG$4,"▲",IF(BF$5:BF$54="|","|",""))))) ->  | BH5: =IF($D$5:$D$54="","",IF($D$5:$D$54="HOT",IF(BG$5:BG$54="●","|",IF(BG$5:BG$54="|","|","")),IF(BG$5:BG$54="▲","|",IF(BG$5:BG$54="|","|","")))) ->  | BI5: =IF($D$5:$D$54="","",IF($D$5:$D$54="HOT",IF(('A1'!$K$30:$K$80)=BI$4,"●",IF(('A1'!$L$30:$L$80)=BI$4,"▼",IF(BH$5:BH$54="|","|",""))),IF(('A1'!$K$30:$K$80)=BI$4,"●",IF(('A1'!$L$30:$L$80)=BI$4,"▲",IF(BH$5:BH$54="|","|",""))))) ->  | BJ5: =IF($D$5:$D$54="","",IF($D$5:$D$54="HOT",IF(BI$5:BI$54="●","|",IF(BI$5:BI$54="|","|","")),IF(BI$5:BI$54="▲","|",IF(BI$5:BI$54="|","|","")))) ->  | BK5: =IF($D$5:$D$54="","",IF($D$5:$D$54="HOT",IF(('A1'!$K$30:$K$80)=BK$4,"●",IF(('A1'!$L$30:$L$80)=BK$4,"▼",IF(BJ$5:BJ$54="|","|",""))),IF(('A1'!$K$30:$K$80)=BK$4,"●",IF(('A1'!$L$30:$L$80)=BK$4,"▲",IF(BJ$5:BJ$54="|","|",""))))) ->  | BL5: =IF($D$5:$D$54="","",IF($D$5:$D$54="HOT",IF(BK$5:BK$54="●","|",IF(BK$5:BK$54="|","|","")),IF(BK$5:BK$54="▲","|",IF(BK$5:BK$54="|","|","")))) ->  | BM5: =IF($D$5:$D$54="","",IF($D$5:$D$54="HOT",IF(('A1'!$K$30:$K$80)=BM$4,"●",IF(('A1'!$L$30:$L$80)=BM$4,"▼",IF(BL$5:BL$54="|","|",""))),IF(('A1'!$K$30:$K$80)=BM$4,"●",IF(('A1'!$L$30:$L$80)=BM$4,"▲",IF(BL$5:BL$54="|","|",""))))) ->  | BN5: =IF($D$5:$D$54="","",IF($D$5:$D$54="HOT",IF(BM$5:BM$54="●","|",IF(BM$5:BM$54="|","|","")),IF(BM$5:BM$54="▲","|",IF(BM$5:BM$54="|","|","")))) ->  | BO5: =IF($D$5:$D$54="","",IF($D$5:$D$54="HOT",IF(('A1'!$K$30:$K$80)=BO$4,"●",IF(('A1'!$L$30:$L$80)=BO$4,"▼",IF(BN$5:BN$54="|","|",""))),IF(('A1'!$K$30:$K$80)=BO$4,"●",IF(('A1'!$L$30:$L$80)=BO$4,"▲",IF(BN$5:BN$54="|","|",""))))) ->  | BP5: =IF($D$5:$D$54="","",IF($D$5:$D$54="HOT",IF(BO$5:BO$54="●","|",IF(BO$5:BO$54="|","|","")),IF(BO$5:BO$54="▲","|",IF(BO$5:BO$54="|","|","")))) ->  | BQ5: =IF($D$5:$D$54="","",IF($D$5:$D$54="HOT",IF(('A1'!$K$30:$K$80)=BQ$4,"●",IF(('A1'!$L$30:$L$80)=BQ$4,"▼",IF(BP$5:BP$54="|","|",""))),IF(('A1'!$K$30:$K$80)=BQ$4,"●",IF(('A1'!$L$30:$L$80)=BQ$4,"▲",IF(BP$5:BP$54="|","|",""))))) ->  | BR5: =IF($D$5:$D$54="","",IF($D$5:$D$54="HOT",IF(BQ$5:BQ$54="●","|",IF(BQ$5:BQ$54="|","|","")),IF(BQ$5:BQ$54="▲","|",IF(BQ$5:BQ$54="|","|","")))) ->  | BS5: =IF($D$5:$D$54="","",IF($D$5:$D$54="HOT",IF(('A1'!$K$30:$K$80)=BS$4,"●",IF(('A1'!$L$30:$L$80)=BS$4,"▼",IF(BR$5:BR$54="|","|",""))),IF(('A1'!$K$30:$K$80)=BS$4,"●",IF(('A1'!$L$30:$L$80)=BS$4,"▲",IF(BR$5:BR$54="|","|",""))))) ->  | BT5: =IF($D$5:$D$54="","",IF($D$5:$D$54="HOT",IF(BS$5:BS$54="●","|",IF(BS$5:BS$54="|","|","")),IF(BS$5:BS$54="▲","|",IF(BS$5:BS$54="|","|","")))) ->  | BU5: =IF($D$5:$D$54="","",IF($D$5:$D$54="HOT",IF(('A1'!$K$30:$K$80)=BU$4,"●",IF(('A1'!$L$30:$L$80)=BU$4,"▼",IF(BT$5:BT$54="|","|",""))),IF(('A1'!$K$30:$K$80)=BU$4,"●",IF(('A1'!$L$30:$L$80)=BU$4,"▲",IF(BT$5:BT$54="|","|",""))))) ->  | BV5: =IF($D$5:$D$54="","",IF($D$5:$D$54="HOT",IF(BU$5:BU$54="●","|",IF(BU$5:BU$54="|","|","")),IF(BU$5:BU$54="▲","|",IF(BU$5:BU$54="|","|","")))) ->  | BW5: =IF($D$5:$D$54="","",IF($D$5:$D$54="HOT",IF(('A1'!$K$30:$K$80)=BW$4,"●",IF(('A1'!$L$30:$L$80)=BW$4,"▼",IF(BV$5:BV$54="|","|",""))),IF(('A1'!$K$30:$K$80)=BW$4,"●",IF(('A1'!$L$30:$L$80)=BW$4,"▲",IF(BV$5:BV$54="|","|",""))))) ->  | BX5: =IF($D$5:$D$54="","",IF($D$5:$D$54="HOT",IF(BW$5:BW$54="●","|",IF(BW$5:BW$54="|","|","")),IF(BW$5:BW$54="▲","|",IF(BW$5:BW$54="|","|","")))) ->  | BY5: =IF($D$5:$D$54="","",IF($D$5:$D$54="HOT",IF(('A1'!$K$30:$K$80)=BY$4,"●",IF(('A1'!$L$30:$L$80)=BY$4,"▼",IF(BX$5:BX$54="|","|",""))),IF(('A1'!$K$30:$K$80)=BY$4,"●",IF(('A1'!$L$30:$L$80)=BY$4,"▲",IF(BX$5:BX$54="|","|",""))))) ->  | BZ5: =IF($D$5:$D$54="","",IF($D$5:$D$54="HOT",IF(BY$5:BY$54="●","|",IF(BY$5:BY$54="|","|","")),IF(BY$5:BY$54="▲","|",IF(BY$5:BY$54="|","|","")))) ->  | CA5: =IF($D$5:$D$54="","",IF($D$5:$D$54="HOT",IF(('A1'!$K$30:$K$80)=CA$4,"●",IF(('A1'!$L$30:$L$80)=CA$4,"▼",IF(BZ$5:BZ$54="|","|",""))),IF(('A1'!$K$30:$K$80)=CA$4,"●",IF(('A1'!$L$30:$L$80)=CA$4,"▲",IF(BZ$5:BZ$54="|","|",""))))) ->  | CB5: =IF($D$5:$D$54="","",IF($D$5:$D$54="HOT",IF(CA$5:CA$54="●","|",IF(CA$5:CA$54="|","|","")),IF(CA$5:CA$54="▲","|",IF(CA$5:CA$54="|","|","")))) ->  | CC5: =IF($D$5:$D$54="","",IF($D$5:$D$54="HOT",IF(('A1'!$K$30:$K$80)=CC$4,"●",IF(('A1'!$L$30:$L$80)=CC$4,"▼",IF(CB$5:CB$54="|","|",""))),IF(('A1'!$K$30:$K$80)=CC$4,"●",IF(('A1'!$L$30:$L$80)=CC$4,"▲",IF(CB$5:CB$54="|","|",""))))) ->  | CD5: =IF($D$5:$D$54="","",IF($D$5:$D$54="HOT",IF(CC$5:CC$54="●","|",IF(CC$5:CC$54="|","|","")),IF(CC$5:CC$54="▲","|",IF(CC$5:CC$54="|","|","")))) ->  | CE5: =IF($D$5:$D$54="","",IF($D$5:$D$54="HOT",IF(('A1'!$K$30:$K$80)=CE$4,"●",IF(('A1'!$L$30:$L$80)=CE$4,"▼",IF(CD$5:CD$54="|","|",""))),IF(('A1'!$K$30:$K$80)=CE$4,"●",IF(('A1'!$L$30:$L$80)=CE$4,"▲",IF(CD$5:CD$54="|","|",""))))) ->  | CF5: =IF($D$5:$D$54="","",IF($D$5:$D$54="HOT",IF(CE$5:CE$54="●","|",IF(CE$5:CE$54="|","|","")),IF(CE$5:CE$54="▲","|",IF(CE$5:CE$54="|","|","")))) ->  | CG5: =IF($D$5:$D$54="","",IF($D$5:$D$54="HOT",IF(('A1'!$K$30:$K$80)=CG$4,"●",IF(('A1'!$L$30:$L$80)=CG$4,"▼",IF(CF$5:CF$54="|","|",""))),IF(('A1'!$K$30:$K$80)=CG$4,"●",IF(('A1'!$L$30:$L$80)=CG$4,"▲",IF(CF$5:CF$54="|","|",""))))) ->  | CH5: =IF($D$5:$D$54="","",IF($D$5:$D$54="HOT",IF(CG$5:CG$54="●","|",IF(CG$5:CG$54="|","|","")),IF(CG$5:CG$54="▲","|",IF(CG$5:CG$54="|","|","")))) ->  | CI5: =IF($D$5:$D$54="","",IF($D$5:$D$54="HOT",IF(('A1'!$K$30:$K$80)=CI$4,"●",IF(('A1'!$L$30:$L$80)=CI$4,"▼",IF(CH$5:CH$54="|","|",""))),IF(('A1'!$K$30:$K$80)=CI$4,"●",IF(('A1'!$L$30:$L$80)=CI$4,"▲",IF(CH$5:CH$54="|","|",""))))) ->  | CJ5: =IF($D$5:$D$54="","",IF($D$5:$D$54="HOT",IF(CI$5:CI$54="●","|",IF(CI$5:CI$54="|","|","")),IF(CI$5:CI$54="▲","|",IF(CI$5:CI$54="|","|","")))) ->  | CK5: =IF($D$5:$D$54="","",IF($D$5:$D$54="HOT",IF(('A1'!$K$30:$K$80)=CK$4,"●",IF(('A1'!$L$30:$L$80)=CK$4,"▼",IF(CJ$5:CJ$54="|","|",""))),IF(('A1'!$K$30:$K$80)=CK$4,"●",IF(('A1'!$L$30:$L$80)=CK$4,"▲",IF(CJ$5:CJ$54="|","|",""))))) ->  | CL5: =IF($D$5:$D$54="","",IF($D$5:$D$54="HOT",IF(CK$5:CK$54="●","|",IF(CK$5:CK$54="|","|","")),IF(CK$5:CK$54="▲","|",IF(CK$5:CK$54="|","|","")))) ->  | CM5: =IF($D$5:$D$54="","",IF($D$5:$D$54="HOT",IF(('A1'!$K$30:$K$80)=CM$4,"●",IF(('A1'!$L$30:$L$80)=CM$4,"▼",IF(CL$5:CL$54="|","|",""))),IF(('A1'!$K$30:$K$80)=CM$4,"●",IF(('A1'!$L$30:$L$80)=CM$4,"▲",IF(CL$5:CL$54="|","|",""))))) ->  | CN5: =IF($D$5:$D$54="","",IF($D$5:$D$54="HOT",IF(CM$5:CM$54="●","|",IF(CM$5:CM$54="|","|","")),IF(CM$5:CM$54="▲","|",IF(CM$5:CM$54="|","|","")))) ->  | CO5: =IF($D$5:$D$54="","",IF($D$5:$D$54="HOT",IF(('A1'!$K$30:$K$80)=CO$4,"●",IF(('A1'!$L$30:$L$80)=CO$4,"▼",IF(CN$5:CN$54="|","|",""))),IF(('A1'!$K$30:$K$80)=CO$4,"●",IF(('A1'!$L$30:$L$80)=CO$4,"▲",IF(CN$5:CN$54="|","|",""))))) ->  | CP5: =IF($D$5:$D$54="","",IF($D$5:$D$54="HOT",IF(CO$5:CO$54="●","|",IF(CO$5:CO$54="|","|","")),IF(CO$5:CO$54="▲","|",IF(CO$5:CO$54="|","|","")))) ->  | CQ5: =IF($D$5:$D$54="","",IF($D$5:$D$54="HOT",IF(('A1'!$K$30:$K$80)=CQ$4,"●",IF(('A1'!$L$30:$L$80)=CQ$4,"▼",IF(CP$5:CP$54="|","|",""))),IF(('A1'!$K$30:$K$80)=CQ$4,"●",IF(('A1'!$L$30:$L$80)=CQ$4,"▲",IF(CP$5:CP$54="|","|",""))))) ->  | CR5: =IF($D$5:$D$54="","",IF($D$5:$D$54="HOT",IF(CQ$5:CQ$54="●","|",IF(CQ$5:CQ$54="|","|","")),IF(CQ$5:CQ$54="▲","|",IF(CQ$5:CQ$54="|","|","")))) ->  | CS5: =IF($D$5:$D$54="","",IF($D$5:$D$54="HOT",IF(('A1'!$K$30:$K$80)=CS$4,"●",IF(('A1'!$L$30:$L$80)=CS$4,"▼",IF(CR$5:CR$54="|","|",""))),IF(('A1'!$K$30:$K$80)=CS$4,"●",IF(('A1'!$L$30:$L$80)=CS$4,"▲",IF(CR$5:CR$54="|","|",""))))) ->  | CT5: =IF($D$5:$D$54="","",IF($D$5:$D$54="HOT",IF(CS$5:CS$54="●","|",IF(CS$5:CS$54="|","|","")),IF(CS$5:CS$54="▲","|",IF(CS$5:CS$54="|","|","")))) ->  | CU5: =IF($D$5:$D$54="","",IF($D$5:$D$54="HOT",IF(('A1'!$K$30:$K$80)=CU$4,"●",IF(('A1'!$L$30:$L$80)=CU$4,"▼",IF(CT$5:CT$54="|","|",""))),IF(('A1'!$K$30:$K$80)=CU$4,"●",IF(('A1'!$L$30:$L$80)=CU$4,"▲",IF(CT$5:CT$54="|","|",""))))) ->  | CV5: =IF($D$5:$D$54="","",IF($D$5:$D$54="HOT",IF(CU$5:CU$54="●","|",IF(CU$5:CU$54="|","|","")),IF(CU$5:CU$54="▲","|",IF(CU$5:CU$54="|","|","")))) ->  | CW5: =IF($D$5:$D$54="","",IF($D$5:$D$54="HOT",IF(('A1'!$K$30:$K$80)=CW$4,"●",IF(('A1'!$L$30:$L$80)=CW$4,"▼",IF(CV$5:CV$54="|","|",""))),IF(('A1'!$K$30:$K$80)=CW$4,"●",IF(('A1'!$L$30:$L$80)=CW$4,"▲",IF(CV$5:CV$54="|","|",""))))) ->  | CX5: =IF($D$5:$D$54="","",IF($D$5:$D$54="HOT",IF(CW$5:CW$54="●","|",IF(CW$5:CW$54="|","|","")),IF(CW$5:CW$54="▲","|",IF(CW$5:CW$54="|","|","")))) ->  | CY5: =IF($D$5:$D$54="","",IF($D$5:$D$54="HOT",IF(('A1'!$K$30:$K$80)=CY$4,"●",IF(('A1'!$L$30:$L$80)=CY$4,"▼",IF(CX$5:CX$54="|","|",""))),IF(('A1'!$K$30:$K$80)=CY$4,"●",IF(('A1'!$L$30:$L$80)=CY$4,"▲",IF(CX$5:CX$54="|","|",""))))) ->  | CZ5: =IF($D$5:$D$54="","",IF($D$5:$D$54="HOT",IF(CY$5:CY$54="●","|",IF(CY$5:CY$54="|","|","")),IF(CY$5:CY$54="▲","|",IF(CY$5:CY$54="|","|","")))) ->  | DA5: =IF($D$5:$D$54="","",IF($D$5:$D$54="HOT",IF(('A1'!$K$30:$K$80)=DA$4,"●",IF(('A1'!$L$30:$L$80)=DA$4,"▼",IF(CZ$5:CZ$54="|","|",""))),IF(('A1'!$K$30:$K$80)=DA$4,"●",IF(('A1'!$L$30:$L$80)=DA$4,"▲",IF(CZ$5:CZ$54="|","|",""))))) ->  | DB5: =IF($D$5:$D$54="","",IF($D$5:$D$54="HOT",IF(DA$5:DA$54="●","|",IF(DA$5:DA$54="|","|","")),IF(DA$5:DA$54="▲","|",IF(DA$5:DA$54="|","|","")))) ->  | DC5: =IF($D$5:$D$54="","",IF($D$5:$D$54="HOT",IF(('A1'!$K$30:$K$80)=DC$4,"●",IF(('A1'!$L$30:$L$80)=DC$4,"▼",IF(DB$5:DB$54="|","|",""))),IF(('A1'!$K$30:$K$80)=DC$4,"●",IF(('A1'!$L$30:$L$80)=DC$4,"▲",IF(DB$5:DB$54="|","|",""))))) ->  | DD5: =IF($D$5:$D$54="","",IF($D$5:$D$54="HOT",IF(DC$5:DC$54="●","|",IF(DC$5:DC$54="|","|","")),IF(DC$5:DC$54="▲","|",IF(DC$5:DC$54="|","|","")))) ->  | DE5: =IF($D$5:$D$54="","",IF($D$5:$D$54="HOT",IF(('A1'!$K$30:$K$80)=DE$4,"●",IF(('A1'!$L$30:$L$80)=DE$4,"▼",IF(DD$5:DD$54="|","|",""))),IF(('A1'!$K$30:$K$80)=DE$4,"●",IF(('A1'!$L$30:$L$80)=DE$4,"▲",IF(DD$5:DD$54="|","|",""))))) ->  | DF5: =IF($D$5:$D$54="","",IF($D$5:$D$54="HOT",IF(DE$5:DE$54="●","|",IF(DE$5:DE$54="|","|","")),IF(DE$5:DE$54="▲","|",IF(DE$5:DE$54="|","|","")))) ->  | DG5: =IF($D$5:$D$54="","",IF($D$5:$D$54="HOT",IF(('A1'!$K$30:$K$80)=DG$4,"●",IF(('A1'!$L$30:$L$80)=DG$4,"▼",IF(DF$5:DF$54="|","|",""))),IF(('A1'!$K$30:$K$80)=DG$4,"●",IF(('A1'!$L$30:$L$80)=DG$4,"▲",IF(DF$5:DF$54="|","|",""))))) ->  | DH5: =IF($D$5:$D$54="","",IF($D$5:$D$54="HOT",IF(DG$5:DG$54="●","|",IF(DG$5:DG$54="|","|","")),IF(DG$5:DG$54="▲","|",IF(DG$5:DG$54="|","|","")))) ->  | DI5: =IF($D$5:$D$54="","",IF($D$5:$D$54="HOT",IF(('A1'!$K$30:$K$80)=DI$4,"●",IF(('A1'!$L$30:$L$80)=DI$4,"▼",IF(DH$5:DH$54="|","|",""))),IF(('A1'!$K$30:$K$80)=DI$4,"●",IF(('A1'!$L$30:$L$80)=DI$4,"▲",IF(DH$5:DH$54="|","|",""))))) ->  | DJ5: =IF($D$5:$D$54="","",IF($D$5:$D$54="HOT",IF(DI$5:DI$54="●","|",IF(DI$5:DI$54="|","|","")),IF(DI$5:DI$54="▲","|",IF(DI$5:DI$54="|","|","")))) ->  | DK5: =IF($D$5:$D$54="","",IF($D$5:$D$54="HOT",IF(('A1'!$K$30:$K$80)=DK$4,"●",IF(('A1'!$L$30:$L$80)=DK$4,"▼",IF(DJ$5:DJ$54="|","|",""))),IF(('A1'!$K$30:$K$80)=DK$4,"●",IF(('A1'!$L$30:$L$80)=DK$4,"▲",IF(DJ$5:DJ$54="|","|",""))))) ->  | DL5: =IF($D$5:$D$54="","",IF($D$5:$D$54="HOT",IF(DK$5:DK$54="●","|",IF(DK$5:DK$54="|","|","")),IF(DK$5:DK$54="▲","|",IF(DK$5:DK$54="|","|","")))) ->  | DM5: =IF($D$5:$D$54="","",IF($D$5:$D$54="HOT",IF(('A1'!$K$30:$K$80)=DM$4,"●",IF(('A1'!$L$30:$L$80)=DM$4,"▼",IF(DL$5:DL$54="|","|",""))),IF(('A1'!$K$30:$K$80)=DM$4,"●",IF(('A1'!$L$30:$L$80)=DM$4,"▲",IF(DL$5:DL$54="|","|",""))))) ->  | DN5: =IF($D$5:$D$54="","",IF($D$5:$D$54="HOT",IF(DM$5:DM$54="●","|",IF(DM$5:DM$54="|","|","")),IF(DM$5:DM$54="▲","|",IF(DM$5:DM$54="|","|","")))) ->  | DO5: =IF($D$5:$D$54="","",IF($D$5:$D$54="HOT",IF(('A1'!$K$30:$K$80)=DO$4,"●",IF(('A1'!$L$30:$L$80)=DO$4,"▼",IF(DN$5:DN$54="|","|",""))),IF(('A1'!$K$30:$K$80)=DO$4,"●",IF(('A1'!$L$30:$L$80)=DO$4,"▲",IF(DN$5:DN$54="|","|",""))))) ->  | DP5: =IF($D$5:$D$54="","",IF($D$5:$D$54="HOT",IF(DO$5:DO$54="●","|",IF(DO$5:DO$54="|","|","")),IF(DO$5:DO$54="▲","|",IF(DO$5:DO$54="|","|","")))) ->  | DQ5: =IF($D$5:$D$54="","",IF($D$5:$D$54="HOT",IF(('A1'!$K$30:$K$80)=DQ$4,"●",IF(('A1'!$L$30:$L$80)=DQ$4,"▼",IF(DP$5:DP$54="|","|",""))),IF(('A1'!$K$30:$K$80)=DQ$4,"●",IF(('A1'!$L$30:$L$80)=DQ$4,"▲",IF(DP$5:DP$54="|","|",""))))) ->  | DR5: =IF($D$5:$D$54="","",IF($D$5:$D$54="HOT",IF(DQ$5:DQ$54="●","|",IF(DQ$5:DQ$54="|","|","")),IF(DQ$5:DQ$54="▲","|",IF(DQ$5:DQ$54="|","|","")))) ->  | DS5: =IF($D$5:$D$54="","",IF($D$5:$D$54="HOT",IF(('A1'!$K$30:$K$80)=DS$4,"●",IF(('A1'!$L$30:$L$80)=DS$4,"▼",IF(DR$5:DR$54="|","|",""))),IF(('A1'!$K$30:$K$80)=DS$4,"●",IF(('A1'!$L$30:$L$80)=DS$4,"▲",IF(DR$5:DR$54="|","|",""))))) ->  | DT5: =IF($D$5:$D$54="","",IF($D$5:$D$54="HOT",IF(DS$5:DS$54="●","|",IF(DS$5:DS$54="|","|","")),IF(DS$5:DS$54="▲","|",IF(DS$5:DS$54="|","|","")))) ->  | DU5: =IF($D$5:$D$54="","",IF($D$5:$D$54="HOT",IF(('A1'!$K$30:$K$80)=DU$4,"●",IF(('A1'!$L$30:$L$80)=DU$4,"▼",IF(DT$5:DT$54="|","|",""))),IF(('A1'!$K$30:$K$80)=DU$4,"●",IF(('A1'!$L$30:$L$80)=DU$4,"▲",IF(DT$5:DT$54="|","|",""))))) ->  | DV5: =IF($D$5:$D$54="","",IF($D$5:$D$54="HOT",IF(DU$5:DU$54="●","|",IF(DU$5:DU$54="|","|","")),IF(DU$5:DU$54="▲","|",IF(DU$5:DU$54="|","|","")))) ->  | DW5: =IF($D$5:$D$54="","",IF($D$5:$D$54="HOT",IF(('A1'!$K$30:$K$80)=DW$4,"●",IF(('A1'!$L$30:$L$80)=DW$4,"▼",IF(DV$5:DV$54="|","|",""))),IF(('A1'!$K$30:$K$80)=DW$4,"●",IF(('A1'!$L$30:$L$80)=DW$4,"▲",IF(DV$5:DV$54="|","|",""))))) ->  | DX5: =IF($D$5:$D$54="","",IF($D$5:$D$54="HOT",IF(DW$5:DW$54="●","|",IF(DW$5:DW$54="|","|","")),IF(DW$5:DW$54="▲","|",IF(DW$5:DW$54="|","|","")))) ->  | DY5: =IF($D$5:$D$54="","",IF($D$5:$D$54="HOT",IF(('A1'!$K$30:$K$80)=DY$4,"●",IF(('A1'!$L$30:$L$80)=DY$4,"▼",IF(DX$5:DX$54="|","|",""))),IF(('A1'!$K$30:$K$80)=DY$4,"●",IF(('A1'!$L$30:$L$80)=DY$4,"▲",IF(DX$5:DX$54="|","|",""))))) ->  | DZ5: =IF($D$5:$D$54="","",IF($D$5:$D$54="HOT",IF(DY$5:DY$54="●","|",IF(DY$5:DY$54="|","|","")),IF(DY$5:DY$54="▲","|",IF(DY$5:DY$54="|","|","")))) ->  | EA5: =IF($D$5:$D$54="","",IF($D$5:$D$54="HOT",IF(('A1'!$K$30:$K$80)=EA$4,"●",IF(('A1'!$L$30:$L$80)=EA$4,"▼",IF(DZ$5:DZ$54="|","|",""))),IF(('A1'!$K$30:$K$80)=EA$4,"●",IF(('A1'!$L$30:$L$80)=EA$4,"▲",IF(DZ$5:DZ$54="|","|",""))))) ->  | EB5: =IF($D$5:$D$54="","",IF($D$5:$D$54="HOT",IF(EA$5:EA$54="●","|",IF(EA$5:EA$54="|","|","")),IF(EA$5:EA$54="▲","|",IF(EA$5:EA$54="|","|","")))) ->  | EC5: =IF($D$5:$D$54="","",IF($D$5:$D$54="HOT",IF(('A1'!$K$30:$K$80)=EC$4,"●",IF(('A1'!$L$30:$L$80)=EC$4,"▼",IF(EB$5:EB$54="|","|",""))),IF(('A1'!$K$30:$K$80)=EC$4,"●",IF(('A1'!$L$30:$L$80)=EC$4,"▲",IF(EB$5:EB$54="|","|",""))))) ->  | ED5: =IF($D$5:$D$54="","",IF($D$5:$D$54="HOT",IF(EC$5:EC$54="●","|",IF(EC$5:EC$54="|","|","")),IF(EC$5:EC$54="▲","|",IF(EC$5:EC$54="|","|","")))) ->  | EE5: =IF($D$5:$D$54="","",IF($D$5:$D$54="HOT",IF(('A1'!$K$30:$K$80)=EE$4,"●",IF(('A1'!$L$30:$L$80)=EE$4,"▼",IF(ED$5:ED$54="|","|",""))),IF(('A1'!$K$30:$K$80)=EE$4,"●",IF(('A1'!$L$30:$L$80)=EE$4,"▲",IF(ED$5:ED$54="|","|",""))))) ->  | EF5: =IF($D$5:$D$54="","",IF($D$5:$D$54="HOT",IF(EE$5:EE$54="●","|",IF(EE$5:EE$54="|","|","")),IF(EE$5:EE$54="▲","|",IF(EE$5:EE$54="|","|","")))) ->  | EG5: =IF($D$5:$D$54="","",IF($D$5:$D$54="HOT",IF(('A1'!$K$30:$K$80)=EG$4,"●",IF(('A1'!$L$30:$L$80)=EG$4,"▼",IF(EF$5:EF$54="|","|",""))),IF(('A1'!$K$30:$K$80)=EG$4,"●",IF(('A1'!$L$30:$L$80)=EG$4,"▲",IF(EF$5:EF$54="|","|",""))))) ->  | EH5: =IF($D$5:$D$54="","",IF($D$5:$D$54="HOT",IF(EG$5:EG$54="●","|",IF(EG$5:EG$54="|","|","")),IF(EG$5:EG$54="▲","|",IF(EG$5:EG$54="|","|","")))) ->  | EI5: =IF($D$5:$D$54="","",IF($D$5:$D$54="HOT",IF(('A1'!$K$30:$K$80)=EI$4,"●",IF(('A1'!$L$30:$L$80)=EI$4,"▼",IF(EH$5:EH$54="|","|",""))),IF(('A1'!$K$30:$K$80)=EI$4,"●",IF(('A1'!$L$30:$L$80)=EI$4,"▲",IF(EH$5:EH$54="|","|",""))))) ->  | EJ5: =IF($D$5:$D$54="","",IF($D$5:$D$54="HOT",IF(EI$5:EI$54="●","|",IF(EI$5:EI$54="|","|","")),IF(EI$5:EI$54="▲","|",IF(EI$5:EI$54="|","|","")))) ->  | EK5: =IF($D$5:$D$54="","",IF($D$5:$D$54="HOT",IF(('A1'!$K$30:$K$80)=EK$4,"●",IF(('A1'!$L$30:$L$80)=EK$4,"▼",IF(EJ$5:EJ$54="|","|",""))),IF(('A1'!$K$30:$K$80)=EK$4,"●",IF(('A1'!$L$30:$L$80)=EK$4,"▲",IF(EJ$5:EJ$54="|","|",""))))) ->  | EL5: =IF($D$5:$D$54="","",IF($D$5:$D$54="HOT",IF(EK$5:EK$54="●","|",IF(EK$5:EK$54="|","|","")),IF(EK$5:EK$54="▲","|",IF(EK$5:EK$54="|","|","")))) ->  | EM5: =IF($D$5:$D$54="","",IF($D$5:$D$54="HOT",IF(('A1'!$K$30:$K$80)=EM$4,"●",IF(('A1'!$L$30:$L$80)=EM$4,"▼",IF(EL$5:EL$54="|","|",""))),IF(('A1'!$K$30:$K$80)=EM$4,"●",IF(('A1'!$L$30:$L$80)=EM$4,"▲",IF(EL$5:EL$54="|","|",""))))) ->  | EN5: =IF($D$5:$D$54="","",IF($D$5:$D$54="HOT",IF(EM$5:EM$54="●","|",IF(EM$5:EM$54="|","|","")),IF(EM$5:EM$54="▲","|",IF(EM$5:EM$54="|","|","")))) ->  | EO5: =IF($D$5:$D$54="","",IF($D$5:$D$54="HOT",IF(('A1'!$K$30:$K$80)=EO$4,"●",IF(('A1'!$L$30:$L$80)=EO$4,"▼",IF(EN$5:EN$54="|","|",""))),IF(('A1'!$K$30:$K$80)=EO$4,"●",IF(('A1'!$L$30:$L$80)=EO$4,"▲",IF(EN$5:EN$54="|","|",""))))) ->  | EP5: =IF($D$5:$D$54="","",IF($D$5:$D$54="HOT",IF(EO$5:EO$54="●","|",IF(EO$5:EO$54="|","|","")),IF(EO$5:EO$54="▲","|",IF(EO$5:EO$54="|","|","")))) ->  | EQ5: =IF($D$5:$D$54="","",IF($D$5:$D$54="HOT",IF(('A1'!$K$30:$K$80)=EQ$4,"●",IF(('A1'!$L$30:$L$80)=EQ$4,"▼",IF(EP$5:EP$54="|","|",""))),IF(('A1'!$K$30:$K$80)=EQ$4,"●",IF(('A1'!$L$30:$L$80)=EQ$4,"▲",IF(EP$5:EP$54="|","|",""))))) ->  | ER5: =IF($D$5:$D$54="","",IF($D$5:$D$54="HOT",IF(EQ$5:EQ$54="●","|",IF(EQ$5:EQ$54="|","|","")),IF(EQ$5:EQ$54="▲","|",IF(EQ$5:EQ$54="|","|","")))) ->  | ES5: =IF($D$5:$D$54="","",IF($D$5:$D$54="HOT",IF(('A1'!$K$30:$K$80)=ES$4,"●",IF(('A1'!$L$30:$L$80)=ES$4,"▼",IF(ER$5:ER$54="|","|",""))),IF(('A1'!$K$30:$K$80)=ES$4,"●",IF(('A1'!$L$30:$L$80)=ES$4,"▲",IF(ER$5:ER$54="|","|",""))))) ->  | ET5: =IF($D$5:$D$54="","",IF($D$5:$D$54="HOT",IF(ES$5:ES$54="●","|",IF(ES$5:ES$54="|","|","")),IF(ES$5:ES$54="▲","|",IF(ES$5:ES$54="|","|","")))) ->  | EU5: =IF($D$5:$D$54="","",IF($D$5:$D$54="HOT",IF(('A1'!$K$30:$K$80)=EU$4,"●",IF(('A1'!$L$30:$L$80)=EU$4,"▼",IF(ET$5:ET$54="|","|",""))),IF(('A1'!$K$30:$K$80)=EU$4,"●",IF(('A1'!$L$30:$L$80)=EU$4,"▲",IF(ET$5:ET$54="|","|",""))))) ->  | EV5: =IF($D$5:$D$54="","",IF($D$5:$D$54="HOT",IF(EU$5:EU$54="●","|",IF(EU$5:EU$54="|","|","")),IF(EU$5:EU$54="▲","|",IF(EU$5:EU$54="|","|","")))) ->  | EW5: =IF($D$5:$D$54="","",IF($D$5:$D$54="HOT",IF(('A1'!$K$30:$K$80)=EW$4,"●",IF(('A1'!$L$30:$L$80)=EW$4,"▼",IF(EV$5:EV$54="|","|",""))),IF(('A1'!$K$30:$K$80)=EW$4,"●",IF(('A1'!$L$30:$L$80)=EW$4,"▲",IF(EV$5:EV$54="|","|",""))))) ->  | EX5: =IF($D$5:$D$54="","",IF($D$5:$D$54="HOT",IF(EW$5:EW$54="●","|",IF(EW$5:EW$54="|","|","")),IF(EW$5:EW$54="▲","|",IF(EW$5:EW$54="|","|","")))) ->  | EY5: =IF($D$5:$D$54="","",IF($D$5:$D$54="HOT",IF(('A1'!$K$30:$K$80)=EY$4,"●",IF(('A1'!$L$30:$L$80)=EY$4,"▼",IF(EX$5:EX$54="|","|",""))),IF(('A1'!$K$30:$K$80)=EY$4,"●",IF(('A1'!$L$30:$L$80)=EY$4,"▲",IF(EX$5:EX$54="|","|",""))))) ->  | EZ5: =IF($D$5:$D$54="","",IF($D$5:$D$54="HOT",IF(EY$5:EY$54="●","|",IF(EY$5:EY$54="|","|","")),IF(EY$5:EY$54="▲","|",IF(EY$5:EY$54="|","|","")))) ->  | FA5: =IF($D$5:$D$54="","",IF($D$5:$D$54="HOT",IF(('A1'!$K$30:$K$80)=FA$4,"●",IF(('A1'!$L$30:$L$80)=FA$4,"▼",IF(EZ$5:EZ$54="|","|",""))),IF(('A1'!$K$30:$K$80)=FA$4,"●",IF(('A1'!$L$30:$L$80)=FA$4,"▲",IF(EZ$5:EZ$54="|","|",""))))) ->  | FB5: =IF($D$5:$D$54="","",IF($D$5:$D$54="HOT",IF(FA$5:FA$54="●","|",IF(FA$5:FA$54="|","|","")),IF(FA$5:FA$54="▲","|",IF(FA$5:FA$54="|","|","")))) ->  | FC5: =IF($D$5:$D$54="","",IF($D$5:$D$54="HOT",IF(('A1'!$K$30:$K$80)=FC$4,"●",IF(('A1'!$L$30:$L$80)=FC$4,"▼",IF(FB$5:FB$54="|","|",""))),IF(('A1'!$K$30:$K$80)=FC$4,"●",IF(('A1'!$L$30:$L$80)=FC$4,"▲",IF(FB$5:FB$54="|","|",""))))) ->  | FD5: =IF($D$5:$D$54="","",IF($D$5:$D$54="HOT",IF(FC$5:FC$54="●","|",IF(FC$5:FC$54="|","|","")),IF(FC$5:FC$54="▲","|",IF(FC$5:FC$54="|","|","")))) ->  | FE5: =IF($D$5:$D$54="","",IF($D$5:$D$54="HOT",IF(('A1'!$K$30:$K$80)=FE$4,"●",IF(('A1'!$L$30:$L$80)=FE$4,"▼",IF(FD$5:FD$54="|","|",""))),IF(('A1'!$K$30:$K$80)=FE$4,"●",IF(('A1'!$L$30:$L$80)=FE$4,"▲",IF(FD$5:FD$54="|","|",""))))) ->  | FF5: =IF($D$5:$D$54="","",IF($D$5:$D$54="HOT",IF(FE$5:FE$54="●","|",IF(FE$5:FE$54="|","|","")),IF(FE$5:FE$54="▲","|",IF(FE$5:FE$54="|","|","")))) ->  | FG5: =IF($D$5:$D$54="","",IF($D$5:$D$54="HOT",IF(('A1'!$K$30:$K$80)=FG$4,"●",IF(('A1'!$L$30:$L$80)=FG$4,"▼",IF(FF$5:FF$54="|","|",""))),IF(('A1'!$K$30:$K$80)=FG$4,"●",IF(('A1'!$L$30:$L$80)=FG$4,"▲",IF(FF$5:FF$54="|","|",""))))) ->  | FH5: =IF($D$5:$D$54="","",IF($D$5:$D$54="HOT",IF(FG$5:FG$54="●","|",IF(FG$5:FG$54="|","|","")),IF(FG$5:FG$54="▲","|",IF(FG$5:FG$54="|","|","")))) ->  | FI5: =IF($D$5:$D$54="","",IF($D$5:$D$54="HOT",IF(('A1'!$K$30:$K$80)=FI$4,"●",IF(('A1'!$L$30:$L$80)=FI$4,"▼",IF(FH$5:FH$54="|","|",""))),IF(('A1'!$K$30:$K$80)=FI$4,"●",IF(('A1'!$L$30:$L$80)=FI$4,"▲",IF(FH$5:FH$54="|","|",""))))) ->  | FJ5: =IF($D$5:$D$54="","",IF($D$5:$D$54="HOT",IF(FI$5:FI$54="●","|",IF(FI$5:FI$54="|","|","")),IF(FI$5:FI$54="▲","|",IF(FI$5:FI$54="|","|","")))) ->  | FK5: =IF($D$5:$D$54="","",IF($D$5:$D$54="HOT",IF(('A1'!$K$30:$K$80)=FK$4,"●",IF(('A1'!$L$30:$L$80)=FK$4,"▼",IF(FJ$5:FJ$54="|","|",""))),IF(('A1'!$K$30:$K$80)=FK$4,"●",IF(('A1'!$L$30:$L$80)=FK$4,"▲",IF(FJ$5:FJ$54="|","|",""))))) ->  | FL5: =IF($D$5:$D$54="","",IF($D$5:$D$54="HOT",IF(FK$5:FK$54="●","|",IF(FK$5:FK$54="|","|","")),IF(FK$5:FK$54="▲","|",IF(FK$5:FK$54="|","|","")))) ->  | FM5: =IF($D$5:$D$54="","",IF($D$5:$D$54="HOT",IF(('A1'!$K$30:$K$80)=FM$4,"●",IF(('A1'!$L$30:$L$80)=FM$4,"▼",IF(FL$5:FL$54="|","|",""))),IF(('A1'!$K$30:$K$80)=FM$4,"●",IF(('A1'!$L$30:$L$80)=FM$4,"▲",IF(FL$5:FL$54="|","|",""))))) ->  | FN5: =IF($D$5:$D$54="","",IF($D$5:$D$54="HOT",IF(FM$5:FM$54="●","|",IF(FM$5:FM$54="|","|","")),IF(FM$5:FM$54="▲","|",IF(FM$5:FM$54="|","|","")))) ->  | FO5: =IF($D$5:$D$54="","",IF($D$5:$D$54="HOT",IF(('A1'!$K$30:$K$80)=FO$4,"●",IF(('A1'!$L$30:$L$80)=FO$4,"▼",IF(FN$5:FN$54="|","|",""))),IF(('A1'!$K$30:$K$80)=FO$4,"●",IF(('A1'!$L$30:$L$80)=FO$4,"▲",IF(FN$5:FN$54="|","|",""))))) ->  | FP5: =IF($D$5:$D$54="","",IF($D$5:$D$54="HOT",IF(FO$5:FO$54="●","|",IF(FO$5:FO$54="|","|","")),IF(FO$5:FO$54="▲","|",IF(FO$5:FO$54="|","|","")))) ->  | FQ5: =IF($D$5:$D$54="","",IF($D$5:$D$54="HOT",IF(('A1'!$K$30:$K$80)=FQ$4,"●",IF(('A1'!$L$30:$L$80)=FQ$4,"▼",IF(FP$5:FP$54="|","|",""))),IF(('A1'!$K$30:$K$80)=FQ$4,"●",IF(('A1'!$L$30:$L$80)=FQ$4,"▲",IF(FP$5:FP$54="|","|",""))))) ->  | FR5: =IF($D$5:$D$54="","",IF($D$5:$D$54="HOT",IF(FQ$5:FQ$54="●","|",IF(FQ$5:FQ$54="|","|","")),IF(FQ$5:FQ$54="▲","|",IF(FQ$5:FQ$54="|","|","")))) ->  | FS5: =IF($D$5:$D$54="","",IF($D$5:$D$54="HOT",IF(('A1'!$K$30:$K$80)=FS$4,"●",IF(('A1'!$L$30:$L$80)=FS$4,"▼",IF(FR$5:FR$54="|","|",""))),IF(('A1'!$K$30:$K$80)=FS$4,"●",IF(('A1'!$L$30:$L$80)=FS$4,"▲",IF(FR$5:FR$54="|","|",""))))) ->  | FT5: =IF($D$5:$D$54="","",IF($D$5:$D$54="HOT",IF(FS$5:FS$54="●","|",IF(FS$5:FS$54="|","|","")),IF(FS$5:FS$54="▲","|",IF(FS$5:FS$54="|","|","")))) ->  | FU5: =IF($D$5:$D$54="","",IF($D$5:$D$54="HOT",IF(('A1'!$K$30:$K$80)=FU$4,"●",IF(('A1'!$L$30:$L$80)=FU$4,"▼",IF(FT$5:FT$54="|","|",""))),IF(('A1'!$K$30:$K$80)=FU$4,"●",IF(('A1'!$L$30:$L$80)=FU$4,"▲",IF(FT$5:FT$54="|","|",""))))) ->  | FV5: =IF($D$5:$D$54="","",IF($D$5:$D$54="HOT",IF(FU$5:FU$54="●","|",IF(FU$5:FU$54="|","|","")),IF(FU$5:FU$54="▲","|",IF(FU$5:FU$54="|","|","")))) ->  | FW5: =IF($D$5:$D$54="","",IF($D$5:$D$54="HOT",IF(('A1'!$K$30:$K$80)=FW$4,"●",IF(('A1'!$L$30:$L$80)=FW$4,"▼",IF(FV$5:FV$54="|","|",""))),IF(('A1'!$K$30:$K$80)=FW$4,"●",IF(('A1'!$L$30:$L$80)=FW$4,"▲",IF(FV$5:FV$54="|","|",""))))) ->  | FX5: =IF($D$5:$D$54="","",IF($D$5:$D$54="HOT",IF(FW$5:FW$54="●","|",IF(FW$5:FW$54="|","|","")),IF(FW$5:FW$54="▲","|",IF(FW$5:FW$54="|","|","")))) ->  | FY5: =IF($D$5:$D$54="","",IF($D$5:$D$54="HOT",IF(('A1'!$K$30:$K$80)=FY$4,"●",IF(('A1'!$L$30:$L$80)=FY$4,"▼",IF(FX$5:FX$54="|","|",""))),IF(('A1'!$K$30:$K$80)=FY$4,"●",IF(('A1'!$L$30:$L$80)=FY$4,"▲",IF(FX$5:FX$54="|","|",""))))) ->  | FZ5: =IF($D$5:$D$54="","",IF($D$5:$D$54="HOT",IF(FY$5:FY$54="●","|",IF(FY$5:FY$54="|","|","")),IF(FY$5:FY$54="▲","|",IF(FY$5:FY$54="|","|","")))) ->  | GA5: =IF($D$5:$D$54="","",IF($D$5:$D$54="HOT",IF(('A1'!$K$30:$K$80)=GA$4,"●",IF(('A1'!$L$30:$L$80)=GA$4,"▼",IF(FZ$5:FZ$54="|","|",""))),IF(('A1'!$K$30:$K$80)=GA$4,"●",IF(('A1'!$L$30:$L$80)=GA$4,"▲",IF(FZ$5:FZ$54="|","|",""))))) ->  | GB5: =IF($D$5:$D$54="","",IF($D$5:$D$54="HOT",IF(GA$5:GA$54="●","|",IF(GA$5:GA$54="|","|","")),IF(GA$5:GA$54="▲","|",IF(GA$5:GA$54="|","|","")))) ->  | GC5: =IF($D$5:$D$54="","",IF($D$5:$D$54="HOT",IF(('A1'!$K$30:$K$80)=GC$4,"●",IF(('A1'!$L$30:$L$80)=GC$4,"▼",IF(GB$5:GB$54="|","|",""))),IF(('A1'!$K$30:$K$80)=GC$4,"●",IF(('A1'!$L$30:$L$80)=GC$4,"▲",IF(GB$5:GB$54="|","|",""))))) ->  | GD5: =IF($D$5:$D$54="","",IF($D$5:$D$54="HOT",IF(GC$5:GC$54="●","|",IF(GC$5:GC$54="|","|","")),IF(GC$5:GC$54="▲","|",IF(GC$5:GC$54="|","|","")))) ->  | GE5: =IF($D$5:$D$54="","",IF($D$5:$D$54="HOT",IF(('A1'!$K$30:$K$80)=GE$4,"●",IF(('A1'!$L$30:$L$80)=GE$4,"▼",IF(GD$5:GD$54="|","|",""))),IF(('A1'!$K$30:$K$80)=GE$4,"●",IF(('A1'!$L$30:$L$80)=GE$4,"▲",IF(GD$5:GD$54="|","|",""))))) ->  | GF5: =IF($D$5:$D$54="","",IF($D$5:$D$54="HOT",IF(GE$5:GE$54="●","|",IF(GE$5:GE$54="|","|","")),IF(GE$5:GE$54="▲","|",IF(GE$5:GE$54="|","|","")))) ->  | GG5: =IF($D$5:$D$54="","",IF($D$5:$D$54="HOT",IF(('A1'!$K$30:$K$80)=GG$4,"●",IF(('A1'!$L$30:$L$80)=GG$4,"▼",IF(GF$5:GF$54="|","|",""))),IF(('A1'!$K$30:$K$80)=GG$4,"●",IF(('A1'!$L$30:$L$80)=GG$4,"▲",IF(GF$5:GF$54="|","|",""))))) ->  | GH5: =IF($D$5:$D$54="","",IF($D$5:$D$54="HOT",IF(GG$5:GG$54="●","|",IF(GG$5:GG$54="|","|","")),IF(GG$5:GG$54="▲","|",IF(GG$5:GG$54="|","|","")))) ->  | GI5: =IF($D$5:$D$54="","",IF($D$5:$D$54="HOT",IF(('A1'!$K$30:$K$80)=GI$4,"●",IF(('A1'!$L$30:$L$80)=GI$4,"▼",IF(GH$5:GH$54="|","|",""))),IF(('A1'!$K$30:$K$80)=GI$4,"●",IF(('A1'!$L$30:$L$80)=GI$4,"▲",IF(GH$5:GH$54="|","|",""))))) ->  | GJ5: =IF($D$5:$D$54="","",IF($D$5:$D$54="HOT",IF(GI$5:GI$54="●","|",IF(GI$5:GI$54="|","|","")),IF(GI$5:GI$54="▲","|",IF(GI$5:GI$54="|","|","")))) ->  | GK5: =IF($D$5:$D$54="","",IF($D$5:$D$54="HOT",IF(('A1'!$K$30:$K$80)=GK$4,"●",IF(('A1'!$L$30:$L$80)=GK$4,"▼",IF(GJ$5:GJ$54="|","|",""))),IF(('A1'!$K$30:$K$80)=GK$4,"●",IF(('A1'!$L$30:$L$80)=GK$4,"▲",IF(GJ$5:GJ$54="|","|",""))))) ->  | GL5: =IF($D$5:$D$54="","",IF($D$5:$D$54="HOT",IF(GK$5:GK$54="●","|",IF(GK$5:GK$54="|","|","")),IF(GK$5:GK$54="▲","|",IF(GK$5:GK$54="|","|","")))) ->  | GM5: =IF($D$5:$D$54="","",IF($D$5:$D$54="HOT",IF(('A1'!$K$30:$K$80)=GM$4,"●",IF(('A1'!$L$30:$L$80)=GM$4,"▼",IF(GL$5:GL$54="|","|",""))),IF(('A1'!$K$30:$K$80)=GM$4,"●",IF(('A1'!$L$30:$L$80)=GM$4,"▲",IF(GL$5:GL$54="|","|",""))))) ->  | GN5: =IF($D$5:$D$54="","",IF($D$5:$D$54="HOT",IF(GM$5:GM$54="●","|",IF(GM$5:GM$54="|","|","")),IF(GM$5:GM$54="▲","|",IF(GM$5:GM$54="|","|","")))) ->  | GO5: =IF($D$5:$D$54="","",IF($D$5:$D$54="HOT",IF(('A1'!$K$30:$K$80)=GO$4,"●",IF(('A1'!$L$30:$L$80)=GO$4,"▼",IF(GN$5:GN$54="|","|",""))),IF(('A1'!$K$30:$K$80)=GO$4,"●",IF(('A1'!$L$30:$L$80)=GO$4,"▲",IF(GN$5:GN$54="|","|",""))))) ->  | GP5: =IF($D$5:$D$54="","",IF($D$5:$D$54="HOT",IF(GO$5:GO$54="●","|",IF(GO$5:GO$54="|","|","")),IF(GO$5:GO$54="▲","|",IF(GO$5:GO$54="|","|","")))) ->  | GQ5: =IF($D$5:$D$54="","",IF($D$5:$D$54="HOT",IF(('A1'!$K$30:$K$80)=GQ$4,"●",IF(('A1'!$L$30:$L$80)=GQ$4,"▼",IF(GP$5:GP$54="|","|",""))),IF(('A1'!$K$30:$K$80)=GQ$4,"●",IF(('A1'!$L$30:$L$80)=GQ$4,"▲",IF(GP$5:GP$54="|","|",""))))) ->  | GR5: =IF($D$5:$D$54="","",IF($D$5:$D$54="HOT",IF(GQ$5:GQ$54="●","|",IF(GQ$5:GQ$54="|","|","")),IF(GQ$5:GQ$54="▲","|",IF(GQ$5:GQ$54="|","|","")))) ->  | GS5: =IF($D$5:$D$54="","",IF($D$5:$D$54="HOT",IF(('A1'!$K$30:$K$80)=GS$4,"●",IF(('A1'!$L$30:$L$80)=GS$4,"▼",IF(GR$5:GR$54="|","|",""))),IF(('A1'!$K$30:$K$80)=GS$4,"●",IF(('A1'!$L$30:$L$80)=GS$4,"▲",IF(GR$5:GR$54="|","|",""))))) ->  | GT5: =IF($D$5:$D$54="","",IF($D$5:$D$54="HOT",IF(GS$5:GS$54="●","|",IF(GS$5:GS$54="|","|","")),IF(GS$5:GS$54="▲","|",IF(GS$5:GS$54="|","|","")))) ->  | GU5: =IF($D$5:$D$54="","",IF($D$5:$D$54="HOT",IF(('A1'!$K$30:$K$80)=GU$4,"●",IF(('A1'!$L$30:$L$80)=GU$4,"▼",IF(GT$5:GT$54="|","|",""))),IF(('A1'!$K$30:$K$80)=GU$4,"●",IF(('A1'!$L$30:$L$80)=GU$4,"▲",IF(GT$5:GT$54="|","|",""))))) -> 
A6: 2 | B6: 210 | C6: 1.5 | D6: HOT | G6: ● | H6: | | I6: | | J6: | | K6: | | L6: | | M6: | | N6: | | O6: | | P6: | | Q6: ▼
A7: 3 | B7: 300 | C7: 300 | D7: HOT | M7: ● | N7: | | O7: ▼
A8: 4 | B8: 680 | C8: 4 | D8: COLD | I8: ▲ | J8: | | K8: | | L8: | | M8: | | N8: | | O8: | | P8: | | Q8: | | R8: | | S8: | | T8: | | U8: ●
A9: 5 | B9: 400 | C9: 2 | D9: COLD | E9: ▲ | F9: | | G9: | | H9: | | I9: | | J9: | | K9: | | L9: | | M9: | | N9: | | O9: | | P9: | | Q9: | | R9: | | S9: ●

Sheet AS
A1: Actual Streams
A3: Stream | C3: =IF(TRANSPOSE('A1'!A30:A80)="","",TRANSPOSE('A1'!A30:A80)) -> 1 | D3: 2 | E3: 3 | F3: 4 | G3: 5
A4: =SCC!$A$30 -> Heat Flow (kW) | C4: =IF(TRANSPOSE('A1'!H30:H80)="","",TRANSPOSE('A1'!H30:H80)) -> 3 | D4: 1.5 | E4: 300 | F4: 4 | G4: 2
A5: Interval | B5: ="Actual Temp ("&'A1'!T3&")" -> Actual Temp (°C) | C5: =IF(TRANSPOSE('A1'!J30:J80)="","",TRANSPOSE('A1'!J30:J80)) -> HOT | D5: HOT | E5: HOT | F5: COLD | G5: COLD
B6: =IF(A7="","",(LARGE('A1'!$B$30:$C$80,A7))) -> 250 | C6: =IF($C$5:$AZ$5="","",IF($C$5:$AZ$5="HOT",IF(TRANSPOSE('A1'!$B$30:$B$80)=$B6,"●",IF(TRANSPOSE('A1'!$C$30:$C$80)=$B6,"▼",IF($C5:$AZ5="|","|",""))),IF(TRANSPOSE('A1'!$B$30:$B$80)=$B6,"●",IF(TRANSPOSE('A1'!$C$30:$C$80)=$B6,"▲",IF($C5:$AZ5="|","|",""))))) ->  | G6: ▲
A7: =IF((SUM(IF(FREQUENCY('A1'!$B$30:$C$80,'A1'!$B$30:$C$80)>0,1)))>1,1,"") -> 1 | B7: =IF(A8="","",(LARGE('A1'!$K$30:$L$80,A8))) ->  | C7: =IF($C$5:$AZ$5="","",IF($C$5:$AZ$5="HOT",IF($C6:$AZ6="●","|",IF($C6:$AZ6="|","|","")),IF($C6:$AZ6="▲","|",IF($C6:$AZ6="|","|","")))) ->  | G7: |
B8: =IF(A7="","",(LARGE('A1'!$B$30:$C$103,(1+SUM(COUNTIF('A1'!$B$30:$C$103,B$6:B7))-(A7*COUNTIF('A1'!$B$30:$C$103,B$7)))))) -> 240 | C8: =IF($C$5:$AZ$5="","",IF($C$5:$AZ$5="HOT",IF(TRANSPOSE('A1'!$B$30:$B$80)=$B8,"●",IF(TRANSPOSE('A1'!$C$30:$C$80)=$B8,"▼",IF($C7:$AZ7="|","|",""))),IF(TRANSPOSE('A1'!$B$30:$B$80)=$B8,"●",IF(TRANSPOSE('A1'!$C$30:$C$80)=$B8,"▲",IF($C7:$AZ7="|","|",""))))) ->  | D8: ● | G8: |
A9: =IF(A7="","",IF((SUM(IF(FREQUENCY('A1'!$B$30:$C$80,'A1'!$B$30:$C$80)>0,1)))>(A7+1),(A7+1),"")) -> 2 | B9: =IF(A8="","",(LARGE('A1'!$B$30:$C$103,(1+SUM(COUNTIF('A1'!$B$30:$C$103,B$6:B8))-(A8*COUNTIF('A1'!$B$30:$C$103,B$7)))))) ->  | C9: =IF($C$5:$AZ$5="","",IF($C$5:$AZ$5="HOT",IF($C8:$AZ8="●","|",IF($C8:$AZ8="|","|","")),IF($C8:$AZ8="▲","|",IF($C8:$AZ8="|","|","")))) ->  | D9: | | G9: |
B10: =IF(A9="","",(LARGE('A1'!$B$30:$C$103,(1+SUM(COUNTIF('A1'!$B$30:$C$103,B$6:B9))-(A9*COUNTIF('A1'!$B$30:$C$103,B$7)))))) -> 200 | C10: =IF($C$5:$AZ$5="","",IF($C$5:$AZ$5="HOT",IF(TRANSPOSE('A1'!$B$30:$B$80)=$B10,"●",IF(TRANSPOSE('A1'!$C$30:$C$80)=$B10,"▼",IF($C9:$AZ9="|","|",""))),IF(TRANSPOSE('A1'!$B$30:$B$80)=$B10,"●",IF(TRANSPOSE('A1'!$C$30:$C$80)=$B10,"▲",IF($C9:$AZ9="|","|",""))))) -> ● | D10: | | F10: ▲ | G10: |
A11: =IF(A9="","",IF((SUM(IF(FREQUENCY('A1'!$B$30:$C$80,'A1'!$B$30:$C$80)>0,1)))>(A9+1),(A9+1),"")) -> 3 | B11: =IF(A10="","",(LARGE('A1'!$B$30:$C$103,(1+SUM(COUNTIF('A1'!$B$30:$C$103,B$6:B10))-(A10*COUNTIF('A1'!$B$30:$C$103,B$7)))))) ->  | C11: =IF($C$5:$AZ$5="","",IF($C$5:$AZ$5="HOT",IF($C10:$AZ10="●","|",IF($C10:$AZ10="|","|","")),IF($C10:$AZ10="▲","|",IF($C10:$AZ10="|","|","")))) -> | | D11: | | F11: | | G11: |
B12: =IF(A11="","",(LARGE('A1'!$B$30:$C$103,(1+SUM(COUNTIF('A1'!$B$30:$C$103,B$6:B11))-(A11*COUNTIF('A1'!$B$30:$C$103,B$7)))))) -> 120 | C12: =IF($C$5:$AZ$5="","",IF($C$5:$AZ$5="HOT",IF(TRANSPOSE('A1'!$B$30:$B$80)=$B12,"●",IF(TRANSPOSE('A1'!$C$30:$C$80)=$B12,"▼",IF($C11:$AZ11="|","|",""))),IF(TRANSPOSE('A1'!$B$30:$B$80)=$B12,"●",IF(TRANSPOSE('A1'!$C$30:$C$80)=$B12,"▲",IF($C11:$AZ11="|","|",""))))) -> | | D12: | | E12: ● | F12: | | G12: |
A13: =IF(A11="","",IF((SUM(IF(FREQUENCY('A1'!$B$30:$C$80,'A1'!$B$30:$C$80)>0,1)))>(A11+1),(A11+1),"")) -> 4 | B13: =IF(A12="","",(LARGE('A1'!$B$30:$C$103,(1+SUM(COUNTIF('A1'!$B$30:$C$103,B$6:B12))-(A12*COUNTIF('A1'!$B$30:$C$103,B$7)))))) ->  | C13: =IF($C$5:$AZ$5="","",IF($C$5:$AZ$5="HOT",IF($C12:$AZ12="●","|",IF($C12:$AZ12="|","|","")),IF($C12:$AZ12="▲","|",IF($C12:$AZ12="|","|","")))) -> | | D13: | | E13: | | F13: | | G13: |
B14: =IF(A13="","",(LARGE('A1'!$B$30:$C$103,(1+SUM(COUNTIF('A1'!$B$30:$C$103,B$6:B13))-(A13*COUNTIF('A1'!$B$30:$C$103,B$7)))))) -> 119 | C14: =IF($C$5:$AZ$5="","",IF($C$5:$AZ$5="HOT",IF(TRANSPOSE('A1'!$B$30:$B$80)=$B14,"●",IF(TRANSPOSE('A1'!$C$30:$C$80)=$B14,"▼",IF($C13:$AZ13="|","|",""))),IF(TRANSPOSE('A1'!$B$30:$B$80)=$B14,"●",IF(TRANSPOSE('A1'!$C$30:$C$80)=$B14,"▲",IF($C13:$AZ13="|","|",""))))) -> | | D14: | | E14: ▼ | F14: | | G14: |
A15: =IF(A13="","",IF((SUM(IF(FREQUENCY('A1'!$B$30:$C$80,'A1'!$B$30:$C$80)>0,1)))>(A13+1),(A13+1),"")) -> 5 | B15: =IF(A14="","",(LARGE('A1'!$B$30:$C$103,(1+SUM(COUNTIF('A1'!$B$30:$C$103,B$6:B14))-(A14*COUNTIF('A1'!$B$30:$C$103,B$7)))))) ->  | C15: =IF($C$5:$AZ$5="","",IF($C$5:$AZ$5="HOT",IF($C14:$AZ14="●","|",IF($C14:$AZ14="|","|","")),IF($C14:$AZ14="▲","|",IF($C14:$AZ14="|","|","")))) -> | | D15: | | F15: | | G15: |
B16: =IF(A15="","",(LARGE('A1'!$B$30:$C$103,(1+SUM(COUNTIF('A1'!$B$30:$C$103,B$6:B15))-(A15*COUNTIF('A1'!$B$30:$C$103,B$7)))))) -> 100 | C16: =IF($C$5:$AZ$5="","",IF($C$5:$AZ$5="HOT",IF(TRANSPOSE('A1'!$B$30:$B$80)=$B16,"●",IF(TRANSPOSE('A1'!$C$30:$C$80)=$B16,"▼",IF($C15:$AZ15="|","|",""))),IF(TRANSPOSE('A1'!$B$30:$B$80)=$B16,"●",IF(TRANSPOSE('A1'!$C$30:$C$80)=$B16,"▲",IF($C15:$AZ15="|","|",""))))) -> | | D16: ▼ | F16: | | G16: |
A17: =IF(A15="","",IF((SUM(IF(FREQUENCY('A1'!$B$30:$C$80,'A1'!$B$30:$C$80)>0,1)))>(A15+1),(A15+1),"")) -> 6 | B17: =IF(A16="","",(LARGE('A1'!$B$30:$C$103,(1+SUM(COUNTIF('A1'!$B$30:$C$103,B$6:B16))-(A16*COUNTIF('A1'!$B$30:$C$103,B$7)))))) ->  | C17: =IF($C$5:$AZ$5="","",IF($C$5:$AZ$5="HOT",IF($C16:$AZ16="●","|",IF($C16:$AZ16="|","|","")),IF($C16:$AZ16="▲","|",IF($C16:$AZ16="|","|","")))) -> | | F17: | | G17: |
B18: =IF(A17="","",(LARGE('A1'!$B$30:$C$103,(1+SUM(COUNTIF('A1'!$B$30:$C$103,B$6:B17))-(A17*COUNTIF('A1'!$B$30:$C$103,B$7)))))) -> 50 | C18: =IF($C$5:$AZ$5="","",IF($C$5:$AZ$5="HOT",IF(TRANSPOSE('A1'!$B$30:$B$80)=$B18,"●",IF(TRANSPOSE('A1'!$C$30:$C$80)=$B18,"▼",IF($C17:$AZ17="|","|",""))),IF(TRANSPOSE('A1'!$B$30:$B$80)=$B18,"●",IF(TRANSPOSE('A1'!$C$30:$C$80)=$B18,"▲",IF($C17:$AZ17="|","|",""))))) -> ▼ | F18: | | G18: ●
A19: =IF(A17="","",IF((SUM(IF(FREQUENCY('A1'!$B$30:$C$80,'A1'!$B$30:$C$80)>0,1)))>(A17+1),(A17+1),"")) -> 7 | B19: =IF(A18="","",(LARGE('A1'!$B$30:$C$103,(1+SUM(COUNTIF('A1'!$B$30:$C$103,B$6:B18))-(A18*COUNTIF('A1'!$B$30:$C$103,B$7)))))) ->  | C19: =IF($C$5:$AZ$5="","",IF($C$5:$AZ$5="HOT",IF($C18:$AZ18="●","|",IF($C18:$AZ18="|","|","")),IF($C18:$AZ18="▲","|",IF($C18:$AZ18="|","|","")))) ->  | F19: |
B20: =IF(A19="","",(LARGE('A1'!$B$30:$C$103,(1+SUM(COUNTIF('A1'!$B$30:$C$103,B$6:B19))-(A19*COUNTIF('A1'!$B$30:$C$103,B$7)))))) -> 30 | C20: =IF($C$5:$AZ$5="","",IF($C$5:$AZ$5="HOT",IF(TRANSPOSE('A1'!$B$30:$B$80)=$B20,"●",IF(TRANSPOSE('A1'!$C$30:$C$80)=$B20,"▼",IF($C19:$AZ19="|","|",""))),IF(TRANSPOSE('A1'!$B$30:$B$80)=$B20,"●",IF(TRANSPOSE('A1'!$C$30:$C$80)=$B20,"▲",IF($C19:$AZ19="|","|",""))))) ->  | F20: ●
A21: =IF(A19="","",IF((SUM(IF(FREQUENCY('A1'!$B$30:$C$80,'A1'!$B$30:$C$80)>0,1)))>(A19+1),(A19+1),"")) ->  | B21: =IF(A20="","",(LARGE('A1'!$B$30:$C$103,(1+SUM(COUNTIF('A1'!$B$30:$C$103,B$6:B20))-(A20*COUNTIF('A1'!$B$30:$C$103,B$7)))))) ->  | C21: =IF($C$5:$AZ$5="","",IF($C$5:$AZ$5="HOT",IF($C20:$AZ20="●","|",IF($C20:$AZ20="|","|","")),IF($C20:$AZ20="▲","|",IF($C20:$AZ20="|","|","")))) -> 
B22: =IF(A21="","",(LARGE('A1'!$B$30:$C$103,(1+SUM(COUNTIF('A1'!$B$30:$C$103,B$6:B21))-(A21*COUNTIF('A1'!$B$30:$C$103,B$7)))))) ->  | C22: =IF($C$5:$AZ$5="","",IF($C$5:$AZ$5="HOT",IF(TRANSPOSE('A1'!$B$30:$B$80)=$B22,"●",IF(TRANSPOSE('A1'!$C$30:$C$80)=$B22,"▼",IF($C21:$AZ21="|","|",""))),IF(TRANSPOSE('A1'!$B$30:$B$80)=$B22,"●",IF(TRANSPOSE('A1'!$C$30:$C$80)=$B22,"▲",IF($C21:$AZ21="|","|",""))))) -> 
A23: =IF(A21="","",IF((SUM(IF(FREQUENCY('A1'!$B$30:$C$80,'A1'!$B$30:$C$80)>0,1)))>(A21+1),(A21+1),"")) ->  | B23: =IF(A22="","",(LARGE('A1'!$B$30:$C$103,(1+SUM(COUNTIF('A1'!$B$30:$C$103,B$6:B22))-(A22*COUNTIF('A1'!$B$30:$C$103,B$7)))))) ->  | C23: =IF($C$5:$AZ$5="","",IF($C$5:$AZ$5="HOT",IF($C22:$AZ22="●","|",IF($C22:$AZ22="|","|","")),IF($C22:$AZ22="▲","|",IF($C22:$AZ22="|","|","")))) -> 
B24: =IF(A23="","",(LARGE('A1'!$B$30:$C$103,(1+SUM(COUNTIF('A1'!$B$30:$C$103,B$6:B23))-(A23*COUNTIF('A1'!$B$30:$C$103,B$7)))))) ->  | C24: =IF($C$5:$AZ$5="","",IF($C$5:$AZ$5="HOT",IF(TRANSPOSE('A1'!$B$30:$B$80)=$B24,"●",IF(TRANSPOSE('A1'!$C$30:$C$80)=$B24,"▼",IF($C23:$AZ23="|","|",""))),IF(TRANSPOSE('A1'!$B$30:$B$80)=$B24,"●",IF(TRANSPOSE('A1'!$C$30:$C$80)=$B24,"▲",IF($C23:$AZ23="|","|",""))))) -> 
A25: =IF(A23="","",IF((SUM(IF(FREQUENCY('A1'!$B$30:$C$80,'A1'!$B$30:$C$80)>0,1)))>(A23+1),(A23+1),"")) ->  | B25: =IF(A24="","",(LARGE('A1'!$B$30:$C$103,(1+SUM(COUNTIF('A1'!$B$30:$C$103,B$6:B24))-(A24*COUNTIF('A1'!$B$30:$C$103,B$7)))))) ->  | C25: =IF($C$5:$AZ$5="","",IF($C$5:$AZ$5="HOT",IF($C24:$AZ24="●","|",IF($C24:$AZ24="|","|","")),IF($C24:$AZ24="▲","|",IF($C24:$AZ24="|","|","")))) -> 
B26: =IF(A25="","",(LARGE('A1'!$B$30:$C$103,(1+SUM(COUNTIF('A1'!$B$30:$C$103,B$6:B25))-(A25*COUNTIF('A1'!$B$30:$C$103,B$7)))))) ->  | C26: =IF($C$5:$AZ$5="","",IF($C$5:$AZ$5="HOT",IF(TRANSPOSE('A1'!$B$30:$B$80)=$B26,"●",IF(TRANSPOSE('A1'!$C$30:$C$80)=$B26,"▼",IF($C25:$AZ25="|","|",""))),IF(TRANSPOSE('A1'!$B$30:$B$80)=$B26,"●",IF(TRANSPOSE('A1'!$C$30:$C$80)=$B26,"▲",IF($C25:$AZ25="|","|",""))))) -> 
A27: =IF(A25="","",IF((SUM(IF(FREQUENCY('A1'!$B$30:$C$80,'A1'!$B$30:$C$80)>0,1)))>(A25+1),(A25+1),"")) ->  | B27: =IF(A26="","",(LARGE('A1'!$B$30:$C$103,(1+SUM(COUNTIF('A1'!$B$30:$C$103,B$6:B26))-(A26*COUNTIF('A1'!$B$30:$C$103,B$7)))))) ->  | C27: =IF($C$5:$AZ$5="","",IF($C$5:$AZ$5="HOT",IF($C26:$AZ26="●","|",IF($C26:$AZ26="|","|","")),IF($C26:$AZ26="▲","|",IF($C26:$AZ26="|","|","")))) -> 
B28: =IF(A27="","",(LARGE('A1'!$B$30:$C$103,(1+SUM(COUNTIF('A1'!$B$30:$C$103,B$6:B27))-(A27*COUNTIF('A1'!$B$30:$C$103,B$7)))))) ->  | C28: =IF($C$5:$AZ$5="","",IF($C$5:$AZ$5="HOT",IF(TRANSPOSE('A1'!$B$30:$B$80)=$B28,"●",IF(TRANSPOSE('A1'!$C$30:$C$80)=$B28,"▼",IF($C27:$AZ27="|","|",""))),IF(TRANSPOSE('A1'!$B$30:$B$80)=$B28,"●",IF(TRANSPOSE('A1'!$C$30:$C$80)=$B28,"▲",IF($C27:$AZ27="|","|",""))))) -> 
A29: =IF(A27="","",IF((SUM(IF(FREQUENCY('A1'!$B$30:$C$80,'A1'!$B$30:$C$80)>0,1)))>(A27+1),(A27+1),"")) ->  | B29: =IF(A28="","",(LARGE('A1'!$B$30:$C$103,(1+SUM(COUNTIF('A1'!$B$30:$C$103,B$6:B28))-(A28*COUNTIF('A1'!$B$30:$C$103,B$7)))))) ->  | C29: =IF($C$5:$AZ$5="","",IF($C$5:$AZ$5="HOT",IF($C28:$AZ28="●","|",IF($C28:$AZ28="|","|","")),IF($C28:$AZ28="▲","|",IF($C28:$AZ28="|","|","")))) -> 
B30: =IF(A29="","",(LARGE('A1'!$B$30:$C$103,(1+SUM(COUNTIF('A1'!$B$30:$C$103,B$6:B29))-(A29*COUNTIF('A1'!$B$30:$C$103,B$7)))))) ->  | C30: =IF($C$5:$AZ$5="","",IF($C$5:$AZ$5="HOT",IF(TRANSPOSE('A1'!$B$30:$B$80)=$B30,"●",IF(TRANSPOSE('A1'!$C$30:$C$80)=$B30,"▼",IF($C29:$AZ29="|","|",""))),IF(TRANSPOSE('A1'!$B$30:$B$80)=$B30,"●",IF(TRANSPOSE('A1'!$C$30:$C$80)=$B30,"▲",IF($C29:$AZ29="|","|",""))))) -> 
A31: =IF(A29="","",IF((SUM(IF(FREQUENCY('A1'!$B$30:$C$80,'A1'!$B$30:$C$80)>0,1)))>(A29+1),(A29+1),"")) ->  | B31: =IF(A30="","",(LARGE('A1'!$B$30:$C$103,(1+SUM(COUNTIF('A1'!$B$30:$C$103,B$6:B30))-(A30*COUNTIF('A1'!$B$30:$C$103,B$7)))))) ->  | C31: =IF($C$5:$AZ$5="","",IF($C$5:$AZ$5="HOT",IF($C30:$AZ30="●","|",IF($C30:$AZ30="|","|","")),IF($C30:$AZ30="▲","|",IF($C30:$AZ30="|","|","")))) -> 
B32: =IF(A31="","",(LARGE('A1'!$B$30:$C$103,(1+SUM(COUNTIF('A1'!$B$30:$C$103,B$6:B31))-(A31*COUNTIF('A1'!$B$30:$C$103,B$7)))))) ->  | C32: =IF($C$5:$AZ$5="","",IF($C$5:$AZ$5="HOT",IF(TRANSPOSE('A1'!$B$30:$B$80)=$B32,"●",IF(TRANSPOSE('A1'!$C$30:$C$80)=$B32,"▼",IF($C31:$AZ31="|","|",""))),IF(TRANSPOSE('A1'!$B$30:$B$80)=$B32,"●",IF(TRANSPOSE('A1'!$C$30:$C$80)=$B32,"▲",IF($C31:$AZ31="|","|",""))))) -> 
A33: =IF(A31="","",IF((SUM(IF(FREQUENCY('A1'!$B$30:$C$80,'A1'!$B$30:$C$80)>0,1)))>(A31+1),(A31+1),"")) ->  | B33: =IF(A32="","",(LARGE('A1'!$B$30:$C$103,(1+SUM(COUNTIF('A1'!$B$30:$C$103,B$6:B32))-(A32*COUNTIF('A1'!$B$30:$C$103,B$7)))))) ->  | C33: =IF($C$5:$AZ$5="","",IF($C$5:$AZ$5="HOT",IF($C32:$AZ32="●","|",IF($C32:$AZ32="|","|","")),IF($C32:$AZ32="▲","|",IF($C32:$AZ32="|","|","")))) -> 
B34: =IF(A33="","",(LARGE('A1'!$B$30:$C$103,(1+SUM(COUNTIF('A1'!$B$30:$C$103,B$6:B33))-(A33*COUNTIF('A1'!$B$30:$C$103,B$7)))))) ->  | C34: =IF($C$5:$AZ$5="","",IF($C$5:$AZ$5="HOT",IF(TRANSPOSE('A1'!$B$30:$B$80)=$B34,"●",IF(TRANSPOSE('A1'!$C$30:$C$80)=$B34,"▼",IF($C33:$AZ33="|","|",""))),IF(TRANSPOSE('A1'!$B$30:$B$80)=$B34,"●",IF(TRANSPOSE('A1'!$C$30:$C$80)=$B34,"▲",IF($C33:$AZ33="|","|",""))))) -> 
A35: =IF(A33="","",IF((SUM(IF(FREQUENCY('A1'!$B$30:$C$80,'A1'!$B$30:$C$80)>0,1)))>(A33+1),(A33+1),"")) ->  | B35: =IF(A34="","",(LARGE('A1'!$B$30:$C$103,(1+SUM(COUNTIF('A1'!$B$30:$C$103,B$6:B34))-(A34*COUNTIF('A1'!$B$30:$C$103,B$7)))))) ->  | C35: =IF($C$5:$AZ$5="","",IF($C$5:$AZ$5="HOT",IF($C34:$AZ34="●","|",IF($C34:$AZ34="|","|","")),IF($C34:$AZ34="▲","|",IF($C34:$AZ34="|","|","")))) -> 
B36: =IF(A35="","",(LARGE('A1'!$B$30:$C$103,(1+SUM(COUNTIF('A1'!$B$30:$C$103,B$6:B35))-(A35*COUNTIF('A1'!$B$30:$C$103,B$7)))))) ->  | C36: =IF($C$5:$AZ$5="","",IF($C$5:$AZ$5="HOT",IF(TRANSPOSE('A1'!$B$30:$B$80)=$B36,"●",IF(TRANSPOSE('A1'!$C$30:$C$80)=$B36,"▼",IF($C35:$AZ35="|","|",""))),IF(TRANSPOSE('A1'!$B$30:$B$80)=$B36,"●",IF(TRANSPOSE('A1'!$C$30:$C$80)=$B36,"▲",IF($C35:$AZ35="|","|",""))))) -> 
A37: =IF(A35="","",IF((SUM(IF(FREQUENCY('A1'!$B$30:$C$80,'A1'!$B$30:$C$80)>0,1)))>(A35+1),(A35+1),"")) ->  | B37: =IF(A36="","",(LARGE('A1'!$B$30:$C$103,(1+SUM(COUNTIF('A1'!$B$30:$C$103,B$6:B36))-(A36*COUNTIF('A1'!$B$30:$C$103,B$7)))))) ->  | C37: =IF($C$5:$AZ$5="","",IF($C$5:$AZ$5="HOT",IF($C36:$AZ36="●","|",IF($C36:$AZ36="|","|","")),IF($C36:$AZ36="▲","|",IF($C36:$AZ36="|","|","")))) -> 
B38: =IF(A37="","",(LARGE('A1'!$B$30:$C$103,(1+SUM(COUNTIF('A1'!$B$30:$C$103,B$6:B37))-(A37*COUNTIF('A1'!$B$30:$C$103,B$7)))))) ->  | C38: =IF($C$5:$AZ$5="","",IF($C$5:$AZ$5="HOT",IF(TRANSPOSE('A1'!$B$30:$B$80)=$B38,"●",IF(TRANSPOSE('A1'!$C$30:$C$80)=$B38,"▼",IF($C37:$AZ37="|","|",""))),IF(TRANSPOSE('A1'!$B$30:$B$80)=$B38,"●",IF(TRANSPOSE('A1'!$C$30:$C$80)=$B38,"▲",IF($C37:$AZ37="|","|",""))))) -> 
A39: =IF(A37="","",IF((SUM(IF(FREQUENCY('A1'!$B$30:$C$80,'A1'!$B$30:$C$80)>0,1)))>(A37+1),(A37+1),"")) ->  | B39: =IF(A38="","",(LARGE('A1'!$B$30:$C$103,(1+SUM(COUNTIF('A1'!$B$30:$C$103,B$6:B38))-(A38*COUNTIF('A1'!$B$30:$C$103,B$7)))))) ->  | C39: =IF($C$5:$AZ$5="","",IF($C$5:$AZ$5="HOT",IF($C38:$AZ38="●","|",IF($C38:$AZ38="|","|","")),IF($C38:$AZ38="▲","|",IF($C38:$AZ38="|","|","")))) -> 
B40: =IF(A39="","",(LARGE('A1'!$B$30:$C$103,(1+SUM(COUNTIF('A1'!$B$30:$C$103,B$6:B39))-(A39*COUNTIF('A1'!$B$30:$C$103,B$7)))))) ->  | C40: =IF($C$5:$AZ$5="","",IF($C$5:$AZ$5="HOT",IF(TRANSPOSE('A1'!$B$30:$B$80)=$B40,"●",IF(TRANSPOSE('A1'!$C$30:$C$80)=$B40,"▼",IF($C39:$AZ39="|","|",""))),IF(TRANSPOSE('A1'!$B$30:$B$80)=$B40,"●",IF(TRANSPOSE('A1'!$C$30:$C$80)=$B40,"▲",IF($C39:$AZ39="|","|",""))))) -> 
A41: =IF(A39="","",IF((SUM(IF(FREQUENCY('A1'!$B$30:$C$80,'A1'!$B$30:$C$80)>0,1)))>(A39+1),(A39+1),"")) ->  | B41: =IF(A40="","",(LARGE('A1'!$B$30:$C$103,(1+SUM(COUNTIF('A1'!$B$30:$C$103,B$6:B40))-(A40*COUNTIF('A1'!$B$30:$C$103,B$7)))))) ->  | C41: =IF($C$5:$AZ$5="","",IF($C$5:$AZ$5="HOT",IF($C40:$AZ40="●","|",IF($C40:$AZ40="|","|","")),IF($C40:$AZ40="▲","|",IF($C40:$AZ40="|","|","")))) -> 
B42: =IF(A41="","",(LARGE('A1'!$B$30:$C$103,(1+SUM(COUNTIF('A1'!$B$30:$C$103,B$6:B41))-(A41*COUNTIF('A1'!$B$30:$C$103,B$7)))))) ->  | C42: =IF($C$5:$AZ$5="","",IF($C$5:$AZ$5="HOT",IF(TRANSPOSE('A1'!$B$30:$B$80)=$B42,"●",IF(TRANSPOSE('A1'!$C$30:$C$80)=$B42,"▼",IF($C41:$AZ41="|","|",""))),IF(TRANSPOSE('A1'!$B$30:$B$80)=$B42,"●",IF(TRANSPOSE('A1'!$C$30:$C$80)=$B42,"▲",IF($C41:$AZ41="|","|",""))))) -> 
A43: =IF(A41="","",IF((SUM(IF(FREQUENCY('A1'!$B$30:$C$80,'A1'!$B$30:$C$80)>0,1)))>(A41+1),(A41+1),"")) ->  | B43: =IF(A42="","",(LARGE('A1'!$B$30:$C$103,(1+SUM(COUNTIF('A1'!$B$30:$C$103,B$6:B42))-(A42*COUNTIF('A1'!$B$30:$C$103,B$7)))))) ->  | C43: =IF($C$5:$AZ$5="","",IF($C$5:$AZ$5="HOT",IF($C42:$AZ42="●","|",IF($C42:$AZ42="|","|","")),IF($C42:$AZ42="▲","|",IF($C42:$AZ42="|","|","")))) -> 
B44: =IF(A43="","",(LARGE('A1'!$B$30:$C$103,(1+SUM(COUNTIF('A1'!$B$30:$C$103,B$6:B43))-(A43*COUNTIF('A1'!$B$30:$C$103,B$7)))))) ->  | C44: =IF($C$5:$AZ$5="","",IF($C$5:$AZ$5="HOT",IF(TRANSPOSE('A1'!$B$30:$B$80)=$B44,"●",IF(TRANSPOSE('A1'!$C$30:$C$80)=$B44,"▼",IF($C43:$AZ43="|","|",""))),IF(TRANSPOSE('A1'!$B$30:$B$80)=$B44,"●",IF(TRANSPOSE('A1'!$C$30:$C$80)=$B44,"▲",IF($C43:$AZ43="|","|",""))))) -> 
A45: =IF(A43="","",IF((SUM(IF(FREQUENCY('A1'!$B$30:$C$80,'A1'!$B$30:$C$80)>0,1)))>(A43+1),(A43+1),"")) ->  | B45: =IF(A44="","",(LARGE('A1'!$B$30:$C$103,(1+SUM(COUNTIF('A1'!$B$30:$C$103,B$6:B44))-(A44*COUNTIF('A1'!$B$30:$C$103,B$7)))))) ->  | C45: =IF($C$5:$AZ$5="","",IF($C$5:$AZ$5="HOT",IF($C44:$AZ44="●","|",IF($C44:$AZ44="|","|","")),IF($C44:$AZ44="▲","|",IF($C44:$AZ44="|","|","")))) -> 
B46: =IF(A45="","",(LARGE('A1'!$B$30:$C$103,(1+SUM(COUNTIF('A1'!$B$30:$C$103,B$6:B45))-(A45*COUNTIF('A1'!$B$30:$C$103,B$7)))))) ->  | C46: =IF($C$5:$AZ$5="","",IF($C$5:$AZ$5="HOT",IF(TRANSPOSE('A1'!$B$30:$B$80)=$B46,"●",IF(TRANSPOSE('A1'!$C$30:$C$80)=$B46,"▼",IF($C45:$AZ45="|","|",""))),IF(TRANSPOSE('A1'!$B$30:$B$80)=$B46,"●",IF(TRANSPOSE('A1'!$C$30:$C$80)=$B46,"▲",IF($C45:$AZ45="|","|",""))))) -> 
A47: =IF(A45="","",IF((SUM(IF(FREQUENCY('A1'!$B$30:$C$80,'A1'!$B$30:$C$80)>0,1)))>(A45+1),(A45+1),"")) ->  | B47: =IF(A46="","",(LARGE('A1'!$B$30:$C$103,(1+SUM(COUNTIF('A1'!$B$30:$C$103,B$6:B46))-(A46*COUNTIF('A1'!$B$30:$C$103,B$7)))))) ->  | C47: =IF($C$5:$AZ$5="","",IF($C$5:$AZ$5="HOT",IF($C46:$AZ46="●","|",IF($C46:$AZ46="|","|","")),IF($C46:$AZ46="▲","|",IF($C46:$AZ46="|","|","")))) -> 
B48: =IF(A47="","",(LARGE('A1'!$B$30:$C$103,(1+SUM(COUNTIF('A1'!$B$30:$C$103,B$6:B47))-(A47*COUNTIF('A1'!$B$30:$C$103,B$7)))))) ->  | C48: =IF($C$5:$AZ$5="","",IF($C$5:$AZ$5="HOT",IF(TRANSPOSE('A1'!$B$30:$B$80)=$B48,"●",IF(TRANSPOSE('A1'!$C$30:$C$80)=$B48,"▼",IF($C47:$AZ47="|","|",""))),IF(TRANSPOSE('A1'!$B$30:$B$80)=$B48,"●",IF(TRANSPOSE('A1'!$C$30:$C$80)=$B48,"▲",IF($C47:$AZ47="|","|",""))))) -> 
A49: =IF(A47="","",IF((SUM(IF(FREQUENCY('A1'!$B$30:$C$80,'A1'!$B$30:$C$80)>0,1)))>(A47+1),(A47+1),"")) ->  | B49: =IF(A48="","",(LARGE('A1'!$B$30:$C$103,(1+SUM(COUNTIF('A1'!$B$30:$C$103,B$6:B48))-(A48*COUNTIF('A1'!$B$30:$C$103,B$7)))))) ->  | C49: =IF($C$5:$AZ$5="","",IF($C$5:$AZ$5="HOT",IF($C48:$AZ48="●","|",IF($C48:$AZ48="|","|","")),IF($C48:$AZ48="▲","|",IF($C48:$AZ48="|","|","")))) -> 
B50: =IF(A49="","",(LARGE('A1'!$B$30:$C$103,(1+SUM(COUNTIF('A1'!$B$30:$C$103,B$6:B49))-(A49*COUNTIF('A1'!$B$30:$C$103,B$7)))))) ->  | C50: =IF($C$5:$AZ$5="","",IF($C$5:$AZ$5="HOT",IF(TRANSPOSE('A1'!$B$30:$B$80)=$B50,"●",IF(TRANSPOSE('A1'!$C$30:$C$80)=$B50,"▼",IF($C49:$AZ49="|","|",""))),IF(TRANSPOSE('A1'!$B$30:$B$80)=$B50,"●",IF(TRANSPOSE('A1'!$C$30:$C$80)=$B50,"▲",IF($C49:$AZ49="|","|",""))))) -> 
A51: =IF(A49="","",IF((SUM(IF(FREQUENCY('A1'!$B$30:$C$80,'A1'!$B$30:$C$80)>0,1)))>(A49+1),(A49+1),"")) ->  | B51: =IF(A50="","",(LARGE('A1'!$B$30:$C$103,(1+SUM(COUNTIF('A1'!$B$30:$C$103,B$6:B50))-(A50*COUNTIF('A1'!$B$30:$C$103,B$7)))))) ->  | C51: =IF($C$5:$AZ$5="","",IF($C$5:$AZ$5="HOT",IF($C50:$AZ50="●","|",IF($C50:$AZ50="|","|","")),IF($C50:$AZ50="▲","|",IF($C50:$AZ50="|","|","")))) -> 
B52: =IF(A51="","",(LARGE('A1'!$B$30:$C$103,(1+SUM(COUNTIF('A1'!$B$30:$C$103,B$6:B51))-(A51*COUNTIF('A1'!$B$30:$C$103,B$7)))))) ->  | C52: =IF($C$5:$AZ$5="","",IF($C$5:$AZ$5="HOT",IF(TRANSPOSE('A1'!$B$30:$B$80)=$B52,"●",IF(TRANSPOSE('A1'!$C$30:$C$80)=$B52,"▼",IF($C51:$AZ51="|","|",""))),IF(TRANSPOSE('A1'!$B$30:$B$80)=$B52,"●",IF(TRANSPOSE('A1'!$C$30:$C$80)=$B52,"▲",IF($C51:$AZ51="|","|",""))))) -> 
A53: =IF(A51="","",IF((SUM(IF(FREQUENCY('A1'!$B$30:$C$80,'A1'!$B$30:$C$80)>0,1)))>(A51+1),(A51+1),"")) ->  | B53: =IF(A52="","",(LARGE('A1'!$B$30:$C$103,(1+SUM(COUNTIF('A1'!$B$30:$C$103,B$6:B52))-(A52*COUNTIF('A1'!$B$30:$C$103,B$7)))))) ->  | C53: =IF($C$5:$AZ$5="","",IF($C$5:$AZ$5="HOT",IF($C52:$AZ52="●","|",IF($C52:$AZ52="|","|","")),IF($C52:$AZ52="▲","|",IF($C52:$AZ52="|","|","")))) -> 
B54: =IF(A53="","",(LARGE('A1'!$B$30:$C$103,(1+SUM(COUNTIF('A1'!$B$30:$C$103,B$6:B53))-(A53*COUNTIF('A1'!$B$30:$C$103,B$7)))))) ->  | C54: =IF($C$5:$AZ$5="","",IF($C$5:$AZ$5="HOT",IF(TRANSPOSE('A1'!$B$30:$B$80)=$B54,"●",IF(TRANSPOSE('A1'!$C$30:$C$80)=$B54,"▼",IF($C53:$AZ53="|","|",""))),IF(TRANSPOSE('A1'!$B$30:$B$80)=$B54,"●",IF(TRANSPOSE('A1'!$C$30:$C$80)=$B54,"▲",IF($C53:$AZ53="|","|",""))))) -> 
A55: =IF(A53="","",IF((SUM(IF(FREQUENCY('A1'!$B$30:$C$80,'A1'!$B$30:$C$80)>0,1)))>(A53+1),(A53+1),"")) ->  | B55: =IF(A54="","",(LARGE('A1'!$B$30:$C$103,(1+SUM(COUNTIF('A1'!$B$30:$C$103,B$6:B54))-(A54*COUNTIF('A1'!$B$30:$C$103,B$7)))))) ->  | C55: =IF($C$5:$AZ$5="","",IF($C$5:$AZ$5="HOT",IF($C54:$AZ54="●","|",IF($C54:$AZ54="|","|","")),IF($C54:$AZ54="▲","|",IF($C54:$AZ54="|","|","")))) -> 
B56: =IF(A55="","",(LARGE('A1'!$B$30:$C$103,(1+SUM(COUNTIF('A1'!$B$30:$C$103,B$6:B55))-(A55*COUNTIF('A1'!$B$30:$C$103,B$7)))))) ->  | C56: =IF($C$5:$AZ$5="","",IF($C$5:$AZ$5="HOT",IF(TRANSPOSE('A1'!$B$30:$B$80)=$B56,"●",IF(TRANSPOSE('A1'!$C$30:$C$80)=$B56,"▼",IF($C55:$AZ55="|","|",""))),IF(TRANSPOSE('A1'!$B$30:$B$80)=$B56,"●",IF(TRANSPOSE('A1'!$C$30:$C$80)=$B56,"▲",IF($C55:$AZ55="|","|",""))))) -> 
A57: =IF(A55="","",IF((SUM(IF(FREQUENCY('A1'!$B$30:$C$80,'A1'!$B$30:$C$80)>0,1)))>(A55+1),(A55+1),"")) ->  | B57: =IF(A56="","",(LARGE('A1'!$B$30:$C$103,(1+SUM(COUNTIF('A1'!$B$30:$C$103,B$6:B56))-(A56*COUNTIF('A1'!$B$30:$C$103,B$7)))))) ->  | C57: =IF($C$5:$AZ$5="","",IF($C$5:$AZ$5="HOT",IF($C56:$AZ56="●","|",IF($C56:$AZ56="|","|","")),IF($C56:$AZ56="▲","|",IF($C56:$AZ56="|","|","")))) -> 
B58: =IF(A57="","",(LARGE('A1'!$B$30:$C$103,(1+SUM(COUNTIF('A1'!$B$30:$C$103,B$6:B57))-(A57*COUNTIF('A1'!$B$30:$C$103,B$7)))))) ->  | C58: =IF($C$5:$AZ$5="","",IF($C$5:$AZ$5="HOT",IF(TRANSPOSE('A1'!$B$30:$B$80)=$B58,"●",IF(TRANSPOSE('A1'!$C$30:$C$80)=$B58,"▼",IF($C57:$AZ57="|","|",""))),IF(TRANSPOSE('A1'!$B$30:$B$80)=$B58,"●",IF(TRANSPOSE('A1'!$C$30:$C$80)=$B58,"▲",IF($C57:$AZ57="|","|",""))))) -> 
A59: =IF(A57="","",IF((SUM(IF(FREQUENCY('A1'!$B$30:$C$80,'A1'!$B$30:$C$80)>0,1)))>(A57+1),(A57+1),"")) ->  | B59: =IF(A58="","",(LARGE('A1'!$B$30:$C$103,(1+SUM(COUNTIF('A1'!$B$30:$C$103,B$6:B58))-(A58*COUNTIF('A1'!$B$30:$C$103,B$7)))))) ->  | C59: =IF($C$5:$AZ$5="","",IF($C$5:$AZ$5="HOT",IF($C58:$AZ58="●","|",IF($C58:$AZ58="|","|","")),IF($C58:$AZ58="▲","|",IF($C58:$AZ58="|","|","")))) -> 
B60: =IF(A59="","",(LARGE('A1'!$B$30:$C$103,(1+SUM(COUNTIF('A1'!$B$30:$C$103,B$6:B59))-(A59*COUNTIF('A1'!$B$30:$C$103,B$7)))))) ->  | C60: =IF($C$5:$AZ$5="","",IF($C$5:$AZ$5="HOT",IF(TRANSPOSE('A1'!$B$30:$B$80)=$B60,"●",IF(TRANSPOSE('A1'!$C$30:$C$80)=$B60,"▼",IF($C59:$AZ59="|","|",""))),IF(TRANSPOSE('A1'!$B$30:$B$80)=$B60,"●",IF(TRANSPOSE('A1'!$C$30:$C$80)=$B60,"▲",IF($C59:$AZ59="|","|",""))))) -> 
A61: =IF(A59="","",IF((SUM(IF(FREQUENCY('A1'!$B$30:$C$80,'A1'!$B$30:$C$80)>0,1)))>(A59+1),(A59+1),"")) ->  | B61: =IF(A60="","",(LARGE('A1'!$B$30:$C$103,(1+SUM(COUNTIF('A1'!$B$30:$C$103,B$6:B60))-(A60*COUNTIF('A1'!$B$30:$C$103,B$7)))))) ->  | C61: =IF($C$5:$AZ$5="","",IF($C$5:$AZ$5="HOT",IF($C60:$AZ60="●","|",IF($C60:$AZ60="|","|","")),IF($C60:$AZ60="▲","|",IF($C60:$AZ60="|","|","")))) -> 
B62: =IF(A61="","",(LARGE('A1'!$B$30:$C$103,(1+SUM(COUNTIF('A1'!$B$30:$C$103,B$6:B61))-(A61*COUNTIF('A1'!$B$30:$C$103,B$7)))))) ->  | C62: =IF($C$5:$AZ$5="","",IF($C$5:$AZ$5="HOT",IF(TRANSPOSE('A1'!$B$30:$B$80)=$B62,"●",IF(TRANSPOSE('A1'!$C$30:$C$80)=$B62,"▼",IF($C61:$AZ61="|","|",""))),IF(TRANSPOSE('A1'!$B$30:$B$80)=$B62,"●",IF(TRANSPOSE('A1'!$C$30:$C$80)=$B62,"▲",IF($C61:$AZ61="|","|",""))))) -> 
A63: =IF(A61="","",IF((SUM(IF(FREQUENCY('A1'!$B$30:$C$80,'A1'!$B$30:$C$80)>0,1)))>(A61+1),(A61+1),"")) ->  | B63: =IF(A62="","",(LARGE('A1'!$B$30:$C$103,(1+SUM(COUNTIF('A1'!$B$30:$C$103,B$6:B62))-(A62*COUNTIF('A1'!$B$30:$C$103,B$7)))))) ->  | C63: =IF($C$5:$AZ$5="","",IF($C$5:$AZ$5="HOT",IF($C62:$AZ62="●","|",IF($C62:$AZ62="|","|","")),IF($C62:$AZ62="▲","|",IF($C62:$AZ62="|","|","")))) -> 
B64: =IF(A63="","",(LARGE('A1'!$B$30:$C$103,(1+SUM(COUNTIF('A1'!$B$30:$C$103,B$6:B63))-(A63*COUNTIF('A1'!$B$30:$C$103,B$7)))))) ->  | C64: =IF($C$5:$AZ$5="","",IF($C$5:$AZ$5="HOT",IF(TRANSPOSE('A1'!$B$30:$B$80)=$B64,"●",IF(TRANSPOSE('A1'!$C$30:$C$80)=$B64,"▼",IF($C63:$AZ63="|","|",""))),IF(TRANSPOSE('A1'!$B$30:$B$80)=$B64,"●",IF(TRANSPOSE('A1'!$C$30:$C$80)=$B64,"▲",IF($C63:$AZ63="|","|",""))))) -> 
A65: =IF(A63="","",IF((SUM(IF(FREQUENCY('A1'!$B$30:$C$80,'A1'!$B$30:$C$80)>0,1)))>(A63+1),(A63+1),"")) ->  | B65: =IF(A64="","",(LARGE('A1'!$B$30:$C$103,(1+SUM(COUNTIF('A1'!$B$30:$C$103,B$6:B64))-(A64*COUNTIF('A1'!$B$30:$C$103,B$7)))))) ->  | C65: =IF($C$5:$AZ$5="","",IF($C$5:$AZ$5="HOT",IF($C64:$AZ64="●","|",IF($C64:$AZ64="|","|","")),IF($C64:$AZ64="▲","|",IF($C64:$AZ64="|","|","")))) -> 
B66: =IF(A65="","",(LARGE('A1'!$B$30:$C$103,(1+SUM(COUNTIF('A1'!$B$30:$C$103,B$6:B65))-(A65*COUNTIF('A1'!$B$30:$C$103,B$7)))))) ->  | C66: =IF($C$5:$AZ$5="","",IF($C$5:$AZ$5="HOT",IF(TRANSPOSE('A1'!$B$30:$B$80)=$B66,"●",IF(TRANSPOSE('A1'!$C$30:$C$80)=$B66,"▼",IF($C65:$AZ65="|","|",""))),IF(TRANSPOSE('A1'!$B$30:$B$80)=$B66,"●",IF(TRANSPOSE('A1'!$C$30:$C$80)=$B66,"▲",IF($C65:$AZ65="|","|",""))))) -> 
A67: =IF(A65="","",IF((SUM(IF(FREQUENCY('A1'!$B$30:$C$80,'A1'!$B$30:$C$80)>0,1)))>(A65+1),(A65+1),"")) ->  | B67: =IF(A66="","",(LARGE('A1'!$B$30:$C$103,(1+SUM(COUNTIF('A1'!$B$30:$C$103,B$6:B66))-(A66*COUNTIF('A1'!$B$30:$C$103,B$7)))))) ->  | C67: =IF($C$5:$AZ$5="","",IF($C$5:$AZ$5="HOT",IF($C66:$AZ66="●","|",IF($C66:$AZ66="|","|","")),IF($C66:$AZ66="▲","|",IF($C66:$AZ66="|","|","")))) -> 
B68: =IF(A67="","",(LARGE('A1'!$B$30:$C$103,(1+SUM(COUNTIF('A1'!$B$30:$C$103,B$6:B67))-(A67*COUNTIF('A1'!$B$30:$C$103,B$7)))))) ->  | C68: =IF($C$5:$AZ$5="","",IF($C$5:$AZ$5="HOT",IF(TRANSPOSE('A1'!$B$30:$B$80)=$B68,"●",IF(TRANSPOSE('A1'!$C$30:$C$80)=$B68,"▼",IF($C67:$AZ67="|","|",""))),IF(TRANSPOSE('A1'!$B$30:$B$80)=$B68,"●",IF(TRANSPOSE('A1'!$C$30:$C$80)=$B68,"▲",IF($C67:$AZ67="|","|",""))))) -> 
A69: =IF(A67="","",IF((SUM(IF(FREQUENCY('A1'!$B$30:$C$80,'A1'!$B$30:$C$80)>0,1)))>(A67+1),(A67+1),"")) ->  | B69: =IF(A68="","",(LARGE('A1'!$B$30:$C$103,(1+SUM(COUNTIF('A1'!$B$30:$C$103,B$6:B68))-(A68*COUNTIF('A1'!$B$30:$C$103,B$7)))))) ->  | C69: =IF($C$5:$AZ$5="","",IF($C$5:$AZ$5="HOT",IF($C68:$AZ68="●","|",IF($C68:$AZ68="|","|","")),IF($C68:$AZ68="▲","|",IF($C68:$AZ68="|","|","")))) -> 
B70: =IF(A69="","",(LARGE('A1'!$B$30:$C$103,(1+SUM(COUNTIF('A1'!$B$30:$C$103,B$6:B69))-(A69*COUNTIF('A1'!$B$30:$C$103,B$7)))))) ->  | C70: =IF($C$5:$AZ$5="","",IF($C$5:$AZ$5="HOT",IF(TRANSPOSE('A1'!$B$30:$B$80)=$B70,"●",IF(TRANSPOSE('A1'!$C$30:$C$80)=$B70,"▼",IF($C69:$AZ69="|","|",""))),IF(TRANSPOSE('A1'!$B$30:$B$80)=$B70,"●",IF(TRANSPOSE('A1'!$C$30:$C$80)=$B70,"▲",IF($C69:$AZ69="|","|",""))))) -> 
A71: =IF(A69="","",IF((SUM(IF(FREQUENCY('A1'!$B$30:$C$80,'A1'!$B$30:$C$80)>0,1)))>(A69+1),(A69+1),"")) ->  | B71: =IF(A70="","",(LARGE('A1'!$B$30:$C$103,(1+SUM(COUNTIF('A1'!$B$30:$C$103,B$6:B70))-(A70*COUNTIF('A1'!$B$30:$C$103,B$7)))))) ->  | C71: =IF($C$5:$AZ$5="","",IF($C$5:$AZ$5="HOT",IF($C70:$AZ70="●","|",IF($C70:$AZ70="|","|","")),IF($C70:$AZ70="▲","|",IF($C70:$AZ70="|","|","")))) -> 
B72: =IF(A71="","",(LARGE('A1'!$B$30:$C$103,(1+SUM(COUNTIF('A1'!$B$30:$C$103,B$6:B71))-(A71*COUNTIF('A1'!$B$30:$C$103,B$7)))))) ->  | C72: =IF($C$5:$AZ$5="","",IF($C$5:$AZ$5="HOT",IF(TRANSPOSE('A1'!$B$30:$B$80)=$B72,"●",IF(TRANSPOSE('A1'!$C$30:$C$80)=$B72,"▼",IF($C71:$AZ71="|","|",""))),IF(TRANSPOSE('A1'!$B$30:$B$80)=$B72,"●",IF(TRANSPOSE('A1'!$C$30:$C$80)=$B72,"▲",IF($C71:$AZ71="|","|",""))))) -> 
A73: =IF(A71="","",IF((SUM(IF(FREQUENCY('A1'!$B$30:$C$80,'A1'!$B$30:$C$80)>0,1)))>(A71+1),(A71+1),"")) ->  | B73: =IF(A72="","",(LARGE('A1'!$B$30:$C$103,(1+SUM(COUNTIF('A1'!$B$30:$C$103,B$6:B72))-(A72*COUNTIF('A1'!$B$30:$C$103,B$7)))))) ->  | C73: =IF($C$5:$AZ$5="","",IF($C$5:$AZ$5="HOT",IF($C72:$AZ72="●","|",IF($C72:$AZ72="|","|","")),IF($C72:$AZ72="▲","|",IF($C72:$AZ72="|","|","")))) -> 
B74: =IF(A73="","",(LARGE('A1'!$B$30:$C$103,(1+SUM(COUNTIF('A1'!$B$30:$C$103,B$6:B73))-(A73*COUNTIF('A1'!$B$30:$C$103,B$7)))))) ->  | C74: =IF($C$5:$AZ$5="","",IF($C$5:$AZ$5="HOT",IF(TRANSPOSE('A1'!$B$30:$B$80)=$B74,"●",IF(TRANSPOSE('A1'!$C$30:$C$80)=$B74,"▼",IF($C73:$AZ73="|","|",""))),IF(TRANSPOSE('A1'!$B$30:$B$80)=$B74,"●",IF(TRANSPOSE('A1'!$C$30:$C$80)=$B74,"▲",IF($C73:$AZ73="|","|",""))))) -> 
A75: =IF(A73="","",IF((SUM(IF(FREQUENCY('A1'!$B$30:$C$80,'A1'!$B$30:$C$80)>0,1)))>(A73+1),(A73+1),"")) ->  | B75: =IF(A74="","",(LARGE('A1'!$B$30:$C$103,(1+SUM(COUNTIF('A1'!$B$30:$C$103,B$6:B74))-(A74*COUNTIF('A1'!$B$30:$C$103,B$7)))))) ->  | C75: =IF($C$5:$AZ$5="","",IF($C$5:$AZ$5="HOT",IF($C74:$AZ74="●","|",IF($C74:$AZ74="|","|","")),IF($C74:$AZ74="▲","|",IF($C74:$AZ74="|","|","")))) -> 
B76: =IF(A75="","",(LARGE('A1'!$B$30:$C$103,(1+SUM(COUNTIF('A1'!$B$30:$C$103,B$6:B75))-(A75*COUNTIF('A1'!$B$30:$C$103,B$7)))))) ->  | C76: =IF($C$5:$AZ$5="","",IF($C$5:$AZ$5="HOT",IF(TRANSPOSE('A1'!$B$30:$B$80)=$B76,"●",IF(TRANSPOSE('A1'!$C$30:$C$80)=$B76,"▼",IF($C75:$AZ75="|","|",""))),IF(TRANSPOSE('A1'!$B$30:$B$80)=$B76,"●",IF(TRANSPOSE('A1'!$C$30:$C$80)=$B76,"▲",IF($C75:$AZ75="|","|",""))))) -> 
A77: =IF(A75="","",IF((SUM(IF(FREQUENCY('A1'!$B$30:$C$80,'A1'!$B$30:$C$80)>0,1)))>(A75+1),(A75+1),"")) ->  | B77: =IF(A76="","",(LARGE('A1'!$B$30:$C$103,(1+SUM(COUNTIF('A1'!$B$30:$C$103,B$6:B76))-(A76*COUNTIF('A1'!$B$30:$C$103,B$7)))))) ->  | C77: =IF($C$5:$AZ$5="","",IF($C$5:$AZ$5="HOT",IF($C76:$AZ76="●","|",IF($C76:$AZ76="|","|","")),IF($C76:$AZ76="▲","|",IF($C76:$AZ76="|","|","")))) -> 
B78: =IF(A77="","",(LARGE('A1'!$B$30:$C$103,(1+SUM(COUNTIF('A1'!$B$30:$C$103,B$6:B77))-(A77*COUNTIF('A1'!$B$30:$C$103,B$7)))))) ->  | C78: =IF($C$5:$AZ$5="","",IF($C$5:$AZ$5="HOT",IF(TRANSPOSE('A1'!$B$30:$B$80)=$B78,"●",IF(TRANSPOSE('A1'!$C$30:$C$80)=$B78,"▼",IF($C77:$AZ77="|","|",""))),IF(TRANSPOSE('A1'!$B$30:$B$80)=$B78,"●",IF(TRANSPOSE('A1'!$C$30:$C$80)=$B78,"▲",IF($C77:$AZ77="|","|",""))))) -> 
A79: =IF(A77="","",IF((SUM(IF(FREQUENCY('A1'!$B$30:$C$80,'A1'!$B$30:$C$80)>0,1)))>(A77+1),(A77+1),"")) ->  | B79: =IF(A78="","",(LARGE('A1'!$B$30:$C$103,(1+SUM(COUNTIF('A1'!$B$30:$C$103,B$6:B78))-(A78*COUNTIF('A1'!$B$30:$C$103,B$7)))))) ->  | C79: =IF($C$5:$AZ$5="","",IF($C$5:$AZ$5="HOT",IF($C78:$AZ78="●","|",IF($C78:$AZ78="|","|","")),IF($C78:$AZ78="▲","|",IF($C78:$AZ78="|","|","")))) -> 
B80: =IF(A79="","",(LARGE('A1'!$B$30:$C$103,(1+SUM(COUNTIF('A1'!$B$30:$C$103,B$6:B79))-(A79*COUNTIF('A1'!$B$30:$C$103,B$7)))))) ->  | C80: =IF($C$5:$AZ$5="","",IF($C$5:$AZ$5="HOT",IF(TRANSPOSE('A1'!$B$30:$B$80)=$B80,"●",IF(TRANSPOSE('A1'!$C$30:$C$80)=$B80,"▼",IF($C79:$AZ79="|","|",""))),IF(TRANSPOSE('A1'!$B$30:$B$80)=$B80,"●",IF(TRANSPOSE('A1'!$C$30:$C$80)=$B80,"▲",IF($C79:$AZ79="|","|",""))))) -> 
A81: =IF(A79="","",IF((SUM(IF(FREQUENCY('A1'!$B$30:$C$80,'A1'!$B$30:$C$80)>0,1)))>(A79+1),(A79+1),"")) ->  | B81: =IF(A80="","",(LARGE('A1'!$B$30:$C$103,(1+SUM(COUNTIF('A1'!$B$30:$C$103,B$6:B80))-(A80*COUNTIF('A1'!$B$30:$C$103,B$7)))))) ->  | C81: =IF($C$5:$AZ$5="","",IF($C$5:$AZ$5="HOT",IF($C80:$AZ80="●","|",IF($C80:$AZ80="|","|","")),IF($C80:$AZ80="▲","|",IF($C80:$AZ80="|","|","")))) -> 
B82: =IF(A81="","",(LARGE('A1'!$B$30:$C$103,(1+SUM(COUNTIF('A1'!$B$30:$C$103,B$6:B81))-(A81*COUNTIF('A1'!$B$30:$C$103,B$7)))))) ->  | C82: =IF($C$5:$AZ$5="","",IF($C$5:$AZ$5="HOT",IF(TRANSPOSE('A1'!$B$30:$B$80)=$B82,"●",IF(TRANSPOSE('A1'!$C$30:$C$80)=$B82,"▼",IF($C81:$AZ81="|","|",""))),IF(TRANSPOSE('A1'!$B$30:$B$80)=$B82,"●",IF(TRANSPOSE('A1'!$C$30:$C$80)=$B82,"▲",IF($C81:$AZ81="|","|",""))))) -> 
A83: =IF(A81="","",IF((SUM(IF(FREQUENCY('A1'!$B$30:$C$80,'A1'!$B$30:$C$80)>0,1)))>(A81+1),(A81+1),"")) ->  | B83: =IF(A82="","",(LARGE('A1'!$B$30:$C$103,(1+SUM(COUNTIF('A1'!$B$30:$C$103,B$6:B82))-(A82*COUNTIF('A1'!$B$30:$C$103,B$7)))))) ->  | C83: =IF($C$5:$AZ$5="","",IF($C$5:$AZ$5="HOT",IF($C82:$AZ82="●","|",IF($C82:$AZ82="|","|","")),IF($C82:$AZ82="▲","|",IF($C82:$AZ82="|","|","")))) -> 
B84: =IF(A83="","",(LARGE('A1'!$B$30:$C$103,(1+SUM(COUNTIF('A1'!$B$30:$C$103,B$6:B83))-(A83*COUNTIF('A1'!$B$30:$C$103,B$7)))))) ->  | C84: =IF($C$5:$AZ$5="","",IF($C$5:$AZ$5="HOT",IF(TRANSPOSE('A1'!$B$30:$B$80)=$B84,"●",IF(TRANSPOSE('A1'!$C$30:$C$80)=$B84,"▼",IF($C83:$AZ83="|","|",""))),IF(TRANSPOSE('A1'!$B$30:$B$80)=$B84,"●",IF(TRANSPOSE('A1'!$C$30:$C$80)=$B84,"▲",IF($C83:$AZ83="|","|",""))))) -> 
A85: =IF(A83="","",IF((SUM(IF(FREQUENCY('A1'!$B$30:$C$80,'A1'!$B$30:$C$80)>0,1)))>(A83+1),(A83+1),"")) ->  | B85: =IF(A84="","",(LARGE('A1'!$B$30:$C$103,(1+SUM(COUNTIF('A1'!$B$30:$C$103,B$6:B84))-(A84*COUNTIF('A1'!$B$30:$C$103,B$7)))))) ->  | C85: =IF($C$5:$AZ$5="","",IF($C$5:$AZ$5="HOT",IF($C84:$AZ84="●","|",IF($C84:$AZ84="|","|","")),IF($C84:$AZ84="▲","|",IF($C84:$AZ84="|","|","")))) -> 
B86: =IF(A85="","",(LARGE('A1'!$B$30:$C$103,(1+SUM(COUNTIF('A1'!$B$30:$C$103,B$6:B85))-(A85*COUNTIF('A1'!$B$30:$C$103,B$7)))))) ->  | C86: =IF($C$5:$AZ$5="","",IF($C$5:$AZ$5="HOT",IF(TRANSPOSE('A1'!$B$30:$B$80)=$B86,"●",IF(TRANSPOSE('A1'!$C$30:$C$80)=$B86,"▼",IF($C85:$AZ85="|","|",""))),IF(TRANSPOSE('A1'!$B$30:$B$80)=$B86,"●",IF(TRANSPOSE('A1'!$C$30:$C$80)=$B86,"▲",IF($C85:$AZ85="|","|",""))))) -> 
A87: =IF(A85="","",IF((SUM(IF(FREQUENCY('A1'!$B$30:$C$80,'A1'!$B$30:$C$80)>0,1)))>(A85+1),(A85+1),"")) ->  | B87: =IF(A86="","",(LARGE('A1'!$B$30:$C$103,(1+SUM(COUNTIF('A1'!$B$30:$C$103,B$6:B86))-(A86*COUNTIF('A1'!$B$30:$C$103,B$7)))))) ->  | C87: =IF($C$5:$AZ$5="","",IF($C$5:$AZ$5="HOT",IF($C86:$AZ86="●","|",IF($C86:$AZ86="|","|","")),IF($C86:$AZ86="▲","|",IF($C86:$AZ86="|","|","")))) -> 
B88: =IF(A87="","",(LARGE('A1'!$B$30:$C$103,(1+SUM(COUNTIF('A1'!$B$30:$C$103,B$6:B87))-(A87*COUNTIF('A1'!$B$30:$C$103,B$7)))))) ->  | C88: =IF($C$5:$AZ$5="","",IF($C$5:$AZ$5="HOT",IF(TRANSPOSE('A1'!$B$30:$B$80)=$B88,"●",IF(TRANSPOSE('A1'!$C$30:$C$80)=$B88,"▼",IF($C87:$AZ87="|","|",""))),IF(TRANSPOSE('A1'!$B$30:$B$80)=$B88,"●",IF(TRANSPOSE('A1'!$C$30:$C$80)=$B88,"▲",IF($C87:$AZ87="|","|",""))))) -> 
A89: =IF(A87="","",IF((SUM(IF(FREQUENCY('A1'!$B$30:$C$80,'A1'!$B$30:$C$80)>0,1)))>(A87+1),(A87+1),"")) ->  | B89: =IF(A88="","",(LARGE('A1'!$B$30:$C$103,(1+SUM(COUNTIF('A1'!$B$30:$C$103,B$6:B88))-(A88*COUNTIF('A1'!$B$30:$C$103,B$7)))))) ->  | C89: =IF($C$5:$AZ$5="","",IF($C$5:$AZ$5="HOT",IF($C88:$AZ88="●","|",IF($C88:$AZ88="|","|","")),IF($C88:$AZ88="▲","|",IF($C88:$AZ88="|","|","")))) -> 
B90: =IF(A89="","",(LARGE('A1'!$B$30:$C$103,(1+SUM(COUNTIF('A1'!$B$30:$C$103,B$6:B89))-(A89*COUNTIF('A1'!$B$30:$C$103,B$7)))))) ->  | C90: =IF($C$5:$AZ$5="","",IF($C$5:$AZ$5="HOT",IF(TRANSPOSE('A1'!$B$30:$B$80)=$B90,"●",IF(TRANSPOSE('A1'!$C$30:$C$80)=$B90,"▼",IF($C89:$AZ89="|","|",""))),IF(TRANSPOSE('A1'!$B$30:$B$80)=$B90,"●",IF(TRANSPOSE('A1'!$C$30:$C$80)=$B90,"▲",IF($C89:$AZ89="|","|",""))))) -> 
A91: =IF(A89="","",IF((SUM(IF(FREQUENCY('A1'!$B$30:$C$80,'A1'!$B$30:$C$80)>0,1)))>(A89+1),(A89+1),"")) ->  | B91: =IF(A90="","",(LARGE('A1'!$B$30:$C$103,(1+SUM(COUNTIF('A1'!$B$30:$C$103,B$6:B90))-(A90*COUNTIF('A1'!$B$30:$C$103,B$7)))))) ->  | C91: =IF($C$5:$AZ$5="","",IF($C$5:$AZ$5="HOT",IF($C90:$AZ90="●","|",IF($C90:$AZ90="|","|","")),IF($C90:$AZ90="▲","|",IF($C90:$AZ90="|","|","")))) -> 
B92: =IF(A91="","",(LARGE('A1'!$B$30:$C$103,(1+SUM(COUNTIF('A1'!$B$30:$C$103,B$6:B91))-(A91*COUNTIF('A1'!$B$30:$C$103,B$7)))))) ->  | C92: =IF($C$5:$AZ$5="","",IF($C$5:$AZ$5="HOT",IF(TRANSPOSE('A1'!$B$30:$B$80)=$B92,"●",IF(TRANSPOSE('A1'!$C$30:$C$80)=$B92,"▼",IF($C91:$AZ91="|","|",""))),IF(TRANSPOSE('A1'!$B$30:$B$80)=$B92,"●",IF(TRANSPOSE('A1'!$C$30:$C$80)=$B92,"▲",IF($C91:$AZ91="|","|",""))))) -> 
A93: =IF(A91="","",IF((SUM(IF(FREQUENCY('A1'!$B$30:$C$80,'A1'!$B$30:$C$80)>0,1)))>(A91+1),(A91+1),"")) ->  | B93: =IF(A92="","",(LARGE('A1'!$B$30:$C$103,(1+SUM(COUNTIF('A1'!$B$30:$C$103,B$6:B92))-(A92*COUNTIF('A1'!$B$30:$C$103,B$7)))))) ->  | C93: =IF($C$5:$AZ$5="","",IF($C$5:$AZ$5="HOT",IF($C92:$AZ92="●","|",IF($C92:$AZ92="|","|","")),IF($C92:$AZ92="▲","|",IF($C92:$AZ92="|","|","")))) -> 
B94: =IF(A93="","",(LARGE('A1'!$B$30:$C$103,(1+SUM(COUNTIF('A1'!$B$30:$C$103,B$6:B93))-(A93*COUNTIF('A1'!$B$30:$C$103,B$7)))))) ->  | C94: =IF($C$5:$AZ$5="","",IF($C$5:$AZ$5="HOT",IF(TRANSPOSE('A1'!$B$30:$B$80)=$B94,"●",IF(TRANSPOSE('A1'!$C$30:$C$80)=$B94,"▼",IF($C93:$AZ93="|","|",""))),IF(TRANSPOSE('A1'!$B$30:$B$80)=$B94,"●",IF(TRANSPOSE('A1'!$C$30:$C$80)=$B94,"▲",IF($C93:$AZ93="|","|",""))))) -> 
A95: =IF(A93="","",IF((SUM(IF(FREQUENCY('A1'!$B$30:$C$80,'A1'!$B$30:$C$80)>0,1)))>(A93+1),(A93+1),"")) ->  | B95: =IF(A94="","",(LARGE('A1'!$B$30:$C$103,(1+SUM(COUNTIF('A1'!$B$30:$C$103,B$6:B94))-(A94*COUNTIF('A1'!$B$30:$C$103,B$7)))))) ->  | C95: =IF($C$5:$AZ$5="","",IF($C$5:$AZ$5="HOT",IF($C94:$AZ94="●","|",IF($C94:$AZ94="|","|","")),IF($C94:$AZ94="▲","|",IF($C94:$AZ94="|","|","")))) -> 
B96: =IF(A95="","",(LARGE('A1'!$B$30:$C$103,(1+SUM(COUNTIF('A1'!$B$30:$C$103,B$6:B95))-(A95*COUNTIF('A1'!$B$30:$C$103,B$7)))))) ->  | C96: =IF($C$5:$AZ$5="","",IF($C$5:$AZ$5="HOT",IF(TRANSPOSE('A1'!$B$30:$B$80)=$B96,"●",IF(TRANSPOSE('A1'!$C$30:$C$80)=$B96,"▼",IF($C95:$AZ95="|","|",""))),IF(TRANSPOSE('A1'!$B$30:$B$80)=$B96,"●",IF(TRANSPOSE('A1'!$C$30:$C$80)=$B96,"▲",IF($C95:$AZ95="|","|",""))))) -> 
A97: =IF(A95="","",IF((SUM(IF(FREQUENCY('A1'!$B$30:$C$80,'A1'!$B$30:$C$80)>0,1)))>(A95+1),(A95+1),"")) ->  | B97: =IF(A96="","",(LARGE('A1'!$B$30:$C$103,(1+SUM(COUNTIF('A1'!$B$30:$C$103,B$6:B96))-(A96*COUNTIF('A1'!$B$30:$C$103,B$7)))))) ->  | C97: =IF($C$5:$AZ$5="","",IF($C$5:$AZ$5="HOT",IF($C96:$AZ96="●","|",IF($C96:$AZ96="|","|","")),IF($C96:$AZ96="▲","|",IF($C96:$AZ96="|","|","")))) -> 
B98: =IF(A97="","",(LARGE('A1'!$B$30:$C$103,(1+SUM(COUNTIF('A1'!$B$30:$C$103,B$6:B97))-(A97*COUNTIF('A1'!$B$30:$C$103,B$7)))))) ->  | C98: =IF($C$5:$AZ$5="","",IF($C$5:$AZ$5="HOT",IF(TRANSPOSE('A1'!$B$30:$B$80)=$B98,"●",IF(TRANSPOSE('A1'!$C$30:$C$80)=$B98,"▼",IF($C97:$AZ97="|","|",""))),IF(TRANSPOSE('A1'!$B$30:$B$80)=$B98,"●",IF(TRANSPOSE('A1'!$C$30:$C$80)=$B98,"▲",IF($C97:$AZ97="|","|",""))))) -> 
A99: =IF(A97="","",IF((SUM(IF(FREQUENCY('A1'!$B$30:$C$80,'A1'!$B$30:$C$80)>0,1)))>(A97+1),(A97+1),"")) ->  | B99: =IF(A98="","",(LARGE('A1'!$B$30:$C$103,(1+SUM(COUNTIF('A1'!$B$30:$C$103,B$6:B98))-(A98*COUNTIF('A1'!$B$30:$C$103,B$7)))))) ->  | C99: =IF($C$5:$AZ$5="","",IF($C$5:$AZ$5="HOT",IF($C98:$AZ98="●","|",IF($C98:$AZ98="|","|","")),IF($C98:$AZ98="▲","|",IF($C98:$AZ98="|","|","")))) -> 
B100: =IF(A99="","",(LARGE('A1'!$B$30:$C$103,(1+SUM(COUNTIF('A1'!$B$30:$C$103,B$6:B99))-(A99*COUNTIF('A1'!$B$30:$C$103,B$7)))))) ->  | C100: =IF($C$5:$AZ$5="","",IF($C$5:$AZ$5="HOT",IF(TRANSPOSE('A1'!$B$30:$B$80)=$B100,"●",IF(TRANSPOSE('A1'!$C$30:$C$80)=$B100,"▼",IF($C99:$AZ99="|","|",""))),IF(TRANSPOSE('A1'!$B$30:$B$80)=$B100,"●",IF(TRANSPOSE('A1'!$C$30:$C$80)=$B100,"▲",IF($C99:$AZ99="|","|",""))))) -> 
A101: =IF(A99="","",IF((SUM(IF(FREQUENCY('A1'!$B$30:$C$80,'A1'!$B$30:$C$80)>0,1)))>(A99+1),(A99+1),"")) ->  | B101: =IF(A100="","",(LARGE('A1'!$B$30:$C$103,(1+SUM(COUNTIF('A1'!$B$30:$C$103,B$6:B100))-(A100*COUNTIF('A1'!$B$30:$C$103,B$7)))))) ->  | C101: =IF($C$5:$AZ$5="","",IF($C$5:$AZ$5="HOT",IF($C100:$AZ100="●","|",IF($C100:$AZ100="|","|","")),IF($C100:$AZ100="▲","|",IF($C100:$AZ100="|","|","")))) -> 
B102: =IF(A101="","",(LARGE('A1'!$B$30:$C$103,(1+SUM(COUNTIF('A1'!$B$30:$C$103,B$6:B101))-(A101*COUNTIF('A1'!$B$30:$C$103,B$7)))))) ->  | C102: =IF($C$5:$AZ$5="","",IF($C$5:$AZ$5="HOT",IF(TRANSPOSE('A1'!$B$30:$B$80)=$B102,"●",IF(TRANSPOSE('A1'!$C$30:$C$80)=$B102,"▼",IF($C101:$AZ101="|","|",""))),IF(TRANSPOSE('A1'!$B$30:$B$80)=$B102,"●",IF(TRANSPOSE('A1'!$C$30:$C$80)=$B102,"▲",IF($C101:$AZ101="|","|",""))))) -> 
A103: =IF(A101="","",IF((SUM(IF(FREQUENCY('A1'!$B$30:$C$80,'A1'!$B$30:$C$80)>0,1)))>(A101+1),(A101+1),"")) ->  | B103: =IF(A102="","",(LARGE('A1'!$B$30:$C$103,(1+SUM(COUNTIF('A1'!$B$30:$C$103,B$6:B102))-(A102*COUNTIF('A1'!$B$30:$C$103,B$7)))))) ->  | C103: =IF($C$5:$AZ$5="","",IF($C$5:$AZ$5="HOT",IF($C102:$AZ102="●","|",IF($C102:$AZ102="|","|","")),IF($C102:$AZ102="▲","|",IF($C102:$AZ102="|","|","")))) -> 
B104: =IF(A103="","",(LARGE('A1'!$B$30:$C$103,(1+SUM(COUNTIF('A1'!$B$30:$C$103,B$6:B103))-(A103*COUNTIF('A1'!$B$30:$C$103,B$7)))))) ->  | C104: =IF($C$5:$AZ$5="","",IF($C$5:$AZ$5="HOT",IF(TRANSPOSE('A1'!$B$30:$B$80)=$B104,"●",IF(TRANSPOSE('A1'!$C$30:$C$80)=$B104,"▼",IF($C103:$AZ103="|","|",""))),IF(TRANSPOSE('A1'!$B$30:$B$80)=$B104,"●",IF(TRANSPOSE('A1'!$C$30:$C$80)=$B104,"▲",IF($C103:$AZ103="|","|",""))))) -> 
A105: =IF(A103="","",IF((SUM(IF(FREQUENCY('A1'!$B$30:$C$80,'A1'!$B$30:$C$80)>0,1)))>(A103+1),(A103+1),"")) ->  | B105: =IF(A104="","",(LARGE('A1'!$B$30:$C$103,(1+SUM(COUNTIF('A1'!$B$30:$C$103,B$6:B104))-(A104*COUNTIF('A1'!$B$30:$C$103,B$7)))))) ->  | C105: =IF($C$5:$AZ$5="","",IF($C$5:$AZ$5="HOT",IF($C104:$AZ104="●","|",IF($C104:$AZ104="|","|","")),IF($C104:$AZ104="▲","|",IF($C104:$AZ104="|","|","")))) -> 
B106: =IF(A105="","",(LARGE('A1'!$B$30:$C$103,(1+SUM(COUNTIF('A1'!$B$30:$C$103,B$6:B105))-(A105*COUNTIF('A1'!$B$30:$C$103,B$7)))))) ->  | C106: =IF($C$5:$AZ$5="","",IF($C$5:$AZ$5="HOT",IF(TRANSPOSE('A1'!$B$30:$B$80)=$B106,"●",IF(TRANSPOSE('A1'!$C$30:$C$80)=$B106,"▼",IF($C105:$AZ105="|","|",""))),IF(TRANSPOSE('A1'!$B$30:$B$80)=$B106,"●",IF(TRANSPOSE('A1'!$C$30:$C$80)=$B106,"▲",IF($C105:$AZ105="|","|",""))))) -> 
A107: =IF(A105="","",IF((SUM(IF(FREQUENCY('A1'!$B$30:$C$80,'A1'!$B$30:$C$80)>0,1)))>(A105+1),(A105+1),"")) ->  | B107: =IF(A106="","",(LARGE('A1'!$B$30:$C$103,(1+SUM(COUNTIF('A1'!$B$30:$C$103,B$6:B106))-(A106*COUNTIF('A1'!$B$30:$C$103,B$7)))))) ->  | C107: =IF($C$5:$AZ$5="","",IF($C$5:$AZ$5="HOT",IF($C106:$AZ106="●","|",IF($C106:$AZ106="|","|","")),IF($C106:$AZ106="▲","|",IF($C106:$AZ106="|","|","")))) -> 
B108: =IF(A107="","",(LARGE('A1'!$B$30:$C$103,(1+SUM(COUNTIF('A1'!$B$30:$C$103,B$6:B107))-(A107*COUNTIF('A1'!$B$30:$C$103,B$7)))))) ->  | C108: =IF($C$5:$AZ$5="","",IF($C$5:$AZ$5="HOT",IF(TRANSPOSE('A1'!$B$30:$B$80)=$B108,"●",IF(TRANSPOSE('A1'!$C$30:$C$80)=$B108,"▼",IF($C107:$AZ107="|","|",""))),IF(TRANSPOSE('A1'!$B$30:$B$80)=$B108,"●",IF(TRANSPOSE('A1'!$C$30:$C$80)=$B108,"▲",IF($C107:$AZ107="|","|",""))))) -> 
A109: =IF(A107="","",IF((SUM(IF(FREQUENCY('A1'!$B$30:$C$80,'A1'!$B$30:$C$80)>0,1)))>(A107+1),(A107+1),"")) ->  | B109: =IF(A108="","",(LARGE('A1'!$B$30:$C$103,(1+SUM(COUNTIF('A1'!$B$30:$C$103,B$6:B108))-(A108*COUNTIF('A1'!$B$30:$C$103,B$7)))))) ->  | C109: =IF($C$5:$AZ$5="","",IF($C$5:$AZ$5="HOT",IF($C108:$AZ108="●","|",IF($C108:$AZ108="|","|","")),IF($C108:$AZ108="▲","|",IF($C108:$AZ108="|","|","")))) -> 
B110: =IF(A109="","",(LARGE('A1'!$B$30:$C$103,(1+SUM(COUNTIF('A1'!$B$30:$C$103,B$6:B109))-(A109*COUNTIF('A1'!$B$30:$C$103,B$7)))))) ->  | C110: =IF($C$5:$AZ$5="","",IF($C$5:$AZ$5="HOT",IF(TRANSPOSE('A1'!$B$30:$B$80)=$B110,"●",IF(TRANSPOSE('A1'!$C$30:$C$80)=$B110,"▼",IF($C109:$AZ109="|","|",""))),IF(TRANSPOSE('A1'!$B$30:$B$80)=$B110,"●",IF(TRANSPOSE('A1'!$C$30:$C$80)=$B110,"▲",IF($C109:$AZ109="|","|",""))))) -> 
A111: =IF(A109="","",IF((SUM(IF(FREQUENCY('A1'!$B$30:$C$80,'A1'!$B$30:$C$80)>0,1)))>(A109+1),(A109+1),"")) ->  | B111: =IF(A110="","",(LARGE('A1'!$B$30:$C$103,(1+SUM(COUNTIF('A1'!$B$30:$C$103,B$6:B110))-(A110*COUNTIF('A1'!$B$30:$C$103,B$7)))))) ->  | C111: =IF($C$5:$AZ$5="","",IF($C$5:$AZ$5="HOT",IF($C110:$AZ110="●","|",IF($C110:$AZ110="|","|","")),IF($C110:$AZ110="▲","|",IF($C110:$AZ110="|","|","")))) -> 
B112: =IF(A111="","",(LARGE('A1'!$B$30:$C$103,(1+SUM(COUNTIF('A1'!$B$30:$C$103,B$6:B111))-(A111*COUNTIF('A1'!$B$30:$C$103,B$7)))))) ->  | C112: =IF($C$5:$AZ$5="","",IF($C$5:$AZ$5="HOT",IF(TRANSPOSE('A1'!$B$30:$B$80)=$B112,"●",IF(TRANSPOSE('A1'!$C$30:$C$80)=$B112,"▼",IF($C111:$AZ111="|","|",""))),IF(TRANSPOSE('A1'!$B$30:$B$80)=$B112,"●",IF(TRANSPOSE('A1'!$C$30:$C$80)=$B112,"▲",IF($C111:$AZ111="|","|",""))))) -> 
A113: =IF(A111="","",IF((SUM(IF(FREQUENCY('A1'!$B$30:$C$80,'A1'!$B$30:$C$80)>0,1)))>(A111+1),(A111+1),"")) ->  | B113: =IF(A112="","",(LARGE('A1'!$B$30:$C$103,(1+SUM(COUNTIF('A1'!$B$30:$C$103,B$6:B112))-(A112*COUNTIF('A1'!$B$30:$C$103,B$7)))))) ->  | C113: =IF($C$5:$AZ$5="","",IF($C$5:$AZ$5="HOT",IF($C112:$AZ112="●","|",IF($C112:$AZ112="|","|","")),IF($C112:$AZ112="▲","|",IF($C112:$AZ112="|","|","")))) -> 
B114: =IF(A113="","",(LARGE('A1'!$B$30:$C$103,(1+SUM(COUNTIF('A1'!$B$30:$C$103,B$6:B113))-(A113*COUNTIF('A1'!$B$30:$C$103,B$7)))))) ->  | C114: =IF($C$5:$AZ$5="","",IF($C$5:$AZ$5="HOT",IF(TRANSPOSE('A1'!$B$30:$B$80)=$B114,"●",IF(TRANSPOSE('A1'!$C$30:$C$80)=$B114,"▼",IF($C113:$AZ113="|","|",""))),IF(TRANSPOSE('A1'!$B$30:$B$80)=$B114,"●",IF(TRANSPOSE('A1'!$C$30:$C$80)=$B114,"▲",IF($C113:$AZ113="|","|",""))))) -> 
A115: =IF(A113="","",IF((SUM(IF(FREQUENCY('A1'!$B$30:$C$80,'A1'!$B$30:$C$80)>0,1)))>(A113+1),(A113+1),"")) ->  | B115: =IF(A114="","",(LARGE('A1'!$B$30:$C$103,(1+SUM(COUNTIF('A1'!$B$30:$C$103,B$6:B114))-(A114*COUNTIF('A1'!$B$30:$C$103,B$7)))))) ->  | C115: =IF($C$5:$AZ$5="","",IF($C$5:$AZ$5="HOT",IF($C114:$AZ114="●","|",IF($C114:$AZ114="|","|","")),IF($C114:$AZ114="▲","|",IF($C114:$AZ114="|","|","")))) -> 
B116: =IF(A115="","",(LARGE('A1'!$B$30:$C$103,(1+SUM(COUNTIF('A1'!$B$30:$C$103,B$6:B115))-(A115*COUNTIF('A1'!$B$30:$C$103,B$7)))))) ->  | C116: =IF($C$5:$AZ$5="","",IF($C$5:$AZ$5="HOT",IF(TRANSPOSE('A1'!$B$30:$B$80)=$B116,"●",IF(TRANSPOSE('A1'!$C$30:$C$80)=$B116,"▼",IF($C115:$AZ115="|","|",""))),IF(TRANSPOSE('A1'!$B$30:$B$80)=$B116,"●",IF(TRANSPOSE('A1'!$C$30:$C$80)=$B116,"▲",IF($C115:$AZ115="|","|",""))))) -> 
A117: =IF(A115="","",IF((SUM(IF(FREQUENCY('A1'!$B$30:$C$80,'A1'!$B$30:$C$80)>0,1)))>(A115+1),(A115+1),"")) ->  | B117: =IF(A116="","",(LARGE('A1'!$B$30:$C$103,(1+SUM(COUNTIF('A1'!$B$30:$C$103,B$6:B116))-(A116*COUNTIF('A1'!$B$30:$C$103,B$7)))))) ->  | C117: =IF($C$5:$AZ$5="","",IF($C$5:$AZ$5="HOT",IF($C116:$AZ116="●","|",IF($C116:$AZ116="|","|","")),IF($C116:$AZ116="▲","|",IF($C116:$AZ116="|","|","")))) -> 
B118: =IF(A117="","",(LARGE('A1'!$B$30:$C$103,(1+SUM(COUNTIF('A1'!$B$30:$C$103,B$6:B117))-(A117*COUNTIF('A1'!$B$30:$C$103,B$7)))))) ->  | C118: =IF($C$5:$AZ$5="","",IF($C$5:$AZ$5="HOT",IF(TRANSPOSE('A1'!$B$30:$B$80)=$B118,"●",IF(TRANSPOSE('A1'!$C$30:$C$80)=$B118,"▼",IF($C117:$AZ117="|","|",""))),IF(TRANSPOSE('A1'!$B$30:$B$80)=$B118,"●",IF(TRANSPOSE('A1'!$C$30:$C$80)=$B118,"▲",IF($C117:$AZ117="|","|",""))))) -> 
A119: =IF(A117="","",IF((SUM(IF(FREQUENCY('A1'!$B$30:$C$80,'A1'!$B$30:$C$80)>0,1)))>(A117+1),(A117+1),"")) ->  | B119: =IF(A118="","",(LARGE('A1'!$B$30:$C$103,(1+SUM(COUNTIF('A1'!$B$30:$C$103,B$6:B118))-(A118*COUNTIF('A1'!$B$30:$C$103,B$7)))))) ->  | C119: =IF($C$5:$AZ$5="","",IF($C$5:$AZ$5="HOT",IF($C118:$AZ118="●","|",IF($C118:$AZ118="|","|","")),IF($C118:$AZ118="▲","|",IF($C118:$AZ118="|","|","")))) -> 
B120: =IF(A119="","",(LARGE('A1'!$B$30:$C$103,(1+SUM(COUNTIF('A1'!$B$30:$C$103,B$6:B119))-(A119*COUNTIF('A1'!$B$30:$C$103,B$7)))))) ->  | C120: =IF($C$5:$AZ$5="","",IF($C$5:$AZ$5="HOT",IF(TRANSPOSE('A1'!$B$30:$B$80)=$B120,"●",IF(TRANSPOSE('A1'!$C$30:$C$80)=$B120,"▼",IF($C119:$AZ119="|","|",""))),IF(TRANSPOSE('A1'!$B$30:$B$80)=$B120,"●",IF(TRANSPOSE('A1'!$C$30:$C$80)=$B120,"▲",IF($C119:$AZ119="|","|",""))))) -> 
A121: =IF(A119="","",IF((SUM(IF(FREQUENCY('A1'!$B$30:$C$80,'A1'!$B$30:$C$80)>0,1)))>(A119+1),(A119+1),"")) ->  | B121: =IF(A120="","",(LARGE('A1'!$B$30:$C$103,(1+SUM(COUNTIF('A1'!$B$30:$C$103,B$6:B120))-(A120*COUNTIF('A1'!$B$30:$C$103,B$7)))))) ->  | C121: =IF($C$5:$AZ$5="","",IF($C$5:$AZ$5="HOT",IF($C120:$AZ120="●","|",IF($C120:$AZ120="|","|","")),IF($C120:$AZ120="▲","|",IF($C120:$AZ120="|","|","")))) -> 
B122: =IF(A121="","",(LARGE('A1'!$B$30:$C$103,(1+SUM(COUNTIF('A1'!$B$30:$C$103,B$6:B121))-(A121*COUNTIF('A1'!$B$30:$C$103,B$7)))))) ->  | C122: =IF($C$5:$AZ$5="","",IF($C$5:$AZ$5="HOT",IF(TRANSPOSE('A1'!$B$30:$B$80)=$B122,"●",IF(TRANSPOSE('A1'!$C$30:$C$80)=$B122,"▼",IF($C121:$AZ121="|","|",""))),IF(TRANSPOSE('A1'!$B$30:$B$80)=$B122,"●",IF(TRANSPOSE('A1'!$C$30:$C$80)=$B122,"▲",IF($C121:$AZ121="|","|",""))))) -> 
A123: =IF(A121="","",IF((SUM(IF(FREQUENCY('A1'!$B$30:$C$80,'A1'!$B$30:$C$80)>0,1)))>(A121+1),(A121+1),"")) ->  | B123: =IF(A122="","",(LARGE('A1'!$B$30:$C$103,(1+SUM(COUNTIF('A1'!$B$30:$C$103,B$6:B122))-(A122*COUNTIF('A1'!$B$30:$C$103,B$7)))))) ->  | C123: =IF($C$5:$AZ$5="","",IF($C$5:$AZ$5="HOT",IF($C122:$AZ122="●","|",IF($C122:$AZ122="|","|","")),IF($C122:$AZ122="▲","|",IF($C122:$AZ122="|","|","")))) -> 
B124: =IF(A123="","",(LARGE('A1'!$B$30:$C$103,(1+SUM(COUNTIF('A1'!$B$30:$C$103,B$6:B123))-(A123*COUNTIF('A1'!$B$30:$C$103,B$7)))))) ->  | C124: =IF($C$5:$AZ$5="","",IF($C$5:$AZ$5="HOT",IF(TRANSPOSE('A1'!$B$30:$B$80)=$B124,"●",IF(TRANSPOSE('A1'!$C$30:$C$80)=$B124,"▼",IF($C123:$AZ123="|","|",""))),IF(TRANSPOSE('A1'!$B$30:$B$80)=$B124,"●",IF(TRANSPOSE('A1'!$C$30:$C$80)=$B124,"▲",IF($C123:$AZ123="|","|",""))))) -> 
A125: =IF(A123="","",IF((SUM(IF(FREQUENCY('A1'!$B$30:$C$80,'A1'!$B$30:$C$80)>0,1)))>(A123+1),(A123+1),"")) ->  | B125: =IF(A124="","",(LARGE('A1'!$B$30:$C$103,(1+SUM(COUNTIF('A1'!$B$30:$C$103,B$6:B124))-(A124*COUNTIF('A1'!$B$30:$C$103,B$7)))))) ->  | C125: =IF($C$5:$AZ$5="","",IF($C$5:$AZ$5="HOT",IF($C124:$AZ124="●","|",IF($C124:$AZ124="|","|","")),IF($C124:$AZ124="▲","|",IF($C124:$AZ124="|","|","")))) -> 
B126: =IF(A125="","",(LARGE('A1'!$B$30:$C$103,(1+SUM(COUNTIF('A1'!$B$30:$C$103,B$6:B125))-(A125*COUNTIF('A1'!$B$30:$C$103,B$7)))))) ->  | C126: =IF($C$5:$AZ$5="","",IF($C$5:$AZ$5="HOT",IF(TRANSPOSE('A1'!$B$30:$B$80)=$B126,"●",IF(TRANSPOSE('A1'!$C$30:$C$80)=$B126,"▼",IF($C125:$AZ125="|","|",""))),IF(TRANSPOSE('A1'!$B$30:$B$80)=$B126,"●",IF(TRANSPOSE('A1'!$C$30:$C$80)=$B126,"▲",IF($C125:$AZ125="|","|",""))))) -> 
A127: =IF(A125="","",IF((SUM(IF(FREQUENCY('A1'!$B$30:$C$80,'A1'!$B$30:$C$80)>0,1)))>(A125+1),(A125+1),"")) ->  | B127: =IF(A126="","",(LARGE('A1'!$B$30:$C$103,(1+SUM(COUNTIF('A1'!$B$30:$C$103,B$6:B126))-(A126*COUNTIF('A1'!$B$30:$C$103,B$7)))))) ->  | C127: =IF($C$5:$AZ$5="","",IF($C$5:$AZ$5="HOT",IF($C126:$AZ126="●","|",IF($C126:$AZ126="|","|","")),IF($C126:$AZ126="▲","|",IF($C126:$AZ126="|","|","")))) -> 
B128: =IF(A127="","",(LARGE('A1'!$B$30:$C$103,(1+SUM(COUNTIF('A1'!$B$30:$C$103,B$6:B127))-(A127*COUNTIF('A1'!$B$30:$C$103,B$7)))))) ->  | C128: =IF($C$5:$AZ$5="","",IF($C$5:$AZ$5="HOT",IF(TRANSPOSE('A1'!$B$30:$B$80)=$B128,"●",IF(TRANSPOSE('A1'!$C$30:$C$80)=$B128,"▼",IF($C127:$AZ127="|","|",""))),IF(TRANSPOSE('A1'!$B$30:$B$80)=$B128,"●",IF(TRANSPOSE('A1'!$C$30:$C$80)=$B128,"▲",IF($C127:$AZ127="|","|",""))))) -> 
A129: =IF(A127="","",IF((SUM(IF(FREQUENCY('A1'!$B$30:$C$80,'A1'!$B$30:$C$80)>0,1)))>(A127+1),(A127+1),"")) ->  | B129: =IF(A128="","",(LARGE('A1'!$B$30:$C$103,(1+SUM(COUNTIF('A1'!$B$30:$C$103,B$6:B128))-(A128*COUNTIF('A1'!$B$30:$C$103,B$7)))))) ->  | C129: =IF($C$5:$AZ$5="","",IF($C$5:$AZ$5="HOT",IF($C128:$AZ128="●","|",IF($C128:$AZ128="|","|","")),IF($C128:$AZ128="▲","|",IF($C128:$AZ128="|","|","")))) -> 
B130: =IF(A129="","",(LARGE('A1'!$B$30:$C$103,(1+SUM(COUNTIF('A1'!$B$30:$C$103,B$6:B129))-(A129*COUNTIF('A1'!$B$30:$C$103,B$7)))))) ->  | C130: =IF($C$5:$AZ$5="","",IF($C$5:$AZ$5="HOT",IF(TRANSPOSE('A1'!$B$30:$B$80)=$B130,"●",IF(TRANSPOSE('A1'!$C$30:$C$80)=$B130,"▼",IF($C129:$AZ129="|","|",""))),IF(TRANSPOSE('A1'!$B$30:$B$80)=$B130,"●",IF(TRANSPOSE('A1'!$C$30:$C$80)=$B130,"▲",IF($C129:$AZ129="|","|",""))))) -> 
A131: =IF(A129="","",IF((SUM(IF(FREQUENCY('A1'!$B$30:$C$80,'A1'!$B$30:$C$80)>0,1)))>(A129+1),(A129+1),"")) ->  | B131: =IF(A130="","",(LARGE('A1'!$B$30:$C$103,(1+SUM(COUNTIF('A1'!$B$30:$C$103,B$6:B130))-(A130*COUNTIF('A1'!$B$30:$C$103,B$7)))))) ->  | C131: =IF($C$5:$AZ$5="","",IF($C$5:$AZ$5="HOT",IF($C130:$AZ130="●","|",IF($C130:$AZ130="|","|","")),IF($C130:$AZ130="▲","|",IF($C130:$AZ130="|","|","")))) -> 
B132: =IF(A131="","",(LARGE('A1'!$B$30:$C$103,(1+SUM(COUNTIF('A1'!$B$30:$C$103,B$6:B131))-(A131*COUNTIF('A1'!$B$30:$C$103,B$7)))))) ->  | C132: =IF($C$5:$AZ$5="","",IF($C$5:$AZ$5="HOT",IF(TRANSPOSE('A1'!$B$30:$B$80)=$B132,"●",IF(TRANSPOSE('A1'!$C$30:$C$80)=$B132,"▼",IF($C131:$AZ131="|","|",""))),IF(TRANSPOSE('A1'!$B$30:$B$80)=$B132,"●",IF(TRANSPOSE('A1'!$C$30:$C$80)=$B132,"▲",IF($C131:$AZ131="|","|",""))))) -> 
A133: =IF(A131="","",IF((SUM(IF(FREQUENCY('A1'!$B$30:$C$80,'A1'!$B$30:$C$80)>0,1)))>(A131+1),(A131+1),"")) ->  | B133: =IF(A132="","",(LARGE('A1'!$B$30:$C$103,(1+SUM(COUNTIF('A1'!$B$30:$C$103,B$6:B132))-(A132*COUNTIF('A1'!$B$30:$C$103,B$7)))))) ->  | C133: =IF($C$5:$AZ$5="","",IF($C$5:$AZ$5="HOT",IF($C132:$AZ132="●","|",IF($C132:$AZ132="|","|","")),IF($C132:$AZ132="▲","|",IF($C132:$AZ132="|","|","")))) -> 
B134: =IF(A133="","",(LARGE('A1'!$B$30:$C$103,(1+SUM(COUNTIF('A1'!$B$30:$C$103,B$6:B133))-(A133*COUNTIF('A1'!$B$30:$C$103,B$7)))))) ->  | C134: =IF($C$5:$AZ$5="","",IF($C$5:$AZ$5="HOT",IF(TRANSPOSE('A1'!$B$30:$B$80)=$B134,"●",IF(TRANSPOSE('A1'!$C$30:$C$80)=$B134,"▼",IF($C133:$AZ133="|","|",""))),IF(TRANSPOSE('A1'!$B$30:$B$80)=$B134,"●",IF(TRANSPOSE('A1'!$C$30:$C$80)=$B134,"▲",IF($C133:$AZ133="|","|",""))))) -> 
A135: =IF(A133="","",IF((SUM(IF(FREQUENCY('A1'!$B$30:$C$80,'A1'!$B$30:$C$80)>0,1)))>(A133+1),(A133+1),"")) ->  | B135: =IF(A134="","",(LARGE('A1'!$B$30:$C$103,(1+SUM(COUNTIF('A1'!$B$30:$C$103,B$6:B134))-(A134*COUNTIF('A1'!$B$30:$C$103,B$7)))))) ->  | C135: =IF($C$5:$AZ$5="","",IF($C$5:$AZ$5="HOT",IF($C134:$AZ134="●","|",IF($C134:$AZ134="|","|","")),IF($C134:$AZ134="▲","|",IF($C134:$AZ134="|","|","")))) -> 
B136: =IF(A135="","",(LARGE('A1'!$B$30:$C$103,(1+SUM(COUNTIF('A1'!$B$30:$C$103,B$6:B135))-(A135*COUNTIF('A1'!$B$30:$C$103,B$7)))))) ->  | C136: =IF($C$5:$AZ$5="","",IF($C$5:$AZ$5="HOT",IF(TRANSPOSE('A1'!$B$30:$B$80)=$B136,"●",IF(TRANSPOSE('A1'!$C$30:$C$80)=$B136,"▼",IF($C135:$AZ135="|","|",""))),IF(TRANSPOSE('A1'!$B$30:$B$80)=$B136,"●",IF(TRANSPOSE('A1'!$C$30:$C$80)=$B136,"▲",IF($C135:$AZ135="|","|",""))))) -> 
A137: =IF(A135="","",IF((SUM(IF(FREQUENCY('A1'!$B$30:$C$80,'A1'!$B$30:$C$80)>0,1)))>(A135+1),(A135+1),"")) ->  | B137: =IF(A136="","",(LARGE('A1'!$B$30:$C$103,(1+SUM(COUNTIF('A1'!$B$30:$C$103,B$6:B136))-(A136*COUNTIF('A1'!$B$30:$C$103,B$7)))))) ->  | C137: =IF($C$5:$AZ$5="","",IF($C$5:$AZ$5="HOT",IF($C136:$AZ136="●","|",IF($C136:$AZ136="|","|","")),IF($C136:$AZ136="▲","|",IF($C136:$AZ136="|","|","")))) -> 
B138: =IF(A137="","",(LARGE('A1'!$B$30:$C$103,(1+SUM(COUNTIF('A1'!$B$30:$C$103,B$6:B137))-(A137*COUNTIF('A1'!$B$30:$C$103,B$7)))))) ->  | C138: =IF($C$5:$AZ$5="","",IF($C$5:$AZ$5="HOT",IF(TRANSPOSE('A1'!$B$30:$B$80)=$B138,"●",IF(TRANSPOSE('A1'!$C$30:$C$80)=$B138,"▼",IF($C137:$AZ137="|","|",""))),IF(TRANSPOSE('A1'!$B$30:$B$80)=$B138,"●",IF(TRANSPOSE('A1'!$C$30:$C$80)=$B138,"▲",IF($C137:$AZ137="|","|",""))))) -> 
A139: =IF(A137="","",IF((SUM(IF(FREQUENCY('A1'!$B$30:$C$80,'A1'!$B$30:$C$80)>0,1)))>(A137+1),(A137+1),"")) ->  | B139: =IF(A138="","",(LARGE('A1'!$B$30:$C$103,(1+SUM(COUNTIF('A1'!$B$30:$C$103,B$6:B138))-(A138*COUNTIF('A1'!$B$30:$C$103,B$7)))))) ->  | C139: =IF($C$5:$AZ$5="","",IF($C$5:$AZ$5="HOT",IF($C138:$AZ138="●","|",IF($C138:$AZ138="|","|","")),IF($C138:$AZ138="▲","|",IF($C138:$AZ138="|","|","")))) -> 
B140: =IF(A139="","",(LARGE('A1'!$B$30:$C$103,(1+SUM(COUNTIF('A1'!$B$30:$C$103,B$6:B139))-(A139*COUNTIF('A1'!$B$30:$C$103,B$7)))))) ->  | C140: =IF($C$5:$AZ$5="","",IF($C$5:$AZ$5="HOT",IF(TRANSPOSE('A1'!$B$30:$B$80)=$B140,"●",IF(TRANSPOSE('A1'!$C$30:$C$80)=$B140,"▼",IF($C139:$AZ139="|","|",""))),IF(TRANSPOSE('A1'!$B$30:$B$80)=$B140,"●",IF(TRANSPOSE('A1'!$C$30:$C$80)=$B140,"▲",IF($C139:$AZ139="|","|",""))))) -> 
A141: =IF(A139="","",IF((SUM(IF(FREQUENCY('A1'!$B$30:$C$80,'A1'!$B$30:$C$80)>0,1)))>(A139+1),(A139+1),"")) ->  | B141: =IF(A140="","",(LARGE('A1'!$B$30:$C$103,(1+SUM(COUNTIF('A1'!$B$30:$C$103,B$6:B140))-(A140*COUNTIF('A1'!$B$30:$C$103,B$7)))))) ->  | C141: =IF($C$5:$AZ$5="","",IF($C$5:$AZ$5="HOT",IF($C140:$AZ140="●","|",IF($C140:$AZ140="|","|","")),IF($C140:$AZ140="▲","|",IF($C140:$AZ140="|","|","")))) -> 
B142: =IF(A141="","",(LARGE('A1'!$B$30:$C$103,(1+SUM(COUNTIF('A1'!$B$30:$C$103,B$6:B141))-(A141*COUNTIF('A1'!$B$30:$C$103,B$7)))))) ->  | C142: =IF($C$5:$AZ$5="","",IF($C$5:$AZ$5="HOT",IF(TRANSPOSE('A1'!$B$30:$B$80)=$B142,"●",IF(TRANSPOSE('A1'!$C$30:$C$80)=$B142,"▼",IF($C141:$AZ141="|","|",""))),IF(TRANSPOSE('A1'!$B$30:$B$80)=$B142,"●",IF(TRANSPOSE('A1'!$C$30:$C$80)=$B142,"▲",IF($C141:$AZ141="|","|",""))))) -> 
A143: =IF(A141="","",IF((SUM(IF(FREQUENCY('A1'!$B$30:$C$80,'A1'!$B$30:$C$80)>0,1)))>(A141+1),(A141+1),"")) ->  | B143: =IF(A142="","",(LARGE('A1'!$B$30:$C$103,(1+SUM(COUNTIF('A1'!$B$30:$C$103,B$6:B142))-(A142*COUNTIF('A1'!$B$30:$C$103,B$7)))))) ->  | C143: =IF($C$5:$AZ$5="","",IF($C$5:$AZ$5="HOT",IF($C142:$AZ142="●","|",IF($C142:$AZ142="|","|","")),IF($C142:$AZ142="▲","|",IF($C142:$AZ142="|","|","")))) -> 
B144: =IF(A143="","",(LARGE('A1'!$B$30:$C$103,(1+SUM(COUNTIF('A1'!$B$30:$C$103,B$6:B143))-(A143*COUNTIF('A1'!$B$30:$C$103,B$7)))))) ->  | C144: =IF($C$5:$AZ$5="","",IF($C$5:$AZ$5="HOT",IF(TRANSPOSE('A1'!$B$30:$B$80)=$B144,"●",IF(TRANSPOSE('A1'!$C$30:$C$80)=$B144,"▼",IF($C143:$AZ143="|","|",""))),IF(TRANSPOSE('A1'!$B$30:$B$80)=$B144,"●",IF(TRANSPOSE('A1'!$C$30:$C$80)=$B144,"▲",IF($C143:$AZ143="|","|",""))))) -> 
A145: =IF(A143="","",IF((SUM(IF(FREQUENCY('A1'!$B$30:$C$80,'A1'!$B$30:$C$80)>0,1)))>(A143+1),(A143+1),"")) ->  | B145: =IF(A144="","",(LARGE('A1'!$B$30:$C$103,(1+SUM(COUNTIF('A1'!$B$30:$C$103,B$6:B144))-(A144*COUNTIF('A1'!$B$30:$C$103,B$7)))))) ->  | C145: =IF($C$5:$AZ$5="","",IF($C$5:$AZ$5="HOT",IF($C144:$AZ144="●","|",IF($C144:$AZ144="|","|","")),IF($C144:$AZ144="▲","|",IF($C144:$AZ144="|","|","")))) -> 
B146: =IF(A145="","",(LARGE('A1'!$B$30:$C$103,(1+SUM(COUNTIF('A1'!$B$30:$C$103,B$6:B145))-(A145*COUNTIF('A1'!$B$30:$C$103,B$7)))))) ->  | C146: =IF($C$5:$AZ$5="","",IF($C$5:$AZ$5="HOT",IF(TRANSPOSE('A1'!$B$30:$B$80)=$B146,"●",IF(TRANSPOSE('A1'!$C$30:$C$80)=$B146,"▼",IF($C145:$AZ145="|","|",""))),IF(TRANSPOSE('A1'!$B$30:$B$80)=$B146,"●",IF(TRANSPOSE('A1'!$C$30:$C$80)=$B146,"▲",IF($C145:$AZ145="|","|",""))))) -> 
A147: =IF(A145="","",IF((SUM(IF(FREQUENCY('A1'!$B$30:$C$80,'A1'!$B$30:$C$80)>0,1)))>(A145+1),(A145+1),"")) ->  | B147: =IF(A146="","",(LARGE('A1'!$B$30:$C$103,(1+SUM(COUNTIF('A1'!$B$30:$C$103,B$6:B146))-(A146*COUNTIF('A1'!$B$30:$C$103,B$7)))))) ->  | C147: =IF($C$5:$AZ$5="","",IF($C$5:$AZ$5="HOT",IF($C146:$AZ146="●","|",IF($C146:$AZ146="|","|","")),IF($C146:$AZ146="▲","|",IF($C146:$AZ146="|","|","")))) -> 
B148: =IF(A147="","",(LARGE('A1'!$B$30:$C$103,(1+SUM(COUNTIF('A1'!$B$30:$C$103,B$6:B147))-(A147*COUNTIF('A1'!$B$30:$C$103,B$7)))))) ->  | C148: =IF($C$5:$AZ$5="","",IF($C$5:$AZ$5="HOT",IF(TRANSPOSE('A1'!$B$30:$B$80)=$B148,"●",IF(TRANSPOSE('A1'!$C$30:$C$80)=$B148,"▼",IF($C147:$AZ147="|","|",""))),IF(TRANSPOSE('A1'!$B$30:$B$80)=$B148,"●",IF(TRANSPOSE('A1'!$C$30:$C$80)=$B148,"▲",IF($C147:$AZ147="|","|",""))))) -> 
A149: =IF(A147="","",IF((SUM(IF(FREQUENCY('A1'!$B$30:$C$80,'A1'!$B$30:$C$80)>0,1)))>(A147+1),(A147+1),"")) ->  | B149: =IF(A148="","",(LARGE('A1'!$B$30:$C$103,(1+SUM(COUNTIF('A1'!$B$30:$C$103,B$6:B148))-(A148*COUNTIF('A1'!$B$30:$C$103,B$7)))))) ->  | C149: =IF($C$5:$AZ$5="","",IF($C$5:$AZ$5="HOT",IF($C148:$AZ148="●","|",IF($C148:$AZ148="|","|","")),IF($C148:$AZ148="▲","|",IF($C148:$AZ148="|","|","")))) -> 
B150: =IF(A149="","",(LARGE('A1'!$B$30:$C$103,(1+SUM(COUNTIF('A1'!$B$30:$C$103,B$6:B149))-(A149*COUNTIF('A1'!$B$30:$C$103,B$7)))))) ->  | C150: =IF($C$5:$AZ$5="","",IF($C$5:$AZ$5="HOT",IF(TRANSPOSE('A1'!$B$30:$B$80)=$B150,"●",IF(TRANSPOSE('A1'!$C$30:$C$80)=$B150,"▼",IF($C149:$AZ149="|","|",""))),IF(TRANSPOSE('A1'!$B$30:$B$80)=$B150,"●",IF(TRANSPOSE('A1'!$C$30:$C$80)=$B150,"▲",IF($C149:$AZ149="|","|",""))))) -> 
A151: =IF(A149="","",IF((SUM(IF(FREQUENCY('A1'!$B$30:$C$80,'A1'!$B$30:$C$80)>0,1)))>(A149+1),(A149+1),"")) ->  | B151: =IF(A150="","",(LARGE('A1'!$B$30:$C$103,(1+SUM(COUNTIF('A1'!$B$30:$C$103,B$6:B150))-(A150*COUNTIF('A1'!$B$30:$C$103,B$7)))))) ->  | C151: =IF($C$5:$AZ$5="","",IF($C$5:$AZ$5="HOT",IF($C150:$AZ150="●","|",IF($C150:$AZ150="|","|","")),IF($C150:$AZ150="▲","|",IF($C150:$AZ150="|","|","")))) -> 
